{"text_format":"3","workbook":"xlsx","n_sheets":14,"sheets":["SUMMARY LIST","1. AUTOCLAVES","2. BOILER EQUIPMENT","3. BUILDING","4. CCTV AND ACCESS CONTROL","5. ELECTRICAL","6. FIREFIGHTING AND SUPPRESSION","7. KITCHEN EQUIPMENT","8. MEDICAL GAS","9. NURSE CALL SYSTEMS","10. PLUMBING","11. STEAM RETICULATION","12.LAUNDRY EQUIPMENT ","Professional  Fees"],"not_rendered":{"defined_names":15},"read":"whole","date_system":"1900"}

{"sheet":"SUMMARY LIST","index":0,"n_rows":16,"n_cols":3,"rows_kept":16,"merged":[[0,0,0,2],[1,0,1,2]]}
["Annexure-A: Pricing Schedule/Bill of Quantities for the GT/GDH/001/2025"]
["Pricing schedule/Bill of Quantity procedure\nThe bidders must refer to Annexure-A for pricing schedule/BOQ. The quoted price must be inclusive of all costs for materials, services, repairs, installations and maintenances. The bidders must complete the Price Schedule/BOQ as follows:\n\na. The Annexure-A pricing schedule/BOQ must be completed and submitted with the bid documents in a hard copy and electronic format (not PDF), captured and saved on a memory stick.\nb. Hard Copy Format:\n    The hard copy must be written clearly and legibly.   \nc. Soft Copy Format:\n   The electronically (soft copy) must be submitted on a memory stick to the Gauteng Department of Health 11 Diagonal Street, the memory stick must be clearly marked with the company name and tender \n    number. The electronic copy will be used by the BEC to compile the evaluation worksheets of the bids.\nd. The Price Schedule in MS Excel format that is attached must be completed in order to submit it in its original format. \ne. The bidders must ensure that there are no discrepancies between the electronic (soft copy) saved on a memory stick and the hard copy submissions of the Price Schedule. If any discrepancies are detected, \n     the hard copy document will take precedence over the electronic copy. The Gauteng Department of Health may contact the bidder, but shall not be obliged to do so, for clarification regarding any\n     discrepancies found.\nf. Each original bid must be submitted in a separate, sealed envelope/arch lever file with the memory stick to Gauteng Department of Health 11 Diagonal Street, Johannesburg before the closing date and time.\n   The name and address of the bidder, the bid number and the closing date must be clearly endorsed on the sealed envelope/arch file.\ng. The bidder must include in their quotation all overheads costs including travelling, working tools/equipment and other related costs.\nh. Labour cost of each laborer on site will be paid as per CIDB rates.\ni. Where general building services are required, and the value cannot be ascertained in terms of the rates provided by the contractor in Schedules No. 1 to 12, this work will be executed in terms of the\n   contract based on the rates hereunder.\nj. All items not covered by an existing BOQ (Annexure-A), shall be subjected to a three (3) quotation process from the appointed panel of service providers. This new item shall be approved by delegated official\n  of GDoH. Once approved, the new item shall become part of the BOQ henceforth. Quotations to have a detailed cost breakdown."]
["No.","LIST OF WORKS/SERVICES AND MATERIALS","BIDDER TO SELECT PREFERED OPTION BELOW BY TYPING YES/NO"]
["e.g.","ELECTRONICS","YES"]
[1,"AUTOCLAVES"]
[2,"BOILER EQUIPMENT"]
[3,"BUILDING"]
[4,"CCTV AND ACCESS CONTROL"]
[5,"ELECTRICAL"]
[6,"FIREFIGHTING AND SUPPRESSION"]
[7,"KITCHEN EQUIPMENT"]
[8,"MEDICAL GAS"]
[9,"NURSE CALL SYSTEMS"]
[10,"PLUMBING"]
[11,"STEAM RETICULATION"]
[12,"LAUNDRY EQUIPMENT"]

{"sheet":"1. AUTOCLAVES","index":1,"n_rows":120,"n_cols":5,"rows_kept":120,"merged":[[0,0,1,4],[2,0,2,4],[9,1,9,3],[18,1,18,3],[113,1,113,3],[115,1,115,3],[117,1,117,4],[118,1,118,4],[119,1,119,4]]}
["1. AUTOCLAVES"]
[]
["Provision of servicing, repairs, maintenance of the Steam Generation plant, Steam and Condensate Reticulation and Various Mechanical Equipment"]
[" NO:","SCHEDULED SERVICES/WORKS","UNIT OF MEASURE","PROVISIONAL QUANTITIES","RATE PER  HOUR (R)."]
[1,"Major service/maitenance","EA",1]
[2,"Minor service/maitenance","EA",1]
[3,"Major repairs","EA",1]
[4,"Minor repairs","EA",1]
[5,"Traveling can only be book from the relevant Regional Office to the institution in that relevant  Region","KM",1]
["SUB-TOTAL",{"$nulls":3},{"$f":"SUM(E3:E9)","v":{"v":0,"d":"R 0.00"}}]
[]
[" NO","SCHEDULED LABOUR COSTS","UNIT","PROVISIONAL QUANTITIES","PRICE PER UNIT (VAT. INCLUSIVE)"]
[6,"Labour Technician per hour","EA",1]
[7,"Labour Technician per hour over time","EA",1]
[8,"Labour Technician per hour Sunday and Public Holidays","EA",1]
[9,"Labour Technician Assistant per hour","EA",1]
[10,"Labour Technician Assistant per hour over time","EA",1]
[11,"Labour Technician Assistant per hour Sunday and Public Holidays","EA",1]
["SUB-TOTAL",{"$nulls":3},{"$f":"SUM(E13:E18)","v":{"v":0,"d":"R 0.00"}}]
[]
["PART NO:","SCHEDULED PARTS","UNIT","PROVISIONAL QUANTITIES","PRICE PER UNIT (VAT. INCLUSIVE)"]
[12,"BP13A Steam Trap Kit","Kit",1]
[13,"15mm Steam Globe Valve","S",1]
[14,"20mm Steam Globe Valve","S",1]
[15,"15mm Steam Solenoid Valve (A47)","S",1]
[16,"20mm Steam Solenoid Valve (A49)","S",1]
[17,"Asco Solenoid Valve Kit (302-841)","Kit",1]
[18,"Asco Solenoid Valve Kit (158-959D)","Kit",1]
[19,"Asco Solenoid Valve Kit (304-032)","Kit",1]
[20,"Asco Solenoid Valve Kit (304-030)","Kit",1]
[21,"Asco Solenoid Valve Kit (304-394)","Kit",1]
[22,"Asco Solenoid Valve Kit (302-273)","Kit",1]
[23,"Asco Solenoid Valve Voil (400426/117)","S",1]
[24,"Asco Transducer (RV24A21)","S",1]
[25,"Temperature Sensor Probe PT100","S",1]
[26,"ASco Non-Return Valve (15mm)","S",1]
[27,"B13 Normally Open Valve","Kit",1]
[28,"Check Valve 15mm – Mushroom","S",1]
[29,"Check Valve 20mm – Mushroom","S"]
[30,"15mm BRV2 Steam Reducing Valve (700-240kPa)","S",1]
[31,"20mm BRV2 Steam Reducing Valve (700-240kPa)","S",1]
[32,"15mm Steam Pop-up Type Safety Valve (240kPa)","S ",1]
[33,"20mm Steam Pop-up Type Safety Valve (240kPa)","S",1]
[34,"D2 Water Valve","S",1]
[35,"Burkett Air Plunger","S",1]
[36,"Butterworth Diaphragm","S",1]
[37,"Door Piston Seal (Butterworth)","S",1]
[38,"15mm Silicone Valve Seal Butterworth","S",1]
[39,"20mm Silicone Valve Seal Butterworth","S",1]
[40,"Whistle Valve Copper Bellows","S",1]
[41,"Door Bellows","Kit",1]
[42,"Sekonic Disposable Pens","S",1]
[43,"Sekonic Disposable Charts","S",1]
[44,"Negretti Zambra Disposable Pen Sets","Sets",1]
[45,"ZGPB.01V-1 Domnick Hunter Bacteria Filter","S",1]
[46,"ZGPB.01V-1 Domnick Hunter Filter Sock","S",1]
[47,"10mm Hollow Round Door Gasket","Meter",1]
[48,"10mm Square Door Gasket","Meter",1]
[49,"13mm U-shaped Door Gasket","Meter",1]
[50,"15mm U-Shaped Door Gasket","Meter",1]
[51,"Silicone Spray","Can",1]
[52,"-100 to 300kPa Compound Gauge 100mm dial","S",1]
[53,"0 – 400kPa 100mm Dial Steam Pressure Gauge","S",1]
[54,"Sauter Pressure Switch (B59)","S",1]
[55,"Sauter Pressure Switch (DSA40)","S",1]
[56,"Pressure Switch Bellows","S",1]
[57,"OMRON unit switch (Z-15GK335)","S",1]
[58,"Indicator lamps","S",1]
[59,"Shinco contract thermometer","S",1]
[60,"NT70 water pump","S",1]
[61,"Robusca pump including all pipework","S",1]
[62,"OMRON Time (3 min)","S",1]
[63,"Delay Timer","S",1]
[64,"Limit Switch (D4D/1121)","S",1]
[65,"Vacuum Pump Motor (WEG90S/292)","S",1]
[66,"Circuit Breaker (SP5 Amp)","S",1]
[67,"Circuit Breaker (TP15 amp)","S",1]
[68,"Overload (1.6 – 2.5 amp)","S",1]
[69,"Overload (0.40 – 0.63 amp)","S",1]
[70,"PTFE tape","Rolls",1]
[71,"Hydraulic test","S",1]
[72,"Steam inlet valve 15mm","S",1]
[73,"Steam inlet valve 20mm","S",1]
[74,"Steam inlet valve air diaphragm 15mm","S",1]
[75,"Steam inlet valve air diaphragm 20mm","S",1]
[76,"Water inlet valve 15mm","S",1]
[77,"Water inlet valve 20mm","S",1]
[78,"Water inlet valve air diaphragm 15mm","S",1]
[79,"Water inlet valve air diaphragm 20mm","S",1]
[80,"Exhaust valve 15mm","S",1]
[81,"Exhaust valve 20mm","S",1]
[82,"Air inlet valve 15mm","S",1]
[83,"Air inlet valve 20mm","S",1]
[84,"Air inlet valve diaphragm 15mm","S",1]
[85,"Air inlet valve diaphragm 20mm","S",1]
[86,"Safety valve 15mm","S",1]
[87,"Safety valve 20mm","S",1]
[88,"Vacuum pump coupling","S",1]
[89,"Water tank ball valve 20mm","S",1]
[90,"Water tank ball valve 25mm","S",1]
[91,"Compressor oil","S",1]
[92,"Oil lubrication","S",1]
[93,"Electrical relays","S",1]
[94,"Door cylinder","S",1]
[95,"Door interlocks","S",1]
[96,"Door slides/fingers","S",1]
[97,"Door gearbox (open and close)","S",1]
[98,"Water strainer","S",1]
[99,"Steam strainer","S",1]
[100,"Vacuum gauge maximum (kPa)","S",1]
[101,"Level switches (boiler)","S",1]
[102,"Elements 32mm 3 x 2 kw","S",1]
[103,"Float less switch","S",1]
["SUB-TOTAL",{"$nulls":3},{"$f":"SUM(E22:E113)","v":{"v":0,"d":"R 0.00"}}]
[]
["GRAND TOTAL:",{"$nulls":3},{"$f":"E10+E19+E114","v":{"v":0,"d":"R0.00"}}]
[]
["Name of the Company"]
["Signature:"]
["Date:"]

{"sheet":"2. BOILER EQUIPMENT","index":2,"n_rows":283,"n_cols":5,"rows_kept":283,"merged":[[0,0,1,4],[2,0,2,4],[4,0,4,4],[11,0,11,4],[13,0,13,4],[20,1,20,3],[21,0,22,4],[35,1,35,3],[276,1,276,3],[278,1,278,3],[280,1,280,4],[281,1,281,4],[282,1,282,4]]}
["2. BOILERS"]
[]
["Provision of servicing, repairs, maintenance of the Steam Generation plant, Steam and Condensate Reticulation and Various Mechanical Equipment"]
[" NO:","SCHEDULED SERVICES/WORKS","UNIT OF MEASURE","PROVISIONAL QUANTITIES","RATE PER  HOUR (R)."]
["\nCOAL FIRED BOILERS"]
[1,"Preparation for statutory inspection – 1 Ton up to 2 ½ ton","S",1]
[2,"Preparation for statutory inspection – 2 1/2 Ton up to 5 ton","S",1]
[3,"Preparation for statutory inspection – 5 Ton up to 7 ½ ton","S",1]
[4,"Preparation for statutory inspection – 7 1/2 Ton up to 10 ton","S",1]
[5,"Preparation for statutory inspection – 10 Ton up to 15 ton","S",1]
[6,"Preparation for statutory inspection – 15 Ton up to 20 ton","S",1]
["\nWATER TUBE BOILERS"]
[7,"Preparation for statutory inspection – Water tube boilers 13 ton","S",1]
["\nDUAL FUEL BOILERS"]
[8,"Preparation for statutory inspection – 1 Ton up to 2 ½ ton","S",1]
[9,"Preparation for statutory inspection  – 2 1/2 Ton up to 5 ton","S",1]
[10,"Preparation for statutory inspection – 5 Ton up to 7 ½ ton","S",1]
[11,"Preparation for statutory inspection – 7 1/2 Ton up to 10 ton","S",1]
[12,"Preparation for statutory inspection – 10 Ton up to 15 ton","S",1]
[13,"Preparation for statutory inspection – 15 Ton up to 20 ton","S",1]
["SUB-TOTAL",{"$nulls":3},{"$f":"SUM(E6:E20)","v":{"v":0,"d":"R 0.00"}}]
[]
[]
[" NO","SCHEDULED LABOUR COSTS","UNIT","PROVISIONAL QUANTITIES","PRICE PER UNIT (VAT. INCLUSIVE)"]
[14,"Boiler Operators per hour","EA",1]
[15,"Boiler Cleaners per hour","EA",1]
[16,"Fitters per hour","EA",1]
[17,"Electricians per hour","EA",1]
[18,"Handyman per hour","EA",1]
[19,"Labour Technician per hour","EA",1]
[20,"Labour Technician per hour overtime ","EA",1]
[21,"Labour Technician per hour Sunday and Public Holidays","EA",1]
[22,"Labour Technician Assistant per hour","EA",1]
[23,"Labour Technician Assistant per hour over timer","EA",1]
[24,"Labour Technician Assistant per hour Sunday and Public Holidays","EA",1]
["SUB-TOTAL",{"$nulls":3},{"$f":"SUM(E25:E30)","v":{"v":0,"d":"R 0.00"}}]
[]
["PART NO","SCHEDULED PARTS","UNIT","PROVISIONAL QUANTITIES","PRICE PER UNIT"]
[25,"15mm copper tubing; class 2; 5.51m length","M",1]
[26,"20mm copper tubing; class 2; 5.5m length","M",1]
[27,"25mm copper tubing; class 2; 5.5m length","M",1]
[28,"80mm copper tubing, class 2 5.5m length","M",1]
[29,"50mm copper tubing, class 2 5.5m length","M",1]
[30,"40mm copper tubing, class 2 5.5m length","M",1]
[31,"15mm heavy duty steam pipe 6,1m length S40","M",1]
[32,"20mm heavy duty steam pipe 6,1m length S40","M",1]
[33,"25mm heavy duty steam pipe 6,1m length S40","M",1]
[34,"Valve gland packing 12,5mm roll","Roll",1]
[35,"Valve gland packing 10mm roll","Roll",1]
[36,"PTFE thread sealing tape roll","Roll",1]
[37,"Rope packing; non asbestos; 40mm x 30m roll","Roll",1]
[38,"Rope packing; non asbestos; 25mm x 30m roll","Roll",1]
[39,"Rope packing; non asbestos; 15mm x 30m roll","Roll",1]
[40,"Manhole gaskets, spirally wound; 460mm x 340mm x 5mm thick x 32mm winding with","No",1]
[41,"Side wall header gaskets, spirally wound; 125mm x 82mm x 5mm thick x 10mm winding width","No",1]
[42,"Gland packing for Sulzer HCP 15-6½ boiler feed water pump; 6 packing per set","No",1]
[43,"Lined webbing; non asbestos; rolls of 50mm x 6mm x 30m","Rolls",1]
[44,"Packing material: graphite impregnated wire reinforced sheets, 1,2m x 2,4m x 1,5m","No",1]
[45,"Packing material: graphite impregnated, wire reinforced sheets 1,2m x 2,4m x 3,0m","Sheet",1]
[46,"Acetylene 8,kg cylinder","Cylinder",1]
[47,"Industrial quality Oxygen 11,5kg cylinder","Cylinder",1]
[48,"Welding electrodes 2,5mm x 5kg","Kg",1]
[49,"Welding electrodes 3,2mm x 5kg","Kg",1]
[50,"Brazing rods 1,5mm x 5kg","Kg",1]
[51,"Brazing rods 2,5mm x 5kg","   Kg",1]
[52,"Brazing flux 500g container","G",1]
[53,"Silver solder 100g","G",1]
[54,"Copper to copper gas welding rods","Kg",1]
[55,"Gear box oil SAE 90 5 litre container","Litre",1]
[56,"Motor oil SAE 30 5 litre container","Litre",1]
[57,"Hydraulic oil CONDOR 310 20 litre containers","Litre",1]
[58,"Paraffin 20 litre containers","Litre",1]
[59,"General purpose grease 5kg containers","Kg",1]
[60,"High temperature soot blower grease 15kg","Kg",1]
[61,"Bolts, 6mm dia x 25mm long & nuts (HTS)","S",1]
[62,"Bolts, 8mm dia x 25mm long & nuts (HTS)","S",1]
[63,"Bolts, 8mm dia x 40mm long & nuts (HTS)","S",1]
[64,"Bolts, 10mm dia x 25mm long & nuts (HTS)","S",1]
[65,"Bolts, 10mm dia x 40mm long & nuts (HTS)","S",1]
[66,"Bolts, 10mm dia x 50mm long & nuts (HTS)","S",1]
[67,"Bolts, 12mm dia x 40mm long & nuts (HTS)","S",1]
[68,"Bolts, 12mm dia x 50mm long & nuts (HTS)","S",1]
[69,"Bolts, 16mm dia x 40mm long & nuts (HTS)","S",1]
[70,"Bolts, 16mm dia x 50mm dia x 50mm long & nuts (HTS)","S",1]
[71,"Bolts, 16mm dia x 65mm long & nuts (HTS)","S",1]
[72,"Bolts, 16mm dia x 80mm long & nuts (HTS)","S",1]
[73,"Bolts, 16mm dia x 100mm long & nuts (HTS)","S",1]
[74,"Bolts, 20mm dia x 50mm long & nuts (HTS)","S",1]
[75,"Bolts, 20mm dia x 80mm long & nuts (HTS)","S",1]
[76,"Bolts, 20mm dia x 100mm long & nuts (HTS)","S",1]
[77,"Paint: PWT TPA no 1; 5 litre containers","litre",1]
[78,"Refractory Mortar; 25kg bags (Refcast 50)","Kg",1]
[79,"Fibre glass wool sheeting: 50mm x 1,2mm x 6m roll","Roll",1]
[80,"Pressure recorder charts for Negretti and Zambra P/N 9D192X","S",1]
[81,"Conveyor belting for ach conveyor 400mm wide x 12mm thick 3 ply","M",1]
[82,"Troughing rollers for ash conveyor 177mm width x 100mm dia x 25mm shaft dia","S",1]
[83,"Return rollers for ash conveyor 485mm width x 100mm dia x 25mm shaft dia","S",1]
[84,"Idler rollers for ash conveyor 485mm width x  150mm dia x 25mm shaft dia","S",1]
[85,"Compensating rollers for ash conveyor 485mm width x 150mm dia x 25mm shaft dia","S",1]
[86,"Conveyor belting for coal conveyor 550mm wide x 12mm thick, 3 ply","M",1]
[87,"Troughing rollers for coal conveyor 100mm width x 190mm dia x 20mm shaft dia","S",1]
[88,"Return rollers for coal conveyor 100mm width x 535mm dia x 20mm shaft dia","S",1]
[89,"Roller bearings: SKF 6311 ZZ","S",1]
[90,"Roller bearings: SKF 6310 ZZ","S",1]
[91,"Roller bearings: SKF 6306 ZZ","S",1]
[92,"Roller bearings: SKF 6308 ZZ","S",1]
[93,"Roller bearings; MJR 38mm shaft dia","S",1]
[94,"Roller bearings; RM 11","S",1]
[95,"Roller bearings; NTN 22211 W 33 K","S",1]
[96,"Roller bearings; KOYO 22209 RWK 33","S",1]
[97,"Roller bearings; KOYO 30215J","S",1]
[98,"Roller bearings; SKF 6003","S",1]
[99,"40mm steam Barrel nipples","S",1]
[100,"50mm steam barrel nipples","S",1]
[101,"15mm gate valves","S",1]
[102,"20mm gate valves","S",1]
[103,"25mm gate valves","S",1]
[104,"40mm gate valves","S",1]
[105,"50mm gate valves","S",1]
[106,"15 stainless steel ball valves","S",1]
[107,"20 stainless steel ball valves","S",1]
[108,"25 stainless steel ball valves","S",1]
[109,"15mm long radius 90º steam bend","S",1]
[110,"20mm long radius 90º steam bend","S",1]
[111,"25mm long radius 90º steam bend","S",1]
[112,"40mm long radius 90º steam bend","S",1]
[113,"50mm long radius 90º steam bend","S",1]
[114,"15mm C/C weldon Elbows","S",1]
[115,"20mm C/C Weldon Elbows","S",1]
[116,"25mm C/C Weldon Elbows","S",1]
[117,"40mm C/C Weldon Elbows","S",1]
[118,"50mm C/C Weldon Elbows","S",1]
[119,"15mm C/C Weldon T pieces","S",1]
[120,"20mm C/C Weldon T pieces","S",1]
[121,"25mm C/C Weldon T pieces","S",1]
[122,"40mm C/C Weldon T pieces","S",1]
[123,"50mm C/C Weldon T pieces","S",1]
[124,"15mm C/C Weldon straight connectors","S",1]
[125,"20mm C/C Weldon straight connectors","S",1]
[126,"25mm C/C Weldon straight connectors","S",1]
[127,"45mm C/C Weldon straight connectors","S",1]
[128,"50mm C/C Weldon straight connectors","S",1]
[129,"25 to 15mm C/C Weldon reducing sockets","S",1]
[130,"25 to 20mm C/C Weldon reducing sockets","S",1]
[131,"15mm Spirax ft 14 ball float trap","S",1]
[132,"20mm Spirax ft 14 ball float trap","S",1]
[133,"25mm Spirax ft 14 ball float trap","S",1]
[134,"15mm Armstrong 800 Inverted Bucket Trap","S",1]
[135,"20mm Armstrong 800 Inverted Bucket Trap","S",1]
[136,"20mm Armstrong 812 Inverted Bucket Trap","S",1]
[137,"25mm Armstrong 812 Inverted Bucket Trap","S",1]
[138,"15mm Steam strainer brass body","S",1]
[139,"20mm Steam strainer brass body","S",1]
[140,"25mm Steam strainer brass body","S",1]
[141,"15mm Steam flap type Non return valve","S",1]
[142,"20mm Steam flap type non return valve","S",1]
[143,"25mm Steam flap type non return valve","S",1]
[144,"40mm Steam flap type non return valve","S",1]
[145,"50mm Steam flap type non return valve","S",1]
[146,"15mm Sight glass 50mm single window brass body","S",1]
[147,"20mm Sight glass 50mm single window brass body","S",1]
[148,"25mm Sight glass 50mm single window brass body","S",1]
[149,"15 – 20mm sight glass window repair kit","S",1]
[150,"15mm cone face steam unions","S",1]
[151,"20mm cone face steam unions","S",1]
[152,"25mm cone face steam unions","S",1]
[153,"40mm cone face steam unions","S",1]
[154,"50mm cone face steam unions","S",1]
[155,"15mm S/S trim steam globe valve 1000 kPa","S",1]
[156,"20mm S/S trim steam globe valve 1000 kPa","S",1]
[157,"25mm S/S trim steam globe valve 1000 kPa","S",1]
[158,"40mm S/S trim steam globe valve 1000 kPa","S",1]
[159,"50mm S/S trim steam globe valve 1000 kPa","S",1]
[160,"15mm steam barrel nipples","S",1]
[161,"20mm steam barrel nipples","S",1]
[162,"25mm steam barrel nipples","S",1]
[163,"50 to 40mm C/C reducing sockets","S",1]
[164,"40 to 25mm C/C reducing sockets","S",1]
[165,"40mm Mobrey modulating control valves","S",1]
[166,"40mm Mobrey modulating control valve overall kit","S",1]
[167,"20mm Hornes valves","S",1]
[168,"25mm Hornes valves ","S",1]
[169,"40mm Hornes valves","S",1]
[170,"0-100ºC 75mm face dial thermometer","S",1]
[171,"0-100ºC Angle poise thermometer","S",1]
[172,"10mm BSP gauge cock","S",1]
[173,"10mm Syphon tube","S",1]
[174,"15mm Quarter turn valves (Boiler)","S",1]
[175,"20mm Quarter turn valves (Boiler)","S",1]
[176,"15mm Parallel slide valve (Boiler)","S",1]
[177,"20mm Parallel slide valves (Boiler)","S",1]
[178,"25mm Mobrey sequencing valves (Boiler)","S",1]
[179,"Pressure gauge 100mm dia bottom entry x 10mm BSP thread range 0 to 2000 kPA","S",1]
[180,"Nylatron Elevator Buckets Outside length 320mm width 180mm depth 130mm projection 165mm wall thickness 8mm approx weight 1,13kg approx capacity 4,50 litre","S",1]
[181,"Coal screws flight pitch 150mm x 14m","S",1]
[182,"Gear box make ISQ 206118, Type VF130AP13285 Ratio 30MTGB3 ","S",1]
[183,"Motor 5.5kw 380 Volt 3PH","S",1]
[184,"Cross feed flight pitch 200mm x 17m","S",1]
[185,"Gear box make ISQ 206118, Type VF130AP13285 Ratio 30MTGB3 ","S",1]
[186,"Motor 5.5kw 380 Volt 3PH","S",1]
[187,"Feed water pumps Grundfos Model no. A96501222P31233 Serial no. CR10-16A-FJ-A-E-HQQE","S",1]
[188,"Feed water pumps stork MCH 14A-7","S",1]
[189,"Elevator belt buckets 150 x 115 x 85mm","S",1]
[190,"Guillotine door cables 6mm x 450mm ","S",1]
[191,"Bearings FJU210 flanges","S",1]
[192,"V belts SPZ1600","S",1]
[193,"V belts 16 N x 3170","S",1]
[194,"20mm gauge column glass tubes","S",1]
[195,"20mm gauge column glass tube cone rubbers","S",1]
[196,"Horns valves ¾”","S",1]
[197,"Complete John Thompson boiler control panel","S",1]
[198,"Complete Premier metal boiler control panel","S",1]
[199,"Blower motor","S",1]
[200,"Blower motor gasket","S",1]
[201,"Fuel nozzle","S",1]
[202,"Burner head","S",1]
[203,"Burner cone","S",1]
[204,"Burner head gasket","S",1]
[205,"Burner blower housing","S",1]
[206,"Front end gasket","S",1]
[207,"Rear end gasket","S",1]
[208,"50mm cast steel straight globe valve","S",1]
[209,"40MM blow down valve","S",1]
[210,"Grit trolley","S",1]
[211,"Fuel trim 73/6000","S",1]
[212,"Water Mert Kent WP4000 2”","S",1]
[213,"Condensate meter Meinecke WPD 50 2”","S",1]
[214,"Ware Control valve Bernad 0276000","S",1]
[215,"Level switch Mobrey","S",1]
[216,"Rope packing; non asbestos; 15mm x 30mm ","S",1]
[217,"Manhole gaskets, spirally wound; 405mm x 305mm x 5mm thick x 32mm winding width","S",1]
[218,"Lined webbing, non asbestos;  50mm x 6mm x 30mm","S",1]
[219,"Packing material: 1,5mm Graphite impregnated, wire reinforced sheet 1,2m x 2,4m x 1,5m","S",1]
[220,"Packing material: 3mm Graphite impregnated, wire reinforced sheet ","S",1]
[221,"Paint: PWT TPA no 1 container","S",1]
[222,"Refractory Mortar; 25kg bags (Refcast 50)","Kg",1]
[223,"Fibre glass wool sheeting rolls 50mm x 1,2m ","S",1]
[224,"Conveyor belting for ash elevator 200mm wide x 10mm thick-3py","S",1]
[225,"Parts for: Mark 4 Stoker for the boilers","S"]
[226,"Stoker mat common links","S",1]
[227,"Stoker mat drive links","S",1]
[228,"Stoker mat drive sprockets","S",1]
[229,"Stoker roller","S",1]
[230,"Stoker links rods","S",1]
[231,"Carbo-frax blocks","S",1]
[232,"Carbo-frax blocks supports","S",1]
[233,"Carbo-frax end blocks","S",1]
[234,"Carbo-frax distant pieces","S",1]
[235,"Washers 14mm","S",1]
[236,"3mm split pins","S",1]
[237,"Guillotine door 1050 x 300 x 90","S",1]
[238,"Feed water pump Calpido CP3KW 5.8 amp 380 Volt","S",1]
[239,"Ash extractor frame complete","S",1]
[240,"5 groove pulleys","S",1]
[241,"Mobrey control valve PC board Type 86436","S",1]
[242,"Level switch Mobrey","S",1]
[243,"Sautor electric motor IP 55 ID","S",1]
[244,"FD electrical motor (SMM) Squirrel cage 3 phase TEFC D1325 5,5KW","S",1]
[245,"Stoker electrical motor R47 DT 80K4 0,55 KW","S",1]
[246,"ID fan electrical motor AFMAC model 6312 30KW","S",1]
[247,"Feed pump electrical motor hawker sidely DF 160 MP 15KW 80C rise 3 phase","S",1]
[248,"Feed Pump electrical motor WEG 160M 15KW 3 phase","S",1]
[249,"Feed pump electrical motor Siemens K4 95503 15KW 3 phase","S",1]
[250,"Electrical motor 0,75 KW 3 phase RPM 2850 230-240 volts","S",1]
[251,"Electrical motor Moway CMC075T 0,55KW 0,75HP RPM2800","S",1]
[252,"Electrical motor Ebara CMAR-00T 0,75KW RPM2850 1,0HP","S",1]
[253,"Bearings SKF 6208","S",1]
[254,"Bearings 630903/2","S",1]
[255,"Steam Separator 6”","S",1]
[256,"Expansion Bellows 5” single","S",1]
[257,"expansion bellows5\" double","s",1]
[258,"Grit trolley","S",1]
[259,"Fuel trim 73/6000","S",1]
[260,"Water Mert Kent WP4000 2”","S",1]
[261,"Condensate meter Meinecke WPD 50 2”","S",1]
[262,"Ware Control valve Bernad 0276000","S",1]
["SUB-TOTAL",{"$nulls":3},{"$f":"SUM(E39:E276)","v":{"v":0,"d":"R 0.00"}}]
[]
["GRAND TOTAL:",{"$nulls":3},{"$f":"E21+E36+E277","v":{"v":0,"d":"R0.00"}}]
[]
["Name of the Company"]
["Signature:"]
["Date:"]

{"sheet":"3. BUILDING","index":3,"n_rows":4966,"n_cols":6,"rows_kept":4966,"merged":[[0,0,0,5],[1,0,1,5],[568,0,568,1],[568,2,568,4],[811,0,811,1],[811,2,811,4],[1047,0,1047,1],[1047,2,1047,4],[1253,0,1253,1],[1253,2,1253,4],[1408,0,1408,1],[1408,2,1408,4],[1559,0,1559,1],[1559,2,1559,4],[1935,0,1935,1],[1935,2,1935,4],[2126,0,2126,1],[2126,2,2126,4],[2254,0,2254,1],[2254,2,2254,4],[2581,0,2581,1],[2581,2,2581,4],[2880,0,2880,1],[2880,2,2880,4],[3000,0,3000,1],[3000,2,3000,4],[3057,0,3057,1],[3057,2,3057,4],[3135,0,3135,1],[3135,2,3135,4],[3413,0,3413,1],[3413,2,3413,4],[3677,0,3677,1],[3677,2,3677,4],[4875,0,4875,1],[4875,2,4875,4],[4913,0,4913,1],[4913,2,4913,4],[4928,3,4929,3],[4928,4,4929,4],[4959,0,4959,1],[4959,2,4959,4],[4961,0,4961,1],[4961,2,4961,4],[4963,0,4963,1],[4963,2,4963,4],[4964,0,4964,1],[4964,2,4964,4],[4965,0,4965,1],[4965,2,4965,4]]}
["3. BUILDING "]
["Provision of general building works, repairs and maintenance"]
["ITEM-NO:","REF-NO:","DESCRIPTION","UNIT OF MEASURE","QUANTITY","PRICE PER UNIT (VAT. INCLUSIVE)"]
[]
["1.",null,"SCHEDULE No. 1"]
[]
[null,null,"ALTERATIONS"]
[]
[null,null,"Site inspection"]
[]
[null,null,"a). Contractors are required to inspect the site and acquaint themselves with all aspects of the works to be executed under this contract prior to the submission of their tender. No claim whatsoever will be entertained in the event of any unforeseen difficulties arising during the execution of the contract that could have been foreseen by a thorough investigation of the site, drawings and specifications."]
[]
[null,null,"General"]
[]
[null,null,"a). The contractor shall carry out the whole of the The Works with as little mess and noise as possible and with a minimum of disturbance to adjoining premises and their tenants/occupants. He/She shall provide proper protection and provide, erect and maintain in position proper temporary tarpaulins that may be necessary to protect existing fixtures, fittings and furniture during the progress of the works and remove on completion or when directed, all to the satisfaction of the Project Manager."]
[]
[null,null,"b). Water supply pipes and other piping that may be encountered and found necessary to disconnect or cut, shall be effectually stopped off or grubbed up and removed, and any new connections that may be necessary shall be made with proper fittings, to the satisfaction of the Project Manager."]
[]
[null,null,"c). Prices for taking out and removing doors and frames shall include for removing door stops, cabin hooks, etc. and making good floor and wall finishes to match existing."]
[]
[null,null,"d). With regards to building up of openings in existing walls, cement screeds and paving, granolithic, tops of walls, etc. shall be levelled and prepared for raising of bricwork."]
[]
[null,null,"e). Making good finishes shall include making good of the brick and concrete surfaces onto which the new finishes are applied, where necessary"]
[]
[null,null,"f). The contractor will be required to take all dimensions affecting the existing buildings on the site and he will be held solely responsible for the accuracy of all such dimensions where used in the manufacture of new items (Doors, windows, fittings, etc)"]
[]
[null,null,"TEMPORARY BARRIERS, SCREENS ETC"]
[]
[null,null,"Temporary barriers, screens, etc including removal"]
[]
[null,"1.1","Half brick barrier wall 3000mm high including cement plaster and two coats interior quality PVA emulsion paint on one side.","m",1]
[]
[null,"1.2","Dust screen 3000mm high between concrete floor and ceiling formed of suitable timber framing with 250 micron polyethylene sheeting stapled on including corners, ends, etc.","m",1]
[]
[null,"1.3","Dust screen 3600mm high between concrete floor and ceiling formed of suitable timber framing with 250 micron polyethylene sheeting stapled on including corners, ends, etc.","m",1]
[]
[null,"1.4","Drywall barrier 3000mm high formed of galvanised steel channel section rails and studs covered on one side with 12,7mm gypsum board panels and finished with two coats interior quality PVA emulsion paint on one side including corners, ends, etc.","m",1]
[]
[null,"1.5","Drywall barrier 3600mm high formed of galvanised steel channel section rails and studs covered on one side with 12,7mm gypsum board panels and finished with two coats interior quality PVA emulsion paint on one side including corners, ends, etc.","m",1]
[]
[null,null,"REMOVAL OF EXISTING WORK"]
[]
[null,null,"Break up and removing mass concrete"]
[]
[null,"1.6","Steps","m³",1]
[]
[null,"1.7","75mm thick surface bed","m²",1]
[]
[null,"1.8","85mm thick surface bed","m²",1]
[]
[null,"1.9","100mm thick surface bed","m²",1]
[]
[null,"1.10","150mm thick surface bed","m²",1]
[]
[null,"1.11","250mm thick surface bed","m²",1]
[]
[null,null,"Break up and removing reinforced concrete including cutting off and removing reinforcement"]
[]
[null,"1.12","Steps and landings","m³",1]
[]
[null,"1.13","Beams","m³",1]
[]
[null,"1.14","Columns","m³",1]
[]
[null,"1.15","250mm thick slabs","m²",1]
[]
[null,"1.16","Opening through 250mm thick slab not exceeding 2,5m²","no",1]
[]
[null,null,"Breaking down and removing brickwork etc."]
[]
[null,"1.17","Mass brickwork","m³",1]
[]
[null,"1.18","Half brick wall","m²",1]
[]
[null,"1.19","One brick wall","m²",1]
[]
[null,"1.20","One and a half brick wall","m²",1]
[]
[null,"1.21","280mm Hollow walls of two half brick skins","m²",1]
[]
[null,null,"Taking out and removing doors, windows, etc. from brickwork to be demolished"]
[]
[null,"1.22","Timber single door and frame not exceeding 2,5m²","no",1]
[]
[null,"1.23","Timber double door and frame exceeding 2,5m² and not exceeding 5,0m²","no",1]
[]
[null,"1.24","Timber single door and steel frame not exceeding 2,5m²","no",1]
[]
[null,"1.25","Timber double door and steel frame exceeding 2,5m² and not exceeding 5,0m²","no",1]
[]
[null,"1.26","Timber single door not exceeding 2,5m²","no",1]
[]
[null,"1.27","Timber double door exceeding 2,5m² and not exceeding 5,0m²","no",1]
[]
[null,"1.28","Steel single door and steel frame not exceeding 2,5m2","no",1]
[]
[null,"1.29","Steel double door and steel frame exceeding 2,5m² and not exceeding 5,0m²","no",1]
[]
[null,"1.30","Glazed timber window not exceeding 2,5m²","no",1]
[]
[null,"1.31","Glazed timber window exceeding 2,5m² and not exceeding 5.0m²","no",1]
[]
[null,"1.32","Glazed steel window not exceeding 2,5m²","no",1]
[]
[null,"1.33","Glazed steel window exceeding 2,5m² and not exceeding 5.0m²","no",1]
[]
[null,"1.34","Glazed aluminium window not exceeding 2,5m²","no",1]
[]
[null,"1.35","Glazed aluminium window exceeding 2,5m² and not exceeding 5.0m²","no",1]
[]
[null,null,"Taking out doors, windows, etc. including thresholds, sills, etc. and setting aside for re-use (refixing and building up openings elsewhere)"]
[]
[null,"1.36","Timber single door and frame not exceeding 2,5m² from half or one brick wall","no",1]
[]
[null,"1.37","Timber single door and frame exceeding 2,5m² and not exceeding 5,0m² from half or one brick wall","no",1]
[]
[null,"1.38","Timber single door and steel frame not exceeding 2,5m² from half brick wall","no",1]
[]
[null,"1.39","Timber single door and steel frame not exceeding 2,5m² from one brick wall","no",1]
[]
[null,"1.40","Timber double door and steel frame exceeding 2,5m² and not exceeding 5,0m² from half brick wall","no",1]
[]
[null,"1.41","Timber double door and steel frame exceeding 2,5m² and not exceeding 5,0m² from one brick wall","no",1]
[]
[null,"1.42","Steel single door and steel frame not exceeding 2,5m² from half or one brick wall","no",1]
[]
[null,"1.43","Steel double door and steel frame exceeding 2,5m² and not exceeding 5,0m² from half brick wall","no",1]
[]
[null,"1.44","Steel double door and steel frame exceeding 2,5m² and not exceeding 5,0m² from one brick wall","no",1]
[]
[null,"1.45","Aluminium single door and frame not exceeding 2,5m² from half or one brick wall","no",1]
[]
[null,"1.46","Aluminium single door and frame exceeding 2,5m² and not exceeding 5,0m² from half or one brick wall","no",1]
[]
[null,"1.47","Aluminium double door and frame exceeding 2,5m² and not exceeding 5,0m² from half brick wall","no",1]
[]
[null,"1.48","Aluminum double door and frame exceeding 2,5m² and not exceeding 5,0m² from one brick wall","no",1]
[]
[null,"1.49","Glazed timber window not exceeding 2,5m² from half or one brick wall","no",1]
[]
[null,"1.50","Glazed timber window exceeding 2,5m² and not exceeding 5.0m² from half or one brick wall","no",1]
[]
[null,"1.51","Glazed steel window not exceeding 2,5m² from half or one brick  wall","no",1]
[]
[null,"1.52","Glazed steel window exceeding 2,5m² and not exceeding 5.0m² from half or one brick wall","no",1]
[]
[null,"1.53","Glazed aluminium window not exceeding 2,5m² from half or one brick  wall","no",1]
[]
[null,"1.54","Glazed aluminium window exceeding 2,5m² and not exceeding 5.0m² from half or one brick wall","no",1]
[]
[null,"1.55","Steel roller shutter door not exceeding 2,5m²  from half or one brick wall","no",1]
[]
[null,"1.56","Steel roller shutter door exceeding 2,5m² and not exceeding 5.0m² from half or one brick wall","no",1]
[]
[null,"1.57","Steel roller shutter door exceeding 5.0m² from half or one brick wall","no",1]
[]
[null,null,"Taking out and removing doors, windows, etc. including thresholds, sills, etc. and building up openings in brick walls including making good cement plaster on both sides (making good paintwork elsewhere)."]
[]
[null,"1.58","Timber single door and frame not exceeding 2,5m² from half brick wall","no",1]
[]
[null,"1.59","Timber single door and frame not exceeding 2,5m² from one brick wall","no",1]
[]
[null,"1.60","Timber single door and frame exceeding 2,5m² and not exceeding 5,0m² from half brick wall","no",1]
[]
[null,"1.61","Timber single door and frame exceeding 2,5m² and not exceeding 5,0m² from one brick wall","no",1]
[]
[null,"1.62","Timber single door and steel frame not exceeding 2,5m² from half brick wall","no",1]
[]
[null,"1.63","Timber single door and steel frame not exceeding 2,5m² from one brick wall","no",1]
[]
[null,"1.64","Timber double door and steel frame exceeding 2,5m² and not exceeding 5,0m² from half brick wall","no",1]
[]
[null,"1.65","Timber double door and steel frame exceeding 2,5m² and not exceeding 5,0m² from one brick wall","no",1]
[]
[null,"1.66","Steel single door and steel frame not exceeding 2,5m² from half brick wall","no",1]
[]
[null,"1.67","Steel single door and steel frame not exceeding 2,5m² from one brick wall","no",1]
[]
[null,"1.68","Steel double door and steel frame exceeding 2,5m² and not exceeding 5,0m² from half brick wall","no",1]
[]
[null,"1.69","Steel double door and steel frame exceeding 2,5m² and not exceeding 5,0m² from one brick wall","no",1]
[]
[null,"1.70","Aluminium single door and frame not exceeding 2,5m² from half brick wall","no",1]
[]
[null,"1.71","Aluminium single door and frame not exceeding 2,5m² from one brick wall","no",1]
[]
[null,"1.72","Aluminium double door and frame exceeding 2,5m² and not exceeding 5,0m² from half brick wall","no",1]
[]
[null,"1.73","Aluminium double door and frame exceeding 2,5m² and not exceeding 5,0m² from one brick wall","no",1]
[]
[null,"1.74","Glazed timber window not exceeding 2,5m² from half brick wall","no",1]
[]
[null,"1.75","Glazed timber window not exceeding 2,5m² from one brick wall","no",1]
[]
[null,"1.76","Glazed timber window exceeding 2,5m² and not exceeding 5.0m² from half brick wall","no",1]
[]
[null,"1.77","Glazed timber window exceeding 2,5m² and not exceeding 5.0m² from one brick wall","no",1]
[]
[null,"1.78","Glazed steel window not exceeding 2,5m² from half brick  wall","no",1]
[]
[null,"1.79","Glazed steel window not exceeding 2,5m² from one brick  wall","no",1]
[]
[null,"1.80","Glazed steel window exceeding 2,5m² and not exceeding 5.0m² from half brick wall","no",1]
[]
[null,"1.81","Glazed steel window exceeding 2,5m² and not exceeding 5.0m² from one brick wall","no",1]
[]
[null,"1.82","Glazed aluminium window not exceeding 2,5m² from half brick  wall","no",1]
[]
[null,"1.83","Glazed aluminium window not exceeding 2,5m² from one brick  wall","no",1]
[]
[null,"1.84","Glazed aluminium window exceeding 2,5m² and not exceeding 5.0m² from half brick wall","no",1]
[]
[null,"1.85","Glazed aluminium window exceeding 2,5m² and not exceeding 5.0m² from one brick wall","no",1]
[]
[null,"1.86","Timber shopfront exceeding 2,5m² and not exceeding 5,0m² from one brick wall","no",1]
[]
[null,"1.87","Timber shopfront exceeding 5,0m² from one brick wall","no",1]
[]
[null,null,"Break out existing door frames and replace with the following new frames, including building up brickwork or facings, or repairing of plaster and matching paint on frames and plastered walls."]
[]
[null,"1.88","Single door frame size 762 x 1981mm high","no",1]
[]
[null,"1.89","Single door frame size 762 x 2032mm high","no",1]
[]
[null,"1.90","Single door frame size 813 x 2032mm high","no",1]
[]
[null,"1.91","Single door frame size 762 x 1981mm with 305mm high fanlight","no",1]
[]
[null,"1.92","Single door frame size 762 x 2032mm with 305mm high fanlight","no",1]
[]
[null,"1.93","Single door frame size 813 x 1981mm with 305mm high fanlight","no",1]
[]
[null,"1.94","Double door frame size 1511 x 2032mm high","no",1]
[]
[null,"1.95","Double door frame size 1613 x 2032mm high","no",1]
[]
[null,"1.96","Double door frame size 1511 x 1981mm with 305mm high fanlight","no",1]
[]
[null,"1.97","Double door frame size 1613 x 1981mm with 305mm high fanlight","no",1]
[]
[]
[null,null,"PRESSED STEEL COMBINATION DOOR & FRAME"]
[]
[null,null,"Break out existing door with frame and replace with the following new, including building up brickwork or facings, or repairing of plaster and matching paint on frames, doors and plastered walls."]
[]
[null,"1.98","Single door & frame size 762 x 2032mm high","no",1]
[]
[null,"1.99","Single door & frame size 813 x 2032mm high","no",1]
[]
[null,"1.100","Double door & frame overall size 1511 x 2032mm high","no",1]
[]
[null,"1.101","Double door & frame overall size 1613 x 2032mm high","no",1]
[]
[null,null,"Taking down and removing roofs, floors, panelling, ceilings, partitions, etc."]
[]
[null,"1.102","Corrugate sheet iron roof covering, valley linings, ridge flashings and timber purlins","m²",1]
[]
[null,"1.103","Concrete, Harveytile sheet iron tile, slate, thatch, etc. roof covering, valley linings, ridge, hip cappings, flashings and timber brandering,purlins, etc.","m²",1]
[]
[null,"1.104","Timber rafters, beams, etc","m",1]
[]
[null,"1.105","Tongued and grooved timber suspended floor including skirting, joists, bearers, etc","m²",1]
[]
[null,"1.106","Gypsum plasterboard ceilings including cornices, timber brandering, etc","m²",1]
[]
[null,"1.107","Flush plastered gypsum plasterboard suspended ceilings, including cornices, suspension grid, hangers, etc.","m²",1]
[]
[null,"1.108","Flush plastered gypsum plasterboard bulkheads, including cornices, suspension grid, hangers, etc.","m²",1]
[]
[null,"1.109","Wood panel bulkheads, including cornices, suspension grid, hangers, etc.","m²",1]
[]
[null,"1.110","Acoustic tiles suspended ceiling including suspension grid, hangers, etc","m²",1]
[null," "]
[null,"1.111","Acoustic tiles suspended ceiling only","m²",1]
[]
[null,"1.112","Drywall partitioning 3000mm high including doors, ironmongery, glazed borrowed lights, etc","m",1]
[]
[null,"1.113","Carefully cut out rusted or damaged roof sheeting","m²",1]
[]
[null,null,"Taking out and removing sundry joinery work"]
[]
[null,"1.114","Timber cornices from brickwork","m",1]
[]
[null,"1.115","Timber skirting from brickwork","m",1]
[]
[null,null,"Taking out and removing joinery fittings etc"]
[]
[null,"1.116","Timber wall cupboard 600 x 300 x 900mm high","no",1]
[]
[null,"1.117","Timber wall cupboard 900 x 300 x 900mm high","no",1]
[]
[null,"1.118","Timber wall cupboard 1200 x 300 x 900mm high","no",1]
[]
[null,"1.119","Timber floor cupboard 600 x 600 x 900mm high","no",1]
[]
[null,"1.120","Timber floor cupboard 900 x 600 x 900mm high","no",1]
[]
[null,"1.121","Timber floor cupboard 1200 x 600 x 900mm high","no",1]
[]
[null,"1.122","Timber sink cupboard 900 x 600 x 900mm high including disconnecting waste pipe and taps","no",1]
[]
[null,"1.123","Timber sink cupboard 1200 x 600 x 900mm high including disconnecting waste pipe (new trap and connecting to new waste pipe elsewhere)","no",1]
[]
[null,"1.124","Timber sink cupboard 1800 x 600 x 900mm high including disconnecting waste pipe (new trap and connecting to new waste pipe elsewhere)","no",1]
[]
[null,"1.125","Timber counter 1200 x 600 x 900mm high","no",1]
[]
[null,"1.126","Timber counter 1600 x 600 x 900mm high","no",1]
[null,null," "]
[null,"1.127","Timber counter 1800 x 600 x 900mm high","no",1]
[]
[null,"1.128","Timber counter 2400 x 600 x 900mm high","no",1]
[]
[null,null,"Take up and remove wooden wall panneling, vinyl wall covering, wall carpeting, waterproofing, etc."]
[]
[null,"1.129","Vinyl wall covering including preparing walls for new finishes.","m²",1]
[]
[null,null,"Take up and remove wood block floor covering, vinyl floor covering, carpeting, waterproofing, etc."]
[]
[null,"1.130","Wood block floor covering.","m²",1]
[]
[null,"1.131","Suspended tongue and groove boarding","m²",1]
[]
[null,"1.132","Vinyl tile floor covering .","m²",1]
[]
[null,"1.133","Vinyl sheet floor covering with welded joints.","m²",1]
[]
[null,null,"Take up and remove, vinyl , etc."]
[]
[null,"1.134","Carpet tile floor covering.","m²",1]
[]
[null,"1.135","Carpet sheet floor covering.","m²",1]
[null,null,"Taking out/off and removing sundry metalwork"]
[]
[null,"1.136","Steel pipe handrail from walls including making good plaster finish","m",1]
[]
[null,"1.137","Steel balustrade 900mm high from concrete stairs including making good granolithic finish to kerb","m",1]
[]
[null,"1.138","Steel wire mesh burglar proofing not exceeding 1,0m² bolted to brickwork and making good face brickwork","no",1]
[]
[null,"1.139","Steel wire mesh burglar proofing exceeding 1,0m² and not exceeding 2,0m² bolted to brickwork and making good face brickwork","no",1]
[]
[null,"1.140","Steel wire mesh burglar proofing exceeding 2,0m² and not exceeding 3,0m² bolted to brickwork and making good face brickwork","no",1]
[]
[null,"1.141","Steel single leaf security gate not exceeding 2,5m² ","no",1]
[]
[null,"1.142","Steel double leaf security gate exceeding 2,5m² and not exceeding 5,0m²","no",1]
[]
[null,null,"Hacking up/off and removing granolithic, screeds, plaster, etc from concrete or brickwork and preparing surfaces for new screeds, plaster, etc"]
[]
[null,"1.143","30mm Granolithic from floors","m²",1]
[]
[null,"1.144","Granolithic skirting 100mm high","m",1]
[]
[null,"1.145","30mm Screed from floors","m²",1]
[]
[null,"1.146","Internal plaster from walls and columns","m²",1]
[]
[null,"1.147","Internal plaster from ceilings and beams","m²",1]
[]
[null,"1.148","External plaster from walls, columns and beams","m²",1]
[]
[null,null,"Hacking up/off and removing ceramic tile floor and wall finishers including removing mortar bed or backing and  preparing concrete or brick surfaces for new screed, plaster or tile finishers"]
[]
[null,"1.149","Tiles to floors","m²",1]
[]
[null,"1.150","Tiles to treads and risers of stairs","m²",1]
[]
[null,"1.151","Tiles to walls","m²",1]
[]
[null,"1.152","Tile skirting 100mm high","m",1]
[]
[null,null,"Sandblasting to finished surfaces"]
[]
[null,"1.153","Wall plaster","m²",1]
[]
[null,"1.154","Floor screeds","m²",1]
[]
[null,null,"Taking out and cleaning"]
[]
[null,"1.155","Expansion joints not exceeding 300mm deep and prepare to receive new","m",1]
[]
[null,null,"Taking out and removing glass and mirrors"]
[]
[null,"1.156","Mirror from wall","m²",1]
[]
[null,"1.157","Stainless steel sheet mirror","m²",1]
[]
[null,null,"CUTTING THROUGH FLOORS AND CEILINGS"]
[]
[null,"1.158","Cutting through 100mm thick concrete surface bed for 460mm wide concrete wall footing including making good concrete on both sides of new half brick wall.","m",1]
[]
[null,"1.159","Cutting through 100mm thick concrete surface bed for 700mm wide concrete wall footing including making good concrete on both sides of new one brick wall.","m",1]
[]
[null,"1.160","Cutting through gypsum ceiling and brandering for half brick wall including making good on both sides of wall (new cornices elsewhere)","m",1]
[]
[null,"1.161","Cutting through gypsum ceiling and brandering for one brick wall including making good on both sides of wall (new cornices elsewhere)","m",1]
[]
[null,"1.162","Cutting through \"Nutec\" fibre-cement ceiling and brandering for half brick wall including making good on both sides of wall (new cornices elsewhere)","m",1]
[]
[null,"1.163","Cutting through \"Nutec\" fibre-cement ceiling and brandering for one brick wall including making good on both sides of wall (new cornices elsewhere)","m",1]
[]
[null,null,"PREPARATORY WORK TO EXISTING SURFACES"]
[]
[null,null,"Preparatory work to existing surfaces"]
[]
[null,"1.164","Cutting out joints of existing brickwork to receive plaster.","m²",1]
[]
[null,"1.165","Hacking face of existing concrete columns, beams, etc to receive plaster","m²",1]
[]
[null,"1.166","Hacking face of existing face brickwork to receive plaster","m²",1]
[]
[null,"1.167","Making good defects in existing screeded floors with \"Pavelite\"","m²",1]
[]
[null,"1.168","Chasing existing brick / concrete walls ","m",1]
[]
[]
[null,null,"MAKING GOOD OF FINISHES ETC."]
[]
[null,null,"Making good of finishes etc."]
[]
[null,"1.169","Making good brickwork at ends of half brick wall","m",1]
[]
[null,"1.170","Making good brickwork at ends of one brick wall","m",1]
[]
[null,"1.171","Making good brickwork at ends of one and half brick wall","m",1]
[]
[null,"1.172","Making good brickwork to face of wall where half brick cross wall removed","m",1]
[]
[null,"1.173","Making good brickwork to face of wall where one brick cross wall removed","m",1]
[]
[null,"1.174","Making good brickwork to face of wall where one and half brick cross wall removed","m",1]
[]
[null,"1.175","Making good face brickwork at ends of half brick wall","m",1]
[]
[null,"1.176","Making good face brickwork at ends of one brick wall","m",1]
[]
[null,"1.177","Making good face brickwork at ends of one and half brick wall","m",1]
[]
[null,"1.178","Making good face brickwork to face of wall where half brick cross wall removed","m",1]
[]
[null,"1.179","Making good face brickwork to face of wall where one brick cross wall removed","m",1]
[]
[null,"1.180","Making good face brickwork to face of wall where one and half brick cross wall removed","m",1]
[]
[null,null,"Making good \"Rhino\" gypsum board ceiling and brandering."]
[]
[null,"1.181","Ceilings in patches","m²",1]
[]
[null,"1.182","Ceilings where half brick walls removed","m",1]
[]
[null,"1.183","Ceilings where one brick walls removed","m",1]
[]
[null,"1.184","Ceilings where one and half brick walls removed","m",1]
[]
[null,null,"Making good untinted granolithic"]
[]
[null,"1.185","Floors in patches","m²",1]
[]
[null,"1.186","Floors where partitions removed","m",1]
[]
[null,"1.187","Floors where half brick walls removed","m",1]
[]
[null,"1.188","Floors where one brick walls removed","m",1]
[]
[null,"1.189","Floors where one and half brick walls removed","m",1]
[]
[null,"1.190","Floor structural cracks not exceeding 300mm wide and 300mm deep with \"Duraquatz\" sealant including hacking, saw-cutting, structural anchoring and support.","m",1]
[]
[null,null,"Making good internal cement plaster."]
[]
[null,"1.191","Walls in patches","m²",1]
[]
[null,"1.192","Walls where half brick walls removed.","m",1]
[]
[null,"1.193","Walls where one brick walls removed.","m",1]
[]
[null,"1.194","Walls where one and half brick walls removed.","m",1]
[]
[null,"1.195","Concrete ceilings in patches","m²",1]
[]
[null,"1.196","Concrete ceilings where half brick walls removed","m",1]
[]
[null,"1.197","Concrete ceilings where one brick walls removed","m",1]
[]
[null,"1.198","Concrete ceilings where one and half brick walls removed","m",1]
[]
[null,"1.199","Making good of chased walls","m",1]
[]
[null,null,"Making good internal cement plaster including chicken mesh spiked to walls."]
[]
[null,"1.200","Walls in patches","m²",1]
[]
[null,"1.201","Concrete ceilings in patches","m²",1]
[]
[null,null,"OPENINGS THROUGH EXISTING WALLS, ETC."]
[]
[null,null,"Breaking out for and forming plain openings through brick walls including necessary precast concrete lintels and making good plaster on both sides and into reveals and with concrete thresholds with steel trowelled finish (making good paintwork elsewhere"]
[]
[null,"1.202","Opening 900 x 2100mm high through half brick wall","no",1]
[]
[null,"1.203","Opening 1200 x 2100mm high through half brick wall","no",1]
[]
[null,"1.204","Opening 1500 x 2100mm high through half brick wall","no",1]
[]
[null,"1.205","Opening 900 x 2100mm high through one brick wall","no",1]
[]
[null,"1.206","Opening 1200 x 2100mm high through one brick wall","no",1]
[]
[null,"1.207","Opening 1500 x 2100mm high through one brick wall","no",1]
[]
[null,"1.208","Opening 900 x 2100mm high through one and half brick wall","no",1]
[]
[null,"1.209","Opening 1200 x 2100mm high through one and half brick wall","no",1]
[]
[null,"1.210","Opening 1500 x 2100mm high through one and half brick wall","no",1]
[]
[null,null,"Breaking out for and forming plain openings through brick walls for new doors and frames including necessary precast concrete lintels and making good plaster on both side and into reveals and with concrete threshold with steel trowelled finish (new door and frame and making good paintwork elsewhere)"]
[]
[null,"1.211","Opening for door with steel frame 880 x 2065mm high overall through half brick wall","no",1]
[]
[null,"1.212","Opening for door with steel frame 964 x 2065mm high overall through half brick wall","no",1]
[]
[null,"1.213","Opening for door with steel frame 1575 x 2065mm high overall through half brick wall","no",1]
[]
[null,"1.214","Opening for door with steel frame 880 x 2065mm high overall through one brick wall","no",1]
[]
[null,"1.215","Opening for door with steel frame 964 x 2065mm high overall through one brick wall","no",1]
[]
[null,1.216,"Opening for door with steel frame 1575 x 2065mm high overall through one brick wall","no",1]
[]
[null,"1.217","Opening for door with steel frame 880 x 2065mm high overall through one and half brick wall","no",1]
[]
[null,"1.218","Opening for door with steel frame 964 x 2065mm high overall through one and half brick wall","no",1]
[]
[null,"1.219","Opening for door with steel frame 1575 x 2065mm high overall through one and half brick wall","no",1]
[]
[null,"1.220","Opening for door with timber frame 880 x 2065mm high overall through half brick wall","no",1]
[]
[null,"1.221","Opening for door with timber frame 964 x 2065mm high overall through half brick wall","no",1]
[]
[null,"1.222","Opening for door with timber frame 1575 x 2065mm high overall through half brick wall","no",1]
[]
[null,"1.223","Opening for door with timber frame 880 x 2065mm high overall through one brick wall","no",1]
[]
[null,"1.224","Opening for door with timber frame 964 x 2065mm high overall through one brick wall","no",1]
[]
[null,"1.225","Opening for door with timber frame 1575 x 2065mm high overall through one brick wall","no",1]
[]
[null,"1.226","Opening for door with timber frame 880 x 2065mm high overall through one and half brick wall","no",1]
[]
[null,"1.227","Opening for door with timber frame 964 x 2065mm high overall through one and half brick wall","no",1]
[]
[null,"1.228","Opening for door with timber frame 1575 x 2065mm high overall through one and half brick wall","no",1]
[]
[null,null,"Breaking out for and forming openings through brick walls for new windows including necessary precast concrete lintels and making good plaster on both sides and into reveals (new windows, sills and making good paintwork elsewhere)"]
[]
[null,"1.229","Opening for window not exceeding 2,5m² through half brick wall","no",1]
[]
[null,"1.230","Opening for window exceeding 2,5m² and not exceeding 5.0m²  through half brick wall","no",1]
[]
[null,"1.231","Opening for window not exceeding 2,5m² through one brick wall","no",1]
[]
[null,"1.232","Opening for window exceeding 2,5m² and not exceeding 5.0m²  through one brick wall","no",1]
[]
[null,"1.233","Opening for window not exceeding 2,5m² through one and half brick wall","no",1]
[]
[null,"1.234","Opening for window exceeding 2,5m² and not exceeding 5.0m²  through one and half brick wall","no",1]
["SUB-TOTAL",{"$nulls":4},{"$f":"SUM(F31:F568)","v":0}]
[]
[null,null,"SCHEDULE No. 2"]
[]
[null,null,"EARTHWORKS (PROVISIONAL)"]
[]
[null,null,"Carting away of excavated material"]
[]
[null,null,"Descriptions of carting away of excavated material shall be deemed to include loading excavated material onto trucks directly from the excavations or, alternatively, from stock piles situated on the building site."]
[]
[null,null,"Subterranean water"]
[]
[null,null,"No information regarding subterranean water is available.  The contractor must acquaint himself of the presence and depth of subterranean water and allow therefore in his rates."]
[]
[null,null,"Carting away of excavated material"]
[]
[null,null,"Descriptions of carting away of excavated material shall be deemed to include loading excavated material onto trucks directly from the excavations or, alternatively, from stock piles situated on the building site"]
[]
[null,null,"DEMOLITIONS ETC"]
[]
[null,null,"Breaking up and removing"]
[]
[null,"2.1","75mm thick concrete surface beds, paving, etc","m²",1]
[]
[null,"2.2","100mm thick concrete surface beds, paving, etc","m²",1]
[]
[null,"2.3","150mm thick concrete surface beds, paving, etc","m²",1]
[]
[null,"2.4","75mm thick mesh reinforced concrete surface beds, paving, etc","m²",1]
[]
[null,"2.5","100mm thick mesh reinforced concrete surface beds, paving, etc","m²",1]
[]
[null,"2.6","150mm thick mesh reinforced concrete surface beds, paving, etc","m²",1]
[]
[null,"2.7","250mm thick mesh reinforced concrete surface beds, paving, etc","m²",1]
[]
[null,"2.8","60mm thick brick paving with mortar joints","m²",1]
[]
[null,"2.9","80mm thick brick paving with mortar joints","m²",1]
[]
[null,null,"Take down and removing"]
[]
[null,"2.10","Steel palisade, round bar, square tube, etc. gate size 813 x 2032mm high ","no",1]
[]
[null,"2.11","Steel palisade, round bar, square tube, etc. gate size 1200 x 2032mm high ","no",1]
[]
[null,"2.12","Steel sliding palisade, round bar, square tube, etc. gate size 6000 x 1800mm high ","no",1]
[]
[null,"2.13","Steel two leaf palisade, round bar, square tube, etc. gate size 6000 x 1800mm high ","no",1]
[]
[null,"2.14","Steel burglar gates, screens, etc. size 813 x 2032mm high ","no",1]
[]
[null,"2.15","Steel burglar gates, screens, etc. size 1626 x 2032mm high ","no",1]
[]
[null,"2.16","Steel two leaf palisade, round bar, square tube, etc. fence panel size3000 x 1800mm high ","no",1]
[]
[null,"2.17","Diamond mesh fence 2,1m high with flat wrap razor wire fixed to top and bottom and 750mm high overall with steel post and droppers","m",1]
[]
[null,"2.18","Half brick, precast, etc. boundary or yard wall 1,8m high","m",1]
[]
[null,"2.19","One brick boundary or yard wall 1,8m high","m",1]
[]
[null,"2.20","Steel Palisade fencing not exceeding 2400mm high","m",1]
[]
[null,"2.21","Concrete Palisade fencing not exceeding 2400mm high","m",1]
[]
[null,"2.22","Wooden picket fence 1500mm high","m",1]
[]
[null,null,"SITE CLEARANCE, ETC."]
[]
[null,null,"User Note"]
[]
[null,null,"Where the value is of significance, the removal of hedges, etc. shall be given separately in meters or in number"]
[]
[null,null,"Site clearance"]
[]
[null,"2.23","Dig up and remove rubbish, debris, vegetation, hedges, shrubs and trees not exceeding 200mm girth, bush etc.","m²",1]
[]
[null,"2.24","Strip average 150mm. thick layer top soil and stockpile on site where directed","m²",1]
[]
[null,"2.25","Rip, scarify and compact ground 150mm average","m²",1]
[]
[null,"2.26","Carting away rubble up to 5km radius ","m3",1]
[]
[null,null,"REMOVAL OF TREES, ETC."]
[]
[null,null,"Taking out and removing, grubbing up roots and filling in holes"]
[]
[null,"2.27","Tree stump exceeding 200mm. and not exceeding 500mm. girth","no",1]
[]
[null,"2.28","Tree stump exceeding 500mm. and not exceeding 1000mm. girth","no",1]
[]
[null,"2.29","Tree stump exceeding 1000mm. and not exceeding 2000mm. girth","no",1]
[]
[null,"2.30","Tree stump exceeding 2000mm. and not exceeding 3000mm. girth","no",1]
[]
[null,null,"Cutting down and removing, grubbing up roots and filling in holes including importing filling where required"]
[]
[null,"2.31","Hedge not exceeding 1500mm high","m",1]
[]
[null,"2.32","Hedge exceeding 1500mm high and not exceeding 2500mm high","m",1]
[]
[null,"2.33","Tree exceeding 200mm. and not exceeding 500mm. girth","no",1]
[]
[null,"2.34","Tree exceeding 500mm. and not exceeding 1000mm. girth","no",1]
[]
[null,"2.35","Tree exceeding 1000mm. and not exceeding 2000mm. girth","no",1]
[]
[null,"2.36","Tree exceeding 2000mm. and not exceeding 3000mm. girth","no",1]
[]
[null,null,"EXCAVATION, FILLING, ETC."]
[]
[null,null,"Excavation in earth not exceeding 2m. deep"]
[]
[null,"2.37","Trenches.","m³",1]
[]
[null,"2.38","Holes","m³",1]
[]
[null,"2.39","Trenches and holes for thickening under surface beds etc.","m³",1]
[]
[null,null,"Extra over trench and hole excavations in earth for excavation in"]
[]
[null,"2.40","Soft rock.","m³",1]
[]
[null,"2.41","Hard rock.","m³",1]
[]
[null,null,"Extra over excavations in earth for breaking up and removing"]
[]
[null,"2.42","Brickwork","m³",1]
[]
[null,"2.43","Unreinforced concrete","m³",1]
[]
[null,"2.44","Reinforced concrete","m³",1]
[]
[null,"2.45","Tarmac","m²",1]
[]
[null,null,"Risk of collapse of excavations"]
[]
[null,"2.46","Sides of trench and hole excavations not exceeding 1,5m deep.","m²",1]
[]
[null,"2.47","Sides of trench and hole excavations exceeding 1,5m deep.","m²",1]
[]
[null,null,"Keeping excavations free of water"]
[]
[null,"2.48","Keeping excavations free of water other than subterranean water","Item",1]
[]
[null,null,"Earth filling obtained from excavations and/or prescribed stock piles on site (not compacted) "]
[]
[null,"2.49","Over site","m³",1]
[]
[null,"2.50","Landscape mounds, berms, etc","m³",1]
[]
[null,null,"Earth filling obtained from excavations and/or prescribed stock piles on site compacted to 95% Mod AASHTO density "]
[]
[null,"2.51","Under floors, steps, pavings, etc.","m³",1]
[]
[null,"2.52","Backfill behind retaining walls","m³",1]
[]
[null,"2.53","Backfill to trenches, holes, etc.","m³",1]
[]
[null,"2.54","Over site to make up levels","m³",1]
[]
[null,"2.55","Bedding","m³",1]
[]
[null,null,"Earth filling supplied by the contractor compacted to 95% Mod AASHTO density."]
[]
[null,"2.56","Under floors, steps, pavings, etc.","m³",1]
[]
[null,"2.57","Backfill behind retaining walls","m³",1]
[]
[null,"2.58","Backfill to trenches, holes, etc.","m³",1]
[]
[null,null,"Garden top soil filling obtained from the excavations and/or prescribed stock piles on site"]
[]
[null,"2.59","In flower boxes","m³",1]
[]
[null,"2.60","Over site","m³",1]
[]
[null,"2.61","Landscape mounds, berms, etc","m³",1]
[]
[null,null,"Garden top soil filling supplied by the contractor"]
[]
[null,"2.62","In flower boxes","m³",1]
[]
[null,"2.63","Over site","m³",1]
[]
[null,"2.64","Landscape mounds, berms, etc","m³",1]
[]
[null,null,"Coarse river sand filling supplied by the contractor"]
[]
[null,"2.65","Under floors etc","m³",1]
[]
[null,"2.66","Behind retaining walls","m³",1]
[]
[null,"2.67","In floor ducts","m³",1]
[]
[null,null,"Hardcore filling"]
[]
[null,"2.68","Under floors etc","m³",1]
[]
[null,null,"Crusher filling of 19mm stone"]
[]
[null,"2.69","Under floors etc","m³",1]
[]
[null,"2.70","Behind retaining walls","m³",1]
[]
[null,"2.71","In flower boxes","m³",1]
[]
[null,null,"Compaction of surfaces"]
[]
[null,"2.72","Compaction of ground surface under floors, etc. including scarifying for a depth of 100mm, breaking down oversize material, adding suitable material where necessary and compacting to 93% Mod AASHTO density","m²",1]
[]
[null,null,"TESTS"]
[]
[null,null,"Prescribed density test on filling."]
[]
[null,"2.73","\"Modified AASHTO density\" test ","no.",1]
[]
[null,"2.74","\"Natural California Bearing Ratio\" test","no",1]
[]
[null,"2.75","\"Field Density\" test including \"Optimum Moisture Content\" (four readings per test)","no",1]
[]
[null,"2.76","Maximum dry density and optimum moisture content test in accordance with Method A7 of TMH1 (Technical Method of Highways","no",1]
[]
[null,"2.77","In situ dry density (sand replacement) test in accprdance with metho A7 of TMH1 (Technican Method of Highwats)","no",1]
[]
[null,null,"GABIONS"]
[]
[null,null,"Gabions of Mesh Type 80 with 3mm Class A galvanised wire boxes laced and braced together and filled with broken stone as per Maccaferri SA (Pty) Ltd specifications"]
[]
[null,"2.78","1000mm thick retaining wall of 1000 x 1000 x 1000mm boxes properly bonded","m³",1]
[]
[null,"2.79","1000mm thick retaining wall of 2000 x 1000 x 1000mm boxes properly bonded","m³",1]
[]
[null,null,"SOIL POISONING"]
[]
[null,null,"Weedkillers, Insecticides, etc. Environmentaly friendly and SABS approved."]
[]
[null,"2.80","Under paving, etc","m²",1]
[]
[null,"2.81","Under floors etc, including forming and poisoning shallow furrows against foundation walls etc, filling in furrows and ramming.","m²",1]
[]
[null,"2.82","Bottoms and sides of trenches etc.","m²",1]
["SUB-TOTAL",{"$nulls":4},{"$f":"SUM(F591:F811)","v":0}]
[]
[]
[]
[null,null,"SCHEDULE No. 3"]
[]
[null,null,"SUPPLEMENTARY PREAMBLES"]
[]
[null,null,"Formwork"]
[]
[null,null,"Descriptions of formwork shall be deemed to include use and waste only (except where described as \"left in\" or \"permanent\"), for fitting together in the required forms, wedging, plumbing and fixing to true angles and surfaces as necessary to ensure easy release during stripping and for reconditioning as necessary before re-use"]
[]
[null,null,"The vertical strutting shall be carried down to such construction as is sufficiently strong to afford the required support without damage and shall remain in position until the newly constructed work is able to support itself."]
[]
[null,null,"Formwork to soffits of (solid) slabs etc. shall be deemed to be to slabs not exceeding 250mm thick unless otherwise described."]
[]
[null,null,"Formwork to sides of bases, pile caps, ground beams, etc. will only be measured where it is prescribed by the engineer for design reasons. Formwork necessitated by irregularity or collapse of excavated faces will not be measured and the cost thereof shall be deemed to be included in the allowance for taking the risk of collapse of the sides of the excavations, provision for which is made in \"Earthworks\""]
[null,null,"LIGHTWEIGHT CONCRETE"]
[]
[null,null,"Lightweight concrete"]
[]
[null,3.1,"Grading to slabs","m2",1]
[]
[null,3.2,"Finishing smooth top surfaces of grading to falls for waterproofing including 1:8 monolithic cement plaster screed as necessary","m2",1]
[]
[null,null,"UNREINFORCED CONCRETE CAST AGAINST EXCAVATED SURFACES"]
[]
[null,null,"15MPa/20mm. concrete"]
[]
[null,3.3,"Surface blinding under surface beds","m³",1]
[]
[null,3.4,"Surface blinding under footings and bases","m³",1]
[]
[null,null,"20MPa/20mm. concrete"]
[]
[null,3.5,"Strip footings","m³",1]
[]
[null,3.6,"Surface bed","m³",1]
[]
[null,3.7,"Surface bed cast in panels","m³",1]
[]
[null,3.8,"Pavings","m³",1]
[]
[null,3.9,"Pavings cast in panels","m³",1]
[]
[null,{"v":3.1,"d":"3.10"},"Ramps","m³",1]
[]
[null,3.11,"Bottoms and sides of floor ducts","m³",1]
[]
[null,3.12,"Machine bases","m³",1]
[]
[null,3.13,"Steps, urinal steps, cupboard platforms, etc.","m³",1]
[]
[null,null,"25MPa/20mm. concrete"]
[]
[null,3.14,"Strip footings","m³",1]
[]
[null,3.15,"Surface bed ","m³",1]
[]
[null,3.16,"Surface bed cast in panels","m³",1]
[]
[null,3.17,"Pavings","m³",1]
[]
[null,3.18,"Pavings cast in panels","m³",1]
[]
[null,3.19,"Ramps","m³",1]
[]
[null,{"v":3.2,"d":"3.20"},"Bottoms and sides of floor ducts","m³",1]
[]
[null,3.21,"Machine bases","m³",1]
[]
[null,3.22,"Steps","m³",1]
[]
[null,null,"REINFORCED CONCRETE CAST AGAINST EXCAVATED SURFACES"]
[]
[null,null,"20MPa/20mm. concrete"]
[]
[null,3.23,"Strip footings","m³",1]
[]
[null,3.24,"Bases","m³",1]
[]
[null,3.25,"Foundation beams","m³",1]
[]
[null,3.26,"Surface bed","m³",1]
[]
[null,3.27,"Surface bed cast in panels","m³",1]
[]
[null,3.28,"Pavings","m³",1]
[]
[null,3.29,"Pavings cast in panels","m³",1]
[]
[null,{"v":3.3,"d":"3.30"},"Ramps","m³",1]
[]
[null,3.31,"Bottoms and sides of floor ducts","m³",1]
[]
[null,3.32,"Machine bases","m³",1]
[]
[null,3.33,"Steps","m³",1]
[]
[null,3.34,"In cavity walls","m³",1]
[]
[null,null,"25MPa/20mm. concrete"]
[]
[null,3.35,"Strip footings","m³",1]
[]
[null,3.36,"Bases","m³",1]
[]
[null,3.37,"Foundation beams","m³",1]
[]
[null,3.38,"Surface bed","m³",1]
[]
[null,3.39,"Surface bed cast in panels","m³",1]
[]
[null,{"v":3.4,"d":"3.40"},"Pavings","m³",1]
[]
[null,3.41,"Pavings cast in panels","m³",1]
[]
[null,3.42,"Ramps","m³",1]
[]
[null,3.43,"Bottoms and sides of floor ducts","m³",1]
[]
[null,3.44,"Machine bases","m³",1]
[]
[null,3.45,"Steps","m³",1]
[]
[null,null,"TEST BLOCKS"]
[]
[null,3.46,"Making and testing a set of three 150 x 150 x 150mm. concrete strength test cubes (Provisional)","no",1]
[]
[null,null,"CONCRETE SUNDRIES"]
[]
[null,null,"Finishing top surface of concrete smooth with wood float or steel trowel"]
[]
[null,3.47,"Surface bed, slabs, etc","m²",1]
[]
[null,3.48,"Surface bed, slabs, etc to falls and currents","m²",1]
[]
[null,3.49,"Paving to falls","m²",1]
[]
[null,null,"Finishing top surfaces of concrete smooth with a steel float"]
[]
[null,{"v":3.5,"d":"3.50"},"Surface bed, slabs, etc.","m²",1]
[]
[null,3.51,"Surface bed, slabs, etc to falls and currents","m²",1]
[]
[null,3.52,"Paving to falls","m²",1]
[]
[null,null,"Finishing top surfaces of concrete smooth with a power float"]
[]
[null,3.53,"Surface bed, slabs, etc.","m²",1]
[]
[null,3.54,"Surface bed, slabs, etc to falls and currents","m²",1]
[]
[null,3.55,"Paving to falls","m²",1]
[]
[null,null,"ROUGH FORMWORK (DEGREE OF ACCURACY II)"]
[]
[null,null,"Rough formwork to sides"]
[]
[null,3.56,"Strip footings (Provisional)","m²",1]
[]
[null,3.57,"Foundation beams (Provisional)","m²",1]
[]
[null,3.58,"Retaining walls (Provisional)","m²",1]
[]
[null,3.59,"Walls (Provisional)","m²",1]
[]
[null,null,"SMOOTH FORMWORK (DEGREE OF ACCURACY II)"]
[]
[null,null,"Smooth formwork to sides"]
[]
[null,{"v":3.6,"d":"3.60"},"Steps","m²",1]
[]
[null,3.61,"Retaining walls","m²",1]
[]
[null,3.62,"Walls","m²",1]
[]
[null,3.63,"Edges, risers, ends and reveals not exceeding 300mm. high or wide","m",1]
[]
[null,3.64,"Edges, risers, ends and reveals not exceeding 300mm. high or wide circular exceeding 1m radius","m",1]
[]
[null,null,"MOVEMENT JOINTS, ETC."]
[]
[null,null,"Expansion joints with bitumen impregnated softboard between vertical concrete surfaces"]
[]
[null,3.65,"10mm. joint exceeding 300mm. high","m2",1]
[]
[null,3.66,"10mm. joint not exceeding 300mm. high","m",1]
[]
[null,null,"Expansion joints with bitumen impregnated softboard between vertical concrete and brick surfaces"]
[]
[null,3.67,"10mm. joint exceeding 300mm. high","m2",1]
[]
[null,3.68,"10mm. joint not exceeding 300mm. high","m",1]
[]
[null,null,"Saw cut joints"]
[]
[null,3.69,"5 x 35mm. saw cut jointson top of concrete","m",1]
[]
[null,null,"REINFORCEMENT"]
[]
[null,null,"Mild steel reinforcement to structural concrete work"]
[]
[null,{"v":3.7,"d":"3.70"},"8mm. diameter bar","t",1]
[]
[null,3.71,"10mm. diameter bar","t",1]
[]
[null,3.72,"12mm. diameter bar","t",1]
[]
[null,3.73,"16mm. diameter bar","t",1]
[]
[null,null,"High tensile steel reinforcement to structural concrete work"]
[]
[null,3.74,"10mm. diameter bar","t",1]
[]
[null,3.75,"12mm. diameter bar","t",1]
[]
[null,3.76,"16mm. diameter bar","t",1]
[]
[null,3.77,"20mm. diameter bar","t",1]
[]
[null,3.78,"25mm. diameter bar","t",1]
[]
[null,3.79,"32mm. diameter bar","t",1]
[]
[null,null,"Fabric reinforcement"]
[]
[null,{"v":3.8,"d":"3.80"},"Type Ref. 100 in concrete surface beds, slabs, etc.","m²",1]
[]
[null,3.81,"Type Ref. 193 in concrete surface beds, slabs, etc.","m²",1]
[]
[null,3.82,"Type Ref. 245 in concrete surface beds, slabs, etc.","m²",1]
[]
[null,3.83,"Type Ref. 311 in concrete surface beds, slabs, etc.","m²",1]
[]
[null,3.84,"Type Ref. 395 in concrete surface beds, slabs, etc.","m²",1]
["SUB-TOTAL ",{"$nulls":4},{"$f":"SUM(F833:F1047)","v":0}]
[]
[]
[]
[]
[null,null,"SCHEDULE No. 4"]
[]
[null,null,"MASONRY"]
[]
[null,null,"SUPPLEMENTARY PREAMBLES"]
[]
[null,null,"BRICKWORK"]
[]
[null,null,"Size and descriptions"]
[]
[null,null,"Where sizes in descriptions are given in brick units, \"One brick\" shall represent length and \"Half brick\" the width of a brick"]
[]
[null,null,"Hollow walls, etc"]
[]
[null,null,"Description of hollow walls shall be deemed to include leaving every fifth perpend of the bottom course of the external skin open as a weep hole"]
[]
[null,null,"User Note"]
[]
[null,null,"The following preamble generally applies for works in hot and humid coastal areas"]
[]
[null,null,"Bagged and sealed walls"]
[]
[null,null,"Walls in two skins described as \"bagged and sealed\" shall be deemed to include having the outer face of the inner skin bagged with !:6 cement and sand mixture and sealed with two coats bitumen emulsion waterproofing coating "]
[]
[null,null,"Face bricks"]
[]
[null,null,"Bricks shall be ordered timeously to obtain uniformity in size and colour"]
[]
[null,null,"Pointing"]
[]
[null,null,"Descriptions of recessed pointing to fair face brickwork and face brickwork shall be deemed to include square recessed, hollow recessed, weathered pointing, etc."]
[]
[null,null,"BLOCKWORK"]
[]
[null,null,"Concrete masonry units"]
[]
[null,null,"Blocks are to be either solid or hollow modular dense concrete masonry units having a compressive strength of 14MPa"]
[]
[null,null," Wall ties for blockwork"]
[]
[null,null,"Wall ties shall be polypropylene ties complying with BS76377. Ties for hollow walls shall be of sufficient length to allow not less than 75mm of each end to be built into the blockwork. Ties are to be spaced at intervals of not more than 1m in the horizontal direction and not more than 400mm staggered in the vertical direction except at openings, vertical joints or ends of walls where they are to be placed vertically above each other"]
[]
[null,null,"Blockwork"]
[]
[null,null,"Blockwork shall comply with SANS 10145 \"Concrete Masonry Construction\""]
[]
[null,null,"Surfaces to be plastered shall have joints raked out to a depth of at least 10mm to provide a key. Cavities of hollow walls shall be kept free of mortar droppings or other undesirable matter. Every second perpend of the bottom course of the external skin of hollow walls shall be left open as a weep hole"]
[]
[null,null,"Standard complementary blocks"]
[]
[null,null,"Descripyions of blockwork shall be deemed to include standard complementary blocks such as corner, three-quarter, half and quarter blocks required in the construction of corners, reveals, jambs, ends, etc to solid and hollow walls and for bonding as necessary"]
[]
[null,null,"DECORATIVE BLOCKS"]
[]
[null,null,"Blocks shall be of approved manufacture, sound, well burnt or cured and uniform and true in size, shape and colour"]
[]
[null,null,"BRICKWORK"]
[]
[null,null,"Brickwork of NFX bricks (14MPa nominal compressive strength) in class II mortar"]
[]
[null,4.1,"Piers","m³",1]
[]
[null,4.2,"Half brick walls","m²",1]
[]
[null,4.3,"Half brick walls in beamfilling","m²",1]
[]
[null,4.4,"One brick walls","m²",1]
[]
[null,4.5,"One brick walls in beamfilling","m²",1]
[]
[null,4.6,"One and a half brick wall","m²",1]
[]
[null,4.7,"Two brick walls","m²",1]
[]
[null,null,"BRICKWORK SUNDRIES"]
[]
[null,null,"Brickwork sundries"]
[]
[null,4.8,"Cutting toothings and bonding new brickwork to existing","m²",1]
[]
[null,4.9,"Splayed mortar fillet one course high in 50mm cavity","m",1]
[]
[null,{"v":4.1,"d":"4.10"},"Splayed mortar fillet two course high in 50mm cavity","m",1]
[]
[null,4.11,"Closing 50mm cavity of hollow wall vertically with brickwork half brick wide","m",1]
[]
[null,4.12,"Closing 50mm cavity of hollow wall horizontally with one course of brickwork","m",1]
[]
[null,4.13,"Closing 50mm cavity of hollow wall horizontally with two course of brickwork","m",1]
[]
[null,4.14,"Closing 50mm cavity at raking top of hollow wall with two course of brickwork","m",1]
[]
[null,null,"Reinforcing and stabilising brickwork"]
[]
[null,4.15,"Cutting out and removing one course half brickwall and  building in  1 x 110 x 75mm lintels in lengths not exceeding 3m ","m",1]
[]
[null,4.16,"Cutting out and removing one course one brickwall and  building in  2 x 110 x 75mm lintels in lengths not exceeding 3m ","m",1]
[]
[null,null,"Joint forming material in movement joints"]
[]
[null,4.17,"10mm Fibre board built in vertically between brick skins","m²",1]
[]
[null,null,"Reinforcement to brickwork"]
[]
[null,4.18,"75mm wide brick force built in horizontally","m",1]
[]
[null,4.19,"150mm wide brick force built in horizontally","m",1]
[]
[null,{"v":4.2,"d":"4.20"},"230mm wide brick force built in horizontally","m",1]
[]
[null,null,"Prestressed fabricated lintels"]
[]
[null,4.21,"110 x 75mm. lintels in lengths not exceeding 3m.","m",1]
[]
[null,4.22,"110 x 75mm. lintels in lengths exceeding 3m and not exceeding 4,5m","m",1]
[]
[null,4.23,"150 x 75mm. lintels in lengths not exceeding 3m","m",1]
[]
[null,4.24,"150 x 75mm. lintels in lengths exceeding 3m and not exceeding 4,5m","m",1]
[]
[null,null,"Galvanised wire ties etc"]
[]
[null,4.25,"4mm diameter roof tie 2m girth bent double with one end fixed to timber and other end built into brickwork","no",1]
[]
[null,4.26,"4mm diameter roof tie 2m girth bent double with one end fixed to timber and other end cast into concrete","no",1]
[]
[null,4.27,"4mm diameter butterfly ties fixed to brickwork","no",1]
[]
[null,null,"Galvanised hoop iron cramps, ties, etc."]
[]
[null,4.28,"40 x 1,6mm \"Tibond\" wall tie strips shot pinned to concrete and with tie bent out and built into brickwork","no",1]
[]
[null,4.29,"30 x 1,6mm wall tie 500mm long with one end cast into concrete and other end built into brickwork","no",1]
[]
[null,{"v":4.3,"d":"4.30"},"30 x 1,6mm roof tie 1,5m long with one fixed to timber and other end built into brickwork","no",1]
[]
[null,4.31,"30 x 1,6mm roof tie 1,5m long with one fixed to timber and other end cast into concrete","no",1]
[]
[null,null,"Air bricks etc"]
[]
[null,4.32,"230 x 76mm clay vermin proof air brick","no",1]
[]
[null,4.33,"230 x 150mm clay vermin proof air brick","no",1]
[]
[null,4.34,"230 x 160mm cement air brick","no",1]
[]
[null,null,"FACE BRICKWORK"]
[]
[null,null,"Face brick pointed with recessed horizontal and vertical joints. (Allow P.C. amount of R4,500.00 per 1000 for supply and delivery)"]
[]
[null,4.35,"Extra over ordinary brickwork for face brickwork","m²",1]
[]
[null,4.36,"Half brick wall pointed both sides","m²",1]
[]
[null,4.37,"One brick walls in English bond pointed both sides","m²",1]
[]
[null,4.38,"One and half brick walls in English bond pointed both sides","m²",1]
[]
[null,4.39,"Two one brick walls in English bond pointed both sides","m²",1]
[]
[null,{"v":4.4,"d":"4.40"},"Extra over brickwork for brick-on-edge header course lintel","m",1]
[]
[null,4.41,"Extra over brickwork for brick-on-edge header course window sill set sloping","m",1]
[]
[null,4.42,"Cutting toothings and bonding new face brickwork to existing","m",1]
[]
[null,4.43,"Fair cutting and fitting around pipes not exceeding 100mm diameter","no",1]
[]
[null,4.44,"Fair cutting and fitting around pipes exceeding 100mm diameter  and not exceeding 200mm diameter","no",1]
[]
[null,null,"Brick-on-edge header course copings, sills etc. of face brick as described"]
[]
[null,4.45,"Coping on top of half brick wall","m",1]
[]
[null,4.46,"Coping on top of one brick wall","m",1]
[]
[null,4.47,"Coping on top of one and a half brick wall","m",1]
[]
[null,4.48,"Coping on racking top of one brick wall","m",1]
[]
[null,null,"SEMI- FACE BRICKWORK"]
[]
[null,4.49,"Extra over ordinary brickwork for semi- face brickwork","m²",1]
[]
[null,{"v":4.5,"d":"4.50"},"Half brick wall pointed both sides","m²",1]
[]
[null,4.51,"One brick walls in English bond pointed both sides","m²",1]
[]
[null,4.52,"One and half brick walls in English bond pointed both sides","m²",1]
[]
[null,4.53,"Two one brick walls in English bond pointed both sides","m²",1]
[]
[null,4.54,"Extra over brickwork for brick-on-edge header course window sill set sloping","m",1]
[]
[null,null,"NUTEC-CEMENT / FIBRE-CEMENT WINDOW SILLS"]
[]
[null,null,"Natural grey sills in single lengths bedded in class I mortar including metal fixing lugs etc"]
[]
[null,4.55,"15 x 150mm wide sills set flat and slightly projecting","m",1]
[]
[null,4.56,"15 x 200mm wide sills set sloping and slightly projecting","m",1]
["SUB-TOTAL ",{"$nulls":4},{"$f":"SUM(F1113:F1253)","v":0}]
[]
[]
[]
[null,null,"SCHEDULE No. 5"]
[]
[null,null,"WATERPROOFING"]
[]
[null,null,"SUPPLEMENTARY PREAMBLES"]
[]
[null,null,"Waterproofing to roofs, basements, etc shall be laid under a ten year guarantee. Waterproofing to roofs shall be laid to even falls to outlets etc with necessary ridges, hips and valleys. Description of sheet or membrane waterproofing shall be deemed to include additional labour to turn-ups and turndowns"]
[]
[null,null,"DAMP PROOFING OF WALLS AND FLOORS"]
[]
[null,null,"One layer of 375 micron \"Gundle plastic Brikgrip DPC\" embossed damp proof course"]
[]
[null,5.1,"In walls","m²",1]
[]
[null,null,"One layer of 250 micron \"Gundle Plastic USB Green\" waterproofing sheeting sealed at laps with \"Gunplas Pressure Sensitive Tape\""]
[]
[null,5.2,"Under surface beds","m²",1]
[]
[null,5.3,"Vertically between walls","m²",1]
[]
[null,null,"One layer of 250 micron \"Gundle Plastic Hyperelastic Orange\" waterproofing sheeting sealed at laps with \"Superstik\" tape carried out strictly in accordance with the manufacturer's instructions"]
[]
[null,5.4,"Under surface beds","m²",1]
[]
[null,5.5,"Vertically between walls","m²",1]
[]
[null,null,"Primer and two coats \"Durabit\" rubber bitumen emulsion waterproof coating"]
[]
[null,5.6,"On IBR, corrugated, etc. roof sheeting","m²",1]
[]
[null,5.7,"On concrete floors","m²",1]
[]
[null,5.8,"On concrete walls, columns and beams","m²",1]
[]
[null,5.9,"On concrete walls, columns and beams in foundations","m²",1]
[]
[null,{"v":5.1,"d":"5.10"},"On brick walls","m²",1]
[]
[null,5.11,"On brick bagged walls","m²",1]
[]
[null,null,"Primer and three coats \"Durabit\" rubber bitumen emulsion waterproof coating and one coat \"Silvershield\" aluminium coating"]
[]
[null,5.12,"On concrete floors","m²",1]
[]
[null,5.13,"On concrete walls, columns and beams","m²",1]
[]
[null,5.14,"On concrete walls, columns and beams in foundations","m²",1]
[]
[null,5.15,"On brick walls","m²",1]
[]
[null,5.16,"On brick bagged walls","m²",1]
[]
[null,null,"4mm \"Derbigum SP4\" or equal and approved fully bonded waterproofing system carried out strictly in accordance with the manufacturer's instructions and under a Ten Year Insurance Backed Guarantee on materials and workmanship"]
[]
[null,5.17,"On flat floors","m²",1]
[]
[null,5.18,"On sloping floors","m²",1]
[]
[null,5.19,"On flat roofs","m²",1]
[]
[null,{"v":5.2,"d":"5.20"},"On flat wooden panels,roofs, etc","m²",1]
[]
[null,5.21,"On sloping roofs","m²",1]
[]
[null,5.22,"On sloping IBR roof sheeeting","m²",1]
[]
[null,5.23,"On walls","m²",1]
[]
[null,5.24,"On tops and sides of invert beams","m²",1]
[]
[null,5.25,"On bottom and sides of floor ducts, channels, etc","m²",1]
[]
[null,5.26,"On bottom and sides of box gutters","m²",1]
[]
[null,5.27,"On bottom and sides of planter boxes","m²",1]
[]
[null,5.28,"On internal surfaces of 450 x 450 x 450mm deep sump, catchpit, etc","no",1]
[]
[null,5.29,"Sealing edge to brickwork or concrete","m",1]
[]
[null,{"v":5.3,"d":"5.30"},"Sealing edge to brickwork or concrete including trowelled mastic bead","m",1]
[]
[null,5.31,"Flashing strip 200mm girth a turn-ups including sealing top edge into groove with mastic","m",1]
[]
[null,5.32,"Type 40 bituminous fibreglass felt protection layer with coarse building sand blinding loose laid over horizontal waterproofing with 50mm wide side and end laps sealed with cold bituminous adhesive","m²",1]
[]
[null,null,"PROTECTIVE STONE DRESSING"]
[]
[null,null,"20mm crusher stone dressing evenly spread with larger stones around outlets"]
[]
[null,5.33,"50mm thick on waterproofing to flat roofs","m²",1]
[]
[null,null,"PROTECTIVE ROOFING PAINT"]
[]
[null,null,"Two coats bituminous aluminium paint"]
[]
[null,5.34,"On waterproofing to roofs","m²",1]
[]
[null,5.35,"On waterproofing to box gutters","m²",1]
[]
[null,null,"JOINT SEALANTS, ETC."]
[]
[null,null,"Silicone sealing compound including backing cord, bond breaker, primer, etc."]
[]
[null,5.36,"6 x 12mm. in saw cut joints in concrete surface beds","m",1]
[]
[null,5.37,"10 x 12mm. in expansion joints between concrete surface beds and brickwork including raking out joint filler as necessary","m",1]
[]
[null,5.38,"10 x 12mm. in expansion joints in soffits raking out joint filler as necessary","m",1]
[]
[null,null,"Clear silicon sealant"]
[]
[null,5.39,"Between glazed tiles and sanitary fittings","m",1]
[]
[null,null,"EPOXY"]
[]
[null,null,"4mm thick epoxy flowprime at 4m2/litre scatted with aggregate at 1kg/m2 and flowfresh Mfat 3,5 liters/m2"]
[]
[null,{"v":5.4,"d":"5.40"},"On screeded floors","m²",1]
[]
[null,5.41,"On screeded seating slabs","m²",1]
[]
[null,5.42,"On plastered walls","m²",1]
[]
[null,null,"Primer and two coats \"Rubberising\"  bitumen emulsion waterproof coating"]
[]
[null,5.43,"On concrete floors","m²",1]
[]
[null,5.44,"On concrete walls, columns and beams","m²",1]
[]
[null,5.45,"On concrete walls, columns and beams in foundations","m²",1]
[]
[null,5.46,"On brick walls","m²",1]
[]
[null,5.47,"On brick bagged walls","m²",1]
[]
[null,null,"Two coats of one-component Siloxane \"abe-wall seal\" or equivalent waterporoofing repelent "]
[]
[null,5.48,"On walls","m²",1]
[]
[null,5.49,"On tops and sides of invert beams","m²",1]
[]
[null,null,"Bitumen emulsion \"abe-Flintkote 3\" or equivalent waterproofing"]
[]
[null,{"v":5.5,"d":"5.50"}," On concrete retaining walls","m²",1]
[]
[null,5.51,"On basements","m²",1]
[]
[null,5.52," On abutments","m²",1]
[]
[null,5.53,"On wingwalls","m²",1]
["SUB-TOTAL ",{"$nulls":4},{"$f":"SUM(F1270:F1408)","v":0}]
[]
[]
[null,null,"SCHEDULE No. 6"]
[]
[null,null,"ROOF COVERINGS ETC."]
[]
[null,null,"TILES"]
[]
[null,null,"\"Marley Mendip\" or equal and approved profile M22 factory-coated through colour concrete roof tiles, size 420 x 332mm manufactured in accordance with SABS 542, of approved colour with matching fittings nailed and/or fixed with suitable non-corrosive clips as required to and including 38x50mm"]
[null,null,"sawn softwood battens at 320mm centres on an underlay of SABS approved \"Gundle\" white 250 micron plastic sheeting laid horizontally over trusses, with minimum overlap of 150mm and secured with non-corrosive clout nails to the trusses"]
[]
[null,6.1,"Roof covering with pitch not exceeding 50 degrees","m²",1]
[]
[null,6.2,"Side cladding at gable ends","m²",1]
[]
[null,6.3,"Taper ridge tiles edge bedded and pointed in 1:3 cement/sand mortar tinted to match tile colour over 150mm wide DPC","m",1]
[]
[null,6.4,"Verge capping tiles to match roofing tiles fixed with non-corrosive fixing accessories","m",1]
[]
[null,null,"PROFILED METAL SHEETING AND ACCESSORIES"]
[]
[null,null,"0,58mm corrugated profile roll-formed Z275 spelter galvanised steel sheeting, in single lengths, fixed to timber/steel purlins or rails and 0,58mm galvanised sheet steel accessories"]
[]
[null,6.5,"Roof covering with pitch not exceeding 50 degrees","m²",1]
[]
[null,6.6,"Roof covering with pitch not exceeding 50 degrees side laps seam stitched","m²",1]
[]
[null,6.7,"Side cladding","m²",1]
[]
[null,6.8,"Ridge capping 462mm girth","m",1]
[]
[null,6.9,"Hip capping 462mm girth","m",1]
[]
[null,{"v":6.1,"d":"6.10"},"Side wall flashing 308mm girth","m",1]
[]
[null,6.11,"Head wall flashing 308mm girth","m",1]
[]
[null,6.12,"Cover flashing 154mm girth","m",1]
[]
[null,6.13,"Gable trim 308mm girth","m",1]
[]
[null,null,"0,6mm \"Klip-lok 700\"  Z275 spelter galvanised ribbed sheet steel in single lengths fixed to timber/steel purlins or rails and 0,58mm galvanised sheet steel accessories"]
[]
[null,6.14,"Roof covering with pitch not exceeding 50 degrees","m²",1]
[]
[null,6.15,"Side cladding","m²",1]
[]
[null,6.16,"Ridge capping 550mm girth","m",1]
[]
[null,6.17,"Hip capping 550mm girth","m",1]
[]
[null,6.18,"Side wall flashing 408mm girth","m",1]
[]
[null,6.19,"Head wall flashing 375mm girth","m",1]
[]
[null,{"v":6.2,"d":"6.20"},"Counter flashing 185mm girth","m",1]
[]
[null,6.21,"Gable trim 580mm girth","m",1]
[]
[null,"6.21.1","\"Ventco Firelight MKIII\" galvanised sheet metal multi-purpose ventilator 2,15m long fixed through profile roof sheeting to steel purlins including flashings, closers, sealing strips, etc","no",1]
[]
[null,"6.21.2","\"Ventco Firelight MKIII\" galvanised sheet metal, with \"Global-Sil\" finish on one side, multi-purpose ventilator 2,15m long fixed through profile roof sheeting to steel purlins including flashings, closers, sealing strips, etc","no",1]
[]
[null,null,"ROOF AND WALL INSULATION"]
[]
[null,null,"\"Sisalation RSA 420\" heavy industrial grade aluminium foil based insulation"]
[]
[null,6.22,"Insulation laid taut over purlins (at approximately 1800mm centres) and fixed concurrent with roof covering including galvanised steel straining wires","m²",1]
[]
[null,null,"\"Sisalation RSA 410\" residential grade glass fibre reinforced aluminium foil bonded insulation"]
[]
[null,6.23,"Insulation laid taut over rafters (at approximately 1200mm centres) and fixed concurrent with tiling battens, purlins, etc","m²",1]
[]
[null,null,"RAINWATER DISPOSAL"]
[]
[null,null,"0,6mm Galvanised sheet iron"]
[]
[null,6.24,"125mm Half round eaves gutter with beaded front edge including fixing brackets","m",1]
[]
[null,6.25,"Extra over 125mm half round eaves gutter for stopped end","no",1]
[]
[null,6.26,"Extra over 125mm half round eaves gutter for angle","no",1]
[]
[null,6.27,"Extra over 125mm half round eaves gutter for outlet for 76mm diameter pipe","no",1]
[]
[null,6.28,"76mm diameter rainwater pipes","m",1]
[]
[null,6.29,"Extra over 76mm diameter rainwater pipe for bend","no",1]
[]
[null,{"v":6.3,"d":"6.30"},"Extra over 76mm diameter rainwater pipe for shoe","no",1]
[]
[null,6.31,"100 x 125mm eaves gutter with beaded front edge including fixing brackets","m",1]
[]
[null,6.32,"Extra over 100 x 125mm eaves gutter for stopped end","no",1]
[]
[null,6.33,"Extra over 100 x 125mm eaves gutter for angle","no",1]
[]
[null,6.34,"Extra over 100 x 125mm eaves gutter for 100 x 76mm outlet  ","no",1]
[]
[null,6.35,"Extra over 76mm diameter rainwater pipe for outlet","no",1]
[]
[null,6.36,"100 x 76mm rainwater pipes","m",1]
[]
[null,6.37,"Extra over 100 x 76mm rainwater pipe for soldered bend","no",1]
[]
[null,6.38,"Extra over 100 x 76mm rainwater pipe for soldered shoe","no",1]
[]
[null,null,"REPLACE DAMAGED GUTTERS AND DOWNPIPES"]
[]
[null,null,"Carefully cut and remove gutter and / or down pipe in damaged section, replace with new including gutter brackets, pipe clips, making water tight at joints, prepare and paint to match existing and leave in good working order."]
[]
[null,6.39,"0,6mm Galvanised Sheet Iron"]
[]
[null,{"v":6.4,"d":"6.40"},"125mm Half round eaves gutter with beaded front edge","m",1]
[]
[null,6.41,"125mm half round eaves gutter stopped end","no",1]
[]
[null,6.42,"125mm half round eaves gutter angle","no",1]
[]
[null,6.43,"125mm half round eaves gutter outlet for 76mm diameter pipe","no",1]
[]
[null,6.44,"76mm diameter rainwater pipe","m",1]
[]
[null,6.45,"76mm diameter rainwater pipe bend","no",1]
[]
[null,6.46,"76mm diameter rainwater pipe shoe","no",1]
[]
[null,6.47,"100 x 125mm eaves gutter stopped end","no",1]
[]
[null,6.48,"100 x 125mm eaves gutter angle","no",1]
[]
[null,6.49,"100 x 76mm eaves gutter outlet  ","no",1]
[]
[null,{"v":6.5,"d":"6.50"},"100 x 76mm rainwater pipe","m",1]
[]
[null,6.51,"100 x 76mm rainwater pipe soldered bend","no",1]
[]
[null,6.52,"100 x 76mm rainwater pipe soldered shoe","no",1]
[]
[null,null,"Sundries"]
[]
[null,6.53,"Replace or install new gutter bracket and / or pipe clip","no",1]
[]
[null,6.54,"Repair leaking joint to Galvanised Iron gutter and / or down pipe not exceeding 500mm girth","no",1]
[]
[null,6.55,"Repair leaking joint to Aluminium gutter and / or down pipe not exceeding 500mm girth","no",1]
[]
[null,6.56,"Repair leaking joint to Galvanised Iron down pipe not exceeding 350mm diameter","no",1]
[]
[null,6.57,"Replace or install new 80 or 100mm Full-bore cast iron outlet grating","no",1]
["SUB-TOTAL ",{"$nulls":4},{"$f":"SUM(F1421:F1559)","v":0}]
[]
[]
[]
[null,null,"SCHEDULE No. 7"]
[]
[null,null,"CARPENTRY AND JOINERY"]
[]
[null,null,"SUPPLEMENTARY PREAMBLES"]
[]
[null,null,"Particle board"]
[]
[null,null,"Particle board shall comply with the following specifications:"]
[null,null,"a)  SABS 1300 Particle board: exterior and flooring type"]
[null,null,"b)  SABS 1301 Particle board: interior type"]
[]
[null,null,"Joinery"]
[]
[null,null,"Description of frames shall be deemed to include frames, transoms, mullions, rails, etc"]
[]
[null,null,"Description of hardwood joinery shall be deemed to include pelleting of bolt holes"]
[]
[null,null,"Fixings"]
[]
[null,null,"Items described as \"nailed\" shall be deemed to be fixed with hardened steel nails or shot pins to brickwork or concrete."]
[]
[null,null,"Decorative laminated finish"]
[]
[null,null,"Laminated finish shall be glued under pressure.  Edge strips shall be butt jointed at junctions with adjacent similar finish"]
[]
[null,null,"ROOFS, ETC"]
[]
[null,null,"Prefabricated timber roof construction complete, including battens, runners, bracing, hips, valleys, cleats, etc., designed, supplied and fixed complete"]
[]
[null,null,"Sawn softwood grade 4"]
[]
[null,7.1,"38 x 38mm Battens","m",1]
[]
[null,7.2,"38 x 76mm Tilting battens","m",1]
[]
[null,7.3,"38 x 76mm wall plates","m",1]
[]
[null,7.4,"38 x 76mm wall plates bolted","m",1]
[]
[null,7.5,"50 x 76mm bracing","m",1]
[]
[null,7.6,"50 x 76mm hangers","m",1]
[]
[null,7.7,"50 x 75mm purlins","m",1]
[]
[null,7.8,"50 x 50mm trimmers","m",1]
[]
[null,7.9,"38 x 152mm sprockets","m",1]
[]
[null,{"v":7.1,"d":"7.10"},"38 x 114mm Ceiling joists in lengths not exceeding 2,4m","m",1]
[]
[null,7.11,"50 x 152mm Ceiling joists in lengths exceeding 2,4m and not exceeding 3,9m","m",1]
[]
[null,7.12,"38 x 114mm Rafters in lengths not exceeding 2,4m","m",1]
[]
[null,7.13,"50 x 152mm Rafters in lengths exceeding 2,4m and not exceeding 3,9m","m",1]
[]
[null,7.14,"76 x 152mm Rafters in lengths exceeding 3,9m and not exceeding 6,6m","m",1]
[]
[null,7.15,"38 x 114mm Bearers in lengths not exceeding 2,4mm","m",1]
[]
[null,7.16,"50 x 152mm Bearers in lengths exceeding 2,4mm and not exceeding 3,9mm","m",1]
[]
[null,7.17,"76 x 152mm Bearers in lengths exceeding 3,9m and not exceeding 6,6m","m",1]
[]
[null,null,"Sawn softwood grade 6"]
[]
[null,7.18,"76 x 228mm Rafters in lengths exceeding 3,9m and not exceeding 6,6m","m",1]
[]
[null,7.19,"76  x 228mm Rafters in lengths exceeding 6,6m","m",1]
[]
[null,{"v":7.2,"d":"7.20"},"76  x 228mm Bearers in lengths exceeding 3,9m and not exceeding 6,6m","m",1]
[]
[null,7.21,"76  x 228mm Bearers in lengths exceeding 6,6m","m",1]
[]
[null,null,"Wrought softwood grade 6"]
[]
[null,7.22,"76 x 228mm Rafters in lengths exceeding 3,9m and not exceeding 6,6m","m",1]
[]
[null,7.23,"76  x 228mm Rafters in lengths exceeding 6,6m","m",1]
[]
[null,7.24,"76  x 228mm Bearers in lengths exceeding 3,9m and not exceeding 6,6m","m",1]
[]
[null,7.25,"76  x 228mm Bearers in lengths exceeding 6,6m","m",1]
[]
[null,7.26,"2.5 mm diameter galvanised wire tie 2m girth wrapped around rafter and purlin with ends tied together","no",1]
[]
[null,7.27,"30 x 1,6mm galvanised hoop iron roof tie 1500mm girth with each end fixed to timber","no",1]
[]
[null,7.28,"4.5mm Diameter galvanised wire tie 1500mm girth with one end fied to timber and other end built into brickwork","no",1]
[]
[null,null,"EAVES, VERGES, ETC"]
[]
[null,null,"Sawn softwood"]
[]
[null,7.29,"38 x 38mm Branders ","m",1]
[]
[null,{"v":7.3,"d":"7.30"},"38 x 114mm Bearers","m",1]
[]
[null,7.31,"38 x 114mm Hangers","m",1]
[]
[null,null,"\"Everite\" high density plain Pressed Nutec-cement"]
[]
[null,7.32,"12 x 225mm fascias and barge boards including galvanised steel H-profile jointing strips","m",1]
[]
[null,null,"FLOORS"]
[]
[null,null,"Sawn Softwood"]
[]
[null,7.33,"38 x 76mm Battens wired to concrete (wire ties elsewhere)","m",1]
[]
[null,7.34,"50 x 150mm Floor joists in lengths not exceeding 2.4m","m",1]
[]
[null,7.35,"50 x 150mm Floor joists in lengths exceeding 2.4m and not exceeding 3.9m","m",1]
[]
[null,7.36,"50 x 150mm Floor joists in lengths exceeding 3.9m and not exceeding 6.6m","m",1]
[]
[null,7.37,"50 x 150mm Floor joists in lengths exceeding 6.6m","m",1]
[]
[null,7.38,"76 x 152mm Bearers in lengths exceeding 3.9m and not exceeding 6.6m","m",1]
[]
[null,7.39,"76 x 152mm Bearers in lengths exceeding 6.6m","m",1]
[]
[null,null,"Wrought Softwood"]
[]
[null,{"v":7.4,"d":"7.40"},"Flooring of 22 x 96mm tounged and grooved boarding ","m²",1]
[]
[null,7.41,"Flooring of 19 x 75mm tounged and grooved boarding ","m²",1]
[]
[null,7.42,"12mm hardwood block flooring","m²",1]
[]
[null,null,"SKIRTINGS"]
[]
[null,null,"Wrought Meranti"]
[]
[null,7.43,"19 x 70mm. skirting nailed","m",1]
[]
[null,7.44,"19 x 70mm. skirting plugged","m",1]
[]
[null,7.45,"22 x 94mm. skirting nailed","m",1]
[]
[null,7.46,"22 x 94mm. skirting plugged","m",1]
[]
[null,7.47,"19mm. quadrant bead nailed","m",1]
[]
[null,7.48,"32mm. quadrant bead nailed","m",1]
[]
[null,null,"DOORS, ETC"]
[]
[null,null,"Wrought Meranti doors hung to steel frames"]
[]
[null,7.49,"44mm Framed batten door 900 x 2032mm high of 44 x 100mm top rail and stiles, 44 x 100mm middle ledge and braces and 44 x 100mm bottom rail filled in with 70mm V-jointed one side boarding and covered on other side with 3,2mm plywood with veneer to match door let into and including rebates all round","no",1]
[]
[null,{"v":7.5,"d":"7.50"},"44mm Framed batten door 813 x 2032mm high of 44 x 100mm top rail and stiles, 44 x 100mm middle ledge and braces and 44 x 100mm bottom rail filled in with 70mm V-jointed one side boarding and covered on other side with 3,2mm plywood with veneer to match door let into and including rebates all round","no",1]
[]
[null,7.51,"44mm Framed batten door 813 x 2032mm high of 44 x 100mm top rail and stiles, 44 x 150mm middle ledge and 44 x 225mm bottom ledge filled in with 22mm V-jointed one side boarding","no",1]
[]
[null,7.52,"44mm Framed batten door 813 x 2032mm high of 44 x 100mm top rail and stiles, 44 x 150mm middle ledge and 44 x 225mm bottom ledge filled in with 22mm V-jointed one side boarding and 3mm sheet metal fixed to other side","no",1]
[]
[null,7.53,"44mm Framed batten door 762 x 2032mm high of 44 x 100mm top rail and stiles, 44 x 100mm middle ledge and braces and 44 x 100mm bottom rail filled in with 70mm V-jointed one side boarding and covered on other side with 3,2mm plywood with veneer to match door let into and including rebates all round","no",1]
[]
[null,7.54,"44mm Framed batten double door 1616 x 2032mm high of 44 x 100mm top rail and stiles, 44 x 150mm middle ledge and 44 x 225mm bottom ledge filled in with 22mm V-jointed one side boarding","no",1]
[]
[null,7.55,"44mm Double leaf framed batten door 1510 x 2032mm high of 44 x 100mm top rail, stiles and rebated meeting stiles, 44 x 100mm middle ledge and braces and 44 x 100mm bottom rail filled in with 70mm V-jointed one side boarding and covered on other side with 3,2mm plywood with veneer to match door let into and including rebates all round","no",1]
[]
[null,null,"\"Swartland\""]
[]
[null,7.56,"44mm \"Kayo 8\" Panel door 813 x 2032mm high ","no",1]
[]
[null,7.57,"44mm \"Kayo 8\" Panel rebated double door 1626 x 2032mm high ","no",1]
[]
[null,null,"Semi-solid flush door with 3,2mm. hardboard covering on both sides hung to steel frames"]
[]
[null,7.58,"40mm Door 900 x 2032mm. high ","no",1]
[]
[null,7.59,"40mm Door 813 x 2032mm. high ","no",1]
[]
[null,{"v":7.6,"d":"7.60"},"40mm Door 762 x 2032mm. high ","no",1]
[]
[null,7.61,"40mm Double leaf door 1511 x 2032mm. high with rebated meeting styles","no",1]
[]
[null,7.62,"40mm Double leaf door 1613 x 2032mm. high with rebated meeting styles","no",1]
[]
[null,7.63,"40mm Double leaf door 1359 x 2032mm. high with rebated meeting styles","no",1]
[]
[null,7.64,"40mm Double leaf door 1616 x 2032mm. high with flush meeting styles","no",1]
[]
[null,7.65,"40mm Double leaf door 1511 x 2032mm. high with flush meeting styles","no",1]
[]
[null,7.66,"40mm Double leaf door 1359 x 2032mm. high with flush meeting styles","no",1]
[]
[null,7.67,"Extra for 300 x 450mm opening including natural anodised aluminium louvre unit","no",1]
[]
[null,null,"Semi-solid flush door with sapele veneer on both sides hung to steel frames"]
[]
[null,7.68,"40mm Door 900 x 2032mm. high ","no",1]
[]
[null,7.69,"40mm Door 813 x 2032mm. high ","no",1]
[]
[null,{"v":7.7,"d":"7.70"},"40mm Door 762 x 2032mm. high ","no",1]
[]
[null,7.71,"40mm Double leaf door 1511 x 2032mm. high with rebated meeting styles","no",1]
[]
[null,7.72,"40mm Double leaf door 1613 x 2032mm. high with rebated meeting styles","no",1]
[]
[null,7.73,"40mm Double leaf door 1359 x 2032mm. high with rebated meeting styles","no",1]
[]
[null,7.74,"40mm Double leaf door 1616 x 2032mm. high with flush meeting styles","no",1]
[]
[null,7.75,"40mm Double leaf door 1511 x 2032mm. high with flush meeting styles","no",1]
[]
[null,7.76,"40mm Double leaf door 1359 x 2032mm. high with flush meeting styles","no",1]
[]
[null,7.77,"Extra for 300 x 450mm opening including natural anodised aluminium louvre unit","no",1]
[]
[null,null,"Solid flush door with 3,2mm. hardboard covering on both sides hung to steel frames"]
[]
[null,7.78,"40mm Door 900 x 2032mm. high ","no",1]
[]
[null,7.79,"40mm Door 813 x 2032mm. high ","no",1]
[]
[null,{"v":7.8,"d":"7.80"},"40mm Door 762 x 2032mm. high ","no",1]
[]
[null,7.81,"40mm Double leaf door 1511 x 2032mm. high with rebated meeting styles","no",1]
[]
[null,7.82,"40mm Double leaf door 1613 x 2032mm. high with rebated meeting styles","no",1]
[]
[null,7.83,"40mm Double leaf door 1359 x 2032mm. high with rebated meeting styles","no",1]
[]
[null,7.84,"40mm Double leaf door 1616 x 2032mm. high with flush meeting styles","no",1]
[]
[null,7.85,"40mm Double leaf door 1511 x 2032mm. high with flush meeting styles","no",1]
[]
[null,7.86,"40mm Double leaf door 1359 x 2032mm. high with flush meeting styles","no",1]
[]
[null,7.87,"Extra for 300 x 450mm opening including natural anodised aluminium louvre unit","no",1]
[]
[null,null,"Solid flush door with sapele veneer on both sides hung to steel frames"]
[]
[null,7.88,"40mm Door 900 x 2032mm. high ","no",1]
[]
[null,7.89,"40mm Door 813 x 2032mm. high ","no",1]
[]
[null,{"v":7.9,"d":"7.90"},"40mm Door 762 x 2032mm. high ","no",1]
[]
[null,7.91,"40mm Double leaf door 1511 x 2032mm. high with rebated meeting styles","no",1]
[]
[null,7.92,"40mm Double leaf door 1613 x 2032mm. high with rebated meeting styles","no",1]
[]
[null,7.93,"40mm Double leaf door 1359 x 2032mm. high with rebated meeting styles","no",1]
[]
[null,7.94,"40mm Double leaf door 1616 x 2032mm. high with flush meeting styles","no",1]
[]
[null,7.95,"40mm Double leaf door 1511 x 2032mm. high with flush meeting styles","no",1]
[]
[null,7.96,"40mm Double leaf door 1359 x 2032mm. high with flush meeting styles","no",1]
[]
[null,7.97,"Extra for 300 x 450mm opening including natural anodised aluminium louvre unit","no",1]
[]
[null,null,"Solid flush door (1/2 hr fire rated) with sapele veneer on both sides hung to steel frames"]
[]
[null,7.98,"40mm Door 900 x 2032mm. high ","no",1]
[]
[null,"7.99","40mm Door 813 x 2032mm. high ","no",1]
[]
[null,"7.100","40mm Door 762 x 2032mm. high ","no",1]
[]
[null,7.101,"40mm Double leaf door 1511 x 2032mm. high with rebated meeting styles","no",1]
[]
[null,7.102,"40mm Double leaf door 1613 x 2032mm. high with rebated meeting styles","no",1]
[]
[null,7.103,"40mm Double leaf door 1359 x 2032mm. high with rebated meeting styles","no",1]
[]
[null,7.104,"40mm Double leaf door 1616 x 2032mm. high with flush meeting styles","no",1]
[]
[null,7.105,"40mm Double leaf door 1511 x 2032mm. high with flush meeting styles","no",1]
[]
[null,7.106,"40mm Double leaf door 1359 x 2032mm. high with flush meeting styles","no",1]
[]
[null,7.107,"Extra for 300 x 450mm opening including natural anodised aluminium louvre unit","no",1]
[]
[null,null,"FITTINGS"]
[]
[null,null,"General"]
[]
[null,null,"The following cupboards fittings have been measured as complete units i.e. the components of the units have not been separately measured.  The descriptions, therefore, of such units shall be "]
[null,null,"deemed to include all components, assembling, housing, notching, glueing, blocking, planting on and screwing with countersunk screws, edge strips, decorative plastic finish, glass, ironmongery, metalwork, paint or varnish finishes, etc"]
[]
[null,null,"Kitchen cupboards etc with approved hinges, handles and drawer sliders"]
[]
[null,7.108,"Wall cupboard Size; - 300 x 300 x 720mm high with top, sides, bottom, division, shelf, back and single hinged door","no",1]
[]
[null,7.109,"Wall cupboard Size; 450 x 300 x 720mm high with top, sides, bottom, division, shelf, back and single hinged door","no",1]
[]
[null,{"v":7.11,"d":"7.110"},"Wall cupboard Size;  600 x 300 x 720mm high with top, sides, bottom, division, shelf, back and single hinged door","no",1]
[]
[null,7.111,"Wall cupboard Size; 750 x 300 x 720mm high with top, sides, bottom, division, shelf, back and double hinged door","no",1]
[]
[null,7.112,"Wall cupboard Size; 900 x 300 x 720mm high with top, sides, bottom, division, shelf, back and double hinged doors","no",1]
[]
[null,7.113,"Wall cupboard Size; 1200 x 300 x 720mm high with top, sides, bottom, division, shelf, back and double hinged doors","no",1]
[]
[null,7.114,"Wall cupboard Size;  (L shaped) - 600 x 300 x 720mm high with top, sides, bottom, division, shelf, back and double hinged doors","no",1]
[]
[null,7.115,"Floor cupboard  (without top) Size; 300 x 550 x 880mm high with sides, bottom, division, shelf, and single hinged door","no",1]
[]
[null,7.116,"Floor cupboard (without top) Size;  450 x 550 x 880mm high with sides, bottom, division, shelf, and single hinged door","no",1]
[]
[null,7.117,"Floor cupboard (without top) Size;  600 x 550 x 880mm high with sides, bottom, division, shelf, and single hinged door","no",1]
[]
[null,7.118,"Floor cupboard (without top) Size;  750 x 550 x 880mm high with sides, bottom, division, shelf, and double hinged doors","no",1]
[]
[null,7.119,"Floor cupboard (without top) Size; 900 x 550 x 880mm high with sides, bottom, division, shelf, and double hinged doors","no",1]
[]
[null,{"v":7.12,"d":"7.120"},"Floor cupboard (without top) Size; 1200 x 550 x 880mm high with sides, bottom, division, shelf, and double hinged doors","no",1]
[]
[null,7.121,"Floor cupboard(without top) Size; 450 x 550 x 880mm high with sides, bottom, division, shelf, and single hinged door, dividing framework and 1 drawer","no",1]
[]
[null,7.122,"Floor cupboard (without top)Size;  450 x 550 x 880mm high with sides, bottom,  dividing framework and 4 drawers","no",1]
[]
[null,7.123,"Floor cupboard (without top) Size; 600 x 550 x 880mm high with sides, bottom, division, shelf, and single hinged door, dividing framework and 1 drawer","no",1]
[]
[null,7.124,"Floor cupboard (without top) Size;  600 x 550 x 880mm high with sides, bottom,  dividing framework and 4 drawers","no",1]
[]
[null,7.125,"Floor cupboard (L shaped) Size; 900 x 300 x 880mm high with sides, bottom, division, shelf, back and double hinged doors","no",1]
[]
[null,7.126,"Floor cupboard Size; 450 x 300 x 2095mm high with top, sides, bottom, division, 2 shelves, back and single hinged door","no",1]
[]
[null,7.127,"Floor cupboard Size; 600 x 300 x 2095mm high with top, sides, bottom, division, 4 shelves, back and single hinged door","no",1]
[]
[null,7.128,"Sink cupboard Size; 900 x 550 x 880mm high with sides, bottom, division, shelf, back and double hinged doors (sink elsewhere)","no",1]
[]
[null,7.129,"Sink cupboard Size;1200 x 550 x 880mm high with sides, bottom, division, shelf, back and double hinged doors (sink elsewhere)","no",1]
[]
[null,{"v":7.13,"d":"7.130"},"Sink cupboard (double bowl)  Size; 1500 x 550 x 880mm high with sides, bottom, division, shelf, back and double hinged doors (sink elsewhere)","no",1]
[]
[null,null,"32mm thick post formed (on one side) top with 0,6mm Decon Laminated in Artic Granite or similar"]
[]
[null,7.131,"600mm wide","m",1]
[]
[null,7.132,"900mm wide","m",1]
[]
[null,7.133,"Extra over for edge strip","m",1]
[]
[null,7.134,"Extra over for splay cutting","m",1]
[]
[null,null,"ROLL-UP, RETRACTABLE SCREENS AND BLINDS"]
[]
[null,null,"\"Windovert\" or equivalent blinds"]
[]
[null,null,"Supply and install complete with colour co-ordinated ladder lace, cord, head and bottom rails, tilters, cord locks and installation brackets"]
[]
[null,7.135,"63mm blade width vertical fabric venetian blinds","m2",1]
[]
[null,7.136,"90mm blade width vertical fabric venetian blinds","m2",1]
[]
[null,7.137,"127mm blade width vertical fabric venetian blinds","m2",1]
[]
[null,7.138,"16mm blade width aluminium venetian blinds","m2",1]
[]
[null,7.139,"25mm blade width aluminium venetian blinds","m2",1]
[]
[null,"7.140","50mm blade width aluminium venetian blinds","m2",1]
[]
[null,null,"Sundries"]
[]
[null,null,"Making good wooden floors"]
[]
[null,7.141,"Cleaning, sanding and sealing ordinary floors","m2",1]
[]
[null,7.142,"Cleaning, sanding and sealing parquet floors","m2",1]
["SUB-TOTAL ",{"$nulls":4},{"$f":"SUM(F1596:F1935)","v":0}]
[]
[]
[null,null,"SCHEDULE No. 8"]
[]
[null,null,"CEILINGS, PARTITIONS AND ACCESS FLOORING"]
[]
[null,null,"SUPPLEMENTARY PREAMBLES"]
[]
[null,null,"Descriptions"]
[]
[null,null,"Items described as \"nailed\" shall be deemed to be fixed with hardened steel nails or pins or shot pinned to brickwork or concrete"]
[]
[null,null,"Items described as \"plugged\" shall be deemed to include screwing to fibre, plastic or metal plugs at not exceeding 600mm centres, and where described as \"bolted\" the bolts have been given elsewhere"]
[]
[null,null,"CEILINGS ETC"]
[]
[null,null,"\"Isotherm\" insulation"]
[]
[null,8.1,"50mm insulation closely fitted and laid on top of brandering between roof trusses","m²",1]
[]
[null,null,"NAILED UP CEILINGS"]
[]
[null,null,"6.4mm \"Rhino\" gypsum plasterboard with 32mm wrought softwood half round cover strip over joints"]
[]
[null,8.2,"Ceilings including 38 x 50mm sawn softwood brandering at 400mm centres","m²",1]
[]
[null,8.3,"Vertical ceilings including 38 x 50mm sawn softwood brandering at 400mm centres","m²",1]
[]
[null,8.4,"Horizontal bulkhead including 38 x 50mm sawn softwood brandering at 400mm centres","m²",1]
[]
[null,8.5,"Vertical bulkhead including 38 x 50mm sawn softwood brandering at 400mm centres","m²",1]
[]
[null,8.6,"Extra over ceiling for opening for 75mm diameter downlighter","no",1]
[]
[null,8.7,"Extra over ceiling for opening for 180mm diameter downlighter","no",1]
[]
[null,8.8,"Extra over ceiling for opening for 300 x 1200mm light fitting","no",1]
[]
[null,8.9,"Extra over ceiling for opening for 600 x 1200mm light fitting","no",1]
[]
[null,{"v":8.1,"d":"8.10"},"Extra over ceiling for 600 x 600mm opening for ventilation/air conditioning diffuser","no",1]
[]
[null,8.11,"Extra over ceiling for 600 x 600mm trap door of 38 x 50mm wrought softwood rebated framing with one 38 x 38mm sawn softwood cross brander covered with ceiling board and fitted flush in opening on 20 x 20mm pressed steel angle","no",1]
[]
[null,null,"6.4mm \"Rhino\" gypsum plasterboard with 63mm wide strips of mesh scrim fixed over joints and  finished with gypsum skim plaster trowelled and sanded to a smooth polished surface"]
[]
[null,8.12,"Ceilings including 38 x 50mm sawn softwood brandering at 400mm centres","m²",1]
[]
[null,8.13,"Vertical ceilings including 38 x 50mm sawn softwood brandering at 400mm centres","m²",1]
[]
[null,8.14,"Horizontal bulkhead including 38 x 50mm sawn softwood brandering at 400mm centres","m²",1]
[]
[null,8.15,"Vertical bulkhead including 38 x 50mm sawn softwood brandering at 400mm centres","m²",1]
[]
[null,8.16,"Opening for sprinkler head","no",1]
[]
[null,8.17,"Extra over ceiling for opening for 75mm diameter downlighter","no",1]
[]
[null,8.18,"Extra over ceiling for opening for 180mm diameter downlighter","no",1]
[]
[null,8.19,"Extra over ceiling for opening for 300 x 1200mm light fitting","no",1]
[]
[null,{"v":8.2,"d":"8.20"},"Extra over ceiling for opening for 600 x 1200mm light fitting","no",1]
[]
[null,8.21,"Extra over ceiling for 600 x 600mm opening for ventilation/air conditioning diffuser","no",1]
[]
[null,8.22,"Extra over ceiling for 600 x 600mm trap door of 38 x 50mm wrought softwood rebated framing with one 38 x 38mm sawn softwood cross brander covered with ceiling board and fitted flush in opening on 20 x 20mm pressed steel angle","no",1]
[]
[null,null,"\"Rhino\" gypsum plasterboard cornice"]
[]
[null,8.23,"75mm standard coved cornice","m",1]
[]
[null,8.24,"125mm standard coved cornice","m",1]
[]
[null,null,"\"Rhino\" gypsum plasterboard decorative mouldings"]
[]
[null,8.25,"75mm standard coved cornice","m",1]
[]
[null,8.26,"125mm standard coved cornice","m",1]
[]
[null,null,"SUSPENDED CEILINGS"]
[]
[null,null,"BPB Gypsum DonnCeil Gyprex White vinyl finished gypsum ceiling tiles size 1200 x 600mm x 12,5mm thick laid on and including SQ/T38 galvanised main tees, cross tees, hold-down "]
[null,null,"clips, wedges, etc., all suspended with galvanised hangers at hanger centres not exceeding 1200mm"]
[]
[null,8.27,"Ceiling suspended not exceeding 1m below concrete soffits","m²",1]
[]
[null,8.28,"Ceiling suspended exceeding 1m and not exceeding 2m below concrete soffits","m²",1]
[]
[null,8.29,"Ceiling suspended not exceeding 1m. below timber/steel purlins at ± 1,4m centres (trusses at ± 1,0m centres)","m²",1]
[]
[null,{"v":8.3,"d":"8.30"},"Ceiling suspended exceeding 1m and not exceeding 2m below timber/steel purlins at ± 1,4m centres (trusses at ± 1,0m centres)","m²",1]
[]
[null,8.31,"Horizontal bulkheads suspended not exceeding 1m below concrete soffits","m²",1]
[]
[null,8.32,"Horizontal bulkheads suspended exceeding 1m and not exceeding 2m below concrete soffits","m²",1]
[]
[null,8.33,"Opening for sprinkler head","no",1]
[]
[null,8.34,"Extra over ceiling for opening for 75mm diameter downlighter","no",1]
[]
[null,8.35,"Extra over ceiling for opening for 180mm diameter downlighter","no",1]
[]
[null,8.36,"Extra over ceiling for opening for 600 x 1200mm light fitting","no",1]
[]
[null,8.37,"Extra over ceiling for 600 x 600mm opening for ventilation/air conditioning diffuser","no",1]
[]
[null,null,"PARTITIONS ETC."]
[]
[null,null,"Rhino-Drywall partition systems"]
[]
[null,null,"BPB Gypsum GypRoc Standard - 40 db (½ hour fire rating) Ultrasteel Stud Drywall consisting of stud and track system with 51mm Drywall Ultrasteel studs positioned at 600mm centres fixed into 51mm wide top and bottom track clad on "]
[null,null,"both sides with 12,5mm thick taper edged Rhinoboard fixed with 25mm Drywall screws at 220mm centres and all corners fixed with Drywall Corner beads and all joints to be taped and jointed as per manufacture's specifications."]
[]
[null,8.38,"Partitioning 2100mm high with bottom track plugged and free top track ","m",1]
[]
[null,8.39,"Partitioning  3000mm high with bottom track plugged and top track fixed to suspended ceiling tees","m",1]
[null,null," "]
[null,{"v":8.4,"d":"8.40"},"Partitioning  3600mm high with bottom track plugged and top track fixed to suspended ceiling tees","m",1]
[]
[null,8.41,"Partition 3000mm high with top and bottom tracks plugged and glazing in lieu of boarding 1,1m high at 1,0m above floor level framed all round with \"Drywall\" aluminium glazing sections and divided into panels with aluminium mullions at 1,2m centres with each panel glazed with 4mm clear float glass including neoprene glazing gaskets","m",1]
[]
[null,8.42,"Extra over partition 2100mm. high for vertical abutment","no",1]
[]
[null,8.43,"Extra over partition 2100mm. high for corner","no",1]
[]
[null,8.44,"Extra over partition 2100mm. high for T - intersection","no",1]
[]
[null,8.45,"Extra over partition 2100mm. high for fair end","no",1]
[]
[null,8.46,"Extra over partition 3000mm. high for vertical abutment","no",1]
[]
[null,8.47,"Extra over partition 3000mm. high for corner","no",1]
[]
[null,8.48,"Extra over partition 3000mm. high for T - intersection","no",1]
[]
[null,8.49,"Extra over partition 3000mm. high for fair end","no",1]
[]
[null,{"v":8.5,"d":"8.50"},"Extra over partition 3600mm. high for vertical abutment","no",1]
[]
[null,8.51,"Extra over partition 3600mm. high for corner","no",1]
[]
[null,8.52,"Extra over partition 3600mm. high for T - intersection","no",1]
[]
[null,8.53,"Extra over partition 3600mm. high for fair end","no",1]
[]
[null,null,"Doors"]
[]
[null,8.54,"Extra over partition for 40mm semi-solid flush door 762 x 2032mm high with commercial veneer on both sides and hardwood edge strips to vertical edges hung to and including standard natural anodised aluminium door frame with one pair of 100mm nylon"]
[null,null,"washered aluminium hinges and additional studding, trimming, etc ","no",1]
[]
[null,8.55,"Extra over partition for 40mm semi-solid flush door 813 x 2032mm high with commercial veneer on both sides and hardwood edge strips to vertical edges hung to and including standard natural anodised aluminium door frame with one pair of 100mm nylon"]
[null,null,"washered aluminium hinges and additional studding, trimming, etc ","no",1]
[]
[null,8.56,"Extra over partition for 40mm semi-solid flush double door 1510 x 2032mm high with commercial veneer on both sides and hardwood edge strips to vertical edges hung to and including standard natural anodised aluminium door frame with three pair of 100mm nylon"]
[null,null,"washered aluminium hinges and additional studding, trimming, etc ","no",1]
[]
[null,8.57,"Extra over partition for 40mm semi-solid flush door 813 x 2032mm high with commercial veneer on both sides and hardwood edge strips to vertical edges hung to and including standard natural anodised aluminium door frame with one pair of 100mm nylon"]
[null,null,"washered aluminium hinges and additional studding, trimming, etc ","no",1]
[]
[null,8.58,"Extra over partition for 40mm semi-solid flush double door 1510 x 2032mm high with commercial veneer on both sides and hardwood edge strips to vertical edges hung to and including standard natural anodised aluminium door frame with three pair of 100mm nylon"]
[null,null,"washered aluminium hinges and additional studding, trimming, etc ","no",1]
[]
[null,null,"Insulation"]
[]
[null,8.59,"75mm Thick \"Isotherm\" thermal insulation blanket in cavity of partitioning","m²",1]
[]
[null,null,"TOILET PARTITIONS"]
[]
[null,null,"Note :"]
[]
[null,null,"All toilet partitions are to be manufactured in a one-piece construction.  No horizontal or vertical joints will be permitted"]
[]
[null,null,"\"Vitraflex\" toilet partitioning with 20mm thick vitreous enamelled steel sheet faced particle board bonded panels and natural anodised aluminium edging and top rails including fixing components and standard ironmongery comprising of indicator bolts, coat "]
[]
[null,{"v":8.6,"d":"8.60"},"Partition 800 X 2000mm high","no",1]
[]
[null,8.61,"Partition 900 X 2000mm high","no",1]
[]
[null,8.62,"Partition 1200 X 2000mm high","no",1]
[]
[null,8.63,"Partition 1800 X 2000mm high","no",1]
[]
[null,8.64,"Full stile 200 X 2000mm high","no",1]
[]
[null,8.65,"Wall stile 105mm wide x 2000mm high","no",1]
[]
[null,8.66,"End stile 140mm wide x 2000mm high","no",1]
[]
[null,8.67,"Door 794 x 1800mm high","no",1]
["SUB-TOTAL ",{"$nulls":4},{"$f":"SUM(F1955:F2126)","v":0}]
[]
[]
[null,null,"SCHEDULE No. 9"]
[]
[null,null,"FLOOR COVERINGS, WALL LININGS, ETC."]
[]
[null,null,"Laminated wooden floor"]
[]
[null,null,"8mm Brown Rhodesian teak mosaic wood floor boards or equally approved"]
[]
[null,9.1,"On floors","m²",1]
[]
[null,null,"8mm Brown Rhodesian teak mosaic wood  blocks or equally approved"]
[]
[null,9.2,"On floors","m²",1]
[]
[null,9.3,"On treads and risers of stairs","m²",1]
[]
[null,null,"Sundries"]
[]
[null,9.4,"Sanding and sealing to floors","m²",1]
[]
[null,null,"220 x 73 x 19mm Brown Rhodesian teak mosaic wood  blocks in herringbone pattern or equally approved"]
[]
[null,9.5,"On floors","m²",1]
[]
[null,9.6,"On treads and risers of stairs","m²",1]
[]
[null,null,"300 x 300 x 2,5mm \"Floorflex\" semi-flexible vinyl tiles"]
[]
[null,9.7,"On floors","m²",1]
[]
[null,9.8,"On treads and risers of stairs","m²",1]
[]
[null,9.9,"Margins and borders not exceeding 500mm wide","m",1]
[]
[null,{"v":9.1,"d":"9.10"},"Turn-ups over coves and up against walls not exceeding 500mm girth","m",1]
[]
[null,9.11,"Inserts 150mm wide of differing colour","m",1]
[]
[null,9.12,"Circular cutting","m",1]
[]
[null,null,"300 x 300 x 2,5mm \"Superflex\" fully-flexible vinyl tiles"]
[]
[null,9.13,"On floors","m²",1]
[]
[null,9.14,"On treads and risers of stairs","m²",1]
[]
[null,9.15,"Margins and borders not exceeding 500mm wide","m",1]
[]
[null,9.16,"Turn-ups over coves and up against walls not exceeding 500mm girth","m",1]
[]
[null,9.17,"Inserts 150mm wide of differing colour","m",1]
[]
[null,9.18,"Circular cutting","m",1]
[]
[null,null,"2,5mm. \"Superflex\" fully flexible vinyl sheeting with welded joints complete"]
[]
[null,9.19,"On floors","m²",1]
[]
[null,{"v":9.2,"d":"9.20"},"On treads and risers of stairs","m²",1]
[]
[null,9.21,"Margins and borders not exceeding 500mm wide","m",1]
[]
[null,9.22,"Turn-ups over coves and up against walls not exceeding 500mm girth","m",1]
[]
[null,9.23,"Inserts 150mm wide of differing colour","m",1]
[]
[null,9.24,"Circular cutting","m",1]
[]
[null,null,"3,5mm. \"Industrial Floor\" non - slip flexible vinyl sheeting with welded joints"]
[]
[null,9.25,"On floors","m²",1]
[]
[null,null,"Sundries"]
[]
[null,9.26,"Self-levelling screed","m²",1]
[]
[null,9.27,"Aluminium metal door strips","m",1]
[]
[null,9.28,"Steam cleaning to carpets","m²",1]
[]
[null,null,"WALL LININGS"]
[]
[null,null,"1,25mm. \"Superflex\" fully flexible vinyl sheeting with welded joints"]
[]
[null,9.29,"On walls","m²",1]
[]
[null,null,"\"Floorworx Extruda\""]
[]
[null,{"v":9.3,"d":"9.30"},"25mm MES25 edge strip","m",1]
[]
[null,9.31,"25 x 2.5mm MPT25 edge trim","m",1]
[]
[null,9.32,"70 x 10mm MCB70 vinyl skirting","m",1]
[]
[null,9.33,"100 x 14mm MCB100 vinyl skirting","m",1]
[]
[null,9.34,"100 x 50mm MFE5 vinyl hospital skirting","m",1]
[]
[null,9.35,"35 x 14mm MCF54 vinyl coved fillet","m",1]
[]
[null,9.36,"75 x 10mm MSN100 vinyl stairnosing","m",1]
[]
[null,null,"\"Floorworx Intrad Wall and Corner Protection\" All to be installed strictly in accordance to manufacturer’s instructions"]
[]
[null,9.37,"Wall protector of 200 x 29mm TR200 high impact resistant uPVC extruded lip channel profile complete with 25mm wide uPVC brackets TRP200 at 400mm max. centres plugged to wall and uPVC joining blocks TRJ200 as required","m",1]
[]
[null,9.38,"Extra over lip channel for uPVC external corner TRE200","no",1]
[]
[null,9.39,"Extra over lip channel for uPVC stopend TRS200","no",1]
[]
[null,{"v":9.4,"d":"9.40"},"Corner protector of 70 x 70 x 1.2mm thick CP1200 high impact resistant uPVC extruded angular profile","m",1]
[]
[null,null,"POLISH, SEALERS, ETC."]
[]
[null,null,"Polish, Sealers, etc"]
[]
[null,9.41,"2 coats wax polish on vinyl flooring","m²",1]
[]
[null,9.42,"Strip and seal on vinyl flooring","m²",1]
[]
[null,null,"EXPANSION JOINTS"]
[]
[null,null,"\"Floorworx Intrad Wall and Corner Protection\" All to be installed strictly in accordance to manufacturer’s instructions"]
[]
[null,9.43,"Floor expansion joint with aluminium extruded T-section profile profile complete with rubber plugged to wall, floors,etc TRJ200 as required","m",1]
["SUB-TOTAL ",{"$nulls":4},{"$f":"SUM(F2138:F2254)","v":0}]
[]
[null,null,"SCHEDULE No. 10"]
[]
[null,null,"IRONMONGERY"]
[]
[null,null,"SUPPLEMENTARY PREAMBLES"]
[]
[null,null,"Finishers to ironmongery"]
[]
[null,null,"Where applicable finishes to ironmongery are indicated by suffixes in accordance with the following list :"]
[]
[null,null,"BS   Satin bronze lacquered"]
[null,null,"CH   Chromium plated"]
[null,null,"SC   Satin chromium plated"]
[null,null,"SE   Silver enamelled"]
[null,null,"GE   Grey enamelled"]
[null,null,"AS   Anodised silver"]
[null,null,"AB   Anodised bronze"]
[null,null,"AG   Anodised gold"]
[null,null,"ABL Anodised black"]
[null,null,"PB   Polished brass"]
[null,null,"PL   Polished and lacquered"]
[null,null,"PT   Epoxy coated"]
[null,null,"SD   Sanded"]
[]
[null,null,"HINGES, BOLTS, ETC."]
[]
[null,null,"\"Union\" or equal and approved fixed to timber"]
[]
[null,10.1,"100mm steel hinge","no",1]
[]
[null,10.2,"100mm brass barrel bolt with keep fixed to metal","no",1]
[]
[null,10.3,"WC chrome plated indicator bolt","no",1]
[]
[null,10.4,"Emergency exit panic bolt for single door 2032mm high","no",1]
[]
[null,10.5,"Emergency exit panic bolt for 1220mm wide door, 2032mm high","no",1]
[]
[null,10.6,"Emergency exit panic bolt for double door 2032mm high","no",1]
[]
[null,null,"CATCHES, CABIN HOOKS, ETC"]
[]
[null,10.7,"Brass window catch to side hung sash  ","no",1]
[]
[null,10.8,"Brass window stay to side hung sash  ","no",1]
[]
[null,10.9,"Brass window  combination stay and fastener size 300mm ","no",1]
[null,{"v":10.1,"d":"10.10"},"Brass window  fanlight stay and fastener size 300mm ","no",1]
[]
[null,10.11,"Brass window sliding stays outwards size 300mm ","no",1]
[]
[null,10.12,"Brass window telescopic stays size 300mm ","no",1]
[]
[null,10.13,"Brass window roller stay size 300mm ","no",1]
[]
[null,10.14,"Brass window casement stay  size 300mm ","no",1]
[]
[null,10.15,"Brass window sash hook with wooden stick ","no",1]
[]
[null,10.16,"Chromium-plated window pe stay","no",1]
[]
[null,10.17,"Chromium plated window sliding stay","no",1]
[]
[null,10.18,"Chromium-plated window spring catch","no",1]
[]
[null,10.19,"Chromium-plated window peg for stay","no",1]
[]
[null,{"v":10.2,"d":"10.20"},"Brass window spring catch ","no",1]
[]
[null,10.21,"Cupboard fastener ","no",1]
[]
[null,10.22,"100mm Brass cabin hook and eye","no",1]
[]
[null,10.23,"Brass window handle  ","no",1]
[]
[null,null,"LOCKS"]
[]
[null,null,"\"Union\" or equal and approved fixed to timber"]
[]
[null,10.24,"Two lever lockset (2 Keys) with striking plate fixed to metal.","no",1]
[]
[null,10.25,"Three lever lockset (2 Keys) with striking plate fixed to metal.","no",1]
[]
[null,10.26,"Four lever lockset (2 Keys) with striking plate fixed to metal.","no",1]
[]
[null,10.27,"Double cylinder lockset (2 Keys) with striking plate fixed to metal.","no",1]
[]
[null,10.28,"Oval knob cylinder lockset (2 Keys) with striking plate fixed to metal.","no",1]
[]
[null,10.29,"Oval half knob cylinder lockset (2 Keys) with striking plate fixed to metal.","no",1]
[]
[null,{"v":10.3,"d":"10.30"},"Cylinder deadlockset (2 Keys) with striking plate fixed to metal.","no",1]
[]
[null,10.31,"Emergency exit lockset (2 Keys) with striking plate fixed to metal.","no",1]
[]
[null,10.32,"Master key","no",1]
[]
[null,null,"HANDLES, ETC."]
[]
[null,null,"\"IW\" or equal and approved fixed to timber"]
[]
[null,10.33,"Dove pull handle for dead lock on 150 x 150mm backplate","no",1]
[]
[null,10.34,"Set of two \"IW 1320\" 300mm,25mm diameter Dove pull handles fixed back to back","no",1]
[]
[null,10.35,"Set of two \"IW 1320\" 300mm,32mm diameter Dove pull handles fixed back to back","no",1]
[]
[null,10.36,"Set of two lever handles Ref \"IW 1212/62/06\" fixed back to back","no",1]
[]
[null,10.37,"Set of two lever handles with 3mm aluminium backplates Ref \"IW 1212/62/06\" fixed back to back","no",1]
[]
[null,10.38,"Set of two lever handles with 3mm aluminium backplates Ref \"IW 1212/62/05\" fixed back to back","no",1]
[]
[null,10.39,"Set of two lever handles with 3mm aluminium backplates Ref \"IW 1212/62/13\" fixed back to back","no",1]
[]
[null,{"v":10.4,"d":"10.40"},"Set of two lever handles with 3mm aluminium backplates Ref \"IW 1212/62/24\" fixed back to back","no",1]
[]
[null,10.41,"Set of two lever handles with 3mm aluminium backplates Ref \"IW 1212/63/06\" fixed back to back","no",1]
[]
[null,10.42,"Set of two lever handles with 3mm aluminium backplates Ref \"IW 1212/63/05\" fixed back to back","no",1]
[]
[null,10.43,"Set of two lever handles with 3mm aluminium backplates Ref \"IW 1212/63/13\" fixed back to back","no",1]
[]
[null,10.44,"Set of two lever handles with 3mm aluminium backplates Ref \"IW 1212/63/24\" fixed back to back","no",1]
[]
[null,10.45,"Set of two lever handles with 3mm aluminium backplates Ref \"IW 1212/66/06\" fixed back to back","no",1]
[]
[null,10.46,"Set of two lever handles with 3mm aluminium backplates Ref \"IW 1212/66/05\" fixed back to back","no",1]
[]
[null,10.47,"Set of two lever handles with 3mm aluminium backplates Ref \"IW 1212/66/13\" fixed back to back","no",1]
[]
[null,10.48,"Set of two lever handles with 3mm aluminium backplates Ref \"IW 1212/66/24\" fixed back to back","no",1]
[]
[null,10.49,"Set of two lever handles with 3mm aluminium backplates Ref \"IW 1212/67/06\" fixed back to back","no",1]
[]
[null,{"v":10.5,"d":"10.50"},"Set of two lever handles with 3mm aluminium backplates Ref \"IW 1212/67/05\" fixed back to back","no",1]
[]
[null,10.51,"Set of two lever handles with 3mm aluminium backplates Ref \"IW 1212/67/13\" fixed back to back","no",1]
[]
[null,10.52,"Set of two lever handles with 3mm aluminium backplates Ref \"IW 1212/67/24\" fixed back to back","no",1]
[]
[null,10.53,"Euro profile IW2051 double cylinder lockset comprising IW1212/63/05 furniture and IW 2006 upright lockcase with striking plate","no",1]
[]
[null,null,"HINGES, BOLTS, ETC"]
[]
[null,10.54,"WC indicator lockset comprising Code IW2029 and Code IW2030 upright lock with striking plate","no",1]
[]
[null,null,"BATHROOM FITTINGS"]
[]
[null,null,"\"Bristell\" or equally approved"]
[]
[null,10.55,"32mm \"Bristell Type BGR1\" back grab rail 600mm long plugged","no",1]
[]
[null,10.56,"32mm \"Bristell Type BGR2A\" side grab rail 600mm long plugged","no",1]
[]
[null,null,"SUNDRIES"]
[]
[null,null,"\"IW\" or equal and approved fixed to timber"]
[]
[null,10.57,"Code No \"IW5002SC\" door stop plugged","no",1]
[]
[null,10.58,"Code No \"IW5032AL\" hat and coat hook with rubber tip","no",1]
[]
[null,10.59,"Code No \"IW5042AL\" hat and coat hook ","no",1]
[]
[null,null,"PUSH PLATES AND KICKING PLATES"]
[]
[null,null,"\"Union\" or Simial Approved"]
[]
[null,{"v":10.6,"d":"10.60"},"200 x 800 x 2mm thick AL5089-200W aluminium push plate","no",1]
[]
[null,10.61,"200 x 800 x 1,6mm thick SS5089-200W stainless steel push plate","no",1]
[]
[null,10.62,"400 x 800 x 2mm thick AL5089-400W aluminium kick plate","no",1]
[]
[null,10.63,"400 x 800 x 1,6mm thick SS5089-400W stainless steel kick plate","no",1]
[]
[null,null,"DOOR CLOSERS"]
[]
[null,null,"\"Union\" or Simialr approved"]
[]
[null,10.64,"Heavy duty regular arm door closer with bracket fixed to metal.","no",1]
[]
[null,10.65,"Heavy duty parallel arm door closer with bracket fixed to metal.","no",1]
[]
[null,10.66,"Heavy duty hold open arm door closer with bracket fixed to metal.","no",1]
[]
[null,10.67,"Regular arm door closer with bracket fixed to metal.","no",1]
[]
[null,10.68,"Parallel arm door closer with bracket fixed to metal.","no",1]
[]
[null,10.69,"Heavy duty double action floor spring Ref. No 762 with top centre.","no",1]
[]
[null,{"v":10.7,"d":"10.70"},"Heavy duty single action floor spring.","no",1]
[]
[null,10.71,"Regular duty double action floor spring  with top centre  and bottom strap.","no",1]
[]
[null,10.72,"Phantom sliding gear set for single door with track 1.8m long fixed to wall including brackets, hangers, rollers, guides, stops, etc.","no",1]
[]
[null,10.73,"Husky 50 sliding gear set for double leaf door with track 3.2m long fied to wall including brackets, hangers, rollers, guides, stops, etc","no",1]
[]
[null,"10.74","Phantom sliding gear set for single door with track 1,8m long fixed to wall including brackets, hangers, rollers, guides, stops, etc","no",1]
[]
[null,"10.75","Husky 50 sliding gear set for double leaf door with track 3,2m long fixed to wall including brackets, hangers, rollers, guides, stops, etc","no",1]
[]
[null,null,"PELMETS AND CERTAIN TRACKS"]
[]
[null,null,"\"Kirsch\" or Similar approved"]
[]
[null,10.76,"Cheney pressed steel pelmet 120mm high with 150mm projection including  double track with 12 rollers per meter, brackets, returned ends, etc. plugged","m",1]
[]
[null,10.77,"Regular duty C-profile double curtain  steel track for face fixing with 100mm projection including 14 rollers per meter, brackets, stopped ends, etc. plugged","m",1]
[]
[null,10.78,"Regular duty C-profile single curtain  steel track for face fixing with 100mm projection including 14 rollers per meter, brackets, stopped ends, etc. plugged","m",1]
[]
[null,10.79,"Standard type curtain rails","m",1]
[]
[null,{"v":10.8,"d":"10.80"},"Heavy duty extruded aluminium double curtain  steel track for face fixing with 125mm projection including 14 rollers per meter, brackets, stopped ends, etc. plugged","m",1]
[]
[null,10.81,"Forwin hospital cubicle track 1.0m below soffit including 12 gliders per meter, hangers, brackets, stopped ends, etc. plugged","m",1]
[]
[null,10.82,"Extra for bend","no",1]
[]
[null,"10.82.1","Cheney pressed steel pelmet 120mm high with 150 projection including double curtain track with 12 rollers per meter, brackets, returned ends, etc plugged","m",1]
[]
[null,"10.82.2","Regular duty C-profile double curtain steel track for face fixing with 100mm projection including 14 rollers per meter, brackets, stopped ends, etc plugged","m",1]
[]
[null,"10.82.3","Heavy duty extruded aluminium double curtain track for face fixing with 125mm projection including 14 rollers per meter, brackets, stopped ends, etc plugged","m",1]
[]
[null,"10.82.4","Forwin hospital cubicle track 1,0m below soffit including 12 gliders per meter, hangers, brackets, stopped ends, etc plugged","m",1]
[]
[null,"10.82.5","Extra over hospital cubicle track for end plugged","no",1]
[]
[null,"10.82.6","Extra over hospital cubicle track for bend","no",1]
[]
[null,"10.82.7","Extra over hospital cubicle track for joint at bend","no",1]
[]
[]
[null,null,"BATHROOM FITTINGS"]
[]
[null,null,"\"Halcast\" or Similar approved"]
[]
[null,10.83,"20mm Diameter chromium plated curtain or hanging rail 900mm long including end flange brackets.","no",1]
[]
[null,10.84,"20mm Diameter chromium plated towel rail 600mm long including end brackets.","no",1]
[]
[null,10.85,"20mm Diameter chromium plated towel rail 900mm long including end brackets Ref 261CH plugged","no",1]
[]
[null,10.86,"Towel ring chromium plated Ref 165CH plugged","no",1]
[]
[null,"10.87","20mm. diameter chromium plated curtain or hanging rail 900mm. Long including end flange brackets Ref. 374CH plugged","no",1]
[]
[null,"10.88","20mm. diameter chromium plated towel rail 600mm. Long including end brackets Ref. 261CH plugged","no",1]
[]
[null,"10.89","20mm. diameter chromium plated towel rail 900mm. Long including end brackets Ref. 261CH plugged","no",1]
[]
[null,"10.90","Towel ring chromium plated Ref 165CH plugged","no",1]
[]
[null,"10.91","Toilet roll holder chromium plated thief proof Ref. 366SCH plugged","no",1]
[]
[null,"10.92","Basket type soap dish chromium plated Ref. 377CH plugged","no",1]
[]
[null,null,"\"Kwakuhle Hygiene\" or equal and approved"]
[]
[null,10.93,"Lockable and vandal resistant white powder coated metal roll holder Ref TR3W","no",1]
[]
[null,10.94,"ABS construction lockable Roll Control Paper Dispenser with viewing  window in colour white","no",1]
[]
[null,10.95,"ABS construction lockable Reflex Paper Dispenser with viewing  window in colour white","no",1]
[]
[null,10.96,"ABS construction Wastecare 40litre Multiliner Disposer wall mounted waste bin in colour white","no",1]
[]
[null,10.97,"ABS construction 950ml Soap Dispenser in colour white","no",1]
[]
[null,10.98,"Stainless steel 950ml vandal and theft resistant Soap Dispenser","no",1]
[]
[null,"10.99","Lockable and vandal resistant white powder coated metal toilet roll holder Ref. TR3W plugged","no",1]
[]
[null,"10.100","Lockable and vandal resistant  white powder coated metal toilet roll holder Ref. TR2W plugged","no",1]
[]
[null,"10.101","Lockable and vandal resistant  chromium plated toilet roll holder Ref. TR3CH plugged","no",1]
[]
[null,"10.102","Lockable and vandal resistant  chromium plated toilet roll holder Ref. TR2CH plugged","no",1]
[]
[null,"10.103","ABS construction lockable Roll Control Paper Dispenser with viewing window in colour white","no",1]
[]
[null,"10.104","ABS construction lockable Reflex Paper Dispenser with viewing window in colour white","no",1]
[]
[null,"10.105","ABS construction Wastecare 40 litre Multiliner Disposer wall mounted waste bin in colour White","no",1]
[]
[null,"10.106","ABS construction 950 ml Soap Dispenser in colour white","no",1]
[]
[null,"10.107","Stainless steel 950 ml vandal and theft resistant Soap Dispenser","no",1]
[]
[null,null,"SUNDRIES"]
[]
[null,null,"\"Union\" OR Similar approved"]
[]
[null,"10.108","Rubber door stop plugged Ref. No","no",1]
[]
[null,"10.109","Door stop ","no",1]
[]
[null,"10.110","Hat and coat hook ","no",1]
[]
[null,"10.111","Guardsman Baseline Locker 300 x 450 x 1800mm high Code GB004","no",1]
[]
[null,"10.112","Extra for bolting lockers together","no",1]
[]
[null,null,"Turnstile and Locking Exit Gate"]
[]
[null,"10.113","Stainless steel one-way entrance turnstile","no",1]
[]
[null,"10.114","Single locking exit gate","no",1]
[]
[null,null,"Infra-red beam system"]
[]
[null,"10.115","Infra-red beam system","no",1]
[]
[null,null,"TOILET BINS"]
[]
[null,null,"Stainless steel"]
[]
[null,null,"\"FRANKE\" or equally approved"]
[]
[null,"10.116","Half moon wall mounted bin size 330 x 450 x 180mm","no",1]
["SUB-TOTAL ",{"$nulls":4},{"$f":"SUM(F2285:F2581)","v":0}]
[]
[]
[null,null,"SCHEDULE No. 11"]
[]
[null,null,"METALWORK"]
[]
[null,null,"SUPPLEMENTARY PREAMBLES"]
[]
[null,null,"Descriptions"]
[]
[null,null,"Descriptions of bolts shall be deemed to include nuts and washers"]
[]
[null,null,"Descriptions of expansion anchors and bolts an chemical anchors and bolts shall be deemed to include nuts, washers and mortises in brickwork or concrete"]
[]
[null,null,"Metalwork described as \"holed for bolts(s)\" shall be deemed to exclude the bolts unless otherwise described"]
[]
[null,null,"STEEL HANDRAILS, BALUSTRADES, ETC"]
[]
[null,null,"Welded handrail to mild steel"]
[]
[null,11.1,"80 x 40 x 2,0mm hollow section continuous rails with flat closed ends welded to bracket, formed of 25mm diameter bar 100mm girth once bent to 50mm internal radius, at approximately 1200mm centres each with 80mm diameter by 6mm thick plate twice holed for bolts ","m",1]
[]
[null,11.2,"38 x 38 x 2,0mm hollow section continuous rails with flat closed ends welded to bracket, formed of 25mm diameter bar 100mm girth once bent to 50mm internal radius, at approximately 1200mm centres each with 80mm diameter by 6mm thick plate twice holed for bolts ","m",1]
[]
[null,11.3,"76mm diameter 2,0mm hollow section continuous rails with flat closed ends welded to bracket, formed of 25mm diameter bar 100mm girth once bent to 50mm internal radius, at approximately 1200mm centres each with 80mm diameter by 6mm thick plate twice holed for bolts ","m",1]
[]
[null,11.4,"38mm diameter 2,0mm hollow section continuous rails with flat closed ends welded to bracket, formed of 25mm diameter bar 100mm girth once bent to 50mm internal radius, at approximately 1200mm centres each with 80mm diameter by 6mm thick plate twice holed for bolts ","m",1]
[]
[null,11.5,"6mm expansion bolt","no",1]
[]
[null,11.6,"8mm expansion bolt","no",1]
[]
[null,11.7,"10mm expansion bolt","no",1]
[]
[]
[null,null,"Welded balustrading to mild steel"]
[]
[null,11.8,"Raking balustrading to staircase or ramp of 80 x 40 x 2mm hollow section continuous top rail, 40 x 10mm flat section continuous bottom rail, 12mm square bar section intermediate balusters at 125mm centres between to and bottom rails and 38 x 38 x 2mm hollow section post at approximately 1200mm centres each with 120 x 50 x 8mm flat section base plate twice holed for bolts","m",1]
[]
[null,11.9,"Raking balustrading to staircase or ramp of 50 x 10mm flat section continuous top rail, 40 x 10mm flat section continuous bottom rail, 12mm square bar section intermediate balusters at 125mm centres between to and bottom rails and 38 x 38 x 2mm hollow section post at approximately 1200mm centres each with 120 x 50 x 8mm flat section base plate twice holed for bolts","m",1]
[]
[null,{"v":11.1,"d":"11.10"},"Balustrading of 50 x 10mm flat section continuous top rail, 40 x 10mm flat section continuous bottom rail, 12mm square bar section intermediate balusters at 125mm centres between to and bottom rails and 38 x 38 x 2mm hollow section post at approximately 1200mm centres each with 120 x 50 x 8mm flat section base plate twice holed for bolts","m",1]
[]
[null,null,"Welded balustrading to stainless steel"]
[]
[null,"11.11","Grade 304 stainless steel polished horizontal balustrading to walkways or landings comprising 90° top mounted stanchions at 1,5m centres with top and knee rails of straight tube, with 90° closure, all necessary bends and slip joints, the stanchions to be bolted in position with 45mm long M16 expanding bolts with nuts and washers and the sections of tube to be joined with slip joints and welded inside the stanchion balls.","m",1]
[]
[null,"11.12","Grade 304 stainless steel polished raking balustrading to staircases comprising 30° step top mounted stanchions at 1,5m centres with top and knee rails of straight tube, with 30° closure, all necessary bends and slip joints, the stanchions to be bolted in position with 45mm long M16 expanding bolts with nuts and washers and the sections of tube to be joined with slip joints and welded inside the stanchion balls.","m",1]
[]
[null,null,"SUNDRY STEELWORK"]
[]
[null,null,"Bolts"]
[]
[null,11.13,"Bolts (Provisional)","kg",1]
[]
[null,null,"Corner protectors"]
[]
[null,11.14,"60 x 60 x 6mm angle section corner protectors in varying lengths twice screwed to brickwork of concrete a 500mm centres","m",1]
[]
[null,11.15,"40 x 40 x 2mm angle section corner protectors in varying lengths twice screwed to brickwork of concrete a 500mm centres","m",1]
[]
[null,null,"Welded guard,bump rails, etc"]
[]
[null,11.16,"80 x 40 x 2,0mm hollow section continuous rails with flat closed ends welded to bracket, formed of 25mm diameter bar 100mm girth once bent to 50mm internal radius, at approximately 1200mm centres each with 80mm diameter by 6mm thick plate twice holed for bolts ","m",1]
[]
[null,"11.17","30 x 30 x 3mm Angle section bracing","m",1]
[]
[null,null,"WELDED SCREENS, GATES, ETC"]
[]
[null,null,"Taking out and replacing screens and gates to doors"]
[]
[null,11.18,"Single gate 810 x 2066mm high of 50 x 50 x2,5mm hollow section frame and two 50 x 50 x 2,5mm hollow section horizontal middle rails filled in with 20mm diameter solid vertical round bars at 89mm centres framed through middle rails and into framing and fitted with three suitable hinges welded to post and a \"Union\" LX 3261 security gate lock box between middle rails","no",1]
[]
[null,11.19,"Single gate 810 x 2066mm high of 32 x 32 x2,5mm hollow section frame and two 50 x 50 x 2,5mm hollow section horizontal middle rails filled in with 20mm diameter solid vertical round bars at 89mm centres framed through middle rails and into framing and fitted with three suitable hinges welded to post and a \"Union\" LX 3261 security gate lock box between middle rails","no",1]
[]
[null,{"v":11.2,"d":"11.20"},"Double gate with two single leaves 1620 x 2066mm high of 50 x 50 x2,5mm hollow section frame and two 50 x 50 x 2,5mm hollow section horizontal middle rails filled in with 20mm diameter solid vertical round bars at 89mm centres framed through middle rails and into framing and fitted with six suitable hinges welded to posts and a \"Union\" LX 3261 security gate lock box between middle rails including conversion set.","no",1]
[]
[null,11.21,"Steel wire expanded mesh burglar proofing not exceeding 1,0m² bolted to brickwork ","no",1]
[]
[null,11.22,"Steel wire expanded mesh burglar proofing exceeding 1,0m² and not exceeding 2,0m² bolted to brickwork ","no",1]
[]
[null,11.23,"Steel wire mesh burglar proofing exceeding 2,0m² and not exceeding 3,0m² bolted to brickwork ","no",1]
[]
[null,11.24,"Steel round, square, etc burglar proofing not exceeding 1,0m² bolted to brickwork ","no",1]
[]
[null,11.25,"Steel round, square, etc burglar proofing exceeding 1,0m² and not exceeding 2,0m² bolted to brickwork ","no",1]
[]
[null,11.26,"Steel round, square, etc burglar proofing exceeding 2,0m² and not exceeding 3,0m² bolted to brickwork ","no",1]
[]
[null,11.27,"Steel round, square, etc burglar proofing not exceeding 1,0m² welded to brickwork ","no",1]
[]
[null,11.28,"Steel round, square, etc burglar proofing exceeding 1,0m² and not exceeding 2,0m² welded to brickwork ","no",1]
[]
[null,11.29,"Steel round, square, etc burglar proofing exceeding 2,0m² and not exceeding 3,0m² welded to brickwork ","no",1]
[]
[null,{"v":11.3,"d":"11.30"},"Steel round, square, etc burglar proofing, perimeter fencing, 1800mm high  welded to steel  ","m",1]
[]
[null,11.31,"Steel round, square, etc burglar proofing, perimeter fencing, 2100mm high  welded to steel  ","m",1]
[]
[null,null,"RETRACTABLE SECURITY GATES AND SCREENS"]
[]
[null,null,"\"TRELLIDOR\" or equally approved"]
[]
[null,11.32,"Security \"slamlock\" gate size 900 x 2032mm high","no",1]
[]
[null,11.33,"Security \"slamlock\" gate size 1150 x 2032mm high","no",1]
[]
[null,11.34,"Security \"slamlock\" gate size 1300 x 2032mm high","no",1]
[]
[null,"11.35","Screen fencing 6,0m high formed of eleven 3.15mm galvanised straining wires passed through posts and tied to end posts covered with 50 x 2,5mm fully galvanised diamond mesh fixed with 1,6mm galvanised binding wire to straining wires, posts, rails, etc (framework elsewhere measured)","m",1]
[]
[null,"11.36","76,2mm diameter 2,5mm thick pipe, rail, post, etc","m",1]
[]
[null,"11.37","Extra over for closed end","no",1]
[]
[null,"11.38","Extra over for mitred and welded L-intersection","no",1]
[]
[null,"11.39","48,5mm diameter 2,5mm thick pipe, rail, post, etc","m",1]
[]
[null,"11.40","Extra over for closed end","no",1]
[]
[null,"11.41","Extra over for mitred and welded L-intersection","no",1]
[]
[null,"11.42","Extra over post for closed end","no",1]
[]
[null,"11.43","76,2mm diameter 2,5mm thick post 7,2m long with closed top end, 230 x 230 x 5mm base plate welded on and cast in 500 x 500 x 1000mm 20MPa/20mm concrete including excavations","no",1]
[]
[null,null,"PRESSED STEEL DOOR FRAMES"]
[]
[null,null,"1,2mm. Rebated frame suitable for half brick wall"]
[]
[null,11.44,"Frame for door size 762 x 2032mm. high","no",1]
[]
[null,11.45,"Frame for door size 813 x 2032mm. high","no",1]
[]
[null,11.46,"Frame for door size 900 x 2032mm. high","no",1]
[]
[null,11.47,"Frame for double door size 1359 x 2032mm. high","no",1]
[]
[null,11.48,"Frame for double door size 1511 x 2032mm. high","no",1]
[]
[null,11.49,"Frame for double door size 1613 x 2032mm. high","no",1]
[]
[null,null,"1,2mm. Rebated frame suitable one brick wall"]
[]
[null,{"v":11.5,"d":"11.50"},"Frame for door size 762 x 2032mm. high","no",1]
[]
[null,11.51,"Frame for door size 813 x 2032mm. high","no",1]
[]
[null,11.52,"Frame for door size 900 x 2032mm. high","no",1]
[]
[null,11.53,"Frame for double door size 1359 x 2032mm. high","no",1]
[]
[null,11.54,"Frame for double door size 1511 x 2032mm. high","no",1]
[]
[null,11.55,"Frame for double door size 1613 x 2032mm. high","no",1]
[]
[null,null,"PRESSED STEEL CUPBOARD DOOR FRAMES"]
[]
[null,null,"Standard cupboard door frame"]
[]
[null,11.56,"Frame for door size 762 x 2032mm. high","no",1]
[]
[null,11.57,"Frame for door size 1511 x 2032mm. high","no",1]
[]
[]
[null,"11.58","Type BV door 914 x 2134mm high with rebated frame suitable for one brick wall","no",1]
[]
[null,"11.59","Type CV door 1219 x 2134mm high with rebated frame suitable for one brick wall","no",1]
[]
[null,"11.60","Type HV door 1219 x 2438mm high with rebated frame suitable for one brick wall","no",1]
[]
[null,"11.61","Type YV double door 1524x 2438mm high with rebated frame suitable for one brick wall","no",1]
[]
[null,"11.62","Type YVV (vent top and bottom) double door 1524x 2438mm high with rebated frame suitable for one brick wall","no",1]
[]
[null,"11.63","Type DV double door 1830x 2438mm high with rebated frame suitable for one brick wall","no",1]
[]
[null,"11.64","Type DVV (vent top and bottom) double door 1830x 2438mm high with rebated frame suitable for one brick wall","no",1]
[]
[null,null,"STEEL WINDOWS, DOORS, ETC."]
[]
[null,null,"Standard residential windows with 10mm diameter mild steel burglar bars to opening sashes"]
[]
[null,11.65,"Window type NE1 size 533 x 654mm. high","no",1]
[]
[null,11.66,"Window type NE2 size 1022 x 654mm. high","no",1]
[]
[null,11.67,"Window type NE4 size 1511 x 654mm. high","no",1]
[]
[null,11.68,"Window type NE11 size 2000 x 654mm. high","no",1]
[]
[null,11.69,"Window type E1H size 533 x 654mm. high","no",1]
[]
[null,{"v":11.7,"d":"11.70"},"Window type E2H size 1022 x 654mm. high","no",1]
[]
[null,11.71,"Window type E4H size 1511 x 654mm. high","no",1]
[]
[null,11.72,"Window type E22 size 2000 x 654mm. high","no",1]
[]
[null,11.73,"Window type NC1 size 533 x 949mm. high","no",1]
[]
[null,11.74,"Window type NC2 size 1022 x 949mm. high","no",1]
[]
[null,11.75,"Window type NC4 size 1511 x 949mm. high","no",1]
[]
[null,11.76,"Window type NC11 size 2000 x 949mm. high","no",1]
[]
[null,11.77,"Window type C1H size 533 x 949mm. high","no",1]
[]
[null,11.78,"Window type C2H size 1022 x 949mm. high","no",1]
[]
[null,11.79,"Window type C4H size 1511 x 949mm. high","no",1]
[]
[null,{"v":11.8,"d":"11.80"},"Window type ND1 size 533 x 1245mm. high","no",1]
[]
[null,11.81,"Window type ND2 size 1022 x 1245mm. high","no",1]
[]
[null,11.82,"Window type ND4 size 1511 x 1245mm. high","no",1]
[]
[null,11.83,"Window type ND11 size 2000 x 1245mm. high","no",1]
[]
[null,11.84,"Window type D1H size 533 x 1245mm. high","no",1]
[]
[null,11.85,"Window type D2H size 1022 x 1245mm. high","no",1]
[]
[null,11.86,"Window type D4H size 1511 x 1245mm. high","no",1]
[]
[null,11.87,"Window type NCT1S size 533 x 949mm. high","no",1]
[]
[null,11.88,"Window type NCTX7S size 1022 x 949mm. high","no",1]
[]
[null,11.89,"Window type NCTX7S5 size 1511 x 949mm. high","no",1]
[]
[null,{"v":11.9,"d":"11.90"},"Window type TD7 size 1022 x 1245mm. high","no",1]
[]
[null,11.91,"Window type TD75 size 1511 x 1245mm. high","no",1]
[]
[null,11.92,"Window type TD57S8 size 2000 x 1559mm. high","no",1]
[]
[null,"11.93","Type ALU louvered unit 900 x 745mmmm high with double rebated frame suitable for one brick wall","no",1]
[]
[null,"11.94","Type BLU louvered unit 1590 x 745mmmm high with double rebated frame suitable for one brick wall","no",1]
[]
[null,"11.95","Single Pivot Door 890 - 920 x 1800mm high Code PD920 Colour white","no",1]
[]
[null,"11.96","Single Pivot Door 830 - 860 x 1800mm high Code PD860 Colour white","no",1]
[]
[null,null,"STEEL ROLLER SHUTTERS ETC."]
[]
[null,null,"Taking out amd replacing galvanised roller shutters fixed to brickwork or concrete"]
[]
[null,11.97,"Manual pushup 76mm slatted roller shutter for 2440 x 2135mm high opening","no",1]
[]
[null,11.98,"Manual pushup 76mm slatted roller shutter for 3000 x 2440mm high opening","no",1]
[]
[null,null,"Galvanized chain operated industrial roller shutter door with 75mm slats"]
[]
[null,11.99,"2750x2500mm High door","no",1]
[]
[null,null,"Pre-painted Chromadek roller shutters fixed to brickwork or concrete"]
[]
[null,"11.100","Manual push-up 76mm slatted roller shutter for 2440 x 2135mm high opening","no",1]
[]
[null,"11.101","Manual pushup 76mm slatted roller shutter for 3000 x 2440mm high opening","no",1]
[]
[null,"11.102","Extra over manual pushup roller shutter for electrically operated complete with one transmitter and battery back-up","no",1]
[]
[null,null,"GRILLES"]
[]
[null,null,"Aluminium grilles"]
[]
[null,"11.103","Grille size 400 x 300mm high","no",1]
[]
[null,null,"Mild Steel grilles"]
[]
[null,"11.104","Grille size 400 x 300mm high","no",1]
[]
[null,"11.105","Grille size 600 x500mm high","no",1]
[]
[null,"11.106","Type DS1 6mm record room door with 7-lever security key lock and 3-wheel combination lock , overall size 750 x 1870mm high with a mass of 130kg finished in rustproof undercoat for final painting by contractors.","no",1]
[]
[null,"11.107","Type DS50/2 SABS Category 2 (Light Duty) strongroom door with 2 x 7-lever security key lock and 3-wheel combination lock , overall size 760 x 1860mm high with a mass of 480kg finished in rustproof undercoat for final painting by contractors.","no",1]
[]
[null,"11.108","Grille size 400 x 300mm high","no",1]
[]
[null,"11.109","Grille size 600 x500mm high","no",1]
[]
[null,"11.110","Model RMS1 SABS Category 2 dropsafe with 2 x 7-lever security key lock and one key lock on deposit drawer, overall size 450 x 450 x 700mm high with a mass of 260Kg twice holed for and including bolting to floor","no",1]
[]
[null,"11.111","Grille size 600 x500mm high","no",1]
[]
[]
[null,null,"Gratings"]
[]
[null,null,"Galvanised steel"]
[]
[null,"11.112","\"Open Ended System Mentis\" rectagrid grating size 3000x1000mm cut out where required to permit pipes,etc to pass through and bolted to concrete where required to permit pipes,etc to pass through and bolted to concrete surface bed","no",{"v":1,"d":"1.00"}]
["SUB-TOTAL ",{"$nulls":4},{"$f":"SUM(F2603:F2880)","v":0}]
[]
[]
[null,null,"SCHEDULE No. 12"]
[]
[null,null,"PLASTERING"]
[]
[null,null,"SUPPLEMENTARY PREAMBLES"]
[]
[null,null,"SCREEDS"]
[]
[null,null,"Cement screeds wood/steel floated on concrete"]
[]
[null,12.1,"25mm. thick on floors and landings","m²",1]
[]
[null,12.2,"Average 40mm thick on floors to falls","m²",1]
[]
[null,12.3,"25mm thick treads and risers of stairs ","m²",1]
[]
[null,null,"Repairing cracks in cement screeds on concrete or brick surfaces exceeding 1mm wide by hacking up/off screeds 150mm wide on both sides of crack, preparing existing surface and laying new screeds on and including chicken mesh spiked to base finishing flush with existing surface to match existing  "]
[]
[null,12.4,"On horizontal top surfaces","m",1]
[]
[null,12.5,"On vertical surfaces","m",1]
[]
[null,12.6,"On treads and risers of stairs","m",1]
[]
[null,null,"INTERNAL PLASTER"]
[]
[null,null,"Cement plaster steel/wood trowelled on brickwork/concrete"]
[]
[null,12.7,"On walls ","m²",1]
[]
[null,12.8,"On ceilings","m²",1]
[]
[null,12.9,"On raking soffits of stairs","m²",1]
[]
[null,{"v":12.1,"d":"12.10"},"On projecting and isolated columns/beams","m²",1]
[]
[null,null,"Fine rough-cast plaster on brickwork/concrete"]
[]
[null,12.11,"On walls ","m²",1]
[]
[null,12.12,"On ceilings","m²",1]
[]
[null,12.13,"On raking soffits of stairs","m²",1]
[]
[null,12.14,"On projecting and isolated columns/beams","m²",1]
[]
[null,null,"Repairing cracks in internal cement plaster on concrete or brick surfaces exceeding 1mm wide by hacking off plaster 150mm wide on both sides of crack, preparing existing surface and applying new plaster on and including chicken mesh spiked to base finishing flush with existing surface (painting measured elsewhere)"]
[]
[null,12.15,"On horizontal top surfaces","m",1]
[]
[null,12.16,"On sloping top surfaces","m",1]
[]
[null,12.17,"On vertical surfaces","m",1]
[]
[null,12.18,"On vertical surfaces circular","m",1]
[]
[null,12.19,"On horizontal soffits","m",1]
[]
[null,{"v":12.2,"d":"12.20"},"On horizontal soffits circular","m",1]
[]
[null,12.21,"On raking soffits","m",1]
[]
[null,null,"EXTERNAL PLASTER"]
[]
[null,null,"Cement plaster on brickwork/concrete"]
[]
[null,12.22,"On walls ","m²",1]
[]
[null,12.23,"On ceilings","m²",1]
[]
[null,12.24,"On raking soffits of stairs","m²",1]
[]
[null,12.25,"On projecting and isolated columns/beams","m²",1]
[]
[null,null,"Rough-cast plaster on brickwork/concrete"]
[]
[null,12.26,"On walls ","m²",1]
[]
[null,12.27,"On ceilings","m²",1]
[]
[null,12.28,"On raking soffits of stairs","m²",1]
[]
[null,12.29,"On projecting and isolated columns/beams","m²",1]
[]
[null,null,"Two coats gypsum plaster \"Rhinolite\" polished to a smooth finish"]
[]
[null,{"v":12.3,"d":"12.30"},"Plaster","m²",1]
[]
[null,12.31,"Plaster in patches","m²",1]
[]
[null,12.32,"Gypsum plasterboard ceilings, bulkheads, etc","m²",1]
[]
[null,12.33,"Gypsum plasterboard ceilings, bulkheads, etc in patches","m²",1]
[]
[null,12.34,"Gypsum plasterboard partitioning","m²",1]
[]
[null,12.35,"Gypsum plasterboard partitioning in patches","m²",1]
[]
[null,null,"Two coats gypsum plaster \"Rhinolite\" polished to a textured finish"]
[]
[null,12.36,"Plaster","m²",1]
[]
[null,12.37,"Plaster in patches","m²",1]
[]
[null,12.38,"Gypsum plasterboard ceilings, bulkheads, etc","m²",1]
[]
[null,12.39,"Gypsum plasterboard ceilings, bulkheads, etc in patches","m²",1]
[]
[null,{"v":12.4,"d":"12.40"},"Gypsum plasterboard partitioning","m²",1]
[]
[null,12.41,"Gypsum plasterboard partitioning in patches","m²",1]
[]
[null,null,"CORNER PROTECTORS, DIVIDING STRIPS. ETC"]
[]
[null,null,"Dividing strips"]
[]
[null,12.42,"30 x 3mm flat brass dividing strip between different floor finishes","m",1]
["SUB-TOTAL ",{"$nulls":4},{"$f":"SUM(F2894:F3000)","v":0}]
[]
[]
[]
[null,null,"SCHEDULE No. 13"]
[]
[null,null,"TILING"]
[]
[null,null,"SUPPLEMENTARY PREAMBLES"]
[]
[null,null,"Unless described as \"fixed with adhesive to plaster (plaster elsewhere)\" descriptions of tiling an brick or concrete walls, columns, etc shall be deemed to include 1:4 cement plaster backing and descriptions of tiling on concrete floors etc shall be deemed to include 1:3 plaster bedding"]
[]
[null,null,"WALL TILING"]
[]
[null,null,"150 x 150 x 5mm. white glazed ceramic tiles fixed with adhesive to plaster (plaster elsewhere)"]
[]
[null,13.1,"On horizontal top surfaces","m²",1]
[]
[null,13.2,"On sloping top surfaces","m²",1]
[]
[null,13.3,"On vertical surfaces","m²",1]
[]
[null,13.4,"On horizontal soffits","m²",1]
[]
[null,13.5,"On narrow widths","m²",1]
[]
[null,null,"200 x 200 x 6mm. white glazed ceramic tiles fixed with adhesive to plaster (plaster elsewhere) "]
[]
[null,13.6,"On horizontal top surfaces","m²",1]
[]
[null,13.7,"On sloping top surfaces","m²",1]
[]
[null,null,"FLOOR TILING"]
[]
[null,null,"Ceramic floor tiles (PC sum R120.00/m² for supply and delivery, excluding labour, waste and VAT) fixed with adhesive to bedding (bedding elsewhere) and flush pointed with tinted jointing compound "]
[]
[null,13.8,"On floor surfaces","m²",1]
[]
[null,13.9,"On treads and risers of stairs","m²",1]
[]
[null,{"v":13.1,"d":"13.10"},"Skirtings 100mm high of stretcher course tiles ","m",1]
[]
[null,null,"Porcelain floor tiles (PC sum R150.00/m² for supply and delivery, excluding labour, waste and VAT) fixed with adhesive to bedding (bedding elsewhere) and flush pointed with tinted jointing compound "]
[]
[null,13.11,"On floor surfaces","m²",1]
[]
[null,13.12,"On treads and risers of stairs","m²",1]
[]
[null,13.13,"Skirtings 100mm high of stretcher course tiles ","m",1]
[]
[null,null,"Mosiac tiles (PC sum R100.00/m² for supply and delivery, excluding labour, waste and VAT) fixed with adhesive to bedding (bedding elsewhere) and flush pointed with tinted jointing compound "]
[]
[null,13.14,"On floor surfaces","m²",1]
[]
[null,null,"SUNDRIES"]
[]
[null,13.15,"Shot blast old floors to remove glue,dirt and grime","m²",1]
["SUB-TOTAL ",{"$nulls":4},{"$f":"SUM(F3017:F3057)","v":0}]
[]
[]
[]
[null,null,"SCHEDULE No. 14"]
[]
[]
[null,null,"GLAZING"]
[]
[null,null,"SUPPLEMENTARY PREAMBLES"]
[]
[null,null,"GLAZING TO STEEL WITH PUTTY"]
[]
[null,null,"4mm. clear float glass"]
[]
[null,14.1,"3 mm Glass","m²",1]
[]
[null,14.2,"4mm Glass","m²",1]
[]
[null,14.3,"6mm Glass","m²",1]
[]
[null,null,"4mm. Patterned/obscured glass"]
[]
[null,14.4,"4mm Glass","m²",1]
[]
[null,14.5,"6mm Glass","m²",1]
[]
[null,null,"Clear toughened safety glass"]
[]
[null,14.6,"6.38mm Glass","m²",1]
[]
[null,14.7,"8mm Glass","m²",1]
[]
[null,null,"GLASS LOUVRE BLADES"]
[]
[null,null,"6mm Clear Glass Louvre Blades"]
[]
[null,14.8,"Louvre blades not exceeding 150mm wide with polished edges","m",1]
[]
[null,null,"GLASS IN TOPS, SHELVES, DOORS, MIRRORS, ETC."]
[]
[null,null,"5mm Silvered float glass copper backed mirrors with polished edges holed for and fixed with chromium plated dome capped mirror screws with rubber buffers to plugs in brickwork or concrete "]
[]
[null,14.9,"Mirror 300 x 300mm high with four screws","no",1]
[]
[null,{"v":14.1,"d":"14.10"},"Mirror 400 x 400mm high with four screws","no",1]
[]
[null,14.11,"Mirror 400 x 600mm high with four screws","no",1]
[]
[null,14.12,"Mirror size 460 x 600mm with four screws","m²",1]
[]
[null,null,"5mm Silvered float glass copper backed mirrors with 10mm bevelled and polished edges holed for and fixed with chromium plated dome capped mirror screws with rubber buffers to plugs in brickwork or concrete "]
[]
[null,14.13,"Mirror 300 x 300mm high with four screws","no",1]
[]
[null,14.14,"Mirror 400 x 400mm high with four screws","no",1]
[]
[null,14.15,"Mirror 400 x 600mm high with four screws","no",1]
[]
[null,14.16,"Mirror size 460 x 600mm with four screws","m²",1]
[]
[null,null,"Sundries"]
[]
[null,null,"Sandblasting"]
[]
[null,14.17,"To glazing","m²",1]
[]
[null,null,"Vinyl films and tinting"]
[]
[null,14.18,"Vinyl film to glazing","m²",1]
[]
[null,null,"Awnings"]
[]
[null,14.19,"Vinyl tinted awning including frame fixed to walls,concrete,wood,etc"]
[null,null,"not exceeding 1200mm length","no",1]
[]
[null,{"v":14.2,"d":"14.20"},"Vinyl tinted awning including frame fixed to walls,concrete,wood,etc"]
[null,null,"exceeding 1200mm and not exceeding 2400mm length","no",1]
["SUB-TOTAL ",{"$nulls":4},{"$f":"SUM(F3073:F3135)","v":0}]
[]
[]
[null,null,"SCHEDULE No. 15"]
[]
[null,null,"PAINTING"]
[]
[null,null,"SUPPLEMENTARY PREAMBLES"]
[]
[null,null,"Descriptions"]
[]
[null,null,"Description of paintwork shall be deemed to include for all cutting in"]
[]
[null,null,"Paint Specifications"]
[]
[null,null,"All painting shall be carried out in strict accordance with \"Plascon\" or equally approved specifications"]
[]
[null,null,"PAINTWORK, ETC. TO NEW WORK"]
[]
[null,null,"ON BRICKS OR QUARRY TILES"]
[]
[null,null,"Two coats solvent based UV resistant clear gloss acrylic brick dressing"]
[]
[null,15.1,"On sills, thresholds, etc","m²",1]
[]
[null,15.2,"On flush pointed face walls","m²",1]
[]
[null,15.3,"On recessed pointed face walls","m²",1]
[]
[null,null,"ON FLOATED PLASTER"]
[]
[null,null,"One coat alkaline resistant plaster primer, one coat universal alkyd based undercoat and one coats alkyd based eggshell enamel paint"]
[]
[null,15.4,"On internal walls","m²",1]
[]
[null,null,"One coat alkaline resistant plaster primer and two coats superior acrylic PVA emulsion paint"]
[]
[null,15.5,"On internal walls","m²",1]
[]
[null,15.6,"On ceilings","m²",1]
[]
[null,null,"One coat resin based bonding liquid two coats superior acrylic PVA emulsion paint"]
[]
[null,15.7,"On external walls","m²",1]
[]
[null,null,"One coat resin based bonding liquid and two coats UV resistant water based mica and marble waterproof fine texture paint"]
[]
[null,15.8,"On external walls","m²",1]
[]
[null,null,"0N PLASTER BOARD"]
[]
[null,null,"One coat alkaline resistant plaster primer and two coats superior acrylic PVA emulsion paint"]
[]
[null,15.9,"On ceilings and cornices","m²",1]
[]
[null,{"v":15.1,"d":"15.10"},"On drywall partitions","m²",1]
[]
[null,null,"ON FIBRE-CEMENT"]
[]
[null,null,"One coat resin based bonding liquid two full coats UV resistant water based acrylic roof paint"]
[]
[null,15.11,"On profiled roof sheets (measured on flat)","m²",1]
[]
[null,15.12,"On fascias and barge boards","m²",1]
[]
[null,null,"One coat alkaline resistant plaster primer and two coats superior acrylic PVA emulsion paint"]
[]
[null,15.13,"On internal fibre cement ceilings including priming steel joints and nail heads with one coat zinc phosphate alkyd resin primer","m²",1]
[]
[null,15.14,"On fascias and barge boards","m²",1]
[]
[null,15.15,"On internal fibre cement sills not exceeding 300mm girth","m",1]
[]
[null,15.16,"On fascia and barge boards not exceeding 300mm girth","m",1]
[]
[null,null,"ON METAL"]
[]
[null,null,"Spot prime defects in pre-primed surfaces with zinc chromate primer and apply one universal alkyd based undercoat and two coats alkyd based high gloss enamel paint"]
[]
[null,15.17,"On door frames","m²",1]
[]
[null,15.18,"On recordroom and strongroom doors and frames","m²",1]
[]
[null,15.19,"On window frames","m²",1]
[]
[null,{"v":15.2,"d":"15.20"},"On window frames with burglar bars","m²",1]
[]
[null,15.21,"On gates, grilles, burglar screens, balustrades, etc (both sides measured over full flat area)","m²",1]
[]
[null,null,"One coat water based galvanised iron primer, one coat universal alkyd based undercoat and two coats alkyd based high gloss enamel paint"]
[]
[null,15.22,"On corrugated iron profile roof sheeting (measured on flat)","m²",1]
[]
[null,15.23,"On IBR profile roof sheeting (measured on flat)","m²",1]
[]
[null,15.24,"On eaves gutters","m²",1]
[]
[null,15.25,"On rails, bars, pipes etc ","m",1]
[]
[null,15.26,"On eaves gutters/rainwater downpipes not exceeding 300mm girth","m",1]
[]
[null,15.27,"On rails, bars, pipes etc not exceeding 300mm girth","m",1]
[]
[null,null,"ON WOOD"]
[]
[null,null,"One coat wood primer, one universal alkyd based undercoat and two coats alkyd based eggshell enamel paint"]
[]
[null,15.28,"On boarded panelling","m²",1]
[]
[null,15.29,"On boarded ceilings","m²",1]
[]
[null,{"v":15.3,"d":"15.30"},"On doors","m²",1]
[]
[null,15.31,"On fittings","m²",1]
[]
[null,15.32,"On roof timbers at eves and verges","m²",1]
[]
[null,15.33,"Skirtings, rails, etc. not exceeding 300mm. girth","m",1]
[]
[null,null,"Three coats clear polyurethane suede varnish "]
[]
[null,15.34,"On doors","m²",1]
[]
[null,15.35,"Skirtings, rails, etc. not exceeding 300mm. girth","m",1]
[]
[null,15.36,"Two coats creosote on sawn timbers","m²",1]
[]
[null,null,"PAINTWORK, ETC. TO PREVIOUSLY PAINTED WORK"]
[]
[null,null,"PREPARATORY WORK TO EXISTING WORK"]
[]
[null,null,"Previously painted plastered surfaces"]
[]
[null,null,"Surfaces shall be thoroughly washed down and allowed to dry completely before any paint is applied. Blistered or peeling paint shall be completely removed and cracks shall be opened, filled with suitable filler and finished smooth"]
[]
[null,null,"Previously painted metal surfaces"]
[]
[null,null,"Surfaces shall be thoroughly cleaned down. Blistered or peeling paint shall be completely removed down to bare metal"]
[]
[null,null,"Previously painted wood surfaces"]
[]
[null,null,"Surfaces shall be thoroughly cleaned down. Blistered or peeling paint shall be completely removed and cracks and crevices shall be primed, filled with suitable filler and finished smooth"]
[]
[null,null,"ON BRICKS OR QUARRY TILES"]
[]
[null,null,"Two coats solvent based UV resistant clear gloss acrylic brick dressing"]
[]
[null,15.37,"On sills, thresholds, etc","m²",1]
[]
[null,15.38,"On flush pointed face walls","m²",1]
[]
[null,15.39,"On recessed pointed face walls","m²",1]
[]
[null,null,"ON FLOATED PLASTER"]
[]
[null,null,"One coat alkaline resistant plaster primer, one coat universal alkyd based undercoat and one coats alkyd based eggshell enamel paint on work in poor condition"]
[]
[null,{"v":15.4,"d":"15.40"},"On internal walls","m²",1]
[]
[null,15.41,"On columns","m²",1]
[]
[null,null,"One coat resin based bonding liquid two coats superior acrylic PVA emulsion paint on work in poor condition"]
[]
[null,15.42,"On internal walls","m²",1]
[]
[null,15.43,"On external walls","m²",1]
[]
[null,15.44,"On ceilings","m²",1]
[]
[null,null,"ON GAMMA ZENNITH"]
[]
[null,null,"One coat resin based bonding liquid two coats superior glamour paint on work in poor condition"]
[]
[null,15.45,"On internal walls","m²",1]
[]
[null,15.46,"On external walls","m²",1]
[]
[null,null,"One coat alkaline resistant plaster primer, one coat universal alkyd based undercoat and one coats alkyd based eggshell enamel paint on work in poor condition"]
[]
[null,15.47,"On internal walls","m²",1]
[]
[null,null,"One coat resin based bonding liquid and two coats superior acrylic PVA emulsion paint on work in poor condition"]
[]
[null,15.48,"On internal walls","m²",1]
[]
[null,15.49,"On external walls","m²",1]
[]
[null,null,"0N PLASTER BOARD"]
[]
[null,null,"One coat resin based bonding liquid and two coats superior acrylic PVA emulsion paint on work in poor condition"]
[]
[null,{"v":15.5,"d":"15.50"},"On ceilings and cornices","m²",1]
[]
[null,15.51,"On drywall partitions","m²",1]
[]
[null,null,"ON FIBRE-CEMENT"]
[]
[null,null,"One coat resin based bonding liquid and two full coats UV resistant water based acrylic roof paint on work in poor condition"]
[]
[null,15.52,"On profiled roof sheets (measured on flat)","m²",1]
[]
[null,15.53,"On fascias and barge boards","m²",1]
[]
[null,null,"Two coats superior acrylic PVA emulsion paint on work in sound condition"]
[]
[null,15.54,"On internal fibre cement ceilings including priming steel joints and nail heads with one coat zinc phosphate alkyd resin primer","m²",1]
[]
[null,15.55,"On fascias and barge boards","m²",1]
[]
[null,15.56,"On internal fibre cement sills not exceeding 300mm girth","m",1]
[]
[null,15.57,"On fascia and barge boards not exceeding 300mm girth","m",1]
[]
[null,null,"ON METAL"]
[]
[null,null,"Two coats alkyd based high gloss enamel paint on previously painted steel in sound condition"]
[]
[null,15.58,"On door frames","m²",1]
[]
[null,15.59,"On recordroom,strongroom, combination doors and frames","m²",1]
[]
[null,{"v":15.6,"d":"15.60"},"On window frames","m²",1]
[]
[null,15.61,"On window frames with burglar bars","m²",1]
[]
[null,15.62,"On gates, grilles, burglar screens, balustrades, etc (both sides measured over full flat area)","m²",1]
[]
[null,15.63,"On eaves gutters/rainwater downpipes not exceeding 300mm girth","m",1]
[]
[null,15.64,"On rails not exceeding 300mm girth","m",1]
[]
[null,15.65,"On eaves gutters","m²",1]
[]
[null,15.66,"On palisade fencing","m²",1]
[]
[null,null,"One coat water based galvanised iron primer, one coat Universal alkyd based undercoat and two coats alkyd based high gloss enamel paint on galvanised steel in poor condition (rusted)"]
[]
[null,15.67,"On corrugated iron profile roof sheeting (measured on flat)","m²",1]
[]
[null,15.68,"On IBR profile roof sheeting (measured on flat)","m²",1]
[]
[null,15.69,"On eaves gutters","m²",1]
[]
[null,{"v":15.7,"d":"15.70"},"On gates, grilles, burglar screens, balustrades, etc (both sides measured over full flat area)","m²",1]
[]
[null,15.71,"On palisade fencing","m²",1]
[]
[null,15.72,"On rails, bars, pipes exceeding 300mm girth","m",1]
[]
[null,15.73,"On eaves gutters/rainwater downpipes not exceeding 300mm girth","m",1]
[]
[null,null,"ON WOOD"]
[]
[null,null,"Spot prime bare wood surfaces with wood primer and apply one universal alkyd based undercoat and two coats alkyd based eggshell enamel paint on previously painted surfaces in poor condition"]
[]
[null,15.74,"On doors","m²",1]
[]
[null,15.75,"On fittings","m²",1]
[]
[null,15.76,"Skirtings, rails, etc. not exceeding 300mm. girth","m",1]
[]
[null,15.77,"On roof timbers at eaves and verges","m²",1]
[]
[null,null,"Two coats alkyd based eggshell enamel paint on previously painted surfaces in sound condition"]
[]
[null,15.78,"On doors","m²",1]
[]
[null,15.79,"On fittings","m²",1]
[]
[null,{"v":15.8,"d":"15.80"},"Skirtings, rails, etc. not exceeding 300mm. girth","m",1]
[]
[null,15.81,"On roof timbers at eves and verges","m²",1]
[]
[null,null,"Three coats clear polyurethane suede varnish "]
[]
[null,15.82,"On doors","m²",1]
[]
[null,15.83,"Skirtings, rails, etc. not exceeding 300mm. girth","m",1]
["SUB-TOTAL ",{"$nulls":4},{"$f":"SUM(F3159:F3413)","v":0}]
[]
[]
[null,null,"SCHEDULE No. 16"]
[]
[null,null,"EXTERNAL WORKS"]
[]
[null,null,"SUPPLEMENTARY PREAMBLES"]
[]
[null,null,"Carting away of excavated material"]
[]
[null,null,"Description of carting away of excavated material shall deemed to include loading of excavated material onto trucks directly from the excavtions, or alternatively, from stock piles situated on the building site."]
[]
[null,null,"Concrete pipes"]
[]
[null,null,"Pipes shall be jointed with ogee joints with rubber collars or socket and spigot joints with rubber rings"]
[]
[null,null,"uPVC pipes and fittings"]
[]
[null,null,"Sewer and drainage pipes and fittings shall be jointed and sealed with butyl rubber rings"]
[null,null,"Soil, waste and vent pipes and fittings shall be solvent weld jointed"]
[]
[null,null,"uPVC pressure pipes and fittings"]
[]
[null,null,"Pipes for water supply shall be of the class stated"]
[null,null,"Pipes of 40mm diameter and smaller shall be plain ended with solvent welded uPVC loose socket fittings"]
[]
[null,null,"Pipes of 50mm diameter and greater shall have sockets and spigots with push-in type integral rubber ring joints. Bens shall be uPVC and all other fittings shall be cast iron, all with similar push-in type joints with solvent welded uPVC loose socket fittings"]
[]
[null,null,"Exposed concrete surfaces"]
[]
[null,null,"Exposed surfaces of concrete stormwater channels, cover slabs, inspection eye marker slabs, gulley tops, cleaning eye tops, catchpits, inspection chambers, etc. shall be finished smooth with plaster"]
[]
[null,null,"Excavations"]
[]
[null,null,"No claim for rock excavation will be entertained unless the contractor has timeously notified the quantity surveyor thereof prior to backfilling"]
[]
[null,null,"\"Soft rock\" and \"hard rock\" shall be as defined in \"Earthworks\""]
[]
[null,null,"Laying, backfilling, bedding, etc. of pipes"]
[]
[null,null,"Pipes shall be laid and bedded and trenches shall be carefully backfilled in accordance with manufacturers' instructions"]
[]
[null,null,"The selection of the imported \"borrow pit\" pipe bending material for classB,C or flexible pipe beddings shall be done by the contractor, and all the tendered rates for the imported material shall be deemed to include for the necessary selection of material."]
[]
[null,null,"The selection of the imported \"borrow pit\" pipe bending material for classB,C or flexible pipe beddings shall be done by the contractor, and all the tendered rates for the imported material shall be deemed to include for the necessary selection of material."]
[]
[null,null,"Where no manufacturers' instructions exist, pipes shall be laid in accordance with clauses 5.1 and 5.2 of each of the following:"]
[]
[null,null,"SABS 1200                  L : Medium-pressure pipelines"]
[null,null,"                                 LD : Sewers"]
[null,null,"                                 LE : Stormwater drainage"]
[]
[null,null,"Pipe trenches, etc. shall be backfilled in accordance with clauses3, 5.5, 5.6, 5.7 and 7 of SABS 1200"]
[]
[null,null,"                                 LB : Bedding (Pipes)"]
[]
[null,null,"Unless otherwise described, bedding of rigid pipes shall be class B bedding"]
[]
[null,null,"Unless otherwise described, bedding of rigid pipes shall be class B bedding"]
[]
[null,null,"\"Densyl\" petrolatum anti-corrsion tape as manufactured by Denso SA (Pty) Ltd or equally approved"]
[]
[null,null,"Pipes to be taped shall be coated with the appropriate primer and the tape shall be applied with minimum 15mm lap per spiral unless otherwise described"]
[]
[null,null,"Couplings and fittings to pipes shall be taped in strict accordance with the manufacturers instructions, including all mastic tape \"Layflat\" sheeting, securing of same, etc."]
[]
[null,null,"Unless otherwise described, bedding of rigid pipes shall be class B bedding"]
[]
[null,null,"ALTERATIONS"]
[]
[null,null,"LANDSCAPING"]
[]
[null,null,"GRASSING, GROUND COVERS, ETC."]
[]
[null,null,"\"Kikuyu\""]
[]
[null,16.1,"Areas not exceeding 1000m2","m²",1]
[]
[null,16.2,"Areas exceeding 1000m2","m²",1]
[]
[null,null,"EARTHWORKS, ROADWORKS, ETC"]
[]
[null,null,"Site clearance"]
[]
[null,16.3,"Digging up and removing rubbish, debris, vegetation, hedges, shrubs and trees not exceeding 200mm girth, bush, etc.","m²",1]
[]
[null,null,"Bulk excavation, filling, etc"]
[]
[null,null,"Earthfilling supplied by the contractor under roads, parking areas, paving, etc. including all haul, selection, handling, etc (No designated borrow pit available)"]
[]
[null,null,"Note:"]
[null,null,"Road construction materials shall conform to the requirements of TRH 14: Guidelines for road construction materials"]
[]
[null,16.4,"Approved G7 material for use in backfilling under walkways, paths and islands in 150mm thick layers compacted to 90% Modified AASHTO density","m3",1]
[]
[null,16.5,"Selected G6 type material compacted in 150mm layers to 93% Modified AASHTO density","m3",1]
[]
[null,16.6,"150mm Sub-base layer G5 type material stabilized with 3% cement to obtain a C4 material compacted to 95% Modified AASHTO density","m3",1]
[]
[null,null,"Compaction of surfaces"]
[]
[null,16.7,"Compaction of ground surface under roads and parking areas including scarifying for a depth of 150mm, breaking down oversize material, addinng suitable material where necessary and compacting to 90% Mod AASHTO density","m²",1]
[]
[null,null,"Tests"]
[]
[null,16.8,"\"Modified AASHTO Density\" test to 93%","no",1]
[]
[null,null,"Soil poisoning (In confined areas)"]
[]
[null,16.9,"\"Trimex-S\" weedkiller mixed 30g/l water and applied at a rate of 1 litre/10m2 under road, parking and walkway paving","m²",1]
[]
[null,null,"Precast concrete block road surfacing"]
[]
[null,null,"Paving is to be laid in accordance with SABS 1200 MJ, SABS 1058 and the Concrete Masonry Association's specifications"]
[]
[null,null,"Paving is to be laid in herringbone pattern on 25mm (thickness after final compaction) clean river sand (preparation of ground or filling elsewhere)"]
[]
[null,null,"Clean sand is to be swept into joints between roadstones"]
[]
[null,null,"ASPHALT "]
[]
[null,null,"Tar Surfacing (Parking and walkways)"]
[]
[null,{"v":16.1,"d":"16.10"},"Tar road resurfacing and making good","m²",1]
[]
[null,16.11,"Tar road resurfacing and making good in bad condition","m²",1]
[]
[null,16.12,"Saw-cutting asphalt(tar)","m",1]
[]
[null,null,"PAVING"]
[]
[null,null,"Lifting up, setting aside and re-laying paving blocks including backfilling and 20mm bedding sand"]
[]
[null,16.13,"Precast concrete paving to falls","m²",1]
[]
[null,null,"60mm Standard grey \"Concor Double Zig-Zag\" interlocking roadstone paving or equally approved (For low traffic-All inclusive trade) Including earthworks, 25mm thick river sand bed with sand  swept into joints including preparation of ground or filling etc"]
[]
[]
[null,16.14,"Paving to roads, parking areas, etc. to slight falls","m²",1]
[]
[null,16.15,"Joint of new paving or concrete edge beam to existing paving including all cutting, waste, filling of openings with concrete, etc.","m",1]
[]
[null,null,"80mm Standard grey \"Concor Double Zig-Zag\" interlocking roadstone paving or equally approved (For low traffic-All inclusive trade) Including earthworks, 25mm thick river sand bed with sand  swept into joints including preparation of ground or filling etc"]
[]
[null,16.16,"Paving to roads, parking areas, etc. to slight falls","m²",1]
[]
[null,16.17,"Joint of new paving or concrete edge beam to existing paving including all cutting, waste, filling of openings with concrete, etc.","m",1]
[]
[null,null,"Precast concrete finished smooth on exposed surfaces including bedding, jointing and pointing"]
[]
[null,16.18,"Vertical kerb (SABS 927 fig 7) 180 x 280mm high in 1 000mm sections with 13mm thick softboard expansion joints at 20 000mm centres complete with 250 x 180mm thick class 15Mpa/19mm unreinforced cast in-situ concrete continuous anchor block strip for the full length at back of kerbing including excavation, backfilling, etc.","m",1]
[]
[]
[null,17.19,"Semi-mountable kerb (SABS 927 fig 7 laid flat on back) 180 x 280mm high in 1 000mm sections with 13mm thick softboard expansion joints at 20 000mm centres complete with 250 x 180mm thick class 15Mpa/19mm unreinforced cast in-situ concrete continuous anchor block strip for the full length at back of kerbing, circular on plan to not exceeding 4 000mm radius formed with short lengths (maximum 300mm long) of straight kerb including excavation, backfilling, etc.","m",1]
[]
[null,null,"SABS 731-1987 yellow or white roadmark paint on paving at a rate of 1 litre/m2"]
[]
[null,{"v":16.2,"d":"16.20"},"Line 100mm wide","m",1]
[]
[null,16.21,"Line 100mm wide (RTM 1)","m",1]
[]
[null,16.22,"Numeral or letter 400mm high","no",1]
[]
[null,16.23,"Numeral or letter 1250mm high (GM7)","no",1]
[]
[null,16.24,"Traffic arrow 1250 x 500mm wide extreme (G M4.1)","no",1]
[]
[null,16.25,"Information sign for \"people with disability\" parking in 150mm wide lines","m2",1]
[]
[null,null,"FENCING"]
[]
[null,null,"Mild steel welded palisade fence including spot prime exposed metal surfaces and and two coats high gloss enamel paint"]
[]
[null,16.26,"Palisade fence 1800mm high of 40 x 40 x 3mm angle section continuous top and bottom rails and 30 x 30 x 3mm angle section pickets with top end split and sharpened at average 150mm centres, welded to rails, rails welded 2200mm high posts of 76 x 76 x 5mm square tube with steel pyramid shaped capping on top at 2475mm centres with 500mm bottom ends cast into and including 15Mpa concrete footing in ground including excavation, ramming, removal of spoil and leaving clean and neat","m",1]
[]
[null,16.27,"Palisade fence 2400mm high of 40 x 40 x 3mm angle section continuous top and bottom rails and 30 x 30 x 3mm angle section pickets with top end split and sharpened at average 150mm centres, welded to rails, rails welded 2600mm high posts of 76 x 76 x 5mm square tube with steel pyramid shaped capping on top at 2475mm centres with 500mm bottom ends cast into and including 15Mpa concrete footing in ground including excavation, ramming, removal of spoil and leaving clean, neat and painted","m",1]
[]
[null,16.28,"Palisade pedestrian gate 900mm wide x 1800mm high overall, formed of 150 x 75 x 3mm thick hollow section frame, 100 x 75 x 3mm thick hollow section middle rail and cross bracing bars and with 25 x 25 x 2.5mm thick angle section spiked vertical bars at maximum 143mm centres welded to frame, middle rail and cross bracing bars complete with approved heavy duty hinges, secutity type locking device suitable for hand operated control, completely installed and painted","no",1]
[]
[null,16.29,"Palisade fence vehicle sliding gate 6000mm wide x 1800mm high overall, formed of 150 x 75 x 3mm thick hollow section frame, 100 x 75 x 3mm thick hollow section middle rail and cross bracing bars and with 25 x 25 x 2.5mm thick angle section spiked vertical bars at maximum 143mm centres welded to frame, middle rail and cross bracing bars complete with approved heavy duty castors, steel track cast in or bolted to and including concrete rail footing, secutity type locking device suitable for hand operated control rail, gate stops, gate guides, etc. completely installed and painted","no",1]
[]
[null,{"v":16.3,"d":"16.30"},"Palisade fence vehicle sliding gate 6000mm wide x 2400mm high overall, formed of 150 x 75 x 3mm thick hollow section frame, 100 x 75 x 3mm thick hollow section middle rail and cross bracing bars and with 25 x 25 x 2.5mm thick angle section spiked vertical bars at maximum 143mm centres welded to frame, middle rail and cross bracing bars complete with approved heavy duty castors, steel track cast in or bolted to and including concrete rail footing, secutity type locking device suitable for hand operated control rail, gate stops, gate guides, etc. completely installed","no",1]
[]
[null,16.31,"Palisade fence vehicle swing double gate 3000mm wide x 2400mm high overall, formed of 150 x 75 x 3mm thick hollow section frame, 100 x 75 x 3mm thick hollow section middle rail and cross bracing bars and with 25 x 25 x 2.5mm thick angle section spiked vertical bars at maximum 143mm centres welded to frame, middle rail and cross bracing bars complete with approved heavy duty castors, etc. completely installed and painted","no",1]
[]
[null,16.32,"Palisade fence vehicle swing double gate 6000mm wide x 1800mm high overall, formed of 150 x 75 x 3mm thick hollow section frame, 100 x 75 x 3mm thick hollow section middle rail and cross bracing bars and with 25 x 25 x 2.5mm thick angle section spiked vertical bars at maximum 143mm centres welded to frame, middle rail and cross bracing bars complete with approved heavy duty castors, etc. completely installed and painted","no",1]
[]
[null,null,"Concrete Palisade Fence"]
[]
[null,16.33,"Palisade fence 1800mm high of stacked slats, slid in-between 2300mm high posts of 110 x 70mm H-section post at 1500mm centres with 500mm bottom ends cast into and including 15Mpa concrete footing in ground including excavation, ramming, removal of spoil and leaving clean and neat","m",1]
[]
[null,16.34,"Palisade fence 2400mm high of stacked slats, slid in-between 2900mm high posts of 110 x 70mm H-section post at 1500mm centres with 500mm bottom ends cast into and including 15Mpa concrete footing in ground including excavation, ramming, removal of spoil and leaving clean and neat","m",1]
[]
[null,null,"Precast Concrete  Fence"]
[]
[null,16.35,"Precast slatted fence 1200mm high of 110 x 70mm section continuous top and bottom rails and 140 x 70mm section with top end mitred at average 150mm centres, bolteded to rails, rails bolted 2200mm high posts of 140 x 140mm square post at 2475mm centres with 500mm bottom ends cast into and including 15Mpa concrete footing in ground including excavation, ramming, removal of spoil and leaving clean and neat","m",1]
[]
[null,16.36,"Precast slatted fence 1800mm high of 110 x 70mm section continuous top and bottom rails and 140 x 70mm section with top end mitred at average 150mm centres, bolteded to rails, rails bolted 2200mm high posts of 140 x 140mm square post at 2475mm centres with 500mm bottom ends cast into and including 15Mpa concrete footing in ground including excavation, ramming, removal of spoil and leaving clean and neat","m",1]
[]
[null,16.37,"Precast slatted fence 2000mm high of 110 x 70mm section continuous top and bottom rails and 140 x 70mm section with top end mitred at average 150mm centres, bolteded to rails, rails bolted 2200mm high posts of 140 x 140mm square post at 2475mm centres with 500mm bottom ends cast into and including 15Mpa concrete footing in ground including excavation, ramming, removal of spoil and leaving clean and neat","m",1]
[]
[null,16.38,"Precast slatted fence 2400mm high of 110 x 70mm section continuous top and bottom rails and 140 x 70mm section with top end mitred at average 150mm centres, bolteded to rails, rails bolted 2200mm high posts of 140 x 140mm square post at 2475mm centres with 500mm bottom ends cast into and including 15Mpa concrete footing in ground including excavation, ramming, removal of spoil and leaving clean and neat","m",1]
[]
[]
[]
[]
[null,null,"Diamond Wire Mesh "]
[]
[null,16.39,"70 x 70mm Galvanised diamond wire mesh fence 1200mm high with seven horizontal strand wire of 2.9mm diameter fixed to posts, y-standards, droppers, etc with posts at 2475mm centres with 500mm bottom ends cast into and including 15Mpa concrete footing in ground including excavation, ramming, removal of spoil and leaving clean and neat","m",1]
[]
[null,{"v":16.4,"d":"16.40"},"70 x 70mm Galvanised diamond wire mesh fence 1800mm high with seven horizontal strand wire of 2.9mm diameter fixed to posts, y-standards, droppers, etc with posts at 2475mm centres with 500mm bottom ends cast into and including 15Mpa concrete footing in ground including excavation, ramming, removal of spoil and leaving clean and neat","m",1]
[]
[null,16.41,"70 x 70mm Galvanised diamond wire mesh fence 2000mm high with seven horizontal strand wire of 2.9mm diameter fixed to posts, y-standards, droppers, etc with posts at 2475mm centres with 500mm bottom ends cast into and including 15Mpa concrete footing in ground including excavation, ramming, removal of spoil and leaving clean and neat","m",1]
[]
[null,16.42,"70 x 70mm Galvanised diamond wire mesh fence 2400mm high with fourteen horizontal strand wire of 2.9mm diameter fixed to posts, y-standards, droppers, etc with posts at 2475mm centres with 500mm bottom ends cast into and including 15Mpa concrete footing in ground including excavation, ramming, removal of spoil and leaving clean and neat","m",1]
[]
[null,16.43,"Post 2000 x 101 x 3mm hot dipped galvanised","no",1]
[]
[null,16.44,"Stay 2000 x 48 x 2m hot dipped galvanised","no",1]
[]
[null,16.45,"Y - standard 1850mm","no",1]
[]
[null,null,"Razor flat-wrap"]
[]
[null,16.46,"To top or bottom of fence","m",1]
[]
[null,16.47,"Razor Barbed Wire","m",1]
[]
[null,null,"CARPOTS WITH ROOF SHEETING TO SLIGHT FALLS"]
[]
[null,null,"Carpots comprising the following: concrete foundations for columns to be 20Mpa concrete, 500 x 500 x 600mm deep including all excavations, backfilling, compaction, carting away, etc; columns 76 x 76 x 3mm hot rolled tubing with 150 x 150 x 3mm base plates and 200 x 70 x 6mm top flanges: columns 2600mm minimum height, beams; 76 x 76 x3mm hot rolled tubing with closed ends; beams bolted to columns with two 10 x 100mm bolts and nuts at each column; purlins; 150 x 75 x 20 x3mm hot rolled lipped channels bolted to cleats on beams with 0.5mm thick chromadek finished IBR profile roof sheeting; all steelwork cleaned with degreaser and painted with one each of red oxide and universal primer with two coats enamel paint"]
[]
[null,16.48,"Carpot comprising one bay, 2,5 x 5,0m on plan, including cutting of existing paving blocks around columns","no",1]
[]
[null,16.49,"Range of carpots (one row) comprising two bays, each bay 2,5 x 5,0m on plan, with carpot structure stepped over sloping site if required, including cutting of existing paving blocks around columns","no",1]
[]
[null,{"v":16.5,"d":"16.50"},"Range of carpots (one row) comprising three bays, each bay 2,5 x 5,0m on plan, with carpot structure stepped over sloping site if required, including cutting of existing paving blocks around columns","no",1]
[]
[null,16.51,"Range of carpots (one row) comprising four bays, each bay 2,5 x 5,0m on plan, with carpot structure stepped over sloping site if required, including cutting of existing paving blocks around columns","no",1]
[]
[null,16.52,"Range of carpots (one row) comprising five bays, each bay 2,5 x 5,0m on plan, with carpot structure stepped over sloping site if required, including cutting of existing paving blocks around columns","no",1]
[]
[null,16.53,"Range of carpots (one row) comprising six bays, each bay 2,5 x 5,0m on plan, with carpot structure stepped over sloping site if required, including cutting of existing paving blocks around columns","no",1]
[]
[null,null,"PHYSICAL BARRIERS"]
[]
[null,null,"BOOM GATES"]
[]
[null,16.54,"Steel boom gates not exceeding 6000mm long","no",1]
[]
[null,null,"BOLLARDS"]
[]
[null,16.55,"200mm Diameter precast concrete bollards not exceeding 1500mm","no",1]
[]
[null,16.56,"200mm Diameter steel bollards with concrete infill not exceeding 1500mm","no",1]
[]
[null,16.57,"400 x 400mm precast concrete dustbin not exceeding 1500mm high","m",1]
[]
[null,null,"CONCRETE CHANNEL"]
[]
[null,null,"25Mpa/19mm"]
[]
[null,16.58,"600X150mm thick concrete stormwater channel including all necessary excavations,casting and laying in panels,formwork,soft board and finishing smooth","m2",1]
["SUB-TOTAL ",{"$nulls":4},{"$f":"SUM(F3491:F3677)","v":0}]
[]
[]
[null,null,"SCHEDULE No. 17"]
[]
[null,null,"PLUMBING AND DRAINAGE"]
[]
[null,null,"Description"]
[]
[null,null,"Where \"Replace\" or \"Replacing\" appears in this document it shall be deemed to include taking up/out and carting away from site"]
[]
[null,null,"SUPPLEMENTARY PREAMBLES"]
[]
[null,null,"uPVC pipes and fittings"]
[]
[null,null,"Sewer and drainage pipes and fittings shall be jointed and sealed with butyl rubber rings"]
[]
[null,null,"Soil, waste and vent pipes and fittings shall be solvent weld jointed"]
[]
[null,null,"uPVC pressure pipes and fittings"]
[]
[null,null,"Pipes for water supply shall be of the class stated"]
[]
[null,null,"Pipes of 40mm diameter and smaller shall be plain ended with solvent welded uPVC loose sockets and fittings"]
[]
[null,null,"Pipes of 50mm diameter and greater shall have sockets and spigots with push-in type integral rubber ring joints.  Bends shall be uPVC and all other fittings shall be cast iron, all with similar push-in type joints"]
[]
[null,null,"Copper pipes"]
[]
[null,null,"Pipes shall be hard drawn and half-hard pipes of the class stated.  Class 0 (thin walled hard drawn) pipes shall not be bent.  Class 1 (thin walled half-hard) class 2 (half-hard) and class 3 (heavy walled half-hard) pipes shall only be bent with benders with inner and outer formers.  Fitting to copper waste, vent and anti-syphon pipes, "]
[null,null,"capillary solder fittings and compression fittings shall be \"Cobra Watertech\" type.  Capillary solder fittings shall comply with ISO 2016.  Only compression fittings shall be used in walls or in ground"]
[]
[null,null,"Reducing fittings"]
[]
[null,null,"Where fittings have reducing ends or branches they are described as \"reducing\".  In the case of pipes with diameters not exceeding 60mm only the largest end or branch size is given.  Should the contractor wish to use other fittings and bushes or reducers he may do so on the understanding that no claim in this regard will be entertained."]
[]
[null,null,"In the case of pipes with diameters exceeding 60mm all sizes are given and no claim for extra bushes, reducers, etc will be entertained"]
[]
[null,null,"Wire gratings"]
[]
[null,null,"Descriptions of gutter outlets etc shall be deemed to include wire balloon gratings"]
[]
[null,null,"Septic tanks"]
[]
[null,null,"Description of septic tanks shall be deemed to include excavations, bedding and jointing, concrete base slab, jointing to drains and backfilling, compaction, etc all in accordance with manufacturer's instructions"]
[]
[null,null,"Exposed concrete surfaces"]
[]
[null,null,"Exposed surfaces of concrete stormwater channels, cover slabs, inspection eye marker slabs, gully tops, cleaning eye tops, catchpits, inspection chambers, etc shall be finished smooth with plaster"]
[]
[null,null,"Excavations"]
[]
[null,null,"No claim for rock excavation will be entertained unless the contractor has timorously notified the Principal Agent thereof prior to backfilling"]
[]
[null,null,"\"Soft rock\" and \"hard rock\" shall be as defined in \"Earthworks\""]
[]
[null,null,"Laying, backfilling, bedding, etc of pipes"]
[]
[null,null,"Pipes shall be laid and bedded and trenches shall be carefully backfilled in accordance with manufacturers' instructions"]
[]
[null,null,"Where no manufactures' instructions exist pipes shall be laid in accordance with clause 5.1 and 5.2 of each of the following:"]
[null,null,"SABS 1200   L   :  Medium-pressure pipelines"]
[null,null,"                   LD  :  Sewers"]
[null,null,"                   LE  :  Stormwater drainage"]
[null,null,"Pipe trenches etc shall be backfilled in accordance with clause 3.1 to 3.4.1, 5.1 to 5.3 and 7 of SABS 1200 LB : Bedding (Pipes)."]
[null,null,"Unless otherwise described bedding of rigid pipes shall be class B bedding"]
[]
[null,null,"Flush pans"]
[]
[null,null,"Flush pans shall have straight or side outlets and \"P\" or \"S\" traps as necessary"]
[]
[null,null,"Stainless steel basins, sinks, wash troughs, urinals, etc"]
[]
[null,null,"Units shall have standard aprons an all exposed edges and tiling keys against walls where applicable"]
[]
[null,null,"Waste unions"]
[]
[null,null,"Descriptions of waste unions shall be deemed to include rubber or vulcanite plugs and chains fixed to fittings"]
[]
[null,null,"CLEAR GUTTER BLOCKAGE / DEBRIS"]
[]
[null,null,"Clean out gutters by removing all silt, etc. including rodding where necessary, leaving all surfaces free from any dirt or debris including lifting and refixing grille covers where required and disposal of all removed material."]
[]
[null,null,"Gutters not exceeding 3m above base level "]
[]
[null,17.1,"Eaves or box gutter not exceeding 200mm wide","m",1]
[]
[null,17.2,"Eaves or box gutter exceeding 200mm wide and not exceeding 500mm wide","m",1]
[]
[null,null,"Gutters exceeding 3m above base level not exceeding 6m above base level"]
[]
[null,17.3,"Eaves or box gutter not exceeding 200mm wide","m",1]
[]
[null,17.4,"Eaves or box gutter exceeding 200mm wide and not exceeding 500mm wide","m",1]
[]
[null,null,"Sundries"]
[]
[null,17.5,"Rainwater downpipe not exceeding 175mm x 100mm or 150mm diameter including bends, elbows, etc.","m",1]
[]
[null,17.6,"Full - Bore outlets not exceeding 150mm diameter","no",1]
[]
[null,null,"REPLACE DAMAGED UNDERGROUND SEWER PIPE AND FITTINGS"]
[]
[null,null,"Locate, excavate for and replace damage to uPVC drain pipe and / or fittings in landscaped areas(excavation and backfilling measured elsewhere)"]
[]
[null,null,"Laid in excavations not exceeding 1m deep"]
[]
[null,17.7,"110mm Ø pipe","m",1]
[]
[null,17.8,"160mm Ø pipe","m",1]
[]
[null,null,"Laid in excavations exceeding 1m and not exceeding 2m deep"]
[]
[null,17.9,"110mm Ø pipe","m",1]
[]
[null,{"v":17.1,"d":"17.10"},"160mm Ø pipe","m",1]
[]
[null,null,"uPVC fittings"]
[]
[null,17.11,"110mm Access lid","no",1]
[]
[null,17.12,"110mm Gulley grate","no",1]
[]
[null,17.13,"110mm Plain bend","no",1]
[]
[null,17.14,"110mm Access bend","no",1]
[]
[null,17.15,"110mm Plain junction","no",1]
[]
[null,17.16,"110mm Access junction","no",1]
[]
[null,17.17,"110mm Rodding eye","no",1]
[]
[null,17.18,"110mm Gulley head and grate","no",1]
[]
[null,17.19,"110mm Gulley 'P' trap","no",1]
[]
[null,{"v":17.2,"d":"17.20"},"160mm Access lid","no",1]
[]
[null,17.21,"160mm Plain bend","no",1]
[]
[null,17.22,"160mm Access bend","no",1]
[]
[null,17.23,"160mm Plain junction","no",1]
[]
[null,17.24,"160mm Access junction and cover","no",1]
[]
[null,17.25,"160mm Rodding eye","no",1]
[]
[null,17.26,"160 x 110mm Taper pipe","no",1]
[]
[null,null,"REPLACE DAMAGED GRATINGS, MANHOLE COVERS, ETC."]
[]
[null,null,"Carefully break out from concrete existing damaged frame and grating or manhole cover, replace with new including making good all existing finishers and leave in good working order."]
[]
[null,17.27,"560mm Diameter 125mm thick precast concrete removable cover","no",1]
[]
[null,17.28,"300 x 300mm x 10,3kg square dished grating,cover and frame","no",1]
[]
[null,17.29,"300 x 450mm x 53,2kg stormwater grating cover and frame","no",1]
[]
[null,{"v":17.3,"d":"17.30"},"450 x 450mm x 28,5kg Type 14B cast iron single seal manhole cover and frame.","no",1]
[]
[null,17.31,"450 x 600mm x 68kg Type 9D cast iron single seal manhole cover and frame.","no",1]
[]
[null,17.32,"530 x 530mm x 67kg Type 12 cast iron single seal manhole cover and frame.","no",1]
[]
[null,17.33,"450 x 600mm x 72kg Type 8A cast iron double seal manhole cover and frame.","no",1]
[]
[null,17.34,"550mm Diameter type 4 circular road manhole cover excluding frame.","no",1]
[]
[null,null,"CONSTRUCTED NEW INSPECTION CHAMBER"]
[]
[null,null,"Excavate in earth or pickable material for, and build inspection chamber with 150mm thick 15MPa/20mm concrete bottom extending 100mm all round manhole perimeter, with one brick sides of 14MPa bricks in class I mortar, the internal faces of brickwork rendered in one coat cement plaster steel trowelled smooth and covered with a 150mm thick 25MPa/20mm concrete top of walls to finish flush with surface of ground and finished on exposed faces with 25mm thick untinted granolithic with all salient angles rounded and rebated on the inner edges for manhole cover and frame (elsewhere measured);  the bottom to be benched up in 15MPa/20mm concrete finished smooth including backfilling and compacting to external walls as required."]
[]
[null,17.35,"Inspection chamber 450 x 600mm and not exceeding 750mm deep internally.","no",1]
[]
[null,17.36,"Inspection chamber 900 x 600mm and exceeding 750mm and not exceeding 1000mm deep internally.","no",1]
[]
[null,17.37,"Inspection chamber 900 x 600mm and exceeding 1000mm and not exceeding 1250mm deep internally.","no",1]
[]
[null,17.38,"Inspection chamber 900 x 900mm and exceeding 1250mm and not exceeding 1500mm deep internally.","no",1]
[]
[null,null,"Excavate in earth or pickable material for, and build inspection chamber with 200mm thick 15MPa/20mm cast in situ concrete bottom extending 100mm all round manhole perimeter, with precast concrete circular shaft sections jointed and sealed with Denso Sealostrip, covered with a precast concrete top rebated on the inner edges for manhole cover and frame (elsewhere measured) finishing flush with surface of ground;  the bottom to be benched up in 15MPa/20mm concrete finished smooth including backfilling and compacting to external shaft walls as required."]
[]
[null,17.39,"Inspection chamber 750mm diameter and not exceeding 750mm deep internally","no",1]
[]
[null,{"v":17.4,"d":"17.40"},"Inspection chamber 750mm diameter and exceeding 750 and not exceeding 1000mm deep internally","no",1]
[]
[null,17.41,"Inspection chamber 750mm diameter and exceeding 1000mm and not exceeding 1250mm deep internally","no",1]
[]
[null,17.42,"Inspection chamber 750mm diameter and exceeding 1250mm and not exceeding 1500mm deep internally","no",1]
[]
[null,17.43,"Inspection chamber 750mm diameter and exceeding 2000mm and not exceeding 3000mm deep internally with the lower 1,5m depth increased to 1250mm diameter and 150mm precast concrete reducer slab over enlarged bottom portion.","no",1]
[]
[]
[]
[]
[null,null,"REPLACE DAMAGED SANITARY FITTINGS"]
[]
[null,null,"Carefully take out and remove damaged sanitary fitting, replace with new including effecting all existing brackets, couplings, connections and re-fixing existing taps, valves, etc. making good existing finishers as necessary and leave in good working order."]
[]
[null,null,"Stainless Steel"]
[]
[null,17.44,"Stainless steel wall hung urinal.","no",1]
[]
[null,17.45,"Stainless steel wash hand basin.","no",1]
[]
[null,17.46,"Stainless steel WC pan with P trap.","no",1]
[]
[null,17.47,"Sink and drainer 900 x 530mm wide with one bowl","no",1]
[]
[null,17.48,"Sink and drainer 1200 x 530mm wide with one bowl","no",1]
[]
[null,17.49,"Sink and drainer 1350 x 530mm wide with one bowl","no",1]
[]
[null,{"v":17.5,"d":"17.50"},"Sink and drainer 1575 x 530mm wide with two bowls","no",1]
[]
[null,17.51,"Sink and drainer 1800 x 530mm wide with two bowls","no",1]
[]
[null,17.52,"525 x 530mm Laundry tub with one bowl","no",1]
[]
[null,17.53,"1050 x 530mm Laundry tub with two bowls","no",1]
[]
[null,17.54,"Combination curved back trough urinal 1350mm high with standard integral automatic flushing tray, drip cock and hinged domical grating not exceeding 1200mm long.","no",1]
[]
[null,17.55,"Combination curved back trough urinal 1350mm high with standard integral automatic flushing tray, drip cock and hinged domical grating exceeding 1200mm and not exceeding 1800mm long.","no",1]
[]
[null,null,"Vitreous China Sanitaryware - \"Vaal\" or equally approved"]
[]
[null,17.56,"White vitreous china pan with S trap.","no",1]
[]
[null,17.57,"White vitreous china pan with P trap.","no",1]
[]
[null,17.58,"White vitreous china pan with side outlet.","no",1]
[]
[null,17.59,"Gypsy vandal resistant WC toilet pan.","no",1]
[]
[null,{"v":17.6,"d":"17.60"},"Vitreous china wall hung urinal.size: 420mm x 320mm x 280mm","no",1]
[]
[null,17.61,"Vitreous china wall hung urinal.size: 600mm x 390mm x 390mm","no",1]
[]
[null,17.62,"Gypsy vandal resistant urinal.","no",1]
[]
[null,17.63,"Vitreous china wash hand basin. Size 550mm x 400 mm","no",1]
[]
[null,17.64,"Vitreous china wash hand basin. Size 450mm x 200 mm cloak room basin","no",1]
[]
[null,17.65,"Universal basin pedestal","no",1]
[]
[null,17.66,"Gypsy vandal resistant wash hand basin.","no",1]
[]
[null,17.67,"1830 x 680mm White plexicor Heavy Duty bath with handles.","no",1]
[]
[null,17.68,"Pressed metal bath.","no",1]
[]
[null,17.69,"White fire clay drip sink size 540 x 4680 X 180mm, including chromium plated grid. ","no",1]
[]
[null,{"v":17.7,"d":"17.70"},"9 Litre plastic low level flushing cistern.","no",1]
[]
[null,17.71,"9 Litre shires low level flushing cistern.","no",1]
[]
[null,17.72,"9 Litre vitreous china low level flushing cistern.","no",1]
[]
[null,17.73,"9 Litre stainless (18/8) steel high level flushing cistern.","no",1]
[]
[null,17.74,"9 Litre shires high level flushing cistern.","no",1]
[]
[null,17.75,"9 Litre vitreous china high level flushing cistern.","no",1]
[]
[null,17.76,"9 Litre stainless steel high level flushing cistern.","no",1]
[]
[null,17.77,"450 x 300mm (approximately) Cloakroom basin ","no",1]
[]
[null,17.78,"Universal basin pedestal ","no",1]
[]
[null,17.79,"550 x 400mm (approximately) wash hand basin","no",1]
[]
[null,"17.80","600 x 400mm (approximately) Oval / Round vanity basin","no",1]
[]
[null,17.81,"Low level wc open rim washdown pan","no",1]
[]
[null,17.82,"Semi-close coupled wc open rim washdown pan","no",1]
[]
[null,17.83,"Close coupled wc open rim washdown pan","no",1]
[]
[null,17.84,"Wall hung wc open rim pan (flushing valve elsewhere)","no",1]
[]
[null,17.85,"9 litre cistern complete with lid and fitments (flush pipe elsewhere)","no",1]
[]
[null,17.86,"9 litre cistern complete with lid, top dual push button and fitments (flush pipe elsewhere)","no",1]
[]
[null,17.87,"9 litre cistern complete with lid, dual flush handle and fitments (flush pipe elsewhere)","no",1]
[]
[null,17.88,"Wall hung bowl urinal, overall size 420 x 320 x 280mm (approximately) with 38mm c.p. Domical grating and top inlet spreader (flushing valve elsewhere)","no",1]
[]
[null,17.89,"Wall hung bowl urinal, overall size 600 x 390 x 390mm (approximately) with 38mm c.p. Domical grating and top inlet spreader (flushing valve elsewhere)","no",1]
[]
[null,"17.90","510 x 400mm \"Sola Medical 510\" white hospital basin Code 706200 including 32mm diameter chromium plated standing overflow tube Code 8630Z0, bolted to wall","no",1]
[]
[null,"17.91","510 x 405mm \"Hibiscus 844820\" white wash hand basin with two tap holes including integrated overflow and chainstay hole, bolted to wall","no",1]
[]
[null,17.92,"595 x 455mm \"Cameo\" white drop-in vanity basin Code 0006 with two tap holes including integrated overflow and chainstay hole, and silicone sealant all round","no",1]
[]
[null,17.93,"Low-level white closet for paraplegics comprising \"Protea(7502)\" pan with \"Masterbilt\" double flap plastic seat and 9litre Code710631 cistern with purpose made chromed side flush handle","no",1]
[]
[null,17.94,"\"Daisy\" white vitreous china WC semi-close coupled pan (code 774717) with matching 9litre cistern (code 710034) and white double flap plastic seat","no",1]
[]
[null,17.95,"\"Daisy\" white vitreous china \"Junior\" 1040 WC outlet washdown pan (code 751300)  and matching 6litre cistern (code 712034) complete with lid and fitments, and junior seat","no",1]
[]
[null,null,"Sundries"]
[]
[null,"17. 96","Replace sink or wash hand basin stainless steel bracket including re-fixing sink or basin, connection, etc.","no",1]
[]
[null,17.97,"Re-fix existing wash hand basin to wall ","no",1]
[]
[null,17.98,"Replace wash hand basin semi concealed cast iron bracket including re-fixing basin, connections, etc.","no",1]
[]
[null,17.99,"Re-fix existing high or low level wc cistern to wall","no",1]
[]
[null,"17.100","Replace wc heavy duty double flap plastic seat ","no",1]
[]
[null,17.101,"Replace wc masterbit woden double flap seat ","no",1]
[]
[null,17.102,"Replace PVC flush pipe rubber pan connector","no",1]
[]
[null,17.103,"Replace lucifer flush connector","no",1]
[]
[null,17.104,"Replace flush master rubber bung connector","no",1]
[]
[null,17.105,"Replace low level cistern PVC flush pipe, rubber pan connector and seals","no",1]
[]
[null,17.106,"Replace high level cistern PVC flush pipe, rubber pan connector and seals","no",1]
[]
[null,17.107,"Replace semi-close coupled cistern PVC flush pipe bend, rubber pan connector and seals","no",1]
[]
[null,17.108,"Replace high level flush chain","no",1]
[]
[null,17.109,"Replace matching cistern lid","no",1]
[]
[null,"17.110","Replace cistern float arm including ball and set water level","no",1]
[]
[null,17.111,"Replace cistern float valve and ball, connect supply and adjust water level","no",1]
[]
[null,17.112,"Replace cistern bottom inlet pedestal type float valve and ball, connect supply and set water level","no",1]
[]
[null,17.113,"Replace flushing valve mechanism complete with rubber washers, etc.","no",1]
[]
[null,17.114,"Replace Syphonic flushing valve unit complete with rubber washers, etc.","no",1]
[]
[null,17.115,"Attend to and service / fix faulty cistern including replacing all washers, seals, adjusting flushing mechanism, etc. and leave in good working order.","no",1]
[]
[null,null,"REPLACE DAMAGED WASTE UNIONS, ETC."]
[]
[null,null,"Carefully take out and remove damaged item, replace with new including backnut, plug and chain; and making good existing finishers as necessary."]
[]
[null,17.116,"32mm Chromium plated bath overflow union","no",1]
[]
[null,17.117,"32mm Chromium plated basin waste union","no",1]
[]
[null,17.118,"40mm chromium plated shower waste and grating","no",1]
[]
[null,17.119,"40mm Chromium plated bath or sink waste union","no",1]
[]
[null,null,"Sundries"]
[]
[null,"17.120","Replace CP shower grating","no",1]
[]
[null,17.121,"Replace plug and chain","no",1]
[]
[null,17.122,"Replace CP anti-theft plug and spindle","no",1]
[]
[null,17.123,"Attend to, fix leaking waste union and tighten backnut","no",1]
[]
[null,null,"REPLACE DAMAGED TRAPS, ETC."]
[]
[null,null,"Carefully take out and remove damaged item, replace with new including washers, flanges, capnuts, pipe clips, etc. and making good existing finishers as necessary."]
[]
[null,null,"TRAPS"]
[]
[null,null,"uPVC"]
[]
[null,17.124,"32mm \"P\" or \"S\" trap","no",1]
[]
[null,17.125,"32mm Bottle trap","no",1]
[]
[null,17.126,"40mm \"P\" or \"S\" trap","no",1]
[]
[null,17.127,"40mm Bottle trap","no",1]
[]
[null,17.128,"40mm shower trap with chromium plated grating","no",1]
[]
[null,null,"Flexi-Rubber"]
[]
[null,17.129,"40mm \"P\" or \"S\" trap","no",1]
[]
[null,"17.130","32 x 40mm  \"P\" or \"S\" trap.","no",1]
[]
[null,17.131,"32 x 32mm  \"P\" or \"S\" trap.","no",1]
[]
[null,17.132,"40 x 40mm \"P\" or \"S\" trap.","no",1]
[]
[null,17.133,"40 x 300mm sink combination for double bowl \"P\" trap","no",1]
[]
[null,null,"Brass"]
[]
[null,17.134,"40mm Shower or bath trap with chromium plated grating","no",1]
[]
[null,null,"Chromium plated - \"Cobra Watertech\" or equally approved"]
[]
[null,17.135,"32mm \"345/40CP\" bottle traps","no",1]
[]
[null,17.136,"40mm \"345/40CP\" bottle traps","no",1]
[]
[null,17.137,"32mm CP extension piece with sliding wall flange","no",1]
[]
[null,null,"Sundries"]
[]
[null,17.138,"Attend to and repair leaking joint to exposed trap","no",1]
[]
[null,17.139,"Attend to and repair leaking joint to concealed or flush trap","no",1]
[]
[null,null,"REPLACE DAMAGED TAPS, VALVES, ETC."]
[]
[null,null,"Carefully take out and remove damaged item, replace with new including handle styles to match existing, washers, flanges, capnuts, couplers, etc. and making good existing finishers as necessary."]
[]
[null,null,"Brass"]
[]
[null,"17.140","15mm Stopcock.","no",1]
[]
[null,17.141,"20mm Stopcock.","no",1]
[]
[null,17.142,"20mm Bibtap","no",1]
[]
[null,17.143,"20mm Hose bibtap","no",1]
[]
[null,17.144,"20mm Hose bibtap with lockshield and loose key","no",1]
[]
[null,17.145,"20mm stoptap","no",1]
[]
[null,17.146,"15mm stoptap with lockshield and loose key","no",1]
[]
[null,17.147,"20mm Fullway gate valve","no",1]
[]
[null,17.148,"25mm Fullway gate valve","no",1]
[]
[null,17.149,"32mm Fullway gate valve","no",1]
[]
[null,"17.150","40mm Fullway gate valve","no",1]
[]
[null,17.151,"50mm Fullway gate valve","no",1]
[]
[null,17.152,"65mm Fullway gate valve","no",1]
[]
[null,17.153,"80mm Fullway gate valve","no",1]
[]
[null,17.154,"100mm Fullway gate valve","no",1]
[]
[null,17.155,"15mm Shut off valve.","no",1]
[]
[null,17.156,"20mm Shut off valve.","no",1]
[]
[null,17.157,"25mm Shut off valve.","no",1]
[]
[null,17.158,"50mm Shut off valve.","no",1]
[]
[null,null,"Chromium plated - Heavy pattern SABS 226 - 1987 - Class 1"]
[]
[null,null,"\"Cobra Watertech\" or equally approved"]
[]
[null,17.159,"15mm stopcock.","no",1]
[]
[null,"17.160","20mm stopcock.","no",1]
[]
[null,17.161,"15mm ballcock.","no",1]
[]
[null,17.162,"20mm ballcock.","no",1]
[]
[null,17.163,"15mm pillar cock.","no",1]
[]
[null,17.164,"20mm pillar cock.","no",1]
[]
[null,17.165,"15mm bib cock.","no",1]
[]
[null,17.166,"20mm bib cock.","no",1]
[]
[null,17.167,"15mm Raised nose pillartap - 3314SB including flexi pipe","no",1]
[]
[null,17.168,"20mm Raised nose pillartap - 3314ST including flexi pipe","no",1]
[]
[null,17.169,"15mm Bibtap star - 108-15","no",1]
[]
[null,"17.170","20mm Bibtap star - 108-20","no",1]
[]
[null,17.171,"Basin mixer pillartap with aerator - 3392SB including flexi pipe","no",1]
[]
[null,17.172,"Sink mixer pillartap with aerator - 3396SB, including flexi pipe","no",1]
[]
[null,17.173,"Sink mixer Bibtap with aerator - 3366/041/10SB","no",1]
[]
[null,17.174,"15mm undertile stoptap star - 128-15","no",1]
[]
[null,17.175,"20mm undertile stoptap star - 128-15","no",1]
[]
[null,17.176,"21mm Medical bibtap - 500-21B (Elbow action)","no",1]
[]
[null,17.177,"21mm Medical pillartap - 503-21B (Elbow action) with flexi pipe","no",1]
[]
[null,17.178,"21mm Medical wall bib mixer - 511-21 (Elbow action) with flexi pipe","no",1]
[]
[null,17.179,"21mm Medical pillar mixer - 515-21 (Elbow action) with flexi pipe","no",1]
[]
[null,"17.180","21mm Medical wall mounted bib mixer - 515/055-21 (Elbow action) with flexi pipe","no",1]
[]
[null,"17.181","EL3010 Single hole electronic controlled touch-free wash hand basin faucet including blender.","no",1]
[]
[null,17.182,"KD2.204 “Mastertherm II” Thermostatic Temperature Controller.","no",1]
[]
[null,17.183,"15mm \"Code KM2.100\" metering pillartap","no",1]
[]
[null,17.184,"15mm Extension piece 75mm long ","no",1]
[]
[null,17.185,"20mm Extension piece 75mm long ","no",1]
[]
[null,17.186,"15mm Extension piece with sliding wall flange","no",1]
[]
[null,17.187,"20mm Extension piece with sliding wall flange","no",1]
[]
[null,17.188,"15mm angle regulating valve","no",1]
[]
[null,17.189,"15mm angle regulating valve with 350mm long tube and capnut","no",1]
[]
[null,"17.190","Shower head \"Code KP2.6\"","no",1]
[]
[null,"17.191","15mm Overhead shower arm 300mm x 90 degree projection with wall flange and 85mm Ø shower CP rose","no",1]
[]
[null,"17.192","15mm Ball joint angle shower connector with fascia wall plate and 85mm Ø shower CP rose","no",1]
[]
[null,17.193,"100mm Diameter shower roses.","no",1]
[]
[null,17.194,"Adjustable type shower roses.","no",1]
[]
[null,17.195,"Vandal proof heavy duty shower roses","no",1]
[]
[null,17.196,"20mm Plain bath spout with round wall flange","no",1]
[]
[null,17.197,"20mm Plain square pattern bath spout with round wall flange","no",1]
[]
[null,17.198,"20mm Pillar type plain bath spout with 230mm throw","no",1]
[]
[null,17.199,"20mm \"Flushmaster Junior\" (FJ2.000) exposed type toilet flush valve CP with integral ball-o-stop valve and wallplate","no",1]
[]
[null,"17.200","20mm \"Flushmaster Junior\" (FJ4.001) concealed type toilet flush valve BC with integral ball-o-stop valve and captive linkage","no",1]
[]
[null,"17.201","20mm \"Flushmaster Junior\" (FJ6.000) exposed type urinal flush valve CP with integral ball-o-stop valve and wallplate","no",1]
[null,null,"     "]
[null,17.202,"20mm \"Flushmaster Junior\" (FJ6.000) concealed type urinal flush valve CP with integral ball-o-stop valve and wallplate","no",1]
[]
[null,17.203,"32mm \"Standard Flushmaster\" (FM1.000) concealed type toilet flush valve CP with integral vacuum breaker, non-return valve, ball-o-stop, wallplate and activation lever ","no",1]
[]
[null,17.204,"32mm \"Standard Flushmaster\" (FM1.100) exposed type toilet flush valve CP with integral vacuum breaker, non-return valve, ball-o-stop, wallplate, activation lever, flush pipe and rubber pan connector","no",1]
[]
[null,17.205,"32mm \"Standard Flushmaster\" (FM2.000) exposed type toilet back entry flush valve CP with integral vacuum breaker, non-return valve, ball-o-stop and wallplate","no",1]
[]
[null,17.206,"Push button assembly CP with pushrod for concealed flush valves","no",1]
[]
[null,17.207,"Straight bowl type urinal flush pipe and spreader","no",1]
[]
[null,17.208,"Offset bowl type urinal flush pipe and spreader","no",1]
[]
[null,17.209,"22mm CP Straight urinal flush pipe with rubber pipe connector","no",1]
[]
[null,"17.210","22mm CP Bent urinal flush pipe with rubber pipe connector","no",1]
[]
[null,17.211,"25mm CP Straight toilet flush pipe with rubber pipe connector and seat buffer","no",1]
[]
[null,17.212,"25mm CP Bent toilet flush pipe with rubber pipe connector and seat buffer","no",1]
[]
[null,17.213,"38mm CP Straight toilet flush pipe with rubber pipe connector and seat buffer","no",1]
[]
[null,"17.114","EL3003 Electronic thermostatic controlled touch-free wash hand basin mixer for wall / twin-hole basin fixing.","no",1]
[]
[null,17.215,"38mm CP Bent toilet flush pipe with rubber pipe connector and seat buffer","no",1]
[]
[null,17.216,"Copper connectors 300mm long.","no",1]
[]
[null,17.217,"Copper connectors 450mm long.","no",1]
[]
[null,17.218,"Flexible steel braided connectors 300mm long.","no",1]
[]
[null,17.219,"Flexible steel braided connectors 450mm long.","no",1]
[]
[null,null,"Sundries"]
[]
[null,"17.220","Replace 15 x 350mm long flexi tube CP ","no",1]
[]
[null,17.221,"Replace 15mm standard Headpart RB","no",1]
[]
[null,17.222,"Replace 15mm standard Headpart RB and spindle cover CP","no",1]
[]
[null,17.223,"Replace 20mm standard Headpart RB","no",1]
[]
[null,17.224,"Replace 20mm standard Headpart RB and spindle cover CP","no",1]
[]
[null,17.225,"Repair leaking joint to urinal flushpipe or spreader","no",1]
[]
[null,17.226,"Replace leaking or damaged rubber flushpipe connector","no",1]
[]
[null,17.227,"Replace leaking or damaged compression rubber flushpipe connector","no",1]
[]
[null,17.228,"Service and clean out \"Flushmaster Junior Flushvalve\" unit using standard washer kit including adjusting water flow and leave in good working order (replacement parts elsewhere)","no",1]
[]
[null,17.229,"Service and clean out \"Standard Flushmaster Flushvalve\" unit using standard washer kit and handle seal including adjusting water flow and leave in good working order (replacement parts elsewhere)","no",1]
[]
[null,null,"REPLACE DAMAGED SOIL, SEWER, WASTE, VENT PIPE AND FITTINGS"]
[]
[null,null,"PVC-U SOIL, SEWERAGE"]
[]
[null,null,"Supply and install PVC-U class 51 - 100kPa Normal duty pipes, alteration, bedding and backfill measured elsewhere"]
[]
[null,"17.230","110mm Pipes","m",1]
[]
[null,17.231,"160mm Pipes","m",1]
[]
[null,17.232,"200mm Pipes","m",1]
[]
[null,null,"Supply and install PVC-U class 34 - 300kPa Normal duty pipes, alteration, bedding and backfill measured elsewhere"]
[]
[null,17.233,"110mm Pipes","m",1]
[]
[null,17.234,"160mm Pipes","m",1]
[]
[null,17.235,"200mm Pipes","m",1]
[]
[null,null,"Extra over uPVC pipes for fittings"]
[]
[null,17.236,"110mm Bend","no",1]
[]
[null,17.237,"160mm Bend","no",1]
[]
[null,17.238,"110mm Access Bend","no",1]
[]
[null,17.239,"160mm Access Bend","no",1]
[]
[null,"17.240","110mm Rodding eye","no",1]
[]
[null,17.241,"110 x 45deg mm Rodding eye lid","no",1]
[]
[null,17.242,"160mm Rodding eye inspection lid","no",1]
[]
[null,17.243,"110 x 45deg RIB junction","no",1]
[]
[null,17.244,"110 x 90deg RIB junction","no",1]
[]
[null,17.245,"160 x 45deg RIB junction","no",1]
[]
[null,17.246,"160 x 90deg RIB junction","no",1]
[]
[null,17.247,"110 x 90deg Access junction","no",1]
[]
[null,17.248,"160 x 45deg Access junction","no",1]
[]
[null,17.249,"160 x 90deg Access junction","no",1]
[]
[null,"17.250","110 x 45deg Access junction","no",1]
[]
[null,17.251,"160 x 110 x 45deg RIB S/R/Junction","no",1]
[]
[null,17.252,"110mm dia single socket","no",1]
[]
[null,17.253,"160mm dia single socket","no",1]
[]
[null,17.254,"110mm dia end cap","no",1]
[]
[null,17.255,"160mm dia end cap","no",1]
[]
[null,17.256,"110mm PVC adaptor to earthenware pipe.","no",1]
[]
[null,17.257,"110mm PVC adaptor to cast iron pipe.","no",1]
[]
[null,17.2579999999999,"100mm PVC gulley traps, with gulley head and grate round.","no",1]
[]
[null,17.2589999999999,"110mm PVC double sockets (Kimberley type).","no",1]
[]
[null,null,"WASTE AND VENT PIPES STACKING - Freeflo"]
[]
[null,null,"Carefully take out and remove damaged section to uPVC waste pipe and / or fittings, replace with new including  holderbats, pipe clips, etc. as necessary and leave in good working order."]
[]
[null,"17.260","40mm Ø pipe","m",1]
[]
[null,17.261,"50mm Ø pipe","m",1]
[]
[null,17.262,"75mm Ø pipe","m",1]
[]
[null,17.263,"110mm Ø pipe","m",1]
[]
[null,17.264,"160mm Ø pipe","m",1]
[]
[null,null,"uPVC waste fittings"]
[]
[null,17.265,"40mm Access lid","no",1]
[]
[null,17.266,"40mm Single socket","no",1]
[]
[null,17.267,"40mm Bend","no",1]
[]
[null,17.268,"40mm Access bend","no",1]
[]
[null,17.269,"40mm Junction","no",1]
[]
[null,"17.270","40mm Access junction","no",1]
[]
[null,17.271,"40mm Adaptor","no",1]
[]
[null,17.272,"40mm Reducing socket","no",1]
[]
[null,17.273,"40mm Air vent cowl","no",1]
[]
[null,17.274,"50mm Access lid","no",1]
[]
[null,17.275,"50mm Single socket","no",1]
[]
[null,17.276,"50mm Bend","no",1]
[]
[null,17.277,"50mm Access bend","no",1]
[]
[null,17.278,"50mm Junction","no",1]
[]
[null,17.279,"50mm Access junction","no",1]
[]
[null,"17.280","50mm Adaptor","no",1]
[]
[null,17.281,"50mm Reducing socket","no",1]
[]
[null,17.282,"50mm Air vent cowl","no",1]
[]
[null,17.283,"50mm One-Way vent valve","no",1]
[]
[null,17.284,"50mm Two-Way vent valve","no",1]
[]
[null,17.285,"110mm Access lid","no",1]
[]
[null,17.286,"110mm Single socket","no",1]
[]
[null,17.287,"110mm Double socket","no",1]
[]
[null,17.288,"110mm Bend","no",1]
[]
[null,17.289,"110mm Access bend","no",1]
[]
[null,"17.290","110mm Access bend with vent horn","no",1]
[]
[null,17.291,"110mm Single junction","no",1]
[]
[null,17.292,"110mm Access single junction","no",1]
[]
[null,17.293,"110mm Reducing junction","no",1]
[]
[null,17.294,"110mm Access reducing junction","no",1]
[]
[null,17.295,"110mm Double junction","no",1]
[]
[null,17.296,"110mm Access double junction","no",1]
[]
[null,17.297,"110mm Double reducing junction","no",1]
[]
[null,17.298,"110mm Access double reducing junction","no",1]
[]
[null,17.299,"110mm Pan collar","no",1]
[]
[null,"17.300","110mm Bent pan collar","no",1]
[]
[null,17.301,"110mm Access bent pan collar","no",1]
[]
[null,17.302,"110 x 50mm Eccentric reducer","no",1]
[]
[null,17.303,"110mm Air vent cowl","no",1]
[]
[null,17.304,"110mm One-Way vent valve","no",1]
[]
[null,17.305,"110mm Two-Way vent valve","no",1]
[]
[null,17.306,"Extra over PVC pipes for 40mm PVC male or female adaptors.","no",1]
[]
[null,17.307,"Extra over PVC pipes for 50mm PVC male or female adaptors.","no",1]
[]
[null,17.308,"Extra over PVC pipes for 110mm PVC vent horn bend.","no",1]
[]
[null,null,"Carefully take out and remove damaged section to Plain Ended Cast Iron pipe and / or fittings, replace with new including  SSN couplings, holderbats, pipe clips, etc. as necessary and leave in good working order."]
[]
[null,"17.309","50mm Ø pipe","m",1]
[]
[null,"17.310","75mm Ø pipe","m",1]
[]
[null,17.311,"100mm Ø pipe","m",1]
[]
[null,null,"Cast Iron fittings"]
[]
[null,17.312,"50mm End cap","no",1]
[]
[null,17.313,"50mm Bend","no",1]
[]
[null,17.314,"50mm Junction","no",1]
[]
[null,17.315,"100mm End cap","no",1]
[]
[null,17.316,"100mm Access lid","no",1]
[]
[null,17.317,"100 x 50mm Eccentric reducer","no",1]
[]
[null,17.318,"100 x 75mm Eccentric reducer","no",1]
[]
[null,17.319,"100mm Bend","no",1]
[]
[null,{"v":17.32,"d":"17.320"},"100mm Access bend","no",1]
[]
[null,17.321,"100mm Junction","no",1]
[]
[null,17.322,"100mm Access Junction","no",1]
[]
[null,17.323,"100mm Double junction","no",1]
[]
[null,17.324,"100mm Access double junction","no",1]
[]
[null,17.325,"100mm Reducing junction","no",1]
[]
[null,17.326,"100mm Access reducing junction","no",1]
[]
[null,17.327,"100mm Combined junction / bend","no",1]
[]
[null,17.328,"100mm Double combined junction / bend","no",1]
[]
[null,17.329,"100mm Iron to earthenware connector","no",1]
[]
[null,{"v":17.33,"d":"17.330"},"100mm ABC cleaning eye and cover","no",1]
[]
[null,null,"Carefully take out and remove damaged section to Galvanised Steel pipe and / or fittings, replace with new including holderbats, pipe clips, etc. as necessary and leave in good working order."]
[]
[null,17.331,"15mm Ø pipe","m",1]
[]
[null,17.332,"20mm Ø pipe","m",1]
[]
[null,17.333,"25mm Ø pipe","m",1]
[]
[null,17.334,"32mm Ø pipe","m",1]
[]
[null,17.335,"40mm Ø pipe","m",1]
[]
[null,17.336,"50mm Ø pipe","m",1]
[]
[null,17.337,"80mm Ø pipe","m",1]
[]
[null,17.338,"100mm Ø pipe","m",1]
[]
[null,17.339,"150mm Ø pipe","m",1]
[]
[null,null,"Sundries"]
[]
[null,"17.340","Seal leaking uPVC  or cast iron WC pan connector joint","no",1]
[]
[null,17.341,"Seal leaking uPVC waste or vent pipe joint not exceeding 75mm diameter","no",1]
[]
[null,17.342,"Seal leaking uPVC soil or vent pipe joint not exceeding 110mm diameter","no",1]
[]
[null,17.343,"Seal leaking plain ended cast iron waste or vent pipe joint not exceeding 75mm diameter","no",1]
[]
[null,17.344,"Seal leaking plain ended cast iron soil or vent pipe joint not exceeding 100mm diameter","no",1]
[]
[null,17.345,"Seal leaking spigot and socket cast iron waste or vent pipe joint not exceeding 75mm diameter","no",1]
[]
[null,17.346,"Seal leaking spigot and socket cast iron waste or vent pipe joint not exceeding 100mm diameter","no",1]
[]
[null,null,"Take off and remove existing “ Polyprop” piping fixed to walls  with holderbats and replace with new."]
[]
[null,17.347,"15mm Pipe.","m",1]
[]
[null,17.348,"22mm Pipe.","m",1]
[]
[null,17.349,"28mm Pipe.","m",1]
[]
[null,null,"Extra over \"Polyprop\" pipes for \"conex\" compression type fittings."]
[]
[null,"17.350","15mm Fittings.","no",1]
[]
[null,17.351,"22mm Fittings.","no",1]
[]
[null,17.352,"28mm Fittings.","no",1]
[]
[null,null,"REPLACE DAMAGED UNDERGROUND WATER PIPE AND FITTINGS"]
[]
[null,null,"Locate, isolate affected area, excavate for and replace damage to High Density Polyethylene (HDPE) water supply line and / or fittings in landscaped areas not exceeding 1m deep including ( Excavation and backfilling measured elsewhere)"]
[]
[null,null,"Class 16"]
[]
[null,17.353,"16mm Ø pipe ","m",1]
[]
[null,17.354,"20mm Ø pipe ","m",1]
[]
[null,17.355,"25mm Ø pipe ","m",1]
[]
[null,17.356,"32mm Ø pipe","m",1]
[]
[null,17.357,"40mm Ø pipe","m",1]
[]
[null,17.358,"50mm Ø pipe","m",1]
[]
[null,17.359,"100mm Ø pipe","m",1]
[]
[null,"17.360","160mm Ø pipe","m",1]
[]
[null,null,"Plasson compression fittings"]
[]
[null,"17.361","16mm fittings","no",1]
[]
[null,"17.362","20mm fittings","no",1]
[]
[null,"17.363","25mm fittings","no",1]
[]
[null,"17.364","32mm Elbow","no",1]
[]
[null,"17.365","40mm Elbow","no",1]
[]
[null,"17.366","50mm Elbow","no",1]
[]
[null,"17.367","65mm Elbow","no",1]
[]
[null,"17.368","32mm Tee","no",1]
[]
[null,"17.369","40mm Tee","no",1]
[]
[null,"17.370","50mm Tee","no",1]
[]
[null,"17.371","65mm Tee","no",1]
[]
[null,"17.372","32mm Reducing Tee","no",1]
[]
[null,"17.373","40mm Reducing Tee","no",1]
[]
[null,"17.374","50mm Reducing Tee","no",1]
[]
[null,"17.375","65mm Reducing Tee","no",1]
[]
[null,"17.376","32mm Coupler / Adaptor","no",1]
[]
[null,"17.377","40mm Coupler / Adaptor","no",1]
[]
[null,"17.378","50mm Coupler / Adaptor","no",1]
[]
[null,"17.379","65mm Coupler / Adaptor","m",1]
[]
[null,null,"Locate, isolate affected area, excavate for and replace damage to Galvanised Steel water supply line and / or fittings in landscaped areas not exceeding 1m deep (Excavation and backfilling measured elsewhere)"]
[]
[null,"17.380","15mm Ø pipe","m",1]
[]
[null,"17.381","20mm Ø pipe","m",1]
[]
[null,"17.382","25mm Ø pipe","m",1]
[]
[null,"17.383","32mm Ø pipe","m",1]
[]
[null,"17.384","40mm Ø pipe","m",1]
[]
[null,"17.385","50mm Ø pipe","m",1]
[]
[null,"17.386","65mm Ø pipe","m",1]
[]
[null,"17.387","80mm Ø pipe","m",1]
[]
[null,"17.388","100mm Ø pipe","m",1]
[]
[null,"17.389","150mm Ø pipe","m",1]
[]
[null,null,"Galvanised Steel fittings "]
[]
[null,"17.390","80mm Elbow","no",1]
[]
[null,"17.391","100mm Elbow","no",1]
[]
[null,"17.392","150mm Elbow","no",1]
[]
[null,"17.393","15mm fittings","no",1]
[]
[null,"17.394","20mm fittings","no",1]
[]
[null,"17.395","25mm fittings","no",1]
[]
[null,"17.396","32mm bend","no",1]
[]
[null,"17.397","40mm bend","no",1]
[]
[null,"17.398","50mm bend","no",1]
[]
[null,"17.399","65mm bend","no",1]
[]
[null,"17.400","80mm Bend","no",1]
[]
[null,"17.401","100mm Bend","no",1]
[]
[null,"17.402","32mm tee / reducing tee","no",1]
[]
[null,"17.403","40mm tee / reducing tee","no",1]
[]
[null,"17.404","50mm tee / reducing tee","no",1]
[]
[null,"17.405","65mm tee / reducing tee","no",1]
[]
[null,"17.406","80mm tee / reducing tee","no",1]
[]
[null,"17.407","100mm tee / reducing tee","no",1]
[]
[null,"17.408","150mm tee / reducing tee","no",1]
[]
[null,"17.409","32mm union","no",1]
[]
[null,"17.410","40mm union","no",1]
[]
[null,"17.411","50mm union","no",1]
[]
[null,"17.412","65mm union","no",1]
[]
[null,"17.413","80mm union","no",1]
[]
[null,"17.414","100mm union","no",1]
[]
[null,"17.415","32mm reducing bushes/sockets","no",1]
[]
[null,"17.416","40mm reducing bushes/sockets","no",1]
[]
[null,"17.417","50mm reducing bushes/sockets","no",1]
[]
[null,"17.418","80mm reducing bushes/sockets","no",1]
[]
[null,"17.419","100mm reducing bushes/sockets","no",1]
[]
[null,"17.420","150mm reducing bushes/sockets","no",1]
[]
[null,"17.421","32mm nipples","no",1]
[]
[null,"17.422","40mm nipples","no",1]
[]
[null,"17.423","50mm nipples","no",1]
[]
[null,"17.424","80mm nipples","no",1]
[]
[null,"17.425","100mm nipples","no",1]
[]
[null,"17.426","150mm nipples","no",1]
[]
[null,"17.427","32mm couplings","no",1]
[]
[null,"17.428","40mm couplings","no",1]
[]
[null,null,"REPLACE DAMAGED WATER PIPE AND FITTINGS (No excavation)"]
[]
[null,null,"Locate, isolate affected area and replace damage to Galvanised Steel water supply line and / or fittings including holderbats, pipe clips, etc. as necessary and leave in good working order."]
[]
[null,"17.429","15mm Ø pipe","m",1]
[]
[null,"17.430","20mm Ø pipe","m",1]
[]
[null,"17.431","25mm Ø pipe","m",1]
[]
[null,"17.432","32mm Ø pipe","m",1]
[]
[null,"17.433","40mm Ø pipe","m",1]
[]
[null,"17.434","50mm Ø pipe","m",1]
[]
[null,"17.435","80mm Ø pipe","m",1]
[]
[null,"17.436","100mm Ø pipe","m",1]
[]
[null,"17.437","150mm Ø pipe","m",1]
[]
[null,null,"Locate, isolate affected area and replace damage to SABS 460 Class 1 hard drawn Copper piping and / or fittings including holderbats, pipe clips, etc. as necessary and leave in good working order."]
[]
[null,"17.438","15mm Pipes","m",1]
[]
[null,"17.439","22mm pipes","m",1]
[]
[null,"17.440","28mm pipes","m",1]
[]
[null,"17.441","35mm pipes","m",1]
[]
[null,null,"Conex Compression fittings"]
[]
[null,"17.442","15mm fittings","no",1]
[]
[null,"17.443","22mm fittings","no",1]
[]
[null,"17.444","28mm fittings","no",1]
[]
[null,"17.445","35mm bend","no",1]
[]
[null,"17.446","35mm tee","no",1]
[]
[null,"17.447","35mm reducer tee","no",1]
[]
[null,"17.448","35mm elbow","no",1]
[]
[null,"17.449","35mm union","no",1]
[]
[null,null,"Copcal Capillary fittings"]
[]
[null,"17.450","22mm fittings","no",1]
[]
[null,"17.451","28mm fittings","no",1]
[]
[null,"17.452","35mm bend","no",1]
[]
[null,"17.453","35mm tee","no",1]
[]
[null,"17.454","35mm reducer tee","no",1]
[]
[null,"17.455","35mm elbow","no",1]
[]
[null,"17.456","35mm union","no",1]
[]
[null,null,"Sundries"]
[]
[null,"17.457","Carefully chase brickwork / concrete exposing damaged piping and / or fitting not exceeding 35mm diameter including making good plaster to match existing on completion (ceramic tiling and replacement elsewhere).","m",1]
[]
[null,"17.458","Carefully chase brickwork / concrete exposing damaged piping and / or fitting exceeding 35mm diameter including making good plaster and paint to match existing on completion (replacement elsewhere).","m",1]
[]
[null,"17.459","Apply new ceramic tiles to plastered or screeded finish including tile adhesive and grouting to match existing (in patches).","m²",1]
[]
[null,null,"REPLACE DAMAGED ELECTRIC WATER HEATERS AND ACCESSORIES"]
[]
[null,null,"Note : All repairs, servicing and replacement to geysers shall comply  with SANS 10254 Dated 15/10/2004"]
[null,null,"         "]
[null,null,"KWIKOT OR EQUIVALENT: Geyser with a 5-year warranty"]
[null,null,"Locate damage, isolate affected area including draining existing geyser, uncoupling water and electrical connection, lift and remove where required and replace with new  geyser and / or accessories complete with re-fitting connections and bond to earth, all fixings, mountings brackets, etc. and leave in good working order."]
[]
[null,"17.460","100 Litre standard high pressure universal wall or roof void mounted water heater complete with connection points for water inlet and outlet, safety valve connection point, sacrificial anode, spiral element and adjustable thermostat, drip tray, vacuum breakers (all other accessories elsewhere).","no",1]
[]
[null,"17.461","100 Litre semi pressure universal wall or roof void mounted water heater complete with connection points for water inlet and outlet, safety valve connection point, sacrificial anode, spiral element and adjustable thermostat, drip tray, vacuum breakers  (all other accessories elsewhere).","no",1]
[]
[null,17.462,"150 Litre standard high pressure universal wall or roof void mounted water heater complete with connection points for water inlet and outlet, safety valve connection point, sacrificial anode, spiral element and adjustable thermostat, drip tray, vacuum breakers  (all other accessories elsewhere).","no",1]
[]
[null,"17.463","150 Litre semi pressure universal wall or roof void mounted water heater complete with connection points for water inlet and outlet, safety valve connection point, sacrificial anode, spiral element and adjustable thermostat, drip tray, vacuum breakers  (all other accessories elsewhere).","no",1]
[]
[null,null,"HYDRO BOILER supply and install complete with a 1-year warranty"]
[]
[null,17.464,"2.5 Lt Kwikot Kwikboil or equivalent Instant Water Dispensor","no",1]
[]
[null,17.465,"5.0 Lt Kwikot Kwikboil or equivalent Instant Water Dispensor","no",1]
[]
[null,17.466,"7.5 Lt Kwikot Kwikboil or equivalent Instant Water Dispensor","no",1]
[]
[null,null,"Replacement Accessories"]
[]
[null,17.467,"20mm Brass temperature and pressure relief valve","no",1]
[]
[null,17.468,"Spiral element with thermostat pocket for 2, 3 or 4kW thermostat (thermostat elsewhere).","no",1]
[]
[null,17.469,"Sacrificial anode to match existing","no",1]
[]
[null,{"v":17.47,"d":"17.470"},"2kW thermostat integrated double pole contact","no",1]
[]
[null,17.471,"3kW thermostat integrated double pole contact","no",1]
[]
[null,17.472,"4kW thermostat integrated double pole contact","no",1]
[]
[null,17.473,"20mm MI or 22mm CxC Brass vacuum breaker","no",1]
[]
[null,17.474,"22mm CxC Brass Hi-Flow Mono 100 or 200kPa pressure control valve with integral expansion relief valve.","no",1]
[]
[null,17.475,"22mm CxC Brass Hi-Flow Mono 400 or 600kPa pressure control valve with integral expansion relief valve.","no",1]
[]
[null,17.476,"20mm MI or 22mm CxC Brass Hi-Flow Mono 100 or 200kPa pressure control valve with integral isolating valve and expansion relief.","no",1]
[]
[null,17.477,"20mm MI or 22mm CxC Brass Hi-Flow Mono 400 or 600kPa pressure control valve with integral isolating valve and expansion relief.","no",1]
[]
[null,17.478,"Masterflo pressure reducing valve.","no",1]
[]
[null,17.479,"Feenix pressure reducing valve.","no",1]
[]
[null,{"v":17.48,"d":"17.480"},"Latco pressure reducing valve.","no",1]
[]
[null,null,"Sundries"]
[]
[null,17.481,"Drain water heater, isolate and uncouple water and electrical connections, lift water heater, replace / install new uPVC tray complete with 40mm diameter outlet and discharge pipe not exceeding 5m long, and re-fit connection on completion. ","no",1]
[]
[null,17.482,"Drain water heater, isolate and uncouple water and electrical connections and  remove existing geyser / water heater","no",1]
[]
[null,17.483,"Allowance for new piping into an existing geyser, vacuum breakers and presure valve measured elsewhere","no",1]
[]
[null,17.484,"Supply and install water tanks to roof complete with connectors, pipes, valves, taps, etc. 40mm tank connector, Inlet and over flow with a 40mm fitting, 450mm lid on top of tank. Including hoisting to up to 12m high roof. Pumps measured alsewhere","no",1]
[]
[null,"17,484.1","2 500 Lt Jojo or equivalent Vertical Water Tank","no",1]
[]
[null,"17,484.2","5 000 Lt Jojo or equivalent Vertical Water Tank","no",1]
[]
[null,"17,484.3","10 000 Lt Jojo or equivalent Vertical Water Tank","no",1]
[]
[null,"17,484.4","15 000 Lt Jojo or equivalent Vertical Water Tank","no",1]
[]
[null,"17,484.5","20 000 Lt Jojo or equivalent Vertical Water Tank"]
["SUB-TOTAL",{"$nulls":4},{"$f":"SUM(F3763:F4875)","v":0}]
[]
[]
[null,null,"SCHEDULE No. 18"]
[]
[null,null,"MISCELLANEOUS CHARGERS - GENERAL BUILDING ITEMS"]
[]
[null,18.1,"SCAFFOLDING (To be used as directed by the Project Manager and to be deducted in whole or in part if not required)","day",1]
[]
[null,18.2,"Scaffolding exceeding 3m high and not exceeding 10m wide in normal areas","day",1]
[]
[null,18.3,"Scaffolding exceeding 3m high and not exceeding 10m wide in confined/restricted areas","day",1]
[]
[null,18.4,"Scaffolding exceeding 3m to 10m high and not exceeding 10m wide in normal areas","day",1]
[]
[null,18.5,"Scaffolding exceeding 3m to 10m high and not exceeding 10m wide in confined/restricted areas","day",1]
[]
[null,null,"PLANT HIRE"]
[]
[null,18.6,"5kVa Generator ","hour",1]
[]
[null,18.7,"10kVA Generator ","hour",1]
[]
[null,18.8,"19 cfm Towable Compressor including miscellaneous","hour",1]
[]
[null,18.9,"50mm Water pump","hour",1]
[]
[null,{"v":18.1,"d":"18.10"},"80mm Water Pump","hour",1]
[]
[null,18.11,"Jolly Jumper / Rammer","hour",1]
[]
[null,18.12,"Conrete breaker / hammer","hour",1]
[]
[null,18.13,"Hydraulic Jack","hour",1]
[]
[null,18.14,"12000 l Water Truck","hour",1]
[]
[null,18.15,"6m high mobile scaffolding"]
["SUB-TOTAL",{"$nulls":4},{"$f":"SUM(F4883:F4913)","v":0}]
[]
[]
[]
[]
[null,null,"SCHEDULE No. 19"]
[]
[null,null,"RATES FOR TRAVELLING AND LABOUR"]
[]
[null,null,"Travelling:"]
[]
[null,null,"NOTES:"]
[]
[null,null,"The distance that will be paid for will be for a return journey measured from the particular regional office to the institution where the service has to be performed."]
[null," "]
[null,19.1,"Rates are per kilometre","km "]
[null," "]
[null,null,"Travelling rate will be calculated per vehicle used as published by AA rates"]
[null," ","All travelling rates will be calculated according to the AA rates for the specific month"]
[]
[null,null,"LABOUR:"]
[]
[null," ","NOTES:"]
[]
[null," ","An artisan is defined as a fully qualified tradesman with red seal qualifications."]
[null,null,"Semi-skilled labour is defined as a person who is entitled under Industrial Council Regulations to execute certain functions in the trade."]
[null," ","Unskilled labour is defined as a person who is employed to perform such duties as excavations, hacking up of areas and other similar functions."]
[]
[null,19.2,"Artisan Labour(Per hour)","Hour",1]
[null,19.3,"Semi-skilled Labour(Per hour)","Hour",1]
[null,19.4,"Unskilled labour (Per hour)","Hour",1]
[]
[null," ","Call-out:"]
[]
[null," ","NOTES:"]
[null,null,"A call-out fee is a fee which is to be charged when the contractor is called out by the inspectorate to inspect problem areas and for quotations (not defective work) and may be charged along with travelling as previously itemized.","Item",1]
[]
[null,null,"Call-out charge"]
[null," "]
[null,null,"Cleaning Of site"]
[]
[null,19.5,"On completion of each service the site must be cleaned by the contractor and all rubble must be removed to the closest dumping site to the satisfaction of the inspectorate","m3",1]
[]
[null,null,"MARK-UP ON NON SCHEDULED ITEMS"]
[]
[null,19.6,"All claims for non-scheduled labour, services and materials used shall be accompanied by an itemised suppliers invoice or itemised priced delivery note to Contractor.                                                                   A mark-up of 15% will be applicable on all non scheduled item as mentioned above for the duration of this contract. ","Item",1]
["SUB-TOTAL",{"$nulls":4},{"$f":"SUM(F4913:F4929)","v":{"v":0,"d":"R 0.00"}}]
[]
["GRAND TOTAL:",{"$nulls":4},{"$f":"F569+F812+F1048+F1254+F1409+F1560+F1936+F2127+F2255+F2582+F2881+F3001+F3058+F3136+F3414+F3678+F4876","v":{"v":0,"d":"R0.00"}}]
[]
["Name of the Company"]
["Signature:"]
["Date:"]

{"sheet":"4. CCTV AND ACCESS CONTROL","index":4,"n_rows":137,"n_cols":5,"rows_kept":137,"merged":[[0,0,1,3],[2,0,2,3],[11,1,11,3],[130,1,130,3],[131,0,131,4],[132,1,132,3],[134,1,134,5],[135,1,135,5],[136,1,136,5]]}
["4. CCTV & ACCESS CONTROL"]
[]
["Provision of servicing, repairs, maintenance of the CCTV and access control services"]
[" NO","SCHEDULED LABOUR COSTS","UNIT OF MEASURE","PROVISIONAL QUANTITIES","RATE PER  HOUR (R)."]
[1,"Labour Technician Per Hour","EA",1]
[2,"Labour Technician Per Hour Overtime","EA",1]
[3,"Labour Technician Per Hour Sunday and Public Holidays","EA",1]
[4,"Labour Technician Assistant Per Hour ","EA",1]
[5,"Labour Technician Assistant  Per Hour Overtime","EA",1]
[6,"Labour Technician Assistant Per Hour Sunday and Public Holidays","EA",1]
[7,"Transport can booked from theRegional Office to the Institution","EA",1]
["SUB-TOTAL",{"$nulls":3},{"$f":"SUM(E5:E10)","v":{"v":0,"d":"R0.00"}}]
[]
["NO.","DESCRIPTION","UNIT / QUANTITY","PROVISIONAL QUANTITIES","PRICE PER UNIT (VAT. INCLUSIVE)"]
[1,"MONITORS","EA"]
[null,"Monitors - LCD        32\"","EA",1]
[null,"Monitors - LCD        42\"","EA",1]
[null,"Monitors - LED        32\"","EA",1]
[]
[2,"NETWORK VIDEO RECORDER"]
[null,"4CH","EA",1]
[null,"8CH","EA",1]
[null,"16CH","EA",1]
[null,"32CH","EA",1]
[null,"64CH","EA",1]
[]
[null,"8CH","EA",1]
[null,"16CH","EA",1]
[null,"32CH","EA",1]
[]
[3,"POWER SUPPLIES WITH BATTERY BACKUP "]
[null,"15AMP","EA",1]
[null,"2,5AMP","EA",1]
[null,"3AMP","EA",1]
[null,"7AMP","EA",1]
[]
[4,"SURGE PROTECTION "]
[null,"SINGLE COAX SURGE PROTECTOR","EA",1]
[null,"16 CHANNEL COAX SURGE PROTECTOR ","EA",1]
[null,"SINGLE 100 BASE AND PORT RJ45 SURGE PROTECTOR","EA",1]
[null,"FOR CAT 5 E LAN ","EA",1]
[]
[5,"TRANSCEIVERS","EA",1]
[null,"PASSIVE VIDEO TRANSCEIVER (TWISTER PAIR)","EA",1]
[" ","ACTIVE VIDEO TRANSCEICER (TWISTER PAIR)","EA",1]
[]
[6,"NETWORK SWITCHES ","EA",1]
[null,"4 CH     P.O.E","EA",1]
[null,"16 CH    P.O.E","EA",1]
[]
[null,"CABLES"]
[null,"MILSPEC RG9","M",1]
[null,"MILSPEC RG9 POW - AX","M",1]
[null,"CAT 5 UTP UNSHIELD SOLID COPPER","M",1]
[null,"CAT 6 UTP UNSHIELD SOLID COPPER","M",1]
[null,"FIRBER OPTIC CABLE 4 CORE MULTIMODE","M",1]
[]
[7,"NETWORK MEGAPIXEL LENSES"]
[null,"1/2.7\" 3 - MEGA PIXEL CS MOUNT, 2.7 - 12mm F/1.2 INFRARED VARI - FOCAL IR LENS ","EA",1]
[null,"1/2.7\" 3 - MEGA PIXEL CS MOUNT, 5 - 50mm F/1.6 INFRARED VARI - FOCAL IR LENS ","EA",1]
[null," 8 - MEGA PIXEL CS MOUNT, 3.8 - 16mm F/1.5 INFRARED VARI - FOCAL IR LENS ","EA",1]
[null," 6 - MEGA PIXEL CS MOUNT, 7 - 33mm F/0.95 INFRARED VARI - FOCAL IR LENS (FOR DARKFIGHTER)","EA",1]
[null," 12 - MEGA PIXEL CS MOUNT, 3.4 - 17mm F/1.7 INFRARED VARI - FOCAL IR LENS ","EA",1]
[]
[8,"NETWORK CAMERAS"]
[null,"3 - MP IR MINI-BULLET NETWORK CAMERA WITH IR LENS 4mm IP66, 12V DC, PoE, SUPPORT SD CARD","EA",1]
[null,"2 - MP WDR IR MINI-BULLET NETWORK CAMERA. FULL HD 1080p WITH IR, IR LENS : 4mm IP66, 12V DC, PoE","EA",1]
[null,"3 - MP EXIR  LONG RANGE NETWORK BULLET CAMERA LENS : 6, 12 & 16mm, IR : 80M, IP66","EA",1]
[null,"2 - MP EXIR  LONG RANGE NETWORK BULLET CAMERA LENS : 66mm, 80m IR RANGE IP66","EA",1]
[null,"4 - MP LONG RANGE WDR EXIR NETWORK BULLET CAMERA IR. 80M, 4mm, IP66, DC 12V & PoE","EA",1]
[null,"4 - MP 2.8-12mm MOTORIZED VARI -FOCAL WDR IR NETWORK BULLET CAMERA. IR LEDs : 30M","EA",1]
[null,"1.3 MP OUTDOOR INFRA-RED NETWORK DOME CAMERA. TRUE DAY/NIGHT, VANDAL -PROOF, IP66, LENS : 2.8mm","EA",1]
[null,"2-MP OUTDOOR WDR INFRA-RED NETWORK DOME CAMERA. VANDAL -PROOF, LENS 2.8 & 4mm IR RANGE : UP TO 30M, IP66","EA",1]
[null,"\"LIGHTFIGHTER\" 2-MP INDOOR MOTORIZED VARI-FOCAL IR  30M NETWORK DOME CAMERA. 2.8-12mm, SMART FOCUS, DC 12V / PoE","EA",1]
[null,"6 - MEGAPIXEL SMART INDOOR IR IP DOME CAMERA. IR 30M, LENS : 2.8 - 12mm 12V DC/ 24V AC / PoE","EA",1]
[null,"8 - MEGAPIXEL (4K) SMART INDOOR IR IP DOME CAMERA MOTORIZES LENS : 2.8 - 12mm 12V DC/ 24V AC / PoE","EA",1]
[null,"2 - MP 30 X ZOOM 100M IR NETWORK PTZ CAMERA. OUTDOOR, HIGH - PoE & 24V AC","EA",1]
[]
[9,"CAMERAS ANALOGUE"]
[null,"DAY NIGHT CAMERA","EA",1]
[null,"BOX CAMERA ","EA",1]
[null,"DOME CAMERA ","EA",1]
[null,"HIGH SPEED DOME PTZ","EA",1]
[null,"I.R. CAMERA  - DOME ","EA",1]
[null," - BOX","EA",1]
[null," - CYLINRICAL ","EA",1]
[null,"CONTROLER PTZ","EA",1]
[]
[10,"LENSES "]
[null,"MANUAL 3,5 - 8MM","EA",1]
[null,"2,8 - 12M","EA",1]
[null,"5,0 - 50MM","EA",1]
[]
[11,"DIRECT DRIVE AUTO IRIS VARIFOCAL "]
[null,"3 - 8MM","EA",1]
[null,"8 - 12MM","EA",1]
[null,"5 - 50MM","EA",1]
[null,"5 - 80MM","EA",1]
[null,"10 - 120MM","EA",1]
[]
[12,"HOUSING",null,1]
[null,"OUTDOOR ","EA",1]
[null,"INDOOR ","EA",1]
[null,"MOUNTING BRACKET ACCESS CONTROL PC ","EA",1]
[null,"ACCESS CONTROL PC ","EA",1]
[null,"ACCESS CONTROL PRINTER","EA",1]
[null,"ACCESS CONTROL SOFTWARE","EA",1]
[null,"GRAPHIC SOFTWARE","EA",1]
[null,"SYSTEM CONTROLER","EA",1]
[null,"ITT UNIT Door Controler","EA",1]
[null,"KEY SWITCH ","EA",1]
[null,"PROXIMITY CARD READERS - HARSH ENVIROMENT","EA",1]
[null,"MAGNETIC LOCKS ","EA",1]
[null,"DOOR CLOSER ","EA",1]
[null,"3 AMP POWER SUPPLY & 7A/H BATTERY","EA",1]
[null,"RESETABLE BREAKER GLASS UNIT ","EA",1]
[null,"HEAVY DUTY EXIT PUSH BUTTON ","EA",1]
[null,"VEHICLE BARRIER - 6M AUTO ","EA",1]
[null,"VEHICLE BARRIER - 6M MANUAL","EA",1]
[null,"LOOP DETECTORS","EA",1]
[null,"GOOSENECK ","EA",1]
[null,"8 CORE MYLAR SCREEN CABLE ","EA",1]
[null,"ACCESS CARD","EA",1]
[null,"CONSUMABLES","EA",1]
[]
[13,"SERVICE OF:"]
[null,"CCTV SYSTEM  ","EA",1]
[null,"ACCESS CONTROL SYSTEM","EA",1]
[null,"UPS SYSTEM","EA",1]
[null,"SLIDING DOORS / GATES / SHUTTERS DOORS & MOTORS","EA",1]
["SUB-TOTAL",{"$nulls":3},{"$f":"SUM(E16:E130)","v":{"v":0,"d":"R0.00"}}]
[]
["GRAND TOTAL:",{"$nulls":3},{"$f":"E12+E131","v":{"v":0,"d":"R0.00"}}]
[]
["Name of the Company"]
["Signature:"]
["Date:"]

{"sheet":"5. ELECTRICAL","index":5,"n_rows":207,"n_cols":5,"rows_kept":207,"merged":[[0,0,0,4],[1,0,1,3],[10,1,10,3],[200,1,200,3],[201,0,201,4],[202,1,202,3],[204,1,204,4],[205,1,205,5],[206,1,206,5]]}
["5. ELECTRICAL WORKS"]
["Provision of servicing, repairs, maintenance of electrical works"]
[" NO","SCHEDULED LABOUR COSTS","UNIT OF MEASURE","PROVISIONAL QUANTITIES","RATE PER  HOUR (R)."]
[1,"Labour electrician Per Hour","EA",1]
[2,"Labour electrician Per Hour Overtime","EA",1]
[3,"Labour electrician Per Hour Sunday and Public Holidays","EA",1]
[4,"Labour electrician Assistant Per Hour ","EA",1]
[5,"Labour electrician Assistant  Per Hour Overtime","EA",1]
[6,"Labour electrician Assistant Per Hour Sunday and Public Holidays","EA",1]
[7,"Transport can booked from the Regional Office to the Institution","EA",1]
["SUB-TOTAL",{"$nulls":3},{"$f":"SUM(E4:E9)","v":{"v":0,"d":"R0.00"}}]
[]
[null,"Material List Electrical"]
["NO","DESCRIPTION","UNIT OF MEASURE","PROVISIONAL QUANTITIES","PRICE PER UNIT (VAT. INCLUSIVE)"]
[8,"ADAPTER","EA",1]
[null,"Kettle Cord"]
[9,"BALLAST"]
[null,"1,2m X 40 watt X 220V Single","EA",1]
[null,"1,2m X 40 watt X 220V Double","EA",1]
[]
[10,"Choke"]
[null,"1,2m X 40 watt X 220V Single","EA",1]
[null,"1,2m X 65 watt X 220V Double","EA",1]
[]
[11,"CABLES"]
[null,"Flex Cabtyre 3 Core 2,5mm","EA","1 coil "]
[null,"Flex Cabtyre 3 Core 1,5mm","EA","1 coil "]
[null,"Silcone wire 2,5mm","EA","1 coil "]
[null,"Silcone wire 1,5mm","EA","1 coil "]
[]
[12,"EARTH LEAKAGES"]
[null,"Triple Pole 60 Amp - 5KA","EA",1]
[null,"Triple Pole 80 Amp - 5KA","EA",1]
[null,"Single Pole 60 Amp - 5KA with O/L Protection ","EA",1]
[]
[13,"ELEMENTS"]
[null,"Emersion for Urns 2000W Element","EA",1]
[null,"Emersion Geyser, Screw Type 3000W 220V Element","EA",1]
[null,"Emersion for Urns 3000W Element 250V Element","EA",1]
[null,"For Megafow orizontal 3000W Geyser Element","EA",1]
[]
[14,"LIGHTS FITTINGS"]
[null,"1,5m Double - 65W Flourecent luminaries complete : Telescopic holders - Approved","EA",1]
[null,"1,5m Single - 65W Flourecent luminaries complete : Telescopic holders - Approved","EA",1]
[null,"LED 1,5m Tubes","EA",1]
[null,"LED 1,2m Tubes","EA",1]
[null,"LED Panel Standard 1.2m X 600 45W / 6000K Caelus","EA",1]
[null,"LED Panel Standard 1.2m X 600 65W / 6000K Caelus","EA",1]
[null,"H.P.S 150 Watt Fittings Pole","EA",1]
[null,"H.P.S 250 Watt Fittings Pole","EA",1]
[null,"H.P.S 400 Watt Fittings Pole","EA",1]
[null,"Bulkhead round Base LED","EA",1]
[null,"55 Watt Led Post top fitting  ","EA",1]
[null,"100W HPS Post top lighting fitting complete with lamps ","EA",1]
[null,"125W MV Post top lighting fitting complete with lamps ","EA",1]
[]
[15,"FUSES"]
[null,"8.1 STOVE FUSES"]
[null,"Stove - 10 Amp","EA",1]
[null,"Stove - 15 Amp","EA",1]
[null,"Stove - 20 Amp","EA",1]
[null,"Stove - 25 Amp","EA",1]
[null,"Stove - 30 Amp","EA",1]
[null,"Glass 6X32m - 10Amp","EA",1]
[null,"Glass 6X32m - 15Amp","EA",1]
[null,"Glass 6X32m - 120Amp","EA",1]
[null,"Glass 6X32m - 25Amp","EA",1]
[null,"Glass 6X32m - 30Amp","EA",1]
[]
[16,"FUSE HOLDERS"]
[null,"Stove - 15 Amp","EA",1]
[null,"Stove - 25 Amp","EA",1]
[]
[17,"HOLDERS (Lamp)"]
[null,"Telescopic 1,5m Approved Bi-Pin","EA",1]
[null,"Holders Lamp ES Porcelain 100W","EA",1]
[null,"Holders Battern B C Brass 100W","EA",1]
[null,"Holders Lamp BC Porcelain ","EA",1]
[]
[18,"LAMPS "]
[null,"BC 100W - 250 V","EA",1]
[null,"BC 150W - 250 V","EA",1]
[null,"BC 200W - 250 V","EA",1]
[null,"ES 60W - 250V","EA",1]
[null,"ES 100W - 250V","EA",1]
[null,"ES 150W - 250V","EA",1]
[null,"ES 200W - 250V","EA",1]
[null,"Mercury Vapour 125W - 220V ES","EA",1]
[null,"Mercury Vapour 400W - 220V ES","EA",1]
[null,"Mercury Blend 160W - 220V ES","EA",1]
[null,"PL 9 - Lamps 9 Watt","EA",1]
[null,"2D 16 Watt Lamps","EA",1]
[null,"Flourescent Circular 40W 230V ","EA",1]
[null,"Cool White - 1,2m 40 W 230V","EA",1]
[null,"Cool White - 1,5m 65 W 230V","EA",1]
[null,"Spotlight 150W (par 38) (LED)","EA",1]
[null,"HPS 150W - Globes ","EA",1]
[null,"HPS 250W - Globes ","EA",1]
[null,"HPS 400W - Globes ","EA",1]
[]
[19,"THEATRE LAMPS "]
[null,"24V, 50W, D.K.K. Quartz Halogen","EA",1]
[null,"24V, 150W, Halogen Photo Optic ","EA",1]
[null,"22,8V, 50W, Halogen Blue Filter Cover, H015282 ","EA",1]
[null,"Theater  Light Main with Satelite LED ","EA",1]
[null,"Theater  Light Main with  LED ","EA",1]
[null,"Theater  Light with Satelite LED ","EA",1]
[null,"Theater  Light 63 +30 LED Dual Head Ceiling Mounted Standard ","EA",1]
[null,"Theater  Light  30 LED Single Head wall or Ceiling Mounted Standard Design ","EA",1]
[null,"Theater  Light 30 + 30 LED Dual Head Ceiling Mounted STD Technology","EA",1]
[null,"Theater  Light 81 + 30E LED Dual Head Ceiling Mounted ","EA",1]
[null,"LED wall mounted Examination light ","EA",1]
[null,"LED Battery Back Up system with Dual Head theater light ","EA",1]
[]
[20,"EXT BOXES"]
[null,"100 X 50mm Ext Box ","EA",1]
[null,"101 X 50mm Ext Box ","EA",1]
[]
[21,"CONDUIT "]
[null,"20mm Galvanized conduit - P/M","P/M",1]
[null,"25mm Galvanized conduit - P/M","P/M",1]
[null,"Spacer Saddles 20mm","EA",1]
[null,"Spacer Saddles 25mm","EA",1]
[]
[22,"G. P. WIRE"]
[null,"1,5mm PVC Wire","EA","1 COIL "]
[null,"2,5mm PVC Wire","EA","1 COIL "]
[null,"4mm PVC Wire","EA","1 COIL "]
[null,"6mm PVC Wire","EA","1 COIL "]
[null,"10mm PVC Wire","EA","1 COIL "]
[]
[23,"STOVE PLATES"]
[null,"Plates Stove - 1000W - Solid ","EA",1]
[null,"Plates Stove - 1200W - Solid ","EA",1]
[null,"Plates Stove - 1500W - Solid ","EA",1]
[null,"Plates Stove - 1750W - Solid ","EA",1]
[null,"Plates Stove - 2000W - Solid ","EA",1]
[]
[24,"STATERERS"]
[null,"Flourescent 30W, 40W, 80W FSU","EA",1]
[]
[25,"SWITCHES"]
[null,"Switch Stove Diamond H3 Heat","EA",1]
[null,"Switch Stove Diamond H3 Simmer Stat","EA",1]
[null,"Switch Stove Theamostat Diamond H50 TH","EA",1]
[]
[26,"SOCKET OUTLETS (PLUGS)"]
[null,"10Amp MCB Double Pole Socket Outlet 16Amp 100mm X 100mm with Cover Plate","EA",1]
[null,"16Amp Switch Plug  for Trunking 1complete with Cover Plate","EA",1]
[null,"15Amp Dedicated Single Switch Plug 100mm X 100mm Complete with Cover Plate","EA",1]
[null,"15Amp Double Switch Plug 100mm X 100mm Complete with Cover Plate","EA",1]
[null,"PLUG top Three Pin - 15 Amp ","EA",1]
[null,"Dedicated Plug Tops Tops Three Pin - 15Amp ","EA",1]
[]
[27,"LIGHT SWITCH"]
[null,"1 Lever Switch Complete with Cover Plate . 5Amp","EA",1]
[null,"2 Lever Switch Complete with Cover Plate . 5Amp","EA",1]
[null,"3 Lever Switch Complete with Cover Plate . 5Amp","EA",1]
[null,"Water Tipe Single Lever Switch, 5Amp ","EA",1]
[]
[28,"ISOLATED SUPPLY PLUGS"]
[null,"15Amp Double  Pole MCCB & 15Amp3 Pin Plug Earth Pin of Plug shall be IsolatedChasis of Plug - Complete with cover Plate & Indicator Light to fit Skirting P8000","EA",1]
[]
[29,"HEATERS"]
[null,"3 KW Fan Heater","EA",1]
[null,"1KW Skirting Heater Appoved ","EA",1]
[null,"1,5KW Skirting Heater Appoved ","EA",1]
[]
[30,"TAPES (INSULATION) TAPE PVC"]
[null,"BLACK 19mm X 20m","EA","1 COIL "]
[null,"RED 19mm X 20m","EA","1 COIL "]
[null,"WHITE 19mm X 20m","EA","1 COIL "]
[null,"BLUE 19mm X 20m","EA","1 COIL "]
[]
[31,"THERMOSTATS "]
[null,"Satchwell Thermostat Geyser","EA",1]
[]
[32,"CIRCUIT BREAKERS "]
[null,"10Amp X 6KA S.P.C.B Samite","EA",1]
[null,"20Amp X 6KA S.P.C.B Samite","EA",1]
[null,"30Amp X 6KA S.P.C.B Samite","EA",1]
[null,"40Amp X 6KA S.P.C.B Samite","EA",1]
[null,"50Amp X 6KA S.P.C.B Samite","EA",1]
[null,"60Amp X 6KA S.P.C.B Samite","EA",1]
[null,"80Amp X 6KA S.P.C.B Samite","EA",1]
[null,"10Amp X 6KA T.P.C.B Samite","EA",1]
[null,"20Amp X 6KA T.P.C.B Samite","EA",1]
[null,"30Amp X 6KA T.P.C.B Samite","EA",1]
[null,"40Amp X 6KA T.P.C.B Samite","EA",1]
[null,"60Amp X 6KA T.P.C.B Samite","EA",1]
[null,"80Amp X 5KA T.P.C.B Samite","EA",1]
[null,"100Amp X 6KA T.P.C.B Samite","EA",1]
[null,"125Amp X 10KA T.P.C.B ","EA",1]
[null,"150Amp X 20KA T.P.C.B ","EA",1]
[null,"200Amp X 20KA T.P.C.B ","EA",1]
[null,"225Amp X 50KA T.P.C.B ","EA",1]
[null,"250Amp X 50KA T.P.C.B ","EA",1]
[null,"300Amp X 50KA T.P.C.B ","EA",1]
[null,"600Amp X 50KA T.P.C.B ","EA",1]
[null,"800Amp X 50KA T.P.C.B","EA",1]
["SUB-TOTAL",{"$nulls":3},{"$f":"SUM(E83:E200)","v":{"v":0,"d":"R0.00"}}]
[]
["GRAND TOTAL:",{"$nulls":3},{"$f":"E78+E201","v":{"v":0,"d":"R0.00"}}]
[]
["Name of the Company"]
["Signature:"]
["Date:"]

{"sheet":"6. FIREFIGHTING AND SUPPRESSION","index":6,"n_rows":342,"n_cols":5,"rows_kept":342,"merged":[[0,0,0,4],[1,0,1,4],[10,1,10,3],[47,0,47,4],[60,0,60,4],[94,0,94,4],[129,0,129,4],[136,0,136,4],[143,0,143,4],[151,0,151,4],[154,0,154,4],[169,0,169,4],[171,0,171,4],[185,0,185,4],[208,0,208,4],[307,0,307,4],[315,0,315,4],[318,0,318,4],[319,0,319,4],[335,1,335,3],[336,0,336,4],[337,1,337,3],[339,1,339,5],[340,1,340,5],[341,1,341,5]]}
["6. FIREFIGHTING AND SUPPRESSION"]
["Provision of servicing, repairs, maintenance of firefighting and suppression equipment"]
[]
[" NO","SCHEDULED LABOUR COSTS","UNIT OF MEASURE","PROVISIONAL QUANTITIES","RATE PER  HOUR (R)."]
[1,"Labour Technician per hour","EA",1]
[2,"Labour Technician per hour over time","EA",1]
[3,"Labour Technician per hour Sunday and Public Holidays","EA",1]
[4,"Labour Technician Assistant per hour","EA",1]
[5,"Labour Technician Assistant per hour over time","EA",1]
[6,"Labour Technician Assistant per hour Sunday and Public Holidays","EA",1]
["SUB-TOTAL",{"$nulls":3},{"$f":"SUM(E5:E10)","v":{"v":0,"d":"R 0.00"}}]
[]
[]
["PART NO","DESCRIPTION","UNIT OF MEASURE","ESTIMAT ED\nUSAGE","PRICE PER UNIT (VAT. INCLUSIVE)"]
[null,"DCP/STP EXTINGUISHERS"]
[7,"1,5 kg","EA",1]
[8,"2,5 kg","EA",1]
[9,"4,5 kg","EA",1]
[10,"9,0 kg","EA",1]
[null,"CO² EXTINGUISHERS"]
[11,"2 kg","EA",1]
[12,"5 kg","EA",1]
[13,"6,8 kg","EA",1]
[14,"Backing board painted red with bracket","EA",1]
[15,"Super sound alarm complete","EA",1]
[16,"Lead seal x wire for hose reels","EA",1]
[17,"Lead seal x wire for DCP extinguishers","EA",1]
[18,"Safety pin for CO² extinguisher","EA",1]
[19,"Safety pin for DCP extinguisher","EA",1]
[20,"Complete head assembly for CO²\nextinguishers","EA",1]
[21,"Complete Head assembly for DCP\nextinguishers","EA",1]
[22,"Pressure gauge for DCP extinguishers","EA",1]
[23,"Syphon tube for DCP extinguishers (all sizes)","EA",1]
[24,"Hose and nozzle assembly for DCP\nextinguishers","EA",1]
[25,"Nitrogen Powders Propellant for DCP\nextinguishers","Kg",1]
[26,"Discharge hose for CO² extinguishers","EA",1]
[27,"Discharge horn assembly for CO²\nextinguishers","EA",1]
[28,"Hydrant hand wheel and nut","EA",1]
[29,"Hydrant key","EA",1]
[30,"Right angle hydrant valve","EA",1]
[31,"Hydrant lip washer","EA",1]
[32,"Hydrant clack washer","EA",1]
[33,"Approved fire registers for extinguishers","EA",1]
[34,"Approved fire registers for hydrants and hose reels","EA",1]
[35,"ABC Powder for DCP Extinguishers","Kg",1]
[36,"CO² gas","Kg",1]
[37,"Identification number plates","EA",1]
["STEEL CIMA/NATEX/BLUE CRANE  \nSINGLE STRAP"]
[38,"DCP 1 kg DCP light","S",1]
[39,"DCP 1.5kg DCP light","S",1]
[40,"DCP 2.5kg DCP light","S",1]
[41,"DCP 2.5kg DCP Heavy D","S",1]
[42,"DCP 2.5kg DCP Heavy D Red","S",1]
[43,"CO2 – 2kg Heavy Duty","S",1]
[44,"CO 2 – 5kg Heavy D Double Strap","S",1]
[45,"DCP 4.5kg Cima","S",1]
[46,"DCP 9kg Single Strap","S",1]
[47,"DCP 9kg Double Strap","S",1]
[48,"DCP 4.5 kg Red Round Base","S",1]
[49,"DCP 9kg Blue Crane","S",1]
["DCP EXTINGUISHER SPARES"]
[50,"DCP J Bracket (4.5 – 9kg)","S",1]
[51,"DCP J Bracket (1 – 2.5kg)","S",1]
[52,"DCP 1 kg Nozzel","S",1]
[53,"DCP 1.5 kg & 2.5 kg Nozzle","S",1]
[54,"DCP gauge","S",1]
[55,"DCP O Rings","S",1]
[56,"DCP Safety Pin Small","S",1]
[57,"DCP Safety pin large","S",1]
[58,"DCP Plastic Nozzles (on discharge hose)","S",1]
[59,"DCP Norma Clamp","S",1]
[60,"DCP 9kg Discharge Hose","S",1]
[61,"DCP 4.5 kg Discharge Hose","S",1]
[62,"DCP 4.5kg PVC cover","S",1]
[63,"DCPm9k PVC cover","S",1]
[64,"DCP head large","S",1]
[65,"DCP head medium","S",1]
[66,"DCP head small","S",1]
[67,"DCP handles top and bottom small","S",1]
[68,"DCP handles top and bottom medium","S",1]
[69,"DCP handles top and bottom large","S",1]
[70,"Plastic neck rings","S",1]
[71,"DCP pressure relieve valve L","S",1]
[72,"DCP plunger spindle small","S",1]
[73,"DCP plunger spindle large","S",1]
[74,"DCP black bottom for 9kg stainless steel","S",1]
[75,"DCP Stainless steel valve","S",1]
[76,"DCP siphon Tube 1kg Cima","S",1]
[77,"DCP Siphon tube 1.5kg Cima","S",1]
[78,"DCP Siphon tube 2.5kg Cima","S",1]
[79,"DCP Siphon tube 4.5kg Cima","S",1]
[80,"DCP Siphon tube 9kg Cima","S",1]
[81,"DCP 40% MAP powder (Alpha Megaflo)","S",1]
[82,"Alpha Dynaflo 90% Blue Import","S",1]
["FOAM / WATER ACCESSORIES"]
[83,"Foam Nozzles","S",1]
[84,"Plasic Hose Tails","S",1]
[85,"Foam Discharge Hose 9 litre","S",1]
[86,"Water Discharge Hose","S",1]
[87,"Siphon tube for 9 litre water","S",1]
[88,"Backing board 600mm","S",1]
[89,"Uni bracket 40mm","S",1]
[90,"Uni bracket 70mm","S",1]
[91,"Safety Pin 3mm CO 2","S",1]
[92,"Wall bracket Red","S",1]
[93,"2kg CO2 fixed","S",1]
[94,"2kg CO2 hose and horn","S",1]
[95,"5kg CO2 Chubb hose only","S",1]
[96,"5kg CO2 long horn only","S",1]
[97,"CO2 washer for horn","S",1]
[98,"CO2 handles (top and bottom)","S",1]
[99,"2kg CO2 Siphon Tubing","S",1]
[100,"5g CO2 Siphon Tubing","S",1]
[101,"CO2 1” Tapered Valve (CO 2 head)","S",1]
[102,"CO2 ½” Tapered Valve (CO 2 head)","S",1]
[103,"CO2 1” Tapered Valve S/Down","S",1]
[104,"CO2 ¾” Tapered Valve S/Down","S",1]
[105,"CO2 ½” Tapered Valve S/Down","S",1]
[106,"Manual lever valve 24 tap CO2","S",1]
[107,"CO2 Plunger for CYF 25 ¾”","S",1]
[108,"Cap for 45kg CO2 extinguisher","S",1]
[109,"Redlump bolt complete","S",1]
[110,"Redlump Bolt glass tube only","S",1]
[111,"Redlump Bolt Ceramic Tube only","S",1]
[112,"Super sound complete","S",1]
[113,"Super sound box","S",1]
[114,"Super sound refill","S",1]
[115,"Fire AXE 6lbs","S",1]
[116,"Fire AXE small","S",1]
["FIRE BLANKETS"]
[117,"0.9 x 0.9","S",1]
[118,"1 x 1","S",1]
[119,"1.2 x 1.2","S",1]
[120,"1.2 x 1.8","S",1]
[121,"1.8 x 1.8","S",1]
[122,"1m x 50m roll","roll",1]
["HOSE REEL"]
[123,"30m PVC hose local","S",1]
[124,"45m PVC hose local","S",1]
[125,"30m H/Reel complete local","S",1]
[126,"Hose reel frame","S",1]
[127,"Hose reel cover","S",1]
[128,"CP valve","S",1]
["HOSE REEL SPARES"]
[129,"CP valve hand wheel","S",1]
[130,"CP valve washer","S",1]
[131,"Hose reel Norma Clamp","S",1]
[132,"Hose reel Waterway","S",1]
[133,"Hose reel Shackel","S",1]
[134,"Hose reel nozzle","S",1]
[135,"Hose reel aluminium nozlle","S",1]
["HYDRANT"]
[136,"65mm RAV x 80mm BSP Cast iron Anti\nTamper","S",1]
[137,"Booster Connections","S",1]
["HYDRANT SPARES"]
[138,"Hydrant Clack Washer","S",1]
[139,"Hydrant Lip Washer","S",1]
[140,"Hydrant Hand Wheel for Brass Valve","S",1]
[141,"Hydrant Hand Wheel for Cast iron","S",1]
[142,"Hydrant Hand Wheel Bolt and Nut","S",1]
[143,"Hydrant Nipple Female to Male 65mm","S",1]
[144,"Adaptor 65mm for Cast Iron Valve","S",1]
[145,"Hydrant Aluminium Cover","S",1]
[146,"Hydrant Cap & Chain","S",1]
[147,"Booste Cap & Chain","S",1]
[148,"Hydrant Key","S",1]
[149,"Hydrant Spindle","S",1]
[150,"Hydrant Lugs","S",1]
[151,"Hydrant O ring","S",1]
["LAYFLATS"]
[152,"65 x 10Bar Single Lined + Coupling/white","S",1]
["INSTANTANEOUS COUPLINGS"]
[153,"38(M) to 50(F) BSP A/L Adap","S",1]
[154,"50(M) to 50(F) BSP A/L Adap","S",1]
[155,"65(F) to 65(F) BSP A/L Adap","S",1]
[156,"65(M) to 65(M) BSP A/L Adap","S",1]
[157,"65(M) to 65(F) BSP A/L Adap","S",1]
[158,"65(F) to 44(M) BSP A/L Adap","S",1]
[159,"65(M) to 50(M) BSP A/L Adap","S",1]
[160,"65(F) to 50(F) BSP A/L Adap","S",1]
[161,"65(M) to 50(F) BSP A/L Adap","S",1]
[162,"65(F) to 50(M) BSP A/L Adap","S",1]
[163,"65(F) to 65(M) BSP A/L Adap","S",1]
[164,"65mm Male/Female BSP Adaptor 81mm LUG","S",1]
[165,"Storz Spanner Medium","S",1]
["CABINETS"]
[166,"4,5kg Extinguisher Steel Cabinet","S",1]
[167,"4,5kg Double Steel Ext Cabinet","S",1]
[168,"4,5kg Extinguimate Cabinet","S",1]
[169,"9kg Extinguisher Steel Cabinet","S",1]
[170,"9kg Double Extinguisher Steel Cabinet","S",1]
[171,"9kg Extinguimate Cabinet","S",1]
[172,"9kg Plastic Cabinet","S",1]
[173,"BA Extinguimate Cabinet","S",1]
[174,"BA Extinguimate Brackets","S",1]
[175,"Wall Mounted Cabinet","S",1]
[176,"Hose Cabinet Legs Only","S",1]
[177,"H/R Closed Back Cabinets","S",1]
[178,"H/R Open Back Cabinets","S",1]
[179,"CO2 Extinguisher Cabinet","S",1]
[180,"CP Valve Box","S",1]
[181,"Key Box","S",1]
[182,"Cabinet Glass","S",1]
[183,"Key Box Glass","S",1]
[184,"CP Valve Box Glass","S",1]
[185,"Lock and keys","S",1]
[186,"Spare Keys","S",1]
[187,"Panic Bolt Hammer and Chain","S",1]
["SIGNS"]
[null,"ABS 190 X 190"]
[188,"Red Arrow","S",1]
[189,"Extinguisher","S",1]
[190,"Hose Reel","S",1]
[191,"Hydrant","S",1]
[192,"Fire Alarm","S",1]
[193,"Sprinkler Valve","S",1]
[194,"Fire Telephone","S",1]
[195,"Booster Pump","S",1]
[196,"Super Sound","S",1]
[197,"First Aid","S",1]
[198,"Green Arrow","S",1]
[199,"Man Running Left","S",1]
[200,"Man Running Right","S",1]
[201,"Ladies Toilet","S",1]
[202,"Gents Toilet","S",1]
[203,"Stairs Going Down Left","S",1]
[204,"Stairs Going Up Right","S",1]
[205,"No Smoking","S",1]
[206,"No Open Flame","S",1]
[207,"No Entry","S",1]
[null,"ABS 290 X 290"]
[208,"Red Arrow","S",1]
[209,"Extinguisher","S",1]
[210,"Hose Reel","S",1]
[211,"Hydrant","S",1]
[212,"Fire Alarm","S",1]
[213,"Sprinkler Valve","S",1]
[214,"Fire Telephone","S",1]
[215,"Booster Pump","S",1]
[216,"Super Sound","S",1]
[217,"First Aid","S",1]
[218,"Green Arrow","S",1]
[219,"Man Running Left","S",1]
[220,"Man Running Right","S",1]
[221,"Ladie Toilet","S",1]
[222,"Gents Toilet","S",1]
[223,"Stairs Going Down Left","S",1]
[224,"Stairs Going Up right","S",1]
[225,"Eye Protection","S",1]
[226,"Musk","S",1]
[227,"Head Protection","S",1]
[228,"Eat Protection","S",1]
[229,"Hand Protection","S",1]
[230,"Feet Protection","S",1]
[231,"No Smoking","S",1]
[232,"No Open Flame","S",1]
[233,"No Pedestrians","S",1]
[234,"No Water as Extinguisher","S",1]
[235,"No Entry","S",1]
[236,"General Warning of Hazard","S",1]
[237,"Beware Fire Hazard","S",1]
[238,"Beware Explosion Hazard","S",1]
[239,"Beware Electric Shock","S",1]
[null,"PHOTOLUM 190 X 190"]
[240,"Red Arrow","S",1]
[241,"Extinguisher","S",1]
[242,"Hose Reel","S",1]
[243,"Hydrant","S",1]
[244,"Fire Alarm","S",1]
[245,"Sprinkler Valve","S",1]
[246,"Fire Telephone","S",1]
[247,"Booster Pump","S",1]
[248,"Super Sound","S",1]
[249,"First Aid","S",1]
[250,"Green Arrow","S",1]
[251,"Man Running Left","S",1]
[252,"Man Running Right","S",1]
[253,"Ladies Toilet","S",1]
[254,"Gents Toilet","S",1]
[255,"Stairs Going Down Left","S",1]
[256,"Stairs Going Up Right","S",1]
[257,"No Smoking","S",1]
[258,"No Open Flame","S",1]
[259,"No Entry","S",1]
[260,"Beware Electric Shock","S",1]
[null,"PHOTOLUM 290 X 290"]
[261,"Red Arrow","S",1]
[262,"Extinguisher","S",1]
[263,"Hose Reel","S",1]
[264,"Hydrant","S",1]
[265,"Fire Alarm","S",1]
[266,"Sprinkler Valve","S",1]
[267,"Fire Telephone","S",1]
[268,"Booster Pump","S",1]
[269,"Super Sound","S",1]
[270,"First Aid","S",1]
[271,"Green Arrow","S",1]
[272,"Man Running Left","S",1]
[273,"Man Running Right","S",1]
[274,"Ladies Toilet","S",1]
[275,"Gents Toilet","s",1]
[276,"Stairs Going Down Left","S",1]
[277,"Stairs Going Up Right","S",1]
[278,"No Smoking","S",1]
[279,"No Open Flame","S",1]
[280,"No Entry","S",1]
[281,"Beware Electric Shock","S",1]
["SPECIAL SIGNS"]
[282,"Assembly Point ABS","S",1]
[283,"Chevron Board 380 x 680","S",1]
[284,"Chromodeck 290 x 290 Photo","S",1]
[285,"Chromodeck 190 x 190 Photo","S",1]
[286,"Chromodeck 290 x 290 ABS","S",1]
[287,"Chromodeck 190 x 190 ABS","S",1]
[288,"Chromodeck 440 x 440","S",1]
["FIRST AID"]
[289,"First Aid Steelbox Complete Reg 7","S",1]
[290,"First Aid Refill Reg 7","S",1]
[]
["GAS SUPPRESSION"]
[291,"FM 200 Cylinders - per kg co 2","S",1]
[292,"FM 200 Cylinders - per kg HFC 227","S",1]
[293,"Major service of 4,5 kg DCP/STP\nextinguisher","S",1]
[294,"Major service of 6,8 kg CO² extinguisher","S",1]
[295,"Major Service of 2-2.5 kg DCP/STP\nextinguisher ","S",1]
[296,"Major Service of 5kg CO² extinguisher","S",1]
[297,"Major Service of 4.5kg CO² extinguisher","S",1]
[298,"Major Service of 2.25kg CO² extinguisher","S",1]
[299,"Major Service of fire hydrants","S",1]
[300,"Major Service of Hose reels","S",1]
[301,"Supply of Register","S",1]
[302,"Pressure testing fire extinguishers with\ncertificates","S",1]
[303,"Monthly inspection ","S",1]
[304,"Servicing of Sprinkler systems","S",1]
[305,"Servicing of Fire FM 200 system","S",1]
["SUB-TOTAL",{"$nulls":3},{"$f":"SUM(E16:E335)","v":{"v":0,"d":"R0.00"}}]
[]
["GRAND TOTAL:",{"$nulls":3},{"$f":"E11+E336","v":{"v":0,"d":"R0.00"}}]
[]
["Name of the Company"]
["Signature:"]
["Date:"]

{"sheet":"7. KITCHEN EQUIPMENT","index":7,"n_rows":392,"n_cols":5,"rows_kept":392,"merged":[[0,0,0,4],[1,0,1,4],[9,1,9,3],[11,0,12,0],[11,1,12,1],[11,2,12,2],[11,3,12,3],[11,4,12,4],[84,0,84,4],[101,0,101,4],[108,0,108,4],[115,0,115,4],[119,0,119,4],[122,0,122,4],[128,0,128,4],[135,0,135,4],[142,0,142,4],[149,0,149,4],[154,0,154,4],[164,0,164,4],[169,0,169,4],[178,0,178,4],[188,0,188,4],[196,0,196,4],[202,0,202,4],[211,0,211,4],[225,0,225,4],[239,0,239,4],[254,0,254,4],[269,0,269,4],[286,0,286,4],[294,0,294,4],[306,0,306,4],[318,0,318,4],[330,0,330,4],[342,0,342,4],[351,0,351,4],[354,0,354,4],[385,1,385,3],[386,0,386,4],[387,1,387,3],[389,1,389,4],[390,1,390,4],[391,1,391,5]]}
["7. KITCHEN EQUIPMENT"]
["Provision of servicing, repairs, maintenance of the Mechanical and Electrical Kitchen Equipment and Laundry Equipment"]
[" NO","SCHEDULED LABOUR COSTS","UNIT OF MEASURE","PROVISIONAL QUANTITIES","RATE PER  HOUR (R)."]
[1,"Labour Technician per hour","EA",1]
[2,"Labour Technician per hour over time","EA",1]
[3,"Labour Technician per hour Sunday and Public Holidays","EA",1]
[4,"Labour Technician Assistant per hour","EA",1]
[5,"Labour Technician Assistant per hour over time","EA",1]
[6,"Labour Technician Assistant per hour Sunday and Public Holidays","EA",1]
["SUB-TOTAL",{"$nulls":3},{"$f":"SUM(E4:E9)","v":{"v":0,"d":"R 0.00"}}]
[]
["PART NO:","SCHEDULED PARTS","UNIT OF MEASURE","PROVISIONAL QUANTITIES","PRICE PER UNIT (VAT. INCLUSIVE)"]
[]
[7,"15mm Ball Float steam trap","EA",1]
[8,"20mm Ball float steam trap","EA",1]
[9,"20mm Ball Float steam trap","EA",1]
[10,"Steam trap repair kit 4,27mm orifice","EA",1]
[11,"Steam trap gasket sets","EA",1]
[12,"Steam trap repair kit 6mm orifice","EA",1]
[13,"Steam trap gasket sets","EA",1]
[14,"15mm Thermodynamic steam traps","EA",1]
[15,"20mm Thermodynamic steam traps","EA",1]
[16,"15mm sight glass window repair kits","EA",1]
[17,"20mm Window sight glasses complete","EA",1]
[18,"15mm flap type non return valve","EA",1]
[19,"20mm flap type non return valve","EA",1]
[20,"25mm flap type non return valve","EA",1]
[21,"15mm steam strainers brass","EA",1]
[22,"20mm steam strainers brass","EA",1]
[23,"25mm steam strainers brass","EA",1]
[24,"15mm S’S trim steam globe valve 16 bar","EA",1]
[25,"20mm S’S trim steam globe valve 16 bar","EA",1]
[26,"25mm S’S trim steam globe valve 16 bar","EA",1]
[27,"15mm ball valve","EA",1]
[28,"20mm ball valve","EA",1]
[29,"25mm ball valve","EA",1]
[30,"15mm cone faced steam unions","EA",1]
[31,"20mm cone faced steam unions","EA",1]
[32,"25mm cone faced steam unions","EA",1]
[33,"15mm steam barrel nipples","EA",1]
[34,"20mm steam barrel nipples","EA",1]
[35,"25mm steam barrel nipples","EA",1]
[36,"40mm steam barrel nipples","EA",1]
[37,"60mm steam barrel nipples","EA",1]
[38,"15mm copper tubing class 2 6,1m lengths","EA",1]
[39,"20mm copper tubing class 2 6,1m lengths","EA",1]
[40,"25mm copper tubing class 2 6,1m lengths","EA",1]
[41,"40mm copper tubing class 2 6,1m lengths","EA",1]
[42,"15mm heavy duty steam pipe 6,1m lengths","EA",1]
[43,"20mm heavy duty steam pipe 6,1m lengths","EA",1]
[44,"25mm heavy duty steam pipe 6,1m lengths","EA",1]
[45,"Valve gland packing 12,5mm roll","Roll",1]
[46,"Valve gland packing 10mm roll","Roll",1]
[47,"Valve gland packing 6mm roll","Roll",1]
[48,"Graphite pipe jointing compound 5 kg container","Kg",1]
[49,"PTFE thread sealing tape roll","EA",1]
[50,"Rope packing non asbestos 40mm x 30m roll","Roll",1]
[51,"Rope packing non asbestos 25mm x 30m roll","Roll",1]
[52,"Rope packing non asbestos 15mm x 30m roll","Roll",1]
[53,"Packing material graphite impregnated wire reinforced sheets 1,2m x 2,4m x 1,5mm","sheet",1]
[54,"Packing material graphite impregnated wire reinforced sheets 1,2m x 2,4m x 3,0mm","sheet",1]
[55,"Acetylene 8,5kg cylinder Industrial","Cyl",1]
[56,"Quality 11,5kg cylinder Oxygen Industrial","Cyl",1]
[57,"Welding electrodes 2,5 x 5kg","Kg",1]
[58,"Welding electrodes 3,2mm x 5 kg","Kg",1]
[59,"Brazing rods 1,5mm x 5kg","Kg",1]
[60,"Brazing rods 2,5mm x 5kg","Kg",1]
[61,"Brazing flux 500g container","gram",1]
[62,"Silver solder 100g","gram",1]
[63,"Gear box OL, SAE 90, 5L container","5 litre",1]
[64,"Motor oil, SAE 30 5L container","5 litre",1]
[65,"Hydraulic oil condor 310 20L containers","Litre",1]
[66,"Paraffin 20L containers","Litre",1]
[67,"General Purpose grease 5kg containers","Kg",1]
[68,"Bolts 6mm dia x 25mm long & nuts (HTS)","EA",1]
[69,"Bolts 8mm dia x 25mm long & nuts (HTS)","EA",1]
[70,"Bolts 8mm dia x 40mm long & nuts (HTS)","EA",1]
[71,"Bolts 10mm dia x 25mm long & nuts (HTS)","EA",1]
[72,"Bolts 10mm dia x 40mm long & nuts (HTS)","EA",1]
[73,"Bolts 10mm dia x 50mm long & nuts (HTS) ","EA",1]
[74,"Bolts 12mm dia x 40mm long & nuts (HTS)","EA",1]
[75,"Bolts 12mm dia x 50mm long & nuts (HTS)","EA",1]
[76,"Fibre glass wool sheeting 50mm x 1,2m x 6m roll","EA",1]
[77,"Pressure gauge 100mm dia bottom entry x 10mm BSP thread range 0 to 2000 kPA","EA",1]
["CONVECTION OVENS"]
[78,"Boiler elements","EA",1]
[79,"Oven element","EA",1]
[80,"Contactor","EA",1]
[81,"Overload","EA",1]
[82,"Boiler thermostat","EA",1]
[83,"Oven thermostat","EA",1]
[84,"Level switch","EA",1]
[85,"Door switch","EA",1]
[86,"Timer relay","EA",1]
[87,"Selector switch","EA",1]
[88,"Solenoid valve","EA",1]
[89,"Solenoid coil","EA",1]
[90,"Door seal","EA",1]
[91,"Door handle","EA",1]
[92,"Fan motor","EA",1]
[93,"Timer","EA",1]
["HEAVY DUTY STOVES"]
[94,"3 Heat switch","EA",1]
[95,"Oven thermostat","EA",1]
[96,"Plate element","EA",1]
[97,"Plate complete","EA",1]
[98,"Oven element","EA",1]
[99,"Wiring harness complete","EA",1]
["TILTING PANS"]
[100,"Thermostat","EA",1]
[101,"Element","EA",1]
[102,"Circuit breaker","EA",1]
[103,"Tilting wheel handle","EA",1]
[104,"Tilting wheel worm shaft","EA",1]
[105,"Tilting wheel gearbox","EA",1]
["BREAD SLICERS"]
[106,"Blades","Set",1]
[107,"V Belts","EA",1]
[108,"Bearings","EA",1]
["ACCESSORIES"]
[109,"Cord","M",1]
[110,"Plug","EA",1]
["TILTING POTS"]
[111,"Thermostat","EA",1]
[112,"Boiler element","EA",1]
[113,"Contactor","EA",1]
[114,"Overload","EA",1]
[115,"Circuit breaker","EA",1]
["MIXERS"]
[116,"Selector switch","EA",1]
[117,"Contactor","EA",1]
[118,"Overload","EA",1]
[119,"Bearings","EA",1]
[120,"Oil seal","EA",1]
[121,"Stop / Start button","EA",1]
["DISHWASHERS"]
[122,"Boiler element","EA",1]
[123,"Contactor","EA",1]
[124,"Thermostat","EA",1]
[125,"Curtains","EA",1]
[126,"Spray arms","EA",1]
[127,"Selector switch","EA",1]
["PATATO PEELERS"]
[128,"V Belts","EA",1]
[129,"Bearings","EA",1]
[130,"Bushes","EA",1]
[131,"Pulleys","EA",1]
[132,"On/Off switch","EA",1]
[133,"Regrit complete","EA",1]
["BLENDERS"]
[134,"Bearings","EA",1]
[135,"Overload circuit breaker","EA",1]
[136,"Mechanical seal","EA",1]
[137,"Drive coupling","EA",1]
["FOOD PROCESSORS"]
[138,"Selector switch","EA",1]
[139,"Contactor","EA",1]
[140,"Magnetic switch","EA",1]
[141,"Knife head","EA",1]
[142,"Bearings ","EA",1]
[143,"RC circuit","EA",1]
[144,"Bushes","EA",1]
[145,"Buffers","EA",1]
[146,"Mechanical seal","EA",1]
["TOASTERS"]
[147,"Element","EA",1]
[148,"Thermostat","EA",1]
[149,"Pilot light","EA",1]
[150,"On/Off switch","EA",1]
["ZIP HYDROBOIL URNS"]
[151,"Thermostat","EA",1]
[152,"Hydro boil tap","EA",1]
[153,"Float kit","EA",1]
[154,"Cut out switch of pipe","EA",1]
[155,"Cut out switch orange wires","EA",1]
[156,"Straight element","EA",1]
[157,"L shape element","EA",1]
[158,"Pilot light","EA",1]
["MOBILE FOOD TROLLEYS"]
[159,"Element top","EA",1]
[160,"Element bottom","EA",1]
[161,"Thermostat","EA",1]
[162,"Switch box","EA",1]
[163,"Top door","EA",1]
[164,"Bottom door","EA",1]
[165,"Bumper rail – PVC","M",1]
[166,"200mm Plate mounted fixed caster – resilex","EA",1]
[167,"200mm plate mounted swivel brake castor","EA",1]
["MOBILE WARD BAIN MARIES"]
[168,"Element","EA",1]
[169,"Thermostat","EA",1]
[170,"Pilot light","EA",1]
[171,"Circuit breaker","EA",1]
[172,"Bumper rail – PVC","M",1]
[173,"200mm Plate mounted fixed castor resilex","EA",1]
[174,"200mm plate mounted swivel brake castor","EA",1]
["BAIN MARIES / HOT CUPBOARDS"]
[175,"Energy regulator","EA",1]
[176,"Circuit breaker","EA",1]
[177,"Element","EA",1]
[178,"Thermostat","EA",1]
[179,"Pilot light","EA",1]
["ELNA PRESS"]
[180,"Press cover","EA",1]
[181,"Handle set","EA",1]
[182,"Barrel shaft","EA",1]
[183,"On/Off light","EA",1]
[184,"Coil spring","EA",1]
[185,"Shock absorber","EA",1]
[186,"Thermostat","EA",1]
[187,"Element","EA",1]
["7,5 kg Speed Queen Washing machines"]
[188,"Lid switch","EA",1]
[189,"Timer","EA",1]
[190,"Coin mechanism","EA",1]
[191,"Mixing valve","EA",1]
[192,"Pump belt","EA",1]
[193,"Spin belt","EA",1]
[194,"Idler pulley assembly","EA",1]
[195,"Motor switch","EA",1]
[196,"Pressure switch","EA",1]
[197,"Hub and seal kit","EA",1]
[198,"Pump assembly","EA",1]
[199,"Drain hose","EA",1]
[200,"Water supply hose","EA",1]
["7,5 kg Maytag washing machines"]
[201,"Lid switch","EA",1]
[202,"Timer","EA",1]
[203,"Coin mechanism","EA",1]
[204,"Mixing valve","EA",1]
[205,"Pump belt","EA",1]
[206,"Spin belt","EA",1]
[207,"Idler pulley assembly","EA",1]
[208,"Motor switch","EA",1]
[209,"Pressure switch","EA",1]
[210,"Hub and seal kit","EA",1]
[211,"Pump assembly","EA",1]
[212,"Drain hose","EA",1]
[213,"Water supply hose","EA",1]
["7,5 kg Clean American washing machines"]
[214,"Lid switch","EA",1]
[215,"Timer","EA",1]
[216,"Coin mechanism","EA",1]
[217,"Mixing valve","EA",1]
[218,"Motor","EA",1]
[219,"Pump belt","EA",1]
[220,"Spin belt","EA",1]
[221,"Idler pulley assembly","EA",1]
[222,"Motor switch","EA",1]
[223,"Pressure switch","EA",1]
[224,"Hub and seal kit","EA",1]
[225,"Pump assembly","EA",1]
[226,"Drain hose","EA",1]
[227,"Water supply hose","EA",1]
["7,5 kg Whirlpool washing machines"]
[228,"Lid switch","EA",1]
[229,"Timer","EA",1]
[230,"Coin mechanism","EA",1]
[231,"Mixing valve","EA",1]
[232,"Motor","EA",1]
[233,"Pump belt","EA",1]
[234,"Spin belt","EA",1]
[235,"Idler pulley assembly","EA",1]
[236,"Motor switch","EA",1]
[237,"Pressure switch","EA",1]
[238,"Hub and seal kit","EA",1]
[239,"Pump assembly","EA",1]
[240,"Drain hose","EA",1]
[241,"Water supply hose","EA",1]
["TULLIS SLUICE MACHINE"]
[242,"Door solenoid","EA",1]
[243,"Door handle","EA",1]
[244,"Door seal","EA",1]
[245,"Door glass","EA",1]
[246,"Door hinge","EA",1]
[247,"Door micro switch","EA",1]
[248,"Contractor forward","EA",1]
[249,"Contractor reverse","EA",1]
[250,"Water level switch","EA",1]
[251,"Drain exhaust valve","EA",1]
[252,"Drain exhaust hose","EA",1]
[253,"Inlet solenoid","EA",1]
[254,"Forward/Reverse timer","EA",1]
[255,"Program timer","EA",1]
[256,"Drum bearing","EA",1]
[257,"V-belt","EA",1]
["INSTRUMENT WASHER"]
[258,"Contactor","EA",1]
[259,"Heater element","EA",1]
[260,"Drain pump","EA",1]
[261,"Pressure switch","EA",1]
[262,"Door seal","EA",1]
[263,"Drain exhaust hose","EA",1]
[264,"Program timer","EA",1]
["7,5kg Speed Queen Tumble dryers"]
[265,"Timer relay","EA",1]
[266,"Contactor","EA",1]
[267,"Overload","EA",1]
[268,"Door switch","EA",1]
[269,"Motor","EA",1]
[270,"Drive chain/belt","EA",1]
[271,"Drive sprocket","EA",1]
[272,"Drive pulley","EA",1]
[273,"Idler pulley","EA",1]
[274,"Chain tensioner assembly","EA",1]
[275,"V belt","EA",1]
["7,5 kg Maytag Tumble dryers"]
[276,"Timer relay","EA",1]
[277,"Contactor","EA",1]
[278,"Overload","EA",1]
[279,"Door switch","EA",1]
[280,"Motor","EA",1]
[281,"Drive chain/belt","EA",1]
[282,"Drive sprocket","EA",1]
[283,"Drive pulley","EA",1]
[284,"Idler pulley","EA",1]
[285,"Chain tensioner assembly","EA",1]
[286,"V belt","EA",1]
["7,5 kg Clear American Tumble dryers"]
[287,"Timer relay","EA",1]
[288,"Contactor","EA",1]
[289,"Overload","EA",1]
[290,"Door switch","EA",1]
[291,"Motor","EA",1]
[292,"Drive chain/belt","EA",1]
[293,"Drive sprocket","EA",1]
[294,"Drive pulley","EA",1]
[295,"Idler pulley","EA",1]
[296,"Chain tensioner assembly","EA",1]
[297,"V belt","EA",1]
["7,5 kg Whirlpool Tumble dryers"]
[298,"Timer relay","EA",1]
[299,"Contactor","EA",1]
[300,"Overload","EA",1]
[301,"Door switch","EA",1]
[302,"Motor","EA",1]
[303,"Drive chain","EA",1]
[304,"Drive sprocket","EA",1]
[305,"Drive pulley","EA",1]
[306,"Idler pulley","EA",1]
[307,"Chain tensioner assembly","EA",1]
[308,"V belt","EA",1]
["COMPLETE ZIP HYDRO BOIL UNITS SUPPLY AND INSTALL"]
[309,"1,5 litre white epoxy 7 – 9 cups","EA",1]
[310,"2,5 litre white epoxy – 12 – 15 cups","EA",1]
[311,"5 litre white epoxy – 25 – 30 cups","EA",1]
[312,"7,5 litre white epoxy 36 – 45 cups","EA",1]
[313,"10 litre white epoxy 50 – 60 cups","EA",1]
[314,"15 litre white epoxy 75 – 90 cups","EA",1]
[315,"25 litre white epoxy 120 – 150 cups","EA",1]
[316,"Inline water softener to suit Hydro boils","EA",1]
["NEW SUPPLY OF LAUNDRY EQUIPMENT"]
[317,"7,5 kg Washing machines","EA",1]
[318,"7,5kg Tumble dryer","EA",1]
["SERVICES\n(all labour is included for services, labour will only be paid for additional work)"]
[319,"Service Band Saw ","EA",1]
[320,"Service Bread Slicer ","EA",1]
[321,"Service Rotary Toaster ","EA",1]
[322,"Service Conveyor Toaster ","EA",1]
[323,"Service Steam Cooking Pots","EA",1]
[324,"Yearly service Steam Cooking pots ","EA",1]
[325,"Service Electrical Cooking Pots ","EA",1]
[326,"Service Dishwasher ","EA",1]
[327,"Service Convection Ovens ","EA",1]
[328,"Service Steam Urns","EA",1]
[329,"Service Electrical Urns ","EA",1]
[330,"Service Tilting Frying Pans ","EA",1]
[331,"Service Electrical Stoves ","EA",1]
[332,"Service High Speed Fryers ","EA",1]
[333,"Service Flat Top Grillers ","EA",1]
[334,"Service Potato Peelers","EA",1]
[335,"Service Vegetable Washers ","EA",1]
[336,"Service Vegetable Cutters","EA",1]
[337,"Service Steam Bain Marie ","EA",1]
[338,"Service Electrical Bain Marie ","EA",1]
[339,"Service Food Mixers ","EA",1]
[340,"Service Tilting Kettles ","EA",1]
[341,"Service Porridge Maker","EA",1]
[342,"Service Food Trolleys ","EA",1]
[343,"Service Kitchen Canopy ","EA",1]
[344,"Service Hydro Boilers ","EA",1]
[345,"Service Sluice Machines ","EA",1]
[346,"Service Instrument Washers ","EA",1]
[347,"Service Washing Machines ","EA",1]
[348,"Service Elna Presses","EA",1]
["SUB-TOTAL",{"$nulls":3},{"$f":"SUM(E14:E385)","v":{"v":0,"d":"R0.00"}}]
[]
["GRAND TOTAL:",{"$nulls":3},{"$f":"E10+E386","v":{"v":0,"d":"R0.00"}}]
[]
["Name of the Company"]
["Signature:"]
["Date:"]

{"sheet":"8. MEDICAL GAS","index":8,"n_rows":178,"n_cols":5,"rows_kept":178,"merged":[[0,0,0,4],[1,0,1,4],[9,1,9,3],[20,0,21,0],[20,1,21,1],[20,2,21,2],[20,3,21,3],[20,4,21,4],[22,0,23,0],[22,1,23,1],[22,2,23,2],[22,3,23,3],[22,4,23,4],[27,0,28,0],[27,1,28,1],[27,2,28,2],[27,3,28,3],[27,4,28,4],[60,0,61,0],[60,1,61,1],[60,2,61,2],[60,3,61,3],[60,4,61,4],[87,0,88,0],[87,1,88,1],[87,2,88,2],[87,3,88,3],[87,4,88,4],[89,0,90,0],[89,1,90,1],[89,2,90,2],[89,3,90,3],[89,4,90,4],[91,0,92,0],[91,1,92,1],[91,2,92,2],[91,3,92,3],[91,4,92,4],[93,0,94,0],[93,1,94,1],[93,2,94,2],[93,3,94,3],[93,4,94,4],[95,0,96,0],[95,1,96,1],[95,2,96,2],[95,3,96,3],[95,4,96,4],[97,0,98,0],[97,1,98,1],[97,2,98,2],[97,3,98,3],[97,4,98,4],[99,0,100,0],[99,1,100,1],[99,2,100,2],[99,3,100,3],[99,4,100,4],[101,0,102,0],[101,1,102,1],[101,2,102,2],[101,3,102,3],[101,4,102,4],[103,0,104,0],[103,1,104,1],[103,2,104,2],[103,3,104,3],[103,4,104,4],[105,0,106,0],[105,1,106,1],[105,2,106,2],[105,3,106,3],[105,4,106,4],[107,0,108,0],[107,1,108,1],[107,2,108,2],[107,3,108,3],[107,4,108,4],[109,0,110,0],[109,1,110,1],[109,2,110,2],[109,3,110,3],[109,4,110,4],[111,0,112,0],[111,1,112,1],[111,2,112,2],[111,3,112,3],[111,4,112,4],[113,0,114,0],[113,1,114,1],[113,2,114,2],[113,3,114,3],[113,4,114,4],[115,0,116,0],[115,1,116,1],[115,2,116,2],[115,3,116,3],[115,4,116,4],[117,0,118,0],[117,1,118,1],[117,2,118,2],[117,3,118,3],[117,4,118,4],[119,0,120,0],[119,1,120,1],[119,2,120,2],[119,3,120,3],[119,4,120,4],[121,0,122,0],[121,1,122,1],[121,2,122,2],[121,3,122,3],[121,4,122,4],[123,0,124,0],[123,1,124,1],[123,2,124,2],[123,3,124,3],[123,4,124,4],[125,0,126,0],[125,1,126,1],[125,2,126,2],[125,3,126,3],[125,4,126,4],[127,0,128,0],[127,1,128,1],[127,2,128,2],[127,3,128,3],[127,4,128,4],[160,1,160,3],[161,0,161,4],[162,0,162,4],[171,1,171,3],[172,0,172,4],[173,1,173,3],[174,1,174,3],[175,1,175,5],[176,1,176,5],[177,1,177,5]]}
["8. MEDICAL GAS"]
["Provision of servicing, repairs and maintenance of the Medical Air, Gas and Vacuum plant"]
[" NO","SCHEDULED LABOUR COSTS","UNIT OF MEASURE","PROVISIONAL QUANTITIES","RATE PER  HOUR (R)."]
[1,"Labour Technician per hour","EA",1]
[2,"Labour Technician per hour over time","EA",1]
[3,"Labour Technician per hour Sunday and Public Holidays","EA",1]
[4,"Labour Technician Assistant per hour","EA",1]
[5,"Labour Technician Assistant per hour over time","EA",1]
[6,"Labour Technician Assistant per hour Sunday and Public Holidays","EA",1]
["SUB-TOTAL",{"$nulls":3},{"$f":"SUM(E4:E9)","v":{"v":0,"d":"R 0.00"}}]
[]
["PART NO:","SCHEDULED PARTS","UNIT","PROVISIONAL QUANTITIES","PRICE PER UNIT (VAT. INCLUSIVE)"]
[7,"Filters KPFEK295AC-AB\n","EA",1]
[8,"Filters KPFEK295AOVE-CBM\n","EA",1]
[9,"Filters KPFEK040AC-AB\n","EA",1]
[10,"Filters KPFEK085AAYE-CB\n","EA",1]
[11,"Grease general purpose SABS 1014","/5Kg",1]
[12,"Oil compressor ZZKLGOZENMAXPOWER\n","/5L",1]
[13,"Oil compressor -800 HR Ozen Lubrication","/20 L",1]
[14,"Oil lubricant SAE 30","/20 L",1]
[15,"Copper connections between manifold and pigtails (manifold)","Each",1]
[]
[16,"High pressure non return valve 20mm","Each",1]
[]
[17,"Indicating lights for gas bank globes","Each",1]
[18,"Indicating lights for gas bank L.E.D.S","Each",1]
[19,"Needle valves No. B IR 54","Each",1]
[20,"Pressure gauge 100mm dia. dial. Range OKPAG-1000 KPAG","EA",1]
[]
[21,"Pressure gauge 100mm dia. Dial, Range OKPAG-1500 KPAG","EA",1]
[22,"Pressure gauge 100mm dia. Dial, Range OKPAG-200 KPAG","EA",1]
[23,"Inline – Filters IRP 180/92445543","EA",1]
[24,"Inline – Filters IRH 180/92445840","EA",1]
[25,"Inline – Filters IRC 180/92445709","EA",1]
[26,"Elements - KPFEK195AOVECBM\n","EA",1]
[27,"Elements - KPFEK025AOVE-CBM\n","EA",1]
[28,"Elements - KPFEK025AAYE-CB\n","EA",1]
[29,"Elements - KPFEK025AC-AB\n","EA",1]
[30,"Bacterial Filters KPFEK040PL\n","EA",1]
[31,"Bacterial Filters KPFEK085PL\n","EA",1]
[32,"Elements IR CPN 92444223","EA",1]
[33,"Elements IR CPN 92444512","EA",1]
[34,"Elements IR CPN 92444389","EA",1]
[35,"Pressure gauge 100mm dia. Dial, Range 400 KPAG","EA",1]
[36,"Pressure reducing valves, Range 18600 KPAG-600 KPAG","EA",1]
[37,"Pressure reducing valves, Range 18600KPAG-300KPAG","EA",1]
[38,"Pressure reducing valves, Range 1000 KPAG-400 KPAG","EA",1]
[39,"Pressure reducing valves, Range 600 KPAG-600 KPAG","EA",1]
[40,"Flameproof mirco pressure switch, Range 600 KPAG – 600 KPAG","EA",1]
[41,"Contact shut off valve, Series 9500 or equal","EA",1]
[42,"Master shut off valve, Series 9500 of equal","EA",1]
[43,"Master shut off valve,Series 2554 AA or equal","EA",1]
[44,"Safety valves 25mm pop up safex, Set at 500 KPAG to discharge","EA",1]
[45,"Safety valves 25mm pop up safex, Set at 1380 KPAG to discharge","EA",1]
[46,"Non return valve ref. Type 25mm","EA",1]
[47,"Cylinder securing chains 10mm","/M",1]
[48,"Strainer with blow down valve 15mm","EA",1]
[49,"Automatic liquid drainer on receiver and 20mm ","EA",1]
[50,"Safety valve pop-up 20 mm","EA",1]
[51,"Pressure stat for warning light panel","EA",1]
[52,"Reducing valve with low pressure valve","EA",1]
[]
[53,"Vacuum bottle trap ball valves","EA",1]
[54,"Vacuum bottle (bottle only)","EA",1]
[55,"Vacuum bottle sealing gasket","EA",1]
[56,"Vacuum Trap Glass (MPN.1491.11)","EA",1]
[57,"Vacuum Trap New Type","EA",1]
[58,"Medical gas outlet points Oxygen-Complete","EA",1]
[59,"Medical gas outlet points, Nitrous oxide-Complete",null,1]
[60,"Medical gas outlet points LP Air-Complete","EA",1]
[61,"Medical gas outlet points HP Air-Complete","EA",1]
[62,"Medical gas outlet point repair kit, Oxygen- One Kits Services 4 Points","EA",1]
[63,"Medical gas outlet point repair kit, Nitrous oxide- One Kits Services 4 Points","EA",1]
[64,"Medical gas outlet point repair kit, LP Air-One Kits Services 4 Points","EA",1]
[65,"Medical gas outlet point repair kit, HP Air-One Kits Services 4 Points","EA",1]
[66,"Back Body ","EA",1]
[67,"Outlet Socket","EA",1]
[68,"Cover Boc","EA",1]
[69,"Back Body Plate","EA",1]
[70,"Mounting Bracket for valve housing","EA",1]
[71,"Test button push button type","EA",1]
[72,"Changeover device-Medical Gas Bank","EA",1]
[73,"Lefthand and Righthand Regulator","EA",1]
[74,"Top Regulator","EA",1]
[75,"O-Rigs","EA",1]
[76,"Copper Pigtail","EA",1]
[77,"Relay","EA",1]
[78,"Copper tubing for medical gas & vacuum 10 mm x 5.5m","/L",1]
[]
[79,"Copper tubing for medical gas & vacuum 12mm x 5.5m","/L",1]
[]
[80,"Copper tubing for medical gas & vacuum 15mm x 5.5m","/L",1]
[]
[81,"Copper tubing for medical gas & vacuum 20mm x 5.5m","/L",1]
[]
[82,"Copper tubing for medical gas & vacuum 22mm x 5.5m","/L",1]
[]
[83,"Copper elbows for medical gas & vacuum 10mm","EA",1]
[]
[84,"Copper elbows for medical gas & vacuum 12mm","EA",1]
[]
[85,"Copper elbows for medical gas & vacuum 15mm","EA",1]
[]
[86,"Copper elbows for medical gas & vacuum 20mm","EA",1]
[]
[87,"Copper elbows for medical gas & vacuum 22mm","EA",1]
[]
[88,"Copper tees for medical gas & vacuum 10mm","EA",1]
[]
[89,"Copper tees for medical gas & vacuum 12mm","EA",1]
[]
[90,"Copper tees for medical gas & vacuum 15mm","EA",1]
[]
[91,"Copper tees for medial gas & vacuum 20mm","EA",1]
[]
[92,"Copper tees for medical gas & vacuum 22mm","EA",1]
[]
[93,"Isolating valve for gas ball type 10mm","EA",1]
[]
[94,"Isolating valve for gas ball type 12mm","EA",1]
[]
[95,"Isolating valve for gas ball type 15mm","EA",1]
[]
[96,"Isolating valve for gas ball type 20mm","EA",1]
[]
[97,"Isolating valve for gas ball type 22mm","EA",1]
[]
[98,"Cable ties 4mm x 150","Pack of 100",1]
[]
[99,"New Medical Air Compressor 7.5 kW ","EA",1]
[100,"New Medical Air Compressor 11 kW","EA",1]
[101,"New Medical Air Compressor 15 kW","EA",1]
[102,"New Medical Air Compressor 18.5 kW","EA",1]
[103,"New Medical Air Compressor 22 kW","EA",1]
[104,"New Medical Air Compressor 30 kW","EA",1]
[105,"New Medical Air Compressor 37 kW","EA",1]
[106,"New Medical Air Compressor 45 kW","EA",1]
[107,"New Medical Air Compressor 65 kW","EA",1]
[108,"New Medical Air Compressor 75 kW","EA",1]
[109,"New Medical Air Compressor 90 kW","EA",1]
[110,"New Medical Air Compressor 110 kW","EA",1]
[111,"New Vacuum pumps 2 kW","EA",1]
[112,"New Vacuum pumps 4 kW","EA",1]
[113,"New Vacuum pumps 6 kW","EA",1]
[114,"New Vacuum pumps 8 kW","EA",1]
[115,"New Vacuum pumps 10 kW","EA",1]
[116,"New Vacuum pumps 12 kW","EA",1]
[117,"New Vacuum pumps 14 kW","EA",1]
[118,"New piston compressors 1.5 kW","EA",1]
[119,"New piston compressors 2 kW","EA",1]
[120,"New piston compressors 2.5 kW","EA",1]
[121,"New piston compressors 3 kW","EA",1]
[122,"New piston compressors 3.5 kW","EA",1]
[123,"New piston compressors 4 kW","EA",1]
[124,"New piston compressors 4.5 kW","EA",1]
[125,"New piston compressors 5 kW","EA",1]
[126,"New piston compressors 5.5 kW","EA",1]
[127,"New piston compressors 6 kW","EA",1]
[128,"New piston compressors 6.5 kW","EA",1]
[129,"New piston compressors 7 kW","EA",1]
["SUB-TOTAL",{"$nulls":3},{"$f":"SUM(E13:E160)","v":{"v":0,"d":"R 0.00"}}]
[]
["SERVICING"]
[130,"Major service on Oxygen Gas banks and Reticulations","S",1]
[131,"Major service on Nitro Oxide Bank  and Reticulations","S",1]
[132,"Major service on Medical Air and Reticulations ","S",1]
[133,"Major service on Medical Air Compressors","S",1]
[134,"Minor service on Medical Air Compressor","S",1]
[135,"Major service on Vacuum Pumps","S",1]
[136,"Minor service on Vacuum Pumps","S",1]
[137,"Traveling can only be book from the relevant Regional Office to the institution in that relevant  Region","km",1]
["SUB-TOTAL",{"$nulls":3},{"$f":"SUM(E121:E171)","v":{"v":0,"d":"R0.00"}}]
[]
["GRAND TOTAL:",{"$nulls":3},{"$f":"E10+E161+E172","v":{"v":0,"d":"R0.00"}}]
[]
["Name of the Company"]
["Signature:"]
["Date:"]

{"sheet":"9. NURSE CALL SYSTEMS","index":9,"n_rows":60,"n_cols":5,"rows_kept":60,"merged":[[0,0,0,4],[1,0,1,4],[9,1,9,3],[44,1,44,3],[45,0,45,4],[52,1,52,3],[53,0,53,4],[54,1,54,3],[57,1,57,5],[58,1,58,5],[59,1,59,5]]}
["9. NURSE CALL SYSTEMS"]
["Provision of servicing, repairs and maintenance of the Nurse call systems"]
[" NO","SCHEDULED LABOUR COSTS","UNIT OF MEASURE","PROVISIONAL QUANTITIES","RATE PER  HOUR (R)."]
[1,"Labour Technician per hour","EA",1]
[2,"Labour Technician per hour over time","EA",1]
[3,"Labour Technician per hour Sunday and Public Holidays","EA",1]
[4,"Labour Technician Assistant per hour","EA",1]
[5,"Labour Technician Assistant per hour over time","EA",1]
[6,"Labour Technician Assistant per hour Sunday and Public Holidays","EA",1]
["SUB-TOTAL",{"$nulls":3},{"$f":"SUM(E4:E9)","v":{"v":0,"d":"R 0.00"}}]
[]
["PART NO:","SCHEDULED PARTS","UNIT OF MEASURE","PROVISIONAL QUANTITIES","PRICE PER UNIT (VAT. INCLUSIVE)"]
[7,"Nurse Call Stations: Type MNS"]
["7.1","Bed stations ","EA",1]
["7.2","Bed station in isolation wards ","EA",1]
["7.3","Call stations in toilets ","EA",1]
["7.4","Call stations with pull switches (bath rooms) ","EA",1]
["7.5","Over door indicators ","EA",1]
["7.6","Over door indicator units LED type ","EA",1]
["7.7","Pear push units ","EA",1]
["7.8","Powers supply 24V/4.5A complete with housing.","EA",1]
["7.9","Mimic panel & controller card complete for a ward layout. MM-MIMIC","EA",1]
[8,"Intercoms:"]
["8.1","Intercom units at nurses’ station for isolation rooms including power supply","EA",1]
["8.2","Master stations (built in expansion 1 to 10 substations) ","EA",1]
["8.3","Slave stations (for connection with master stations)","EA",1]
["8.4","Desktop Microphones fixed wire","EA",1]
["8.5","Desktop Microphones wireless","EA",1]
["8.6","Microphone wireless receiver","EA",1]
["8.7","Amplifier 120 watt can drive 4 to 6 speakers","EA",1]
["8.8","Amplifier 240 watt can drive 8 to 10 speakers","EA",1]
["8.9","Amplifier 480 watt can drive 16 to 20 speakers","EA",1]
["8.10","Mixer to facilitate additional microphone inputs","EA",1]
["8.11","Speakers 150mm 100volt transformer type ceiling flush","EA",1]
["8.12","Speakers 150mm 100volt transformer type wall mounted including box","EA",1]
["8.13","Equipment cabinet for pa system","EA",1]
[9,"Cable/Wiring:"]
["9.1","Microphone cable ","EA",1]
["9.2","Speaker wire rip cord 1.5mm","EA",1]
["9.3","0.5mm 6-pair PVC insulated wire cat 6 solid pair for nurse call","EA",1]
["9.4","0.5mm 10-pair PVC insulated wire cat 6 solid pair for nurse call","EA",1]
[10,"Cable terminations:","EA"]
["10.1","Per 0.5mm 6-pair PVC insulated wire (CAT 6)","EA",1]
["10.2","Per 0.5mm 10-pair PVC insulated wire (CAT 6)","EA",1]
["SUB-TOTAL",{"$nulls":3},{"$f":"SUM(E13:E44)","v":{"v":0,"d":"R 0.00"}}]
[]
[11,"Services of:"]
["11.1","Silent Call system per standard 30 bed ward complete including all material required to restore to original state as per DID standard service schedule","S",1]
["11.2","P.A Systems complete including speakers as per DID standard service schedule","S",1]
["11.3","Intercom Systems master & slave stations 1 to 10 complete as per DID standard service schedule","S",1]
["11.4","Intercom Systems 1 to 1 complete as per DID standard service schedule","S",1]
["11.5","Travelling per kilometer ","km",1]
["SUB-TOTAL",{"$nulls":3},{"$f":"SUM(E48:E52)","v":{"v":0,"d":"R0.00"}}]
[]
["GRAND TOTAL:",{"$nulls":3},{"$f":"E10+E45+E53","v":{"v":0,"d":"R0.00"}}]
[]
[]
["Name of the Company"]
["Signature:"]
["Date:"]

{"sheet":"10. PLUMBING","index":10,"n_rows":187,"n_cols":5,"rows_kept":187,"merged":[[0,0,0,4],[1,0,1,4],[9,1,9,3],[10,0,10,4],[174,0,174,4],[180,1,180,3],[181,0,181,4],[182,1,182,3],[184,1,184,5],[185,1,185,5],[186,1,186,5]]}
["10. PLUMBING"]
["Provision of plumbing service, repairs and maintenance"]
[" NO","SCHEDULED LABOUR COSTS","UNIT OF MEASURE","PROVISIONAL QUANTITIES","RATE PER  HOUR (R)."]
[1,"Labour Technician per hour","EA",1]
[2,"Labour Technician per hour over time","EA",1]
[3,"Labour Technician per hour Sunday and Public Holidays","EA",1]
[4,"Labour Technician Assistant per hour","EA",1]
[5,"Labour Technician Assistant per hour over time","EA",1]
[6,"Labour Technician Assistant per hour Sunday and Public Holidays","EA",1]
["SUB-TOTAL",{"$nulls":3},{"$f":"SUM(E4:E9)","v":{"v":0,"d":"R 0.00"}}]
[]
["PART NO","SCHEDULED PARTS","UNIT OF MEASURE","PROVISIONAL QUANTITIES","PRICE PER UNIT (VAT. INCLUSIVE)"]
[7,"Replacement exchange resin","Lire",1]
[8,"Testing of water softener resin","EA",1]
[9,"Replacement filtration media","Per m³",1]
[10,"Internal sand blasting for metal softeners","Per kg",1]
[11,"Corrosion protection for metal softeners","Per litre",1]
[12,"Replacement nossels 50mm dia PVC pipe","Per m",1]
[13,"Iron contamination protection for a sodium on exchange resin bed","Per litre",1]
[14,"Test kit","EA",1]
[15,"Yes/No tablets","Per 250",1]
[16,"TDS meter","EA",1]
[17,"Auto duplex head for water softener 1500 litre ","EA",1]
[18,"Auto duplex head service pack 300 litre / 150 x 5","EA",1]
[19,"Auto duplex head service pack ","EA",1]
[20,"Auto duplex head service pack 1500 litre ","EA",1]
[21,"Auto duplex head timer drive motor 300 litre","EA",1]
[22,"Auto duplex head timer drive motor 400 litre to 600 litre","EA",1]
[23,"Auto duplex head timer drive motor 800 litre and larger","EA",1]
[24,"Water softener vessel 300 litre","EA",1]
[25,"Water softener vessels 400 litre to 600 litre","EA",1]
[26,"Water softener pre filter 32mm","EA",1]
[27,"Water softener pre filter cartridge 32mm","EA",1]
[28,"Water softener pre filter 40mm","EA",1]
[29,"Water softener pre filter cartridge 40mm","EA",1]
[30,"Water softener pre filter 50mm","EA",1]
[31,"Water softener pre filter cartridge 50mm","EA",1]
[32,"Brine tank for 300 litre 1500 litre polorylean ","EA",1]
[33,"Calibration of an existing water meter","EA",1]
[34,"Water meter 32mm","EA",1]
[35,"Water meter 40mm","EA",1]
[36,"Water meter 50mm","EA",1]
[37,"Water meter 65mm","EA",1]
[38,"Water meter 80mm","EA",1]
[39,"Condensate meter 32mm","EA",1]
[40,"Condensate meter 40mm","EA",1]
[41,"Condensate meter 50mm","EA",1]
[42,"Condensate meter 80mm","EA",1]
[43,"Galvanized piping 15mm","per meter",1]
[44,"Galvanized piping 20mm","per meter",1]
[45,"Galvanized piping 25mm","per meter",1]
[46,"Galvanized piping 32mm","per meter",1]
[47,"Galvanized piping 40mm","per meter",1]
[48,"Galvanized piping 50mm","per meter",1]
[49,"Galvanized piping 65mm","per meter",1]
[50,"Galvanized piping 80mm","per meter",1]
[51,"Galvanized piping 100mm","per meter",1]
[52,"Galvanized elbow 15mm","EA",1]
[53,"Galvanized elbow 20mm","EA",1]
[54,"Galvanized elbow 25mm","EA",1]
[55,"Galvanized elbow 32mm","EA",1]
[56,"Galvanized elbow 40mm","EA",1]
[57,"Galvanized elbow 50mm","EA",1]
[58,"Galvanized elbow 65mm","EA",1]
[59,"Galvanized elbow 80mm","EA",1]
[60,"Galvanized elbow 100mm","EA",1]
[61,"Galvanized socket 15mm","EA",1]
[62,"Galvanized socket 20mm","EA",1]
[63,"Galvanized socket 25mm","EA",1]
[64,"Galvanized socket 32mm","EA",1]
[65,"Galvanized socket 40mm","EA",1]
[66,"Galvanized socket 50mm","EA",1]
[67,"Galvanized socket 65mm","EA",1]
[68,"Galvanized socket 80mm","EA",1]
[69,"Galvanized socket 100mm","EA",1]
[70,"Galvanized nipple 15mm","EA",1]
[71,"Galvanized nipple 20mm","EA",1]
[72,"Galvanized nipple 25mm","EA",1]
[73,"Galvanized nipple 32mm","EA",1]
[74,"Galvanized nipple 40mm","EA",1]
[75,"Galvanized nipple 50mm","EA",1]
[76,"Galvanized nipple 65mm","EA",1]
[77,"Galvanized nipple 80mm","EA",1]
[78,"Galvanized nipple 100mm","EA",1]
[79,"Galvanized union 15mm","EA",1]
[80,"Galvanized union 20mm","EA",1]
[81,"Galvanized union 25mm","EA",1]
[82,"Galvanized union 32mm","EA",1]
[83,"Galvanized union 40mm","EA",1]
[84,"Galvanized union 50mm","EA",1]
[85,"Galvanized union 65mm","EA",1]
[86,"PTFE tape","EA",1]
[87,"PVC piping 15mm","per meter",1]
[88,"PVC piping 20mm","per meter",1]
[89,"PVC piping 25mm","per meter",1]
[90,"PVC piping 32mm","per meter",1]
[91,"PVC piping 40mm","per meter",1]
[92,"PVC piping 50mm","per meter",1]
[93,"PVC piping 65mm","per meter",1]
[94,"PVC piping 80mm","per meter",1]
[95,"PVC piping 100mm","per meter",1]
[96,"PVC elbow 15mm","EA",1]
[97,"PVC elbow 20mm","EA",1]
[98,"PVC elbow 25mm","EA",1]
[99,"PVC elbow 32mm","EA",1]
[100,"PVC elbow 40mm","EA",1]
[101,"PVC elbow 50mm","EA",1]
[102,"PVC elbow 65mm","EA",1]
[103,"PVC elbow 80mm","EA",1]
[104,"PVC elbow 100mm","EA",1]
[105,"PVC sockets 15mm","EA",1]
[106,"PVC sockets 20mm","EA",1]
[107,"PVC sockets 25mm","EA",1]
[108,"PVC sockets 32mm","EA",1]
[109,"PVC sockets 40mm","EA",1]
[110,"PVC socket 50mm","EA",1]
[111,"PVC socket 65mm","EA",1]
[112,"PVC socket 80mm","EA",1]
[113,"PVC socket 100mm","EA",1]
[114,"PVC to steel connector 15mm","EA",1]
[115,"PVC to steel connector 20mm","EA",1]
[116,"PVC to steel connector 25mm","EA",1]
[117,"PVC to steel connector 32mm","EA",1]
[118,"PVC to steel connector 40mm","EA",1]
[119,"PVC to steel connector 50mm","EA",1]
[120,"PVC to steel connector 65mm","EA",1]
[121,"PVC to steel connector 80mm","EA",1]
[122,"PVC to steel connector 100mm","EA",1]
[123,"PVC Glue","500ml",1]
[124,"Chemical dosing pump","EA",1]
[125,"Chemical containers – 54 litre","EA",1]
[126,"Chemical containers – 70 litre","EA",1]
[127,"Chemical containers – 120 litre","EA",1]
[128,"Chemical containers – 230 litre","EA",1]
[129,"Boiler PWT No 1 paint","5 litres",1]
[130,"Salt","50 kg",1]
[131,"Manhole gaskets on boilers","EA",1]
[132,"Handhold gaskets","EA",1]
[133,"Rates to treat boiler make up water ","Per cub meter",1]
[134,"Rates to treat condensate return ","Per cub meter",1]
[135,"Rates to treat cooling tower water","Per cub meter",1]
[136,"Wet storage of boilers evaporation rate 2900 kg/hr","EA",1]
[137,"Wet storage of boilers evaporation rate 4000 kg/hr","EA",1]
[138,"Wet storage of boilers evaporation rate 4900 kg/hr","EA",1]
[139,"Wet storage of boilers evaporation rate 5000 kg/hr","EA",1]
[140,"Wet storage of boilers evaporation rate 6000 kg/hr","EA",1]
[141,"Wet storage of boilers evaporation rate 7500 kg/hr","EA",1]
[142,"Wet storage of boilers evaporation rate 13000 kg/hr","EA",1]
[143,"Wet storage of boilers evaporation rate 15000 kg/hr","EA",1]
[144,"Wet storage of boilers evaporation rate 20000 kg/hr","EA",1]
[145,"Six monthly wash out of boiler","EA",1]
[146,"Six monthly Wash out of cooling towers ","EA",1]
[147,"Wash out of Hotwells 4000 litre ","EA",1]
[148,"Wash out of Hotwells 6000 litre","EA",1]
[149,"Wash out of Hotwells 8000 litre","EA",1]
[150,"Wash out of Hotwells 10000","EA",1]
[151,"Wash out of Hotwells 15000","EA",1]
[152,"Wash out of Hotwells 25000","EA",1]
[153,"Independent testing for condensate water as per part 3 (Sanas approved)","EA",1]
[154,"Independent testing for renal dialysis water  (Sanas approved)","EA",1]
[155,"Independent testing for water storage tanks (Sanas approved)","EA",1]
[156,"RO membrane BW 30-4040","EA",1]
[157,"RO membrane BW 30-25-40","EA",1]
[158,"Vent filters micro cell point 2","EA",1]
[159,"Cabon filter Coconut base cabon for removal of microbologocal contamination","per kg",1]
[160,"UV  lights 4 Watt","EA",1]
[161,"UV ligts 6 Watt","EA",1]
[162,"UV ligts 8 Watt","EA",1]
[163,"UV lights 10 Watt","EA",1]
[164,"UV lights 20 Watt","EA",1]
[165,"UV lights 30 Watt","EA",1]
[166,"UV lights 40 Watt","EA",1]
[167,"UV lights 85 Watt","EA",1]
["SUB-TOTAL",{"$nulls":3},{"$f":"SUM(E13:E173)","v":{"v":0,"d":"R 0.00"}}]
["Routine Services:"]
[168,"Renal Dialysis monthly inspections, test replacement of filters and water analyse reports- labour only","S",1]
[169,"3 monthly CIP wash out inspections testing replacement of filters and water analyse reports - chemicals and labour RO's only","S",1]
[170,"3 monthly CIP wash out inspections testing replacement of filters and water analyse reports - chemicals and labour LOUP only","S",1]
[171,"Calibration of all systems water pressures and analitical equipment PLC's, HP, water levels, gauges and loop pressures - all on site calibrations on equipment, certificates and reports","S",1]
[172,"Transport can only be book from the Regional offices to the institutions","S",1]
["SUB-TOTAL",{"$nulls":3},{"$f":"SUM(E176:E180)","v":{"v":0,"d":"R0.00"}}]
[]
["GRAND TOTAL:",{"$nulls":3},{"$f":"E10+E174+E181","v":{"v":0,"d":"R0.00"}}]
[]
["Name of the Company"]
["Signature:"]
["Date:"]

{"sheet":"11. STEAM RETICULATION","index":11,"n_rows":216,"n_cols":5,"rows_kept":216,"merged":[[0,0,0,4],[1,0,1,4],[9,1,9,3],[10,0,10,4],[209,1,209,3],[210,0,210,4],[211,1,211,3],[213,1,213,5],[214,1,214,5],[215,1,215,5]]}
["11. STEAM RETICULATION"]
["Provision of servicing, repairs and maintenance of Steam Generation plants, Steam and Condensate Reticulation and Various Mechanical Equipment"]
[" NO","SCHEDULED LABOUR COSTS","UNIT OF MEASURE","PROVISIONAL QUANTITIES","RATE PER  HOUR (R)."]
[1,"Labour Technician per hour","EA",1]
[2,"Labour Technician per hour over time","EA",1]
[3,"Labour Technician per hour Sunday and Public Holidays","EA",1]
[4,"Labour Technician Assistant per hour","EA",1]
[5,"Labour Technician Assistant per hour over time","EA",1]
[6,"Labour Technician Assistant per hour Sunday and Public Holidays","EA",1]
["SUB-TOTAL",{"$nulls":3},{"$f":"SUM(E4:E9)","v":{"v":0,"d":"R 0.00"}}]
[]
[]
["PART NO","SCHEDULED PARTS","UNIT OF MEASURE","PROVISIONAL QUANTITIES","PRICE PER UNIT (VAT. INCLUSIVE)"]
[7,"15mm ball float valve","EA",1]
[8,"20mm ball float valve","EA",1]
[9,"25mm ball float valve","EA",1]
[10,"15mm Steam barrel nipples","EA",1]
[11,"20mm Steam barrel nipples","EA",1]
[12,"25mm Steam barrel nipples","EA",1]
[13,"40mm Steam barrel nipples","EA",1]
[14,"50mm Steam barrel nipples","EA",1]
[15,"Armstrong 800 Steam trap repair kit: 4.27mm orifice ","EA",1]
[16,"Armstrong 800 Steam trap gasket sets","EA",1]
[17,"15mm Spirax FT14 Steam traps","EA",1]
[18,"15 to 20mm Spirax Sarco sight glass window repair kits","EA",1]
[19,"15mm brass horns valves","EA",1]
[20,"20mm brass horns valves","EA",1]
[21,"25mm brass horns valves","EA",1]
[22,"32mm brass horns valves","EA",1]
[23,"15mm S’S trim globe valve 10 bar","EA",1]
[24,"20mm S’S trim globe valve 10 bar","EA",1]
[25,"25mm S’S trim globe valve 10 bar","EA",1]
[26,"15mm cone face steam unions ","EA",1]
[27,"20mm cone face steam unions ","EA",1]
[28,"25mm cone face steam unions ","EA",1]
[29,"15mm copper tubing, class 2  5.5m length","EA",1]
[30,"20mm copper tubing, class 2  5.5m length","EA",1]
[31,"25mm copper tubing, class 2   5.5m length","EA",1]
[32,"40mm copper tubing, class 2   5.5m length","EA",1]
[33,"50mm copper tubing, class 2   5.5m length","EA",1]
[34,"80mm copper tubing, class 2   65.5m length","EA",1]
[35,"15mm heavy duty steam pipe 6,1m length S40","EA",1]
[36,"20mm heavy duty steam pipe 6,1m length S40","EA",1]
[37,"25mm heavy duty steam pipe 6,1m length S40","EA",1]
[38,"40mm heavy duty steam pipe 6,1m length S40","EA",1]
[39,"50mm heavy duty steam pipe 6,1m length S40","EA",1]
[40,"80mm heavy duty steam pipe 6,1m length S40","EA",1]
[41,"Valve gland packing 12,5mm ","EA",1]
[42,"Valve gland packing 10mm ","EA",1]
[43,"Valve gland packing 6mm ","EA",1]
[44,"Graphite pipe jointing compound; 5kg container","EA",1]
[45,"Rope packing; non asbestos; 40mm x 30mm ","EA",1]
[46,"Rope packing; non asbestos; 25mm x 30mm ","EA",1]
[47,"15mm flap type brass body non return valves","EA",1]
[48,"20mm flap type brass body non return valves","EA",1]
[49,"25mm flap type brass body non return valves","EA",1]
[50,"40mm flap type brass body non return valves","EA",1]
[51,"50mm flap type brass body non return valves","EA",1]
[52,"15mm steam strainers, brass body","EA",1]
[53,"20mm steam strainers, brass body","EA",1]
[54,"25mm steam strainers, brass body","EA",1]
[55,"40mm steam strainers, brass body","EA",1]
[56,"50mm steam strainers, brass body","EA",1]
[57,"Rope packing; non asbestos; 15mm x 30mm","EA",1]
[58,"Packing material: 1,5mm Graphite impregnated, wire reinforced sheet 1,2m x 2,4m x 1,5m","EA",1]
[59,"Packing material: 3mm Graphite impregnated, wire reinforced sheet","EA",1]
[60,"Valve gland packing 8mm","EA",1]
[61,"Paint: PWT TPA no 1 container","litre",1]
[62,"Fibre glass wool sheeting rolls 50mm x 1,2m","EA",1]
[63,"Pressure Guage, 100mm dia, bottom entry x 10mm BSP thread, range 0 to 2000 KPA","EA",1]
[64,"10mm siphon tube","EA",1]
[65,"10mm cock valves","EA",1]
[66,"15mm TLV steam traps","EA",1]
[67,"20mm TLV steam traps","EA",1]
[68,"25mm TLV steam traps","EA",1]
[69,"Steam Separator 6”","EA",1]
[70,"Expansion Bellows 5”","EA",1]
[71,"Lagging preformed pipe section fiber glass ½”","EA",1]
[72,"Lagging preformed pipe section fiber glass ¾”","EA",1]
[73,"Lagging preformed pipe section fiber glass 1”","EA",1]
[74,"Lagging preformed pipe section fiber glass 1½”","EA",1]
[75,"½ ” brass globe valves","EA",1]
[76,"¾” brass globe valves","EA",1]
[77,"1” brass globe valves","EA",1]
[78,"1 ½” brass globe valves","EA",1]
[79,"Lagging preformed pipe section fiber glass 1 ¾”","EA",1]
[80,"Lagging preformed pipe section fiber glass 2”","EA",1]
[81,"Lagging preformed pipe section fiber glass 2½”","EA",1]
[82,"Lagging preformed pipe section fiber glass 2 ¾”","EA",1]
[83,"Lagging preformed pipe section fiber glass 3”","EA",1]
[84,"Lagging preformed pipe section fiber glass 4”","EA",1]
[85,"Lagging preformed pipe section fiber glass 5”","EA",1]
[86,"Lagging preformed pipe section fiber glass 6”","EA",1]
[87,"Galvanized muffs ½”","EA",1]
[88,"Galvanized muffs ¾”","EA",1]
[89,"Galvanized muffs 1”","EA",1]
[90,"Galvanized muffs 1½”","EA",1]
[91,"Galvanized muffs 1¾”","EA",1]
[92,"Galvanized muffs 2”","EA",1]
[93,"Galvanized muffs 2½”","EA",1]
[94,"Galvanized muffs 2¾”","EA",1]
[95,"Galvanized muffs 3”","EA",1]
[96,"Galvanized muffs 4”","EA",1]
[97,"Galvanized muffs 5”","EA",1]
[98,"Galvanized muffs 6”","EA",1]
[99,"40mm conex straight connector","EA",1]
[100,"50mm conex straight connector","EA",1]
[101,"Gate valves ½”","EA",1]
[102,"Gate valves ¾”","EA",1]
[103,"Gate valves 1”","EA",1]
[104,"Gate valves 1 ½”","EA",1]
[105,"Gate valves 1 ¾” ","EA",1]
[106,"Gate valve 2”","EA",1]
[107,"Gate valve 3”","EA",1]
[108,"Gate valve 4”","EA",1]
[109,"15mm cast steel body strainer","EA",1]
[110,"20mm cast steel body strainer","EA",1]
[111,"25mm cast steel body strainer","EA",1]
[112,"40mm cast steel body strainer","EA",1]
[113,"1/2 “ brass angle globe valve","EA",1]
[114,"1½” brass globe valve","EA",1]
[115,"Temperature Thermometer Ispesl 0-120ºC","EA",1]
[116,"Pressure relieve Bailey 323 2”","EA",1]
[117,"15mm pressure reducing valve 100-700 Kpa","EA",1]
[118,"Pressure reducing valves ¾” 100-700KPA","EA",1]
[119,"Circulating pump Moway","EA",1]
[120,"Condensate pump Mand B 40M0/75","EA",1]
[121,"Level switch Mobrey","EA",1]
[122,"Safety valve pull up type ¾”","EA",1]
[123,"Safety valve pull up type 1”","EA",1]
[124,"Central Heating radiators","EA",1]
[125,"Central Heating Pearch Cocks","EA",1]
[126,"15mm conex male adaptor","EA",1]
[127,"20mm conex male adaptor","EA",1]
[128,"25mm conex male adaptor","EA",1]
[129,"15mm conex straight connector","EA",1]
[130,"20mm conex straight connector","EA",1]
[131,"25mm conex straight connector","EA",1]
[132,"50mm cast steel globe valves","EA",1]
[133,"65mm cast steel globe valves","EA",1]
[134,"75mm cast steel globe valves","EA",1]
[135,"15mm cast steel pressure reducing valves","EA",1]
[136,"20mm cast steel pressure reducing valves","EA",1]
[137,"25mm cast steel pressure reducing valves","EA",1]
[138,"32mm cast steel pressure reducing valves","EA",1]
[139,"40mm cast steel pressure reducing valves","EA",1]
[140,"50mm cast steel pressure reducing valves","EA",1]
[141,"65mm cast steel pressure reducing valves","EA",1]
[142,"75mm cast steel pressure reducing valves","EA",1]
[143,"300 litre vertical calorifiers","EA",1]
[144,"500 litre vertical calorifiers","EA",1]
[145,"1000 litre vertical calorifiers","EA",1]
[146,"2000 litre vertical calorifiers","EA",1]
[147,"3000 litre vertical calorifiers","EA",1]
[148,"300 litre horizontal calorifiers","EA",1]
[149,"500 litre horizontal calorifiers","EA",1]
[150,"1000 litre horizontal calorifiers","EA",1]
[151,"2000 litre horizontal calorifiers","EA",1]
[152,"3000 litre horizontal calorifiers","EA",1]
[153,"Condensate pump Ebara CMA.075 T","EA",1]
[154,"Condensate pump Ebara CMA.100 T","EA",1]
[155,"Condensate pump Ebara CMA.200 T","EA",1]
[156,"15mm brass angle globe valves","EA",1]
[157,"20mm brass angle globe valves","EA",1]
[158,"25mm brass angle globe valves","EA",1]
[159,"15mm 90° BSP thread steam elbows","EA",1]
[160,"20mm 90° BSP thread steam elbows","EA",1]
[161,"25mm 90° BSP thread steam elbows","EA",1]
[162,"15mm 90° BSP thread steam bends","EA",1]
[163,"20mm 90° BSP thread steam bends","EA",1]
[164,"25mm 90° BSP thread steam bends","EA",1]
[165,"15mm 90° weld on black elbows","EA",1]
[166,"20mm 90° weld on black elbows","EA",1]
[167,"25mm 90° weld on black elbows","EA",1]
[168,"15mm 90° weld on black bends","EA",1]
[169,"20mm 90° weld on black bends","EA",1]
[170,"25mm 90° weld on black bends","EA",1]
[171,"Key Steel 6mm","EA",1]
[172,"Key steel 8 mm","EA",1]
[173,"Key steel 10mm","EA",1]
[174,"Key steel 12 mm","EA",1]
[175,"2.5mm mild steel welding rods","EA",1]
[176,"PTFE thread tape","p/roll",1]
[177,"M6 x 50mm mild bolts and nuts","EA",1]
[178,"M8 x 50mm mild bolts and nuts","EA",1]
[179,"M10 x 50mm mild bolts and nuts","EA",1]
[180,"M12 x 50mm mild bolts and nuts","EA",1]
[181,"M14 x 50mm mild bolts and nuts","EA",1]
[182,"M16 x 50mm mild bolts and nuts","EA",1]
[183,"M20 x 50mm mild bolts and nuts","EA",1]
[184,"M6 x 100mm mild bolts and nuts","EA",1]
[185,"M8 x 100mm mild bolts and nuts","EA",1]
[186,"M10 x 100mm mild bolts and nuts","EA",1]
[187,"M12 x 100mm mild bolts and nuts","EA",1]
[188,"M14 x 100mm mild bolts and nuts","EA",1]
[189,"M16 x 100mm mild bolts and nuts","EA",1]
[190,"M20 x 100mm mild bolts and nuts","EA",1]
[191,"BSP thread reducing bushes 15-10mm","EA",1]
[192,"BSP thread reducing bushes 20-15mm","EA",1]
[193,"BSP thread reducing bushes 20-10mm","EA",1]
[194,"BSP thread reducing bushes 25-10mm","EA",1]
[195,"BSP thread reducing bushes 25-15mm","EA",1]
[196,"BSP thread reducing bushes 25-20mm","EA",1]
[197,"Square condensate tanks 300 litre","EA",1]
[198,"Square condensate tanks 500 litre","EA",1]
[199,"Square condensate tanks 1000 litre","EA",1]
[200,"Condensate tank level switches float type","EA",1]
[201,"Condensate tank level switches liquid level 3 probes","EA",1]
[202,"Traveling can only be book from the relevant Regional Office to the institution in that relevant  Region","EA",1]
["SUB-TOTAL",{"$nulls":3},{"$f":"SUM(E14:E209)","v":{"v":0,"d":"R0.00"}}]
[]
["GRAND TOTAL:",{"$nulls":3},{"$f":"E10+E210","v":{"v":0,"d":"R0.00"}}]
[]
["Name of the Company"]
["Signature:"]
["Date:"]

{"sheet":"12.LAUNDRY EQUIPMENT ","index":12,"n_rows":580,"n_cols":9,"rows_kept":580,"merged":[[0,0,0,4],[1,0,1,4],[9,1,9,3],[12,0,12,4],[18,0,18,4],[48,0,48,4],[66,0,66,4],[75,0,75,4],[93,0,93,4],[110,0,110,4],[121,0,121,4],[138,0,138,4],[149,0,149,4],[168,0,168,4],[179,0,179,4],[188,0,188,4],[197,0,197,4],[210,0,210,4],[233,0,233,4],[256,0,256,4],[275,0,275,4],[304,0,304,4],[334,0,334,4],[344,0,344,4],[420,0,420,4],[537,1,537,3],[538,0,538,4],[539,0,539,4],[552,0,552,4],[570,0,570,4],[573,1,573,3],[575,1,575,3],[577,1,577,4],[578,1,578,4],[579,1,579,4]]}
["12. LAUNDRY EQUIPMENT"]
["Provision of service, repairs and maintenance of the Laundry Machinery "]
[" NO","SCHEDULED LABOUR COSTS","UNIT OF MEASURE","PROVISIONAL QUANTITIES","RATE PER  HOUR (R)."]
[1,"Labour Technician per hour","EA",1]
[2,"Labour Technician per hour over time","EA",1]
[3,"Labour Technician per hour Sunday and Public Holidays","EA",1]
[4,"Labour Technician Assistant per hour","EA",1]
[5,"Labour Technician Assistant per hour over time","EA",1]
[6,"Labour Technician Assistant per hour Sunday and Public Holidays","EA",1]
["SUB-TOTAL",{"$nulls":3},{"$f":"SUM(E4:E9)","v":{"v":0,"d":"R 0.00"}}]
[" "]
["PART NO","SCHEDULED PARTS","UNIT OF MEASURE","PROVISIONAL QUANTITIES","PRICE PER UNIT (VAT. INCLUSIVE)"]
["TRANSFER CONVEYORS  "]
[7,"Rollers 900mm x Ø 100mm","EA",1]
[8,"Sprockets Ø 170mm","EA",1]
[9,"Conveyor belt 960mm wide","EA",1]
[10,"Clutches 170mm x 105mm x 5mm thick","EA",1]
[11,"Drive motors 3 phase 4Kw","EA",1]
["200Kg VOSS TUMBLE DRYER "]
[12,"0,75Kw extractor motor","EA",1]
[13,"11Kw extractor motor","EA",1]
[14,"2,2Kw drum drive gearbox motor","EA",1]
[15,"Chain","M",1]
[16,"Drive sprocket","EA",1]
[17,"Balancing wheels","EA",1]
[18,"Unloading flap cylinder","EA",1]
[19,"Loading cylinder","EA",1]
[20,"Loading Conveyor Belt","EA",1]
[21,"Heat exchanger","EA",1]
[22,"Top flap cylinder","EA",1]
[23,"Air solenoids","EA",1]
[24,"460mm extractor fan","EA",1]
[25,"25mm TLV steam traps","EA",1]
[26,"6mm air pipe","Meter",1]
[27,"Contactors 220V 20A (AC3)","EA",1]
[28,"Contactors 380V 50A (AC3)","EA",1]
[29,"220V 10amp 11 pin relays","EA",1]
[30,"24V 10 amp 11 pin relays","EA",1]
[31,"Slow blow fuses","EA",1]
[32,"Motor circuit breakers 16A T/P D Curve","EA",1]
[33,"Limit switches","EA",1]
[34,"Start stop buttons","EA",1]
[35,"Emergency stop knobs","EA",1]
[36,"Cylindrical fuse holders 32A","EA",1]
[37,"FX2N32MR PLC","EA",1]
[38,"H3BP OMROM Timer","EA",1]
[39,"200A 15Ka Isolator","EA",1]
[40,"Thermal overload (9 – 15A)","EA",1]
["  ROLL PRESS – MECHANICAL PARTS "]
[41,"Big gears – front 117 teeth","EA",1]
[42,"Big gears – middle 119 teeth","EA",1]
[43,"Big gears – back 106 teeth","EA",1]
[44,"Pinion – front 17 teeth","EA",1]
[45,"Pinion – middle 19 teeth","EA",1]
[46,"Pinion – back 19 teeth","EA",1]
[47,"Variable speed V-belt 70 x 18 x 2500","EA",1]
[48,"V-belts","EA",1]
[49,"Worm gearbox","EA",1]
[50,"50mm camed drive belts","EA",1]
[51,"75mm feeder belts","M",1]
[52,"Speed adjustment motor 0,75Kw 380V","EA",1]
[53,"Reflectors and reflection sensors","EA",1]
[54,"Variable speed pulley","EA",1]
[55,"Extractor fan","EA",1]
[56,"Roller lifting cylinders","EA",1]
[57,"Safety switch","EA",1]
["PNEUMATIC ROLL PRESS "]
[58,"Filter regulator","EA",1]
[59,"Lubricator  ","EA",1]
[60,"Pressure gauge","EA",1]
[61,"Reducing valve","EA",1]
[62,"Micro cylinder","EA",1]
[63,"Pneumatic push button","EA",1]
[64,"6mm air pipe","M",1]
[65,"6mm quick coupling fittings","EA",1]
["ELECTRICAL "]
[66,"Contactors 380V 18Kw (AC3)","EA",1]
[67,"Contactors 380V 2Kw (AC3)","EA",1]
[68,"Push button start","EA",1]
[69,"Push button stop","EA",1]
[70,"Indication light 220V","EA",1]
[71,"Limit switch  ","EA",1]
[72,"Emergency stop knobs","EA",1]
[73,"Main drive motor 18Kw 380V","EA",1]
[74,"Extractor fan motors 0,75Kw 380V","EA",1]
[75,"Thermal Overload (28-42A)","EA",1]
[76,"Thermal Overload (3 – 5A)","EA",1]
[77,"Safari Siliconics SAF/11/S/80","EA",1]
[78,"40A 10Ka D Curve circuit breaker","EA",1]
[79,"6A 10Ka D Curve circuit breaker","EA",1]
[80,"Fuses 32A (10-38mm)","EA",1]
[81,"Cylinder fuse holders 32A","EA",1]
[82,"Needle velt","EA",1]
["MILNOR 113 KG "]
[83,"Door seals","EA",1]
[84,"Door switches","EA",1]
[85,"Safety switches (Excursion)","EA",1]
[86,"Dump valve","EA",1]
[87,"Brake assembly","EA",1]
[88,"Main bearings","Set",1]
[89,"Air solenoids","EA",1]
[90,"6mm air pipe","M",1]
[91,"Temperature probe","EA",1]
[92,"Gearbox","EA",1]
[93,"Wash motor  BALDOR","EA",1]
[94,"Rinse motor BALDOR","EA",1]
[95,"Extract motor BALDOR","EA",1]
[96,"Flexible steam hose","EA",1]
[97,"V-belts 10N1700","EA",1]
[98,"V-belts 1270 10N1270","EA",1]
["ELECTRICAL ",{"$nulls":5},"  "]
[99,"Start / stop button","EA",1]
[100,"Emergency stop knob","EA",1]
[101,"Fuses 32A (10-38mm)","EA",1]
[102,"Contactors 380V 16Kw (AC3)","EA",1]
[103,"Contactors 380V 5Kw (AC3)","EA",1]
[104,"Overload relays 28-24A","EA",1]
[105,"Overload relays 6-10A","EA",1]
[106,"FX2N48MR PLC","EA",1]
[107,"Temp Controler CB 7190L/N","EA",1]
[108,"Water level switch (2 stage)","EA",1]
["MILNOR 205 KG "]
[109,"Door seals","EA",1]
[110,"Door switches","EA",1]
[111,"Safety switches","EA",1]
[112,"Dump valve","EA",1]
[113,"Brake assembly","EA",1]
[114,"Main bearings (Drum)","Set",1]
[115,"Air solenoids","EA",1]
[116,"6mm air pipe","M",1]
[117,"Temperature probe","EA",1]
[118,"Gearbox","EA",1]
[119,"Wash motor BALDOR","EA",1]
[120,"Rinse motor BALDOR","EA",1]
[121,"Extract motor BALDOR","EA",1]
[122,"Flexible steam hose","EA",1]
[123,"V-belts 10N1700","EA",1]
[124,"V-belts 1270 10N1270","EA",1]
["ELECTRICAL "]
[125,"Start / Stop button","EA",1]
[126,"Emergency stop knob","EA",1]
[127,"Fuses 32A (10-38mm)","EA",1]
[128,"Contactors 380V 16Kw (AC3)","EA",1]
[129,"Contactors 380V 5Kw (AC3)","EA",1]
[130,"Overload relays 380V (28-42A)","EA",1]
[131,"Overload relays 380V (6-10A)","EA",1]
[132,"FX2N48MR","EA",1]
[133,"Temp Controler CB7190L/N","EA",1]
[134,"Water level switch (2 stages)","EA",1]
["MILNOR 250 KG "]
[135,"Door seals","EA",1]
[136,"Door switches","EA",1]
[137,"Safety switches","EA",1]
[138,"Dump valve","EA",1]
[139,"Brake assembly","EA",1]
[140,"Main bearings","Set",1]
[141,"Air solenoids","EA",1]
[142,"6mm air pipe","M",1]
[143,"Temperature probe","EA",1]
[144,"Gearbox BALDOR","EA",1]
[145,"Wash motor BALDOR","EA",1]
[146,"Rinse motor BALDOR","EA",1]
[147,"Extract motor","EA",1]
[148,"Flexible steam hose","EA",1]
[149,"V-belts SPZ 2690","EA",1]
[150,"V-belts 10N 1700","EA",1]
[151,"V-belts SPZ 2280","EA",1]
[152,"V-belts 10N1270","EA",1]
["ELECTRICAL "]
[153,"Start / Stop button","EA",1]
[154,"Emergency stop knob","EA",1]
[155,"Fuses 32A (10-38mm)","EA",1]
[156,"Contactors 380V 16KW (AC3)","EA",1]
[157,"Contactors 380V 4Kw (AC3)","EA",1]
[158,"Overload relays 380V (28-42A)","EA",1]
[159,"Overload relays 380V (6-10A)","EA",1]
[160,"FX2N 48MR PLC","EA",1]
[161,"Temp Controller","EA",1]
[162,"Water level switch","EA",1]
["GIRBAU 55 KG "]
[163,"Door seals","EA",1]
[164,"Door switches","EA",1]
[165,"Safety switches","EA",1]
[166,"Dump valve","EA",1]
[167,"Main bearings","Set",1]
[168,"Steam solenoid AXO","EA",1]
[169,"Temperature probe","EA",1]
[170,"Main motor 2 speed","EA",1]
["ELECTRICAL "]
[171,"Electronic display card","EA",1]
[172,"Emergency stop knob","EA",1]
[173,"Fuses 2A 20mm","EA",1]
[174,"Contactors 380V 5,7Kw (AC3)","EA",1]
[175,"Contactors 380V 5,2Kw (AC3)","EA",1]
[176,"Overload relays 380V 9-15A","EA",1]
[177,"Overload relays 380V 6-10A","EA",1]
[178,"Electronic control card","EA",1]
["TULLIS 23 KG "]
[179,"Door seals","EA",1]
[180,"Door switches","EA",1]
[181,"Dump valve","EA",1]
[182,"Main bearings","EA",1]
[183,"Water solenoid valve","EA",1]
[184,"Wash motor","EA",1]
[185,"Start / Stop button","EA",1]
[186,"Emergency stop knob","EA",1]
[187,"Contactor 380V 4,2Kw","EA",1]
[188,"Contactor 380V 2,2Kw","EA",1]
[189,"Overload relays 380V  3-5A","EA",1]
[190,"10N0980 belts","EA",1]
["KAMSIN & TULLIS TUMBLE DRYERS 50 KG ",{"$nulls":5},"  ",null,"  "]
[191,"Heat exchanger","EA",1]
[192,"Door switch","EA",1]
[193,"Drum drive motor 2,2Kw 400V","EA",1]
[194,"Contactors 7,5Kw  ","EA",1]
[195,"Contactors 2,2Kw","EA",1]
[196,"Overload relay 380V 14-23A  ","EA",1]
[197,"Overload relay 380V 3-5A","EA",1]
[198,"Fan motor 7,5Kw","EA",1]
[199,"Fan unit","EA",1]
[200,"Drum motor gearbox","EA",1]
[201,"Pneumatic timer 0-30 sec","EA",1]
[202,"11 Pin on – Delay timer","EA",1]
[203,"11 Pin equal repeat timer","EA",1]
[204,"Drum bearings","EA",1]
[205,"30A T/P isolator","EA",1]
[206,"Door seals","EA",1]
[207,"Lint filter","EA",1]
[208,"V-belt 10N1200","EA",1]
[209,"Stop / Start","EA",1]
[210,"Temp gauge Ø 100mm","EA",1]
[211,"Door catches","EA",1]
[212,"Micro door switch","EA",1]
["SPEED QUEEN TUMBLE DRIERS 60 - 100 kg "]
[213,"Heat exchanger","EA",1]
[214,"Door switch","EA",1]
[215,"Drum drive motor 2,2Kw 400V","EA",1]
[216,"Contactors 7,5Kw  ","EA",1]
[217,"Contactors 2,2Kw","EA",1]
[218,"Overload relay 380V 14-23A  ","EA",1]
[219,"Overload relay 380V 3-5A","EA",1]
[220,"Fan motor 7,5Kw","EA",1]
[221,"Fan unit","EA",1]
[222,"Drum motor gearbox","EA",1]
[223,"Pneumatic timer 0-30 sec","EA",1]
[224,"11 Pin on – Delay timer","EA",1]
[225,"11 Pin equal repeat timer","EA",1]
[226,"Drum bearings","EA",1]
[227,"30A T/P isolator","EA",1]
[228,"Door seals","EA",1]
[229,"Lint filter","EA",1]
[230,"V-belt 10N1200","EA",1]
[231,"Stop / Start","EA",1]
[232,"Temp gauge Ø 100mm","EA",1]
[233,"Door catches","EA",1]
[234,"Micro door switch","EA",1]
["JENSON AMASON FOLDERS / TULLIS "]
[235,"Gear motor 0,75Kw","EA",1]
[236,"DC motor 0,75Kw","EA",1]
[237,"Air solenoids","EA",1]
[238,"Roller shaft","EA",1]
[239,"Belt set","EA",1]
[240,"Chain  ","M",1]
[241,"Sprockets","EA",1]
[242,"Saftronic speed drive S/N537373","EA",1]
[243,"Reflectors + reflection sensors","EA",1]
[244,"Micro cylinder","EA",1]
[245,"2 way valve Asco 220","EA",1]
[246,"24VDC 5A power supply","EA",1]
[247,"FX2N48MR PLC","EA",1]
[248,"FX2N16EC output block","EA",1]
[249,"FX0N/8EX/ES","EA",1]
[250,"FX2N16/EYR","EA",1]
[251,"Contactors 380V 2.2Kw","EA",1]
[252,"Overloads 1,4-2,3A","EA",1]
["TUNNEL FINISHER "]
[253,"Heat exchanger","EA",1]
[254,"Door switch","EA",1]
[255,"Drum drive motor 2,2Kw 400V","EA",1]
[256,"Contactors 7,5Kw  ","EA",1]
[257,"Contactors 2,2Kw","EA",1]
[258,"Overload relay 380V 14-23A  ","EA",1]
[259,"Overload relay 380V 3-5A","EA",1]
[260,"Fan motor 7,5Kw","EA",1]
[261,"Fan unit","EA",1]
[262,"Drum motor gearbox","EA",1]
[263,"Pneumatic timer 0-30 sec","EA",1]
[264,"11 Pin on – Delay timer","EA",1]
[265,"11 Pin equal repeat timer","EA",1]
[266,"Drum bearings","EA",1]
[267,"30A T/P isolator","EA",1]
[268,"Door seals","EA",1]
[269,"Lint filter","EA",1]
[270,"V-belt 10N1200","EA",1]
[271,"Stop / Start","EA",1]
[272,"Temp gauge Ø 100mm","EA",1]
[273,"Door catches","EA",1]
[274,"Micro door switch","EA",1]
[275,"Hangers","EA",1]
[276,"Feeding trucks","EA",1]
[277,"Pneumatic air solenoids  ","EA",1]
[278,"Air pipes 6mm","EA",1]
[279,"Air pipes 8mm","EA",1]
[280,"Air regulators  ","EA",1]
["PASSAT TUMBLE DRIERS "]
[281,"0,75Kw extractor motor","EA",1]
[282,"11Kw extractor motor","EA",1]
[283,"2,2Kw drum drive gearbox motor","EA",1]
[284,"Chain","M",1]
[285,"Drive sprocket","EA",1]
[286,"Balancing wheels","EA",1]
[287,"Unloading flap cylinder","EA",1]
[288,"Loading cylinder","EA",1]
[289,"Loading Conveyor Belt","EA",1]
[290,"Heat exchanger","EA",1]
[291,"Top flap cylinder","EA",1]
[292,"Air solenoids","EA",1]
[293,"460mm extractor fan","EA",1]
[294,"25mm TLV steam traps","EA",1]
[295,"6mm air pipe","EA",1]
[296,"Contactors 220V 20A (AC3)","Meter",1]
[297,"Contactors 380V 50A (AC3)","EA",1]
[298,"220V 10amp 11 pin relays","EA",1]
[299,"24V 10 amp 11 pin relays","EA",1]
[300,"Slow blow fuses","EA",1]
[301,"Motor circuit breakers 16A T/P D Curve","EA",1]
[302,"Limit switches","EA",1]
[303,"Start stop buttons","EA",1]
[304,"Emergency stop knobs","EA",1]
[305,"Cylindrical fuse holders 32A","EA",1]
[306,"FX2N32MR PLC","EA",1]
[307,"H3BP OMROM Timer","EA",1]
[308,"200A 15Ka Isolator","EA",1]
[309,"Thermal overload (9 – 15A)","EA",1]
["TULLIS & DU PRESS (ROTARY) "]
[310,"Padding (felts)","EA","  "]
[311,"Rotary Cylinder","EA",1]
[312,"Foot valve","EA",1]
[313,"Turn a round valve","EA",1]
[314,"Air regulator","EA",1]
[315,"Air timer","EA",1]
[316,"Lift cylinder","EA",1]
[317,"Lubrication","EA",1]
[318,"Spring pad","EA",1]
["STEAM & COMPRESSED AIR ",{"$nulls":7},"  "]
[319,"15mm Armstrong 800 steam trap","EA",1]
[320,"20mm Armstrong 800 steam trap","EA",1]
[321,"20mm Armstrong 812 steam trap","EA",1]
[322,"Armstrong 800 steam trap repair kit 4,27mm orifice","EA",1]
[323,"Armstrong 800 steam trap gasket sets","EA",1]
[324,"Armstrong 812 steam trap repair kit 6mm orifice","EA",1]
[325,"Armstrong 812 steam trap gasket sets","EA",1]
[326,"15mm Spirax FT14 steam traps","EA",1]
[327,"20mm Spirax FT14 steam traps","EA",1]
[328,"15 to 20mm spirax sight glass window repair kits","EA",1]
[329,"15mm flap type non return valve","EA",1]
[330,"20mm flap type non return valve","EA",1]
[331,"25mm flap type non return valve","EA",1]
[332,"15mm steam strainers brass","EA",1]
[333,"20mm steam strainers brass","EA",1]
[334,"25mm steam strainers brass","EA",1]
[335,"15mm S’S trim steam globe valve 16 bar","EA",1]
[336,"20mm S’S trim steam globe valve 16 bar","EA",1]
[337,"25mm S’S trim steam globe valve 16 bar","EA",1]
[338,"15mm ball valve","EA",1]
[339,"20mm ball valve","EA",1]
[340,"25mm ball valve","EA",1]
[341,"15mm cone faced steam unions","EA",1]
[342,"20mm cone faced steam unions","EA",1]
[343,"25mm cone faced steam unions","EA",1]
[344,"15mm steam barrel nipples","EA",1]
[345,"20mm steam barrel nipples","EA",1]
[346,"25mm steam barrel nipples","EA",1]
[347,"40mm steam barrel nipples","EA",1]
[348,"60mm steam barrel nipples","EA",1]
[349,"15mm TLV float steam trap","EA",1]
[350,"20mm TLV float steam trap","EA",1]
[351,"TLV steam trap repair kit","EA",1]
[352,"TLV steam trap gasket sets","EA",1]
[353,"15mm copper tubing class 2  6,1m lengths","EA",1]
[354,"20mm copper tubing class 2  6,1m lengths","EA",1]
[355,"25mm copper tubing class 2  6,1m lengths","EA",1]
[356,"15mm heavy duty steam pipe class 2 6,1m lengths","EA",1]
[357,"20mm heavy duty steam pipe class 2  6,1m lengths","EA",1]
[358,"25mm heavy duty steam pipe class 2  6,1m lengths","EA",1]
[359,"Valve gland packing 12,5mm roll","Roll",1]
[360,"Valve gland packing 10mm roll","Roll",1]
[361,"Valve gland packing 6mm roll","Roll",1]
[362,"Graphite pipe jointing compound 5kg container","EA",1]
[363,"PTFE thread sealing tape roll","Roll",1]
[364,"Rope packing non asbestos 40mm x 30m roll","Roll",1]
[365,"Rope packing non asbestos 25mm x 30m roll","Roll",1]
[366,"Rope packing non asbestos 15mm x 30m roll","Roll",1]
[367,"Packing material: graohite impregnated","Sheets",1]
[368,"wire reinforced sheets 1,2m x 2,4m x 1,5mm","Sheets",1]
[369,"Packing material: graohite impregnated","Sheets",1]
[370,"wire reinforced sheets 1,2m x 2,4m x 3,0mm","Sheets",1]
[371,"Acetylene 8,5kg cylinder oxygen industrial","EA",1]
[372,"Quality 11,5kg cylinder","EA",1]
[373,"Welding electrodes 2,5 x 5kg","EA",1]
[374,"Welding electrodes 3,2mm x 5kg","EA",1]
[375,"Brazing rods 1,5mm x 5 kg","EA",1]
[376,"Brazing rods 2,5mm x 5 kg","EA",1]
[377,"Brazing flux 500g container","EA",1]
[378,"Silver solder 100g","Gram",1]
[379,"Gear box OL, SAE 90, 5 litre container","Litre",1]
[380,"Motor oil, SAE 30, 5 litre container","Litre",1]
[381,"Hydraulic oil, condor 310, 20 litre container","Litre",1]
[382,"Paraffin 20 litre container","Litre",1]
[383,"General purpose grease 5kg containers","Litre",1]
[384,"High temperature sootblower grease 15kg","Kg",1]
[385,"Bolts 6mm x 25mm long & nuts (HTS)","EA",1]
[386,"Bolts 8mm dia x 25mm long & nuts (HTS)","EA",1]
[387,"Bolts 8mm dia x 40mm long & nuts (HTS)","EA",1]
[388,"Bolts 10mm dia x 25mm long & nuts (HTS)","EA",1]
[389,"Bolts 12mm dia x 40mm long & nuts (HTS)","EA",1]
[390,"Bolts 12mm dia x 50mm long x nuts (HTS)","EA",1]
[391,"Paint PWT TPA no 1 5 litre containers","Litre",1]
[392,"Fibre glass wool sheeting 50mm x 1,2m x 6m roll","Roll",1]
[393,"Pressure gauge 100mm dia bottom entry x 10mm BSP thread range 0 to 2000 KPA","EA",1]
["SENKING TUNNEL WASHERS "]
[394,"Bearing- self aligning 2209 HLK drive shaft ","EA",1]
[395,"Cable-proximity switch ","EA",1]
[396,"Chain-duplex coupling for drier ","EA",1]
[397,"Chain –ejector for press ","EA",1]
[398,"Chain-roller 5/8 x 3/8” 50 rolls","EA",1]
[399,"Connecting head – chemical for drum","EA",1]
[400,"Cylinder repair kit- circular air flag","EA",1]
[401,"Cylinder repair kit- cool air flap","EA",1]
[402,"Cylinder repair kit- loading flap","EA",1]
[403,"Cylinder repair kit- unloading flap","EA",1]
[404,"Cylinder- Pneumatic for tank 1 and 2","EA",1]
[405,"Detector- moisture","EA",1]
[406,"Disc-insulating for moisture sensor","EA",1]
[407,"Distribution block- chemical","EA",1]
[408,"Electrode- PH0-14PH","EA",1]
[409,"Flow meter –krone altoflux 24 v","EA",1]
[410,"Glass panel","EA",1]
[411,"Heating unit","EA",1]
[412,"Hose-flexible 90mm (price/metre)","EA",1]
[413,"Hose steam elaseflex metal fittings","EA",1]
[414,"Hose steam elaseflex metal DN25* 620","EA",1]
[415,"Hose –steam elaseflex metal DN25* 1538mm","EA",1]
[416,"Key fitting","EA",1]
[417,"Manometer- Pneumatic 0-10 bar","EA",1]
[418,"Mechanical seal- durietta pumps","EA",1]
[419,"Mechanical seal- KNMRI 350/ 1.5 pumps","EA",1]
[420,"Mechanical seal – muller pump","EA",1]
[421,"Membrane /cushion","EA",1]
[422,"Monitor RPV","EA",1]
[423,"Monitor RPV (old machines)","EA",1]
[424,"Oil filter- cartridge (new press)","EA",1]
[425,"Oil filter- cartridge (old press)","EA",1]
[426,"Packing drain valve: 153734/46","EA",1]
[427,"Packing for glass panel","EA",1]
[428,"Packing for pre- wash tank","EA",1]
[429,"Packing set- control block for new press","EA",1]
[430,"Pillow block- SN 509 on drive shaft","EA",1]
[431,"PLC-SPS 800 ANLOG input module","EA",1]
[432,"PLC-SPS 400, 16 in/ 12 out","EA",1]
[433,"PLC- SPS 400 keyboard IMM40 220V schiele","EA",1]
[434,"PLC –SPS 600 input card","EA",1]
[435,"PLC-SPS 600 output card","EA",1]
[436,"PLC-SPS 800 digital input card","EA",1]
[437,"PLC- SPS 800 digital output card (relay)","EA",1]
[438,"Pump -dosing R 309WE","EA",1]
[439,"Pump -Durietta 1.1 KW","EA",1]
[440,"Pump -KNMRI 350-2/1.5","EA",1]
[441,"Pump –submersible for old press","EA",1]
[442,"Regulator- current 24v for press","EA",1]
[443,"Regulator- pressure valve","EA",1]
[444,"Relay -220v “Schrack”","EA",1]
[445,"Relay -Electronic delay","EA",1]
[446,"Relay -Emergency K15","EA",1]
[447,"Relay -input IN3-4-100/1 for flow control","EA",1]
[448,"Relay-input unit 24 volts","EA",1]
[449,"Relay time 0-12 min crouzet","EA",1]
[450,"Relay time0.15- 1000sec","EA",1]
[451,"Resistor-kusa 6.5 OHM 380V","EA",1]
[452,"Ring-fixing FR-85-8 for drier drive shaft","EA",1]
[453,"Roller-friction for drum (new)","EA",1]
[454,"Roller- friction for drier drum(old)","EA",1]
[455,"Roller- friction for drier 250/75- 140z","EA",1]
[456,"Roller- friction for drier drum 230/75-120","EA",1]
[457,"Roller -friction for drier thrust","EA",1]
[458,"Roller- guide 128 x50 for senking","EA",1]
[459,"Roller- inner drum support 299x 95","EA",1]
[460,"Roller -outer drum support 300x  95","EA",1]
[461,"Rotating gland –distribution fitting","EA",1]
[462,"Rotating gland- inner lip seal","EA",1]
[463,"Rotating gland – inner sleeve","EA",1]
[464,"Rotating gland –nipple","EA",1]
[465,"Rotating gland-o-ring (85*2mm)","EA",1]
[466,"Rotating gland-o-ring (50*2mm)","EA",1]
[467,"Rotating –gland- o-ring (125*3mm)","EA",1]
[468,"Rotating gland- o- ring( 105*2mm)","EA",1]
[469,"Rotating gland -radial seal","EA",1]
[470,"Rotating gland-seal for water inlet`","EA",1]
[471,"Screws-tallow drop for moisture sensors","EA",1]
[472,"Seal- basket bottom","EA",1]
[473,"Seal-double drum bottom piece","EA",1]
[474,"Seal -double drum top piece","EA",1]
[475,"Seal -gasket for double drum","EA",1]
[476,"Seal- gasket ring 3200mm for K1","EA",1]
[477,"Seal-steam valve manifold","EA",1]
[478,"Sleeve- clamping H-309 drier drive shaft","EA",1]
[479,"Socket- casing wedge for moisture sensor","EA",1]
[480,"Soft starter (main drive)","EA",1]
[481,"Soft starter 154-A11 NB (driers)","EA",1]
[482,"Solenoid valve –3/2 way 470C- 24/=","EA",1]
[483,"Solenoid valve- 2/2 way 470G – 24/=","EA",1]
[484,"Solenoid valve Burkett 230 VAC","EA",1]
[485,"Solenoid valve- pneumatic fittings 312C plugs","EA",1]
[486,"Solenoid valve -pneumatic fittings 4/2 420G","EA",1]
[487,"Solenoid valve- Pneumatic” herion”","EA",1]
[488,"Sprocket wheel- duplex 27T taper lock bush","EA",1]
[489,"Switch wheel –duplex 5/8 x 3/8” 25 T DRMO","EA",1]
[490,"Switch –proximity loading/unloading flaps","EA",1]
[491,"Switch- proximity (B2,B4-B7,B12 20mm)","EA",1]
[492,"Switch-proximity (B3) for main drive 8mm","EA",1]
[493,"Switch- proximity (B 8,B9,B13 30mm)","EA",1]
[494,"Switch – pull cord","EA",1]
[495,"Taperlock bush- 2012-029K-0024@ drive motor","EA",1]
[496,"Taperlock bush- chain wheel 35009.0","EA",1]
[497,"Thermometer 0-200’C","EA",1]
[498,"Thermometer – contact distance PT 100","EA",1]
[499,"Thermostat 0-200’C","EA",1]
[500,"Valve- 3 way detergent change over","EA",1]
[501,"Valve- 4/2 way WG22-3 for old press","EA",1]
[502,"Valve-HYD 131-10-F-hart PVC-G","EA",1]
[503,"Valve-pressure control","EA",1]
[504,"Valve- pressure limit  MU 64B  ","EA",1]
[505,"Valve-pressure limit MU64ER for press","EA",1]
[506,"Valve- pressure limit MU64E-90 for press","EA",1]
[507,"Valve –proportional PMVP5-4/24 for press","EA",1]
[508,"Valve –regulatory for new press","EA",1]
[509,"Valve –steam injection 2/2 way slanted seat","EA",1]
["SUB-TOTAL",{"$nulls":3},{"$f":"SUM(E41:E537)","v":{"v":0,"d":"R 0.00"}}]
[]
["SERVICING ON TUNNEL WASHERS "]
[510,"Servicing Weighing system","EA",1]
[511,"Servicing Infeed Conveyor ","EA",1]
[512,"Servicing 19/16 Tunnel Washer ","EA",1]
[513,"Servicing Pnuematics installation","EA",1]
[514,"Servicing Control Panel","EA",1]
[515,"Servicing Chemical Supply lines","EA",1]
[516,"Servicing Water flow ","EA",1]
[517,"Servicing Steam and Condensate","EA",1]
[518,"Servicing Detergent Station ","EA",1]
[519,"Servicing Press ","EA",1]
[520,"Servicing Shuttle Conveyor ","EA",1]
[521,"Servicing Driers","EA",1]
["SERVICING LOADING CONVEYORS, TUMBLE DRYERS, WASHING MACHINES "]
[522,"Servicing loading conveyor system","EA",1]
[523,"Servicing steam supply and condensate return","EA",1]
[524,"Servicing pneumatic system","EA",1]
[525,"Servicing detergent dosing tank","EA",1]
[526,"Servicing additive tank","EA",1]
[527,"Servicing starch tank","EA",1]
[528,"Servicing belt type conveyor","EA",1]
[529,"Servicing batch type drier","EA",1]
[530,"Servicing complete washer system","EA",1]
[531,"Servicing washer extractor","EA",1]
[532,"Servicing washer extractor","EA",1]
[533,"Servicing steam heated iron machine","EA",1]
[534,"Servicing folding machines","EA",1]
[535,"Servicing cross folding machines","EA",1]
[536,"Servicing steam heated tumble drier ","EA",1]
[537,"Servicing compressed air","EA",1]
[538,"Servicing twin rotary presses","EA",1]
["AIR COMPRESSORS "]
[539,"Minor service ","S",1]
[540,"Major service ","S",1]
["SUB-TOTAL",{"$nulls":3},{"$f":"SUM(E541:E573)","v":{"v":0,"d":"R 0.00"}}]
[]
["GRAND TOTAL:",{"$nulls":3},{"$f":"E10+E538+E574","v":{"v":0,"d":"R0.00"}}]
[]
["Name of the Company"]
["Signature:"]
["Date:"]

{"sheet":"Professional  Fees","index":13,"n_rows":23,"n_cols":6,"rows_kept":23,"hidden":true}
[null,"PRICE LIST"]
["PART NO","PROFESSIONAL  ","UNIT","Hourly  Rate",null,"Revised"]
[]
[1,"Chief Engineer (Category A)        ","Each",1,{"v":3106,"d":"ZAR 3,106.00"}]
[2,"Expert Engineer (Category A)     ","Each",1,{"v":3106,"d":"ZAR 3,106.00"}]
[3,"Senior Engineer (Category B)      2451","Each",1,{"v":2451,"d":"ZAR 2,451.00"}]
[4,"Engineer/Technologist (Category C)        ","Each",1,{"v":2089,"d":"ZAR 2,089.00"}]
[5,"Junior Technologist / Technician (Category D)     ","Each",1,{"v":951,"d":"ZAR 951.00"}]
[6,"Junior Support Staff (technical) 325","Each",1,{"v":325,"d":"ZAR 325.00"}]
[7,"Support Staff (non-technical)     250","Each",1,{"v":250,"d":"ZAR 250.00"}]
[8]
[9]
[10]
[11]
[12]
[13]
[14]
[15]
[16]
[17]
[18]
[19]
[20]